Workbook

Sheet A01
B1: SERVICIO DE SALUD
B2: =CONCATENATE("COMUNA: ",#REF!," - ","( ",#REF!,#REF!,#REF!,#REF!,#REF!," )") -> 
B3: =CONCATENATE("ESTABLECIMIENTO/ESTRATEGIA: ",#REF!," - ","( ",#REF!,#REF!,#REF!,#REF!,#REF!,#REF!," )") -> 
B4: =CONCATENATE("MES: ",#REF!," - ","( ",#REF!,#REF!," )") -> 
B5: =CONCATENATE("AÑO: ",#REF!) -> 
B6: REM-A01. CONTROLES DE SALUD
B9: SECCIÓN A: CONTROLES DE SALUD SEXUAL Y REPRODUCTIVA
B10: TIPO DE CONTROL | C10: PROFESIONAL | D10: TOTAL | E10: POR EDAD | V10: SEXO | X10: Control con pareja familiar u otro | Y10: Control de diada con presencia del padre | Z10: Espacios Amigables/ Adolescentes | AA10: Niños, Niñas, Adolescentes y Jóvenes SENAME | AB10: Niños, Niñas, Adolescentes y Jóvenes Mejor Niñez | AC10: Pueblos Originarios | AD10: Migrantes
E11: Menor de 4 años | F11: 5 - 9 años | G11: 10 - 14 años | H11: 15 a 19 años | I11: 20 - 24 años | J11: 25 - 29 años | K11: 30 - 34 años | L11: 35 - 39 años | M11: 40 - 44 años | N11: 45 - 49 años | O11: 50 - 54 años | P11: 55 - 59 años | Q11: 60 - 64 años | R11: 65 - 69 años | S11: 70 - 74 años | T11: 75 - 79 años | U11: 80 y más años | V11: HOMBRES | W11: MUJERES
A12: 01010101 | B12: PRE- CONCEPCIONAL | C12: MÉDICO/A | D12: =IFERROR(VLOOKUP($A12,FILTRO_!$A$5:$AW$2499,2,FALSE),0) -> 6 | E12: =IFERROR(VLOOKUP($A12,FILTRO_!$A$5:$AW$2499,3,FALSE),0) -> 0 | F12: =IFERROR(VLOOKUP($A12,FILTRO_!$A$5:$AW$2499,4,FALSE),0) -> 0 | G12: =IFERROR(VLOOKUP($A12,FILTRO_!$A$5:$AW$2499,5,FALSE),0) -> 0 | H12: =IFERROR(VLOOKUP($A12,FILTRO_!$A$5:$AW$2499,6,FALSE),0) -> 0 | I12: =IFERROR(VLOOKUP($A12,FILTRO_!$A$5:$AW$2499,7,FALSE),0) -> 0 | J12: =IFERROR(VLOOKUP($A12,FILTRO_!$A$5:$AW$2499,8,FALSE),0) -> 3 | K12: =IFERROR(VLOOKUP($A12,FILTRO_!$A$5:$AW$2499,9,FALSE),0) -> 2 | L12: =IFERROR(VLOOKUP($A12,FILTRO_!$A$5:$AW$2499,10,FALSE),0) -> 0 | M12: =IFERROR(VLOOKUP($A12,FILTRO_!$A$5:$AW$2499,11,FALSE),0) -> 1 | N12: =IFERROR(VLOOKUP($A12,FILTRO_!$A$5:$AW$2499,12,FALSE),0) -> 0 | O12: =IFERROR(VLOOKUP($A12,FILTRO_!$A$5:$AW$2499,13,FALSE),0) -> 0 | P12: =IFERROR(VLOOKUP($A12,FILTRO_!$A$5:$AW$2499,14,FALSE),0) -> 0 | Q12: =IFERROR(VLOOKUP($A12,FILTRO_!$A$5:$AW$2499,15,FALSE),0) -> 0 | R12: =IFERROR(VLOOKUP($A12,FILTRO_!$A$5:$AW$2499,16,FALSE),0) -> 0 | S12: =IFERROR(VLOOKUP($A12,FILTRO_!$A$5:$AW$2499,17,FALSE),0) -> 0 | T12: =IFERROR(VLOOKUP($A12,FILTRO_!$A$5:$AW$2499,18,FALSE),0) -> 0 | U12: =IFERROR(VLOOKUP($A12,FILTRO_!$A$5:$AW$2499,19,FALSE),0) -> 0 | V12: =IFERROR(VLOOKUP($A12,FILTRO_!$A$5:$AW$2499,20,FALSE),0) -> 0 | W12: =IFERROR(VLOOKUP($A12,FILTRO_!$A$5:$AW$2499,21,FALSE),0) -> 6 | X12: =IFERROR(VLOOKUP($A12,FILTRO_!$A$5:$AW$2499,22,FALSE),0) -> 0 | Y12: =IFERROR(VLOOKUP($A12,FILTRO_!$A$5:$AW$2499,23,FALSE),0) -> 0 | Z12: =IFERROR(VLOOKUP($A12,FILTRO_!$A$5:$AW$2499,24,FALSE),0) -> 0 | AA12: =IFERROR(VLOOKUP($A12,FILTRO_!$A$5:$AW$2499,25,FALSE),0) -> 0 | AB12: =IFERROR(VLOOKUP($A12,FILTRO_!$A$5:$AW$2499,26,FALSE),0) -> 0 | AC12: =IFERROR(VLOOKUP($A12,FILTRO_!$A$5:$AW$2499,27,FALSE),0) -> 0 | AD12: =IFERROR(VLOOKUP($A12,FILTRO_!$A$5:$AW$2499,28,FALSE),0) -> 0 | CA12: * El número de Sexo Hombres y mujeres debe ser igual al total. | DA12: 1 | DB12: 0 | DE12: 0 | DF12: 0 | DG12: 0 | DH12: 0 | DI12: 0 | DJ12: 0 | DK12: 0 | DL12: 0 | DM12: 0 | DN12: 0 | DO12: 0 | DP12: 0 | DQ12: 0
A13: 01010103 | C13: MATRONA/ÓN | D13: =IFERROR(VLOOKUP($A13,FILTRO_!$A$5:$AW$2499,2,FALSE),0) -> 845 | E13: =IFERROR(VLOOKUP($A13,FILTRO_!$A$5:$AW$2499,3,FALSE),0) -> 0 | F13: =IFERROR(VLOOKUP($A13,FILTRO_!$A$5:$AW$2499,4,FALSE),0) -> 0 | G13: =IFERROR(VLOOKUP($A13,FILTRO_!$A$5:$AW$2499,5,FALSE),0) -> 3 | H13: =IFERROR(VLOOKUP($A13,FILTRO_!$A$5:$AW$2499,6,FALSE),0) -> 34 | I13: =IFERROR(VLOOKUP($A13,FILTRO_!$A$5:$AW$2499,7,FALSE),0) -> 138 | J13: =IFERROR(VLOOKUP($A13,FILTRO_!$A$5:$AW$2499,8,FALSE),0) -> 243 | K13: =IFERROR(VLOOKUP($A13,FILTRO_!$A$5:$AW$2499,9,FALSE),0) -> 228 | L13: =IFERROR(VLOOKUP($A13,FILTRO_!$A$5:$AW$2499,10,FALSE),0) -> 139 | M13: =IFERROR(VLOOKUP($A13,FILTRO_!$A$5:$AW$2499,11,FALSE),0) -> 55 | N13: =IFERROR(VLOOKUP($A13,FILTRO_!$A$5:$AW$2499,12,FALSE),0) -> 5 | O13: =IFERROR(VLOOKUP($A13,FILTRO_!$A$5:$AW$2499,13,FALSE),0) -> 0 | P13: =IFERROR(VLOOKUP($A13,FILTRO_!$A$5:$AW$2499,14,FALSE),0) -> 0 | Q13: =IFERROR(VLOOKUP($A13,FILTRO_!$A$5:$AW$2499,15,FALSE),0) -> 0 | R13: =IFERROR(VLOOKUP($A13,FILTRO_!$A$5:$AW$2499,16,FALSE),0) -> 0 | S13: =IFERROR(VLOOKUP($A13,FILTRO_!$A$5:$AW$2499,17,FALSE),0) -> 0 | T13: =IFERROR(VLOOKUP($A13,FILTRO_!$A$5:$AW$2499,18,FALSE),0) -> 0 | U13: =IFERROR(VLOOKUP($A13,FILTRO_!$A$5:$AW$2499,19,FALSE),0) -> 0 | V13: =IFERROR(VLOOKUP($A13,FILTRO_!$A$5:$AW$2499,20,FALSE),0) -> 6 | W13: =IFERROR(VLOOKUP($A13,FILTRO_!$A$5:$AW$2499,21,FALSE),0) -> 828 | X13: =IFERROR(VLOOKUP($A13,FILTRO_!$A$5:$AW$2499,22,FALSE),0) -> 0 | Y13: =IFERROR(VLOOKUP($A13,FILTRO_!$A$5:$AW$2499,23,FALSE),0) -> 0 | Z13: =IFERROR(VLOOKUP($A13,FILTRO_!$A$5:$AW$2499,24,FALSE),0) -> 4 | AA13: =IFERROR(VLOOKUP($A13,FILTRO_!$A$5:$AW$2499,25,FALSE),0) -> 0 | AB13: =IFERROR(VLOOKUP($A13,FILTRO_!$A$5:$AW$2499,26,FALSE),0) -> 0 | AC13: =IFERROR(VLOOKUP($A13,FILTRO_!$A$5:$AW$2499,27,FALSE),0) -> 7 | AD13: =IFERROR(VLOOKUP($A13,FILTRO_!$A$5:$AW$2499,28,FALSE),0) -> 32 | CA13: * El número de Sexo Hombres y mujeres debe ser igual al total. | DA13: 1 | DB13: 0 | DE13: 0 | DF13: 0 | DG13: 0 | DH13: 0 | DI13: 0 | DJ13: 0 | DK13: 0 | DL13: 0 | DM13: 0 | DN13: 0 | DO13: 0 | DP13: 0 | DQ13: 0
A14: 01010201 | B14: PRENATAL | C14: MÉDICO/A | D14: =IFERROR(VLOOKUP($A14,FILTRO_!$A$5:$AW$2499,2,FALSE),0) -> 172 | E14: =IFERROR(VLOOKUP($A14,FILTRO_!$A$5:$AW$2499,3,FALSE),0) -> 0 | F14: =IFERROR(VLOOKUP($A14,FILTRO_!$A$5:$AW$2499,4,FALSE),0) -> 0 | G14: =IFERROR(VLOOKUP($A14,FILTRO_!$A$5:$AW$2499,5,FALSE),0) -> 0 | H14: =IFERROR(VLOOKUP($A14,FILTRO_!$A$5:$AW$2499,6,FALSE),0) -> 12 | I14: =IFERROR(VLOOKUP($A14,FILTRO_!$A$5:$AW$2499,7,FALSE),0) -> 36 | J14: =IFERROR(VLOOKUP($A14,FILTRO_!$A$5:$AW$2499,8,FALSE),0) -> 42 | K14: =IFERROR(VLOOKUP($A14,FILTRO_!$A$5:$AW$2499,9,FALSE),0) -> 46 | L14: =IFERROR(VLOOKUP($A14,FILTRO_!$A$5:$AW$2499,10,FALSE),0) -> 34 | M14: =IFERROR(VLOOKUP($A14,FILTRO_!$A$5:$AW$2499,11,FALSE),0) -> 2 | N14: =IFERROR(VLOOKUP($A14,FILTRO_!$A$5:$AW$2499,12,FALSE),0) -> 0 | O14: =IFERROR(VLOOKUP($A14,FILTRO_!$A$5:$AW$2499,13,FALSE),0) -> 0 | P14: =IFERROR(VLOOKUP($A14,FILTRO_!$A$5:$AW$2499,14,FALSE),0) -> 0 | Q14: =IFERROR(VLOOKUP($A14,FILTRO_!$A$5:$AW$2499,15,FALSE),0) -> 0 | R14: =IFERROR(VLOOKUP($A14,FILTRO_!$A$5:$AW$2499,16,FALSE),0) -> 0 | S14: =IFERROR(VLOOKUP($A14,FILTRO_!$A$5:$AW$2499,17,FALSE),0) -> 0 | T14: =IFERROR(VLOOKUP($A14,FILTRO_!$A$5:$AW$2499,18,FALSE),0) -> 0 | U14: =IFERROR(VLOOKUP($A14,FILTRO_!$A$5:$AW$2499,19,FALSE),0) -> 0 | V14: =IFERROR(VLOOKUP($A14,FILTRO_!$A$5:$AW$2499,20,FALSE),0) -> 0 | W14: =IFERROR(VLOOKUP($A14,FILTRO_!$A$5:$AW$2499,21,FALSE),0) -> 174 | X14: =IFERROR(VLOOKUP($A14,FILTRO_!$A$5:$AW$2499,22,FALSE),0) -> 4 | Y14: =IFERROR(VLOOKUP($A14,FILTRO_!$A$5:$AW$2499,23,FALSE),0) -> 0 | Z14: =IFERROR(VLOOKUP($A14,FILTRO_!$A$5:$AW$2499,24,FALSE),0) -> 0 | AA14: =IFERROR(VLOOKUP($A14,FILTRO_!$A$5:$AW$2499,25,FALSE),0) -> 0 | AB14: =IFERROR(VLOOKUP($A14,FILTRO_!$A$5:$AW$2499,26,FALSE),0) -> 0 | AC14: =IFERROR(VLOOKUP($A14,FILTRO_!$A$5:$AW$2499,27,FALSE),0) -> 0 | AD14: =IFERROR(VLOOKUP($A14,FILTRO_!$A$5:$AW$2499,28,FALSE),0) -> 0 | CA14: * El número de Sexo Hombres y mujeres debe ser igual al total. | DA14: 1 | DB14: 0 | DC14: 0 | DE14: 0 | DF14: 0 | DG14: 0 | DH14: 0 | DI14: 0 | DJ14: 0 | DK14: 0 | DL14: 0 | DM14: 0 | DN14: 0 | DO14: 0 | DP14: 0 | DQ14: 0
A15: 01010203 | C15: MATRONA/ÓN | D15: =IFERROR(VLOOKUP($A15,FILTRO_!$A$5:$AW$2499,2,FALSE),0) -> 20707 | E15: =IFERROR(VLOOKUP($A15,FILTRO_!$A$5:$AW$2499,3,FALSE),0) -> 0 | F15: =IFERROR(VLOOKUP($A15,FILTRO_!$A$5:$AW$2499,4,FALSE),0) -> 0 | G15: =IFERROR(VLOOKUP($A15,FILTRO_!$A$5:$AW$2499,5,FALSE),0) -> 64 | H15: =IFERROR(VLOOKUP($A15,FILTRO_!$A$5:$AW$2499,6,FALSE),0) -> 1227 | I15: =IFERROR(VLOOKUP($A15,FILTRO_!$A$5:$AW$2499,7,FALSE),0) -> 4651 | J15: =IFERROR(VLOOKUP($A15,FILTRO_!$A$5:$AW$2499,8,FALSE),0) -> 5970 | K15: =IFERROR(VLOOKUP($A15,FILTRO_!$A$5:$AW$2499,9,FALSE),0) -> 5447 | L15: =IFERROR(VLOOKUP($A15,FILTRO_!$A$5:$AW$2499,10,FALSE),0) -> 2576 | M15: =IFERROR(VLOOKUP($A15,FILTRO_!$A$5:$AW$2499,11,FALSE),0) -> 739 | N15: =IFERROR(VLOOKUP($A15,FILTRO_!$A$5:$AW$2499,12,FALSE),0) -> 30 | O15: =IFERROR(VLOOKUP($A15,FILTRO_!$A$5:$AW$2499,13,FALSE),0) -> 2 | P15: =IFERROR(VLOOKUP($A15,FILTRO_!$A$5:$AW$2499,14,FALSE),0) -> 1 | Q15: =IFERROR(VLOOKUP($A15,FILTRO_!$A$5:$AW$2499,15,FALSE),0) -> 0 | R15: =IFERROR(VLOOKUP($A15,FILTRO_!$A$5:$AW$2499,16,FALSE),0) -> 0 | S15: =IFERROR(VLOOKUP($A15,FILTRO_!$A$5:$AW$2499,17,FALSE),0) -> 0 | T15: =IFERROR(VLOOKUP($A15,FILTRO_!$A$5:$AW$2499,18,FALSE),0) -> 0 | U15: =IFERROR(VLOOKUP($A15,FILTRO_!$A$5:$AW$2499,19,FALSE),0) -> 0 | V15: =IFERROR(VLOOKUP($A15,FILTRO_!$A$5:$AW$2499,20,FALSE),0) -> 0 | W15: =IFERROR(VLOOKUP($A15,FILTRO_!$A$5:$AW$2499,21,FALSE),0) -> 20499 | X15: =IFERROR(VLOOKUP($A15,FILTRO_!$A$5:$AW$2499,22,FALSE),0) -> 5848 | Y15: =IFERROR(VLOOKUP($A15,FILTRO_!$A$5:$AW$2499,23,FALSE),0) -> 0 | Z15: =IFERROR(VLOOKUP($A15,FILTRO_!$A$5:$AW$2499,24,FALSE),0) -> 0 | AA15: =IFERROR(VLOOKUP($A15,FILTRO_!$A$5:$AW$2499,25,FALSE),0) -> 11 | AB15: =IFERROR(VLOOKUP($A15,FILTRO_!$A$5:$AW$2499,26,FALSE),0) -> 0 | AC15: =IFERROR(VLOOKUP($A15,FILTRO_!$A$5:$AW$2499,27,FALSE),0) -> 170 | AD15: =IFERROR(VLOOKUP($A15,FILTRO_!$A$5:$AW$2499,28,FALSE),0) -> 1417 | CA15: * El número de Sexo Hombres y mujeres debe ser igual al total. | DA15: 1 | DB15: 0 | DC15: 0 | DE15: 0 | DF15: 0 | DG15: 0 | DH15: 0 | DI15: 0 | DJ15: 0 | DK15: 0 | DL15: 0 | DM15: 0 | DN15: 0 | DO15: 0 | DP15: 0 | DQ15: 0
A16: 01501050 | B16: POST PARTO | C16: MÉDICO/A | D16: =IFERROR(VLOOKUP($A16,FILTRO_!$A$5:$AW$2499,2,FALSE),0) -> 2 | E16: =IFERROR(VLOOKUP($A16,FILTRO_!$A$5:$AW$2499,3,FALSE),0) -> 0 | F16: =IFERROR(VLOOKUP($A16,FILTRO_!$A$5:$AW$2499,4,FALSE),0) -> 0 | G16: =IFERROR(VLOOKUP($A16,FILTRO_!$A$5:$AW$2499,5,FALSE),0) -> 0 | H16: =IFERROR(VLOOKUP($A16,FILTRO_!$A$5:$AW$2499,6,FALSE),0) -> 0 | I16: =IFERROR(VLOOKUP($A16,FILTRO_!$A$5:$AW$2499,7,FALSE),0) -> 1 | J16: =IFERROR(VLOOKUP($A16,FILTRO_!$A$5:$AW$2499,8,FALSE),0) -> 0 | K16: =IFERROR(VLOOKUP($A16,FILTRO_!$A$5:$AW$2499,9,FALSE),0) -> 0 | L16: =IFERROR(VLOOKUP($A16,FILTRO_!$A$5:$AW$2499,10,FALSE),0) -> 1 | M16: =IFERROR(VLOOKUP($A16,FILTRO_!$A$5:$AW$2499,11,FALSE),0) -> 0 | N16: =IFERROR(VLOOKUP($A16,FILTRO_!$A$5:$AW$2499,12,FALSE),0) -> 0 | O16: =IFERROR(VLOOKUP($A16,FILTRO_!$A$5:$AW$2499,13,FALSE),0) -> 0 | P16: =IFERROR(VLOOKUP($A16,FILTRO_!$A$5:$AW$2499,14,FALSE),0) -> 0 | Q16: =IFERROR(VLOOKUP($A16,FILTRO_!$A$5:$AW$2499,15,FALSE),0) -> 0 | R16: =IFERROR(VLOOKUP($A16,FILTRO_!$A$5:$AW$2499,16,FALSE),0) -> 0 | S16: =IFERROR(VLOOKUP($A16,FILTRO_!$A$5:$AW$2499,17,FALSE),0) -> 0 | T16: =IFERROR(VLOOKUP($A16,FILTRO_!$A$5:$AW$2499,18,FALSE),0) -> 0 | U16: =IFERROR(VLOOKUP($A16,FILTRO_!$A$5:$AW$2499,19,FALSE),0) -> 0 | V16: =IFERROR(VLOOKUP($A16,FILTRO_!$A$5:$AW$2499,20,FALSE),0) -> 0 | W16: =IFERROR(VLOOKUP($A16,FILTRO_!$A$5:$AW$2499,21,FALSE),0) -> 2 | X16: =IFERROR(VLOOKUP($A16,FILTRO_!$A$5:$AW$2499,22,FALSE),0) -> 0 | Y16: =IFERROR(VLOOKUP($A16,FILTRO_!$A$5:$AW$2499,23,FALSE),0) -> 0 | Z16: =IFERROR(VLOOKUP($A16,FILTRO_!$A$5:$AW$2499,24,FALSE),0) -> 0 | AA16: =IFERROR(VLOOKUP($A16,FILTRO_!$A$5:$AW$2499,25,FALSE),0) -> 0 | AB16: =IFERROR(VLOOKUP($A16,FILTRO_!$A$5:$AW$2499,26,FALSE),0) -> 0 | AC16: =IFERROR(VLOOKUP($A16,FILTRO_!$A$5:$AW$2499,27,FALSE),0) -> 0 | AD16: =IFERROR(VLOOKUP($A16,FILTRO_!$A$5:$AW$2499,28,FALSE),0) -> 0 | CA16: * El número de Sexo Hombres y mujeres debe ser igual al total. | DA16: 1 | DB16: 0 | DE16: 0 | DF16: 0 | DG16: 0 | DH16: 0 | DI16: 0 | DJ16: 0 | DK16: 0 | DL16: 0 | DM16: 0 | DN16: 0 | DO16: 0 | DP16: 0 | DQ16: 0
A17: 01501060 | C17: MATRONA/ÓN | D17: =IFERROR(VLOOKUP($A17,FILTRO_!$A$5:$AW$2499,2,FALSE),0) -> 247 | E17: =IFERROR(VLOOKUP($A17,FILTRO_!$A$5:$AW$2499,3,FALSE),0) -> 0 | F17: =IFERROR(VLOOKUP($A17,FILTRO_!$A$5:$AW$2499,4,FALSE),0) -> 0 | G17: =IFERROR(VLOOKUP($A17,FILTRO_!$A$5:$AW$2499,5,FALSE),0) -> 0 | H17: =IFERROR(VLOOKUP($A17,FILTRO_!$A$5:$AW$2499,6,FALSE),0) -> 9 | I17: =IFERROR(VLOOKUP($A17,FILTRO_!$A$5:$AW$2499,7,FALSE),0) -> 59 | J17: =IFERROR(VLOOKUP($A17,FILTRO_!$A$5:$AW$2499,8,FALSE),0) -> 54 | K17: =IFERROR(VLOOKUP($A17,FILTRO_!$A$5:$AW$2499,9,FALSE),0) -> 68 | L17: =IFERROR(VLOOKUP($A17,FILTRO_!$A$5:$AW$2499,10,FALSE),0) -> 43 | M17: =IFERROR(VLOOKUP($A17,FILTRO_!$A$5:$AW$2499,11,FALSE),0) -> 12 | N17: =IFERROR(VLOOKUP($A17,FILTRO_!$A$5:$AW$2499,12,FALSE),0) -> 1 | O17: =IFERROR(VLOOKUP($A17,FILTRO_!$A$5:$AW$2499,13,FALSE),0) -> 0 | P17: =IFERROR(VLOOKUP($A17,FILTRO_!$A$5:$AW$2499,14,FALSE),0) -> 1 | Q17: =IFERROR(VLOOKUP($A17,FILTRO_!$A$5:$AW$2499,15,FALSE),0) -> 0 | R17: =IFERROR(VLOOKUP($A17,FILTRO_!$A$5:$AW$2499,16,FALSE),0) -> 0 | S17: =IFERROR(VLOOKUP($A17,FILTRO_!$A$5:$AW$2499,17,FALSE),0) -> 0 | T17: =IFERROR(VLOOKUP($A17,FILTRO_!$A$5:$AW$2499,18,FALSE),0) -> 0 | U17: =IFERROR(VLOOKUP($A17,FILTRO_!$A$5:$AW$2499,19,FALSE),0) -> 0 | V17: =IFERROR(VLOOKUP($A17,FILTRO_!$A$5:$AW$2499,20,FALSE),0) -> 0 | W17: =IFERROR(VLOOKUP($A17,FILTRO_!$A$5:$AW$2499,21,FALSE),0) -> 247 | X17: =IFERROR(VLOOKUP($A17,FILTRO_!$A$5:$AW$2499,22,FALSE),0) -> 0 | Y17: =IFERROR(VLOOKUP($A17,FILTRO_!$A$5:$AW$2499,23,FALSE),0) -> 0 | Z17: =IFERROR(VLOOKUP($A17,FILTRO_!$A$5:$AW$2499,24,FALSE),0) -> 0 | AA17: =IFERROR(VLOOKUP($A17,FILTRO_!$A$5:$AW$2499,25,FALSE),0) -> 1 | AB17: =IFERROR(VLOOKUP($A17,FILTRO_!$A$5:$AW$2499,26,FALSE),0) -> 0 | AC17: =IFERROR(VLOOKUP($A17,FILTRO_!$A$5:$AW$2499,27,FALSE),0) -> 0 | AD17: =IFERROR(VLOOKUP($A17,FILTRO_!$A$5:$AW$2499,28,FALSE),0) -> 19 | CA17: * El número de Sexo Hombres y mujeres debe ser igual al total. | DA17: 1 | DB17: 0 | DE17: 0 | DF17: 0 | DG17: 0 | DH17: 0 | DI17: 0 | DJ17: 0 | DK17: 0 | DL17: 0 | DM17: 0 | DN17: 0 | DO17: 0 | DP17: 0 | DQ17: 0
A18: 01501070 | B18: POST ABORTO | C18: MÉDICO/A | D18: =IFERROR(VLOOKUP($A18,FILTRO_!$A$5:$AW$2499,2,FALSE),0) -> 3 | E18: =IFERROR(VLOOKUP($A18,FILTRO_!$A$5:$AW$2499,3,FALSE),0) -> 0 | F18: =IFERROR(VLOOKUP($A18,FILTRO_!$A$5:$AW$2499,4,FALSE),0) -> 0 | G18: =IFERROR(VLOOKUP($A18,FILTRO_!$A$5:$AW$2499,5,FALSE),0) -> 0 | H18: =IFERROR(VLOOKUP($A18,FILTRO_!$A$5:$AW$2499,6,FALSE),0) -> 0 | I18: =IFERROR(VLOOKUP($A18,FILTRO_!$A$5:$AW$2499,7,FALSE),0) -> 0 | J18: =IFERROR(VLOOKUP($A18,FILTRO_!$A$5:$AW$2499,8,FALSE),0) -> 1 | K18: =IFERROR(VLOOKUP($A18,FILTRO_!$A$5:$AW$2499,9,FALSE),0) -> 0 | L18: =IFERROR(VLOOKUP($A18,FILTRO_!$A$5:$AW$2499,10,FALSE),0) -> 2 | M18: =IFERROR(VLOOKUP($A18,FILTRO_!$A$5:$AW$2499,11,FALSE),0) -> 0 | N18: =IFERROR(VLOOKUP($A18,FILTRO_!$A$5:$AW$2499,12,FALSE),0) -> 0 | O18: =IFERROR(VLOOKUP($A18,FILTRO_!$A$5:$AW$2499,13,FALSE),0) -> 0 | P18: =IFERROR(VLOOKUP($A18,FILTRO_!$A$5:$AW$2499,14,FALSE),0) -> 0 | Q18: =IFERROR(VLOOKUP($A18,FILTRO_!$A$5:$AW$2499,15,FALSE),0) -> 0 | R18: =IFERROR(VLOOKUP($A18,FILTRO_!$A$5:$AW$2499,16,FALSE),0) -> 0 | S18: =IFERROR(VLOOKUP($A18,FILTRO_!$A$5:$AW$2499,17,FALSE),0) -> 0 | T18: =IFERROR(VLOOKUP($A18,FILTRO_!$A$5:$AW$2499,18,FALSE),0) -> 0 | U18: =IFERROR(VLOOKUP($A18,FILTRO_!$A$5:$AW$2499,19,FALSE),0) -> 0 | V18: =IFERROR(VLOOKUP($A18,FILTRO_!$A$5:$AW$2499,20,FALSE),0) -> 0 | W18: =IFERROR(VLOOKUP($A18,FILTRO_!$A$5:$AW$2499,21,FALSE),0) -> 3 | X18: =IFERROR(VLOOKUP($A18,FILTRO_!$A$5:$AW$2499,22,FALSE),0) -> 0 | Y18: =IFERROR(VLOOKUP($A18,FILTRO_!$A$5:$AW$2499,23,FALSE),0) -> 0 | Z18: =IFERROR(VLOOKUP($A18,FILTRO_!$A$5:$AW$2499,24,FALSE),0) -> 0 | AA18: =IFERROR(VLOOKUP($A18,FILTRO_!$A$5:$AW$2499,25,FALSE),0) -> 0 | AB18: =IFERROR(VLOOKUP($A18,FILTRO_!$A$5:$AW$2499,26,FALSE),0) -> 0 | AC18: =IFERROR(VLOOKUP($A18,FILTRO_!$A$5:$AW$2499,27,FALSE),0) -> 0 | AD18: =IFERROR(VLOOKUP($A18,FILTRO_!$A$5:$AW$2499,28,FALSE),0) -> 0 | CA18: * El número de Sexo Hombres y mujeres debe ser igual al total. | DA18: 1 | DB18: 0 | DE18: 0 | DF18: 0 | DG18: 0 | DH18: 0 | DI18: 0 | DJ18: 0 | DK18: 0 | DL18: 0 | DM18: 0 | DN18: 0 | DO18: 0 | DP18: 0 | DQ18: 0
A19: 01501080 | C19: MATRONA/ÓN | D19: =IFERROR(VLOOKUP($A19,FILTRO_!$A$5:$AW$2499,2,FALSE),0) -> 92 | E19: =IFERROR(VLOOKUP($A19,FILTRO_!$A$5:$AW$2499,3,FALSE),0) -> 0 | F19: =IFERROR(VLOOKUP($A19,FILTRO_!$A$5:$AW$2499,4,FALSE),0) -> 0 | G19: =IFERROR(VLOOKUP($A19,FILTRO_!$A$5:$AW$2499,5,FALSE),0) -> 0 | H19: =IFERROR(VLOOKUP($A19,FILTRO_!$A$5:$AW$2499,6,FALSE),0) -> 7 | I19: =IFERROR(VLOOKUP($A19,FILTRO_!$A$5:$AW$2499,7,FALSE),0) -> 17 | J19: =IFERROR(VLOOKUP($A19,FILTRO_!$A$5:$AW$2499,8,FALSE),0) -> 10 | K19: =IFERROR(VLOOKUP($A19,FILTRO_!$A$5:$AW$2499,9,FALSE),0) -> 30 | L19: =IFERROR(VLOOKUP($A19,FILTRO_!$A$5:$AW$2499,10,FALSE),0) -> 19 | M19: =IFERROR(VLOOKUP($A19,FILTRO_!$A$5:$AW$2499,11,FALSE),0) -> 8 | N19: =IFERROR(VLOOKUP($A19,FILTRO_!$A$5:$AW$2499,12,FALSE),0) -> 1 | O19: =IFERROR(VLOOKUP($A19,FILTRO_!$A$5:$AW$2499,13,FALSE),0) -> 0 | P19: =IFERROR(VLOOKUP($A19,FILTRO_!$A$5:$AW$2499,14,FALSE),0) -> 0 | Q19: =IFERROR(VLOOKUP($A19,FILTRO_!$A$5:$AW$2499,15,FALSE),0) -> 0 | R19: =IFERROR(VLOOKUP($A19,FILTRO_!$A$5:$AW$2499,16,FALSE),0) -> 0 | S19: =IFERROR(VLOOKUP($A19,FILTRO_!$A$5:$AW$2499,17,FALSE),0) -> 0 | T19: =IFERROR(VLOOKUP($A19,FILTRO_!$A$5:$AW$2499,18,FALSE),0) -> 0 | U19: =IFERROR(VLOOKUP($A19,FILTRO_!$A$5:$AW$2499,19,FALSE),0) -> 0 | V19: =IFERROR(VLOOKUP($A19,FILTRO_!$A$5:$AW$2499,20,FALSE),0) -> 0 | W19: =IFERROR(VLOOKUP($A19,FILTRO_!$A$5:$AW$2499,21,FALSE),0) -> 87 | X19: =IFERROR(VLOOKUP($A19,FILTRO_!$A$5:$AW$2499,22,FALSE),0) -> 0 | Y19: =IFERROR(VLOOKUP($A19,FILTRO_!$A$5:$AW$2499,23,FALSE),0) -> 0 | Z19: =IFERROR(VLOOKUP($A19,FILTRO_!$A$5:$AW$2499,24,FALSE),0) -> 0 | AA19: =IFERROR(VLOOKUP($A19,FILTRO_!$A$5:$AW$2499,25,FALSE),0) -> 0 | AB19: =IFERROR(VLOOKUP($A19,FILTRO_!$A$5:$AW$2499,26,FALSE),0) -> 0 | AC19: =IFERROR(VLOOKUP($A19,FILTRO_!$A$5:$AW$2499,27,FALSE),0) -> 2 | AD19: =IFERROR(VLOOKUP($A19,FILTRO_!$A$5:$AW$2499,28,FALSE),0) -> 6 | CA19: * El número de Sexo Hombres y mujeres debe ser igual al total. | DA19: 1 | DB19: 0 | DE19: 0 | DF19: 0 | DG19: 0 | DH19: 0 | DI19: 0 | DJ19: 0 | DK19: 0 | DL19: 0 | DM19: 0 | DN19: 0 | DO19: 0 | DP19: 0 | DQ19: 0
A20: 01110106 | B20: PUÉRPERA CON RECIÉN NACIDO HASTA 10 DÍAS DE VIDA | C20: MÉDICO/A | D20: =IFERROR(VLOOKUP($A20,FILTRO_!$A$5:$AW$2499,2,FALSE),0) -> 38 | E20: =IFERROR(VLOOKUP($A20,FILTRO_!$A$5:$AW$2499,3,FALSE),0) -> 0 | F20: =IFERROR(VLOOKUP($A20,FILTRO_!$A$5:$AW$2499,4,FALSE),0) -> 0 | G20: =IFERROR(VLOOKUP($A20,FILTRO_!$A$5:$AW$2499,5,FALSE),0) -> 0 | H20: =IFERROR(VLOOKUP($A20,FILTRO_!$A$5:$AW$2499,6,FALSE),0) -> 2 | I20: =IFERROR(VLOOKUP($A20,FILTRO_!$A$5:$AW$2499,7,FALSE),0) -> 8 | J20: =IFERROR(VLOOKUP($A20,FILTRO_!$A$5:$AW$2499,8,FALSE),0) -> 10 | K20: =IFERROR(VLOOKUP($A20,FILTRO_!$A$5:$AW$2499,9,FALSE),0) -> 7 | L20: =IFERROR(VLOOKUP($A20,FILTRO_!$A$5:$AW$2499,10,FALSE),0) -> 6 | M20: =IFERROR(VLOOKUP($A20,FILTRO_!$A$5:$AW$2499,11,FALSE),0) -> 5 | N20: =IFERROR(VLOOKUP($A20,FILTRO_!$A$5:$AW$2499,12,FALSE),0) -> 0 | O20: =IFERROR(VLOOKUP($A20,FILTRO_!$A$5:$AW$2499,13,FALSE),0) -> 0 | P20: =IFERROR(VLOOKUP($A20,FILTRO_!$A$5:$AW$2499,14,FALSE),0) -> 0 | Q20: =IFERROR(VLOOKUP($A20,FILTRO_!$A$5:$AW$2499,15,FALSE),0) -> 0 | R20: =IFERROR(VLOOKUP($A20,FILTRO_!$A$5:$AW$2499,16,FALSE),0) -> 0 | S20: =IFERROR(VLOOKUP($A20,FILTRO_!$A$5:$AW$2499,17,FALSE),0) -> 0 | T20: =IFERROR(VLOOKUP($A20,FILTRO_!$A$5:$AW$2499,18,FALSE),0) -> 0 | U20: =IFERROR(VLOOKUP($A20,FILTRO_!$A$5:$AW$2499,19,FALSE),0) -> 0 | V20: =IFERROR(VLOOKUP($A20,FILTRO_!$A$5:$AW$2499,20,FALSE),0) -> 0 | W20: =IFERROR(VLOOKUP($A20,FILTRO_!$A$5:$AW$2499,21,FALSE),0) -> 35 | X20: =IFERROR(VLOOKUP($A20,FILTRO_!$A$5:$AW$2499,22,FALSE),0) -> 1 | Y20: =IFERROR(VLOOKUP($A20,FILTRO_!$A$5:$AW$2499,23,FALSE),0) -> 19 | Z20: =IFERROR(VLOOKUP($A20,FILTRO_!$A$5:$AW$2499,24,FALSE),0) -> 0 | AA20: =IFERROR(VLOOKUP($A20,FILTRO_!$A$5:$AW$2499,25,FALSE),0) -> 0 | AB20: =IFERROR(VLOOKUP($A20,FILTRO_!$A$5:$AW$2499,26,FALSE),0) -> 0 | AC20: =IFERROR(VLOOKUP($A20,FILTRO_!$A$5:$AW$2499,27,FALSE),0) -> 1 | AD20: =IFERROR(VLOOKUP($A20,FILTRO_!$A$5:$AW$2499,28,FALSE),0) -> 4 | CA20: * El número de Sexo Hombres y mujeres debe ser igual al total. | CD20: =IF(AND(C20<>0,#REF!=""),"* No olvide registrar ingresos a control de salud de los respectivos RN, en REM A05-sección E. ","") ->  | DA20: 1 | DB20: 0 | DC20: 0 | DD20: 0 | DE20: 0 | DF20: 0 | DG20: 0 | DH20: 0 | DI20: 0 | DJ20: 0 | DK20: 0 | DL20: 0 | DM20: 0 | DN20: 0 | DO20: 0 | DP20: 0 | DQ20: 0
A21: 01110107 | C21: MATRONA/ÓN | D21: =IFERROR(VLOOKUP($A21,FILTRO_!$A$5:$AW$2499,2,FALSE),0) -> 1730 | E21: =IFERROR(VLOOKUP($A21,FILTRO_!$A$5:$AW$2499,3,FALSE),0) -> 0 | F21: =IFERROR(VLOOKUP($A21,FILTRO_!$A$5:$AW$2499,4,FALSE),0) -> 0 | G21: =IFERROR(VLOOKUP($A21,FILTRO_!$A$5:$AW$2499,5,FALSE),0) -> 4 | H21: =IFERROR(VLOOKUP($A21,FILTRO_!$A$5:$AW$2499,6,FALSE),0) -> 88 | I21: =IFERROR(VLOOKUP($A21,FILTRO_!$A$5:$AW$2499,7,FALSE),0) -> 342 | J21: =IFERROR(VLOOKUP($A21,FILTRO_!$A$5:$AW$2499,8,FALSE),0) -> 504 | K21: =IFERROR(VLOOKUP($A21,FILTRO_!$A$5:$AW$2499,9,FALSE),0) -> 477 | L21: =IFERROR(VLOOKUP($A21,FILTRO_!$A$5:$AW$2499,10,FALSE),0) -> 231 | M21: =IFERROR(VLOOKUP($A21,FILTRO_!$A$5:$AW$2499,11,FALSE),0) -> 80 | N21: =IFERROR(VLOOKUP($A21,FILTRO_!$A$5:$AW$2499,12,FALSE),0) -> 3 | O21: =IFERROR(VLOOKUP($A21,FILTRO_!$A$5:$AW$2499,13,FALSE),0) -> 0 | P21: =IFERROR(VLOOKUP($A21,FILTRO_!$A$5:$AW$2499,14,FALSE),0) -> 1 | Q21: =IFERROR(VLOOKUP($A21,FILTRO_!$A$5:$AW$2499,15,FALSE),0) -> 0 | R21: =IFERROR(VLOOKUP($A21,FILTRO_!$A$5:$AW$2499,16,FALSE),0) -> 0 | S21: =IFERROR(VLOOKUP($A21,FILTRO_!$A$5:$AW$2499,17,FALSE),0) -> 0 | T21: =IFERROR(VLOOKUP($A21,FILTRO_!$A$5:$AW$2499,18,FALSE),0) -> 0 | U21: =IFERROR(VLOOKUP($A21,FILTRO_!$A$5:$AW$2499,19,FALSE),0) -> 0 | V21: =IFERROR(VLOOKUP($A21,FILTRO_!$A$5:$AW$2499,20,FALSE),0) -> 0 | W21: =IFERROR(VLOOKUP($A21,FILTRO_!$A$5:$AW$2499,21,FALSE),0) -> 1706 | X21: =IFERROR(VLOOKUP($A21,FILTRO_!$A$5:$AW$2499,22,FALSE),0) -> 285 | Y21: =IFERROR(VLOOKUP($A21,FILTRO_!$A$5:$AW$2499,23,FALSE),0) -> 785 | Z21: =IFERROR(VLOOKUP($A21,FILTRO_!$A$5:$AW$2499,24,FALSE),0) -> 0 | AA21: =IFERROR(VLOOKUP($A21,FILTRO_!$A$5:$AW$2499,25,FALSE),0) -> 2 | AB21: =IFERROR(VLOOKUP($A21,FILTRO_!$A$5:$AW$2499,26,FALSE),0) -> 1 | AC21: =IFERROR(VLOOKUP($A21,FILTRO_!$A$5:$AW$2499,27,FALSE),0) -> 8 | AD21: =IFERROR(VLOOKUP($A21,FILTRO_!$A$5:$AW$2499,28,FALSE),0) -> 104 | CA21: * El número de Sexo Hombres y mujeres debe ser igual al total. | CD21: =IF(AND(C21<>0,#REF!=""),"* No olvide registrar ingresos a control de salud de los respectivos RN, en REM A05-sección E. ","") ->  | DA21: 1 | DB21: 0 | DC21: 0 | DD21: 0 | DE21: 0 | DF21: 0 | DG21: 0 | DH21: 0 | DI21: 0 | DJ21: 0 | DK21: 0 | DL21: 0 | DM21: 0 | DN21: 0 | DO21: 0 | DP21: 0 | DQ21: 0
A22: 01080030 | B22: PUÉRPERA CON RECIÉN NACIDO ENTRE 11 y 28 DÍAS | C22: MÉDICO/A | D22: =IFERROR(VLOOKUP($A22,FILTRO_!$A$5:$AW$2499,2,FALSE),0) -> 4 | E22: =IFERROR(VLOOKUP($A22,FILTRO_!$A$5:$AW$2499,3,FALSE),0) -> 0 | F22: =IFERROR(VLOOKUP($A22,FILTRO_!$A$5:$AW$2499,4,FALSE),0) -> 0 | G22: =IFERROR(VLOOKUP($A22,FILTRO_!$A$5:$AW$2499,5,FALSE),0) -> 0 | H22: =IFERROR(VLOOKUP($A22,FILTRO_!$A$5:$AW$2499,6,FALSE),0) -> 0 | I22: =IFERROR(VLOOKUP($A22,FILTRO_!$A$5:$AW$2499,7,FALSE),0) -> 1 | J22: =IFERROR(VLOOKUP($A22,FILTRO_!$A$5:$AW$2499,8,FALSE),0) -> 2 | K22: =IFERROR(VLOOKUP($A22,FILTRO_!$A$5:$AW$2499,9,FALSE),0) -> 1 | L22: =IFERROR(VLOOKUP($A22,FILTRO_!$A$5:$AW$2499,10,FALSE),0) -> 0 | M22: =IFERROR(VLOOKUP($A22,FILTRO_!$A$5:$AW$2499,11,FALSE),0) -> 0 | N22: =IFERROR(VLOOKUP($A22,FILTRO_!$A$5:$AW$2499,12,FALSE),0) -> 0 | O22: =IFERROR(VLOOKUP($A22,FILTRO_!$A$5:$AW$2499,13,FALSE),0) -> 0 | P22: =IFERROR(VLOOKUP($A22,FILTRO_!$A$5:$AW$2499,14,FALSE),0) -> 0 | Q22: =IFERROR(VLOOKUP($A22,FILTRO_!$A$5:$AW$2499,15,FALSE),0) -> 0 | R22: =IFERROR(VLOOKUP($A22,FILTRO_!$A$5:$AW$2499,16,FALSE),0) -> 0 | S22: =IFERROR(VLOOKUP($A22,FILTRO_!$A$5:$AW$2499,17,FALSE),0) -> 0 | T22: =IFERROR(VLOOKUP($A22,FILTRO_!$A$5:$AW$2499,18,FALSE),0) -> 0 | U22: =IFERROR(VLOOKUP($A22,FILTRO_!$A$5:$AW$2499,19,FALSE),0) -> 0 | V22: =IFERROR(VLOOKUP($A22,FILTRO_!$A$5:$AW$2499,20,FALSE),0) -> 0 | W22: =IFERROR(VLOOKUP($A22,FILTRO_!$A$5:$AW$2499,21,FALSE),0) -> 3 | X22: =IFERROR(VLOOKUP($A22,FILTRO_!$A$5:$AW$2499,22,FALSE),0) -> 0 | Y22: =IFERROR(VLOOKUP($A22,FILTRO_!$A$5:$AW$2499,23,FALSE),0) -> 2 | Z22: =IFERROR(VLOOKUP($A22,FILTRO_!$A$5:$AW$2499,24,FALSE),0) -> 0 | AA22: =IFERROR(VLOOKUP($A22,FILTRO_!$A$5:$AW$2499,25,FALSE),0) -> 0 | AB22: =IFERROR(VLOOKUP($A22,FILTRO_!$A$5:$AW$2499,26,FALSE),0) -> 0 | AC22: =IFERROR(VLOOKUP($A22,FILTRO_!$A$5:$AW$2499,27,FALSE),0) -> 0 | AD22: =IFERROR(VLOOKUP($A22,FILTRO_!$A$5:$AW$2499,28,FALSE),0) -> 0 | CA22: * El número de Sexo Hombres y mujeres debe ser igual al total. | CD22: =IF(AND(C22<>0,#REF!=""),"* No olvide registrar ingresos a control de salud de los respectivos RN, en REM A05-sección E. ","") ->  | DA22: 1 | DB22: 0 | DC22: 0 | DD22: 0 | DE22: 0 | DF22: 0 | DG22: 0 | DH22: 0 | DI22: 0 | DJ22: 0 | DK22: 0 | DL22: 0 | DM22: 0 | DN22: 0 | DO22: 0 | DP22: 0 | DQ22: 0
A23: 01080040 | C23: MATRONA/ÓN | D23: =IFERROR(VLOOKUP($A23,FILTRO_!$A$5:$AW$2499,2,FALSE),0) -> 910 | E23: =IFERROR(VLOOKUP($A23,FILTRO_!$A$5:$AW$2499,3,FALSE),0) -> 0 | F23: =IFERROR(VLOOKUP($A23,FILTRO_!$A$5:$AW$2499,4,FALSE),0) -> 0 | G23: =IFERROR(VLOOKUP($A23,FILTRO_!$A$5:$AW$2499,5,FALSE),0) -> 1 | H23: =IFERROR(VLOOKUP($A23,FILTRO_!$A$5:$AW$2499,6,FALSE),0) -> 63 | I23: =IFERROR(VLOOKUP($A23,FILTRO_!$A$5:$AW$2499,7,FALSE),0) -> 168 | J23: =IFERROR(VLOOKUP($A23,FILTRO_!$A$5:$AW$2499,8,FALSE),0) -> 275 | K23: =IFERROR(VLOOKUP($A23,FILTRO_!$A$5:$AW$2499,9,FALSE),0) -> 227 | L23: =IFERROR(VLOOKUP($A23,FILTRO_!$A$5:$AW$2499,10,FALSE),0) -> 136 | M23: =IFERROR(VLOOKUP($A23,FILTRO_!$A$5:$AW$2499,11,FALSE),0) -> 39 | N23: =IFERROR(VLOOKUP($A23,FILTRO_!$A$5:$AW$2499,12,FALSE),0) -> 0 | O23: =IFERROR(VLOOKUP($A23,FILTRO_!$A$5:$AW$2499,13,FALSE),0) -> 0 | P23: =IFERROR(VLOOKUP($A23,FILTRO_!$A$5:$AW$2499,14,FALSE),0) -> 1 | Q23: =IFERROR(VLOOKUP($A23,FILTRO_!$A$5:$AW$2499,15,FALSE),0) -> 0 | R23: =IFERROR(VLOOKUP($A23,FILTRO_!$A$5:$AW$2499,16,FALSE),0) -> 0 | S23: =IFERROR(VLOOKUP($A23,FILTRO_!$A$5:$AW$2499,17,FALSE),0) -> 0 | T23: =IFERROR(VLOOKUP($A23,FILTRO_!$A$5:$AW$2499,18,FALSE),0) -> 0 | U23: =IFERROR(VLOOKUP($A23,FILTRO_!$A$5:$AW$2499,19,FALSE),0) -> 0 | V23: =IFERROR(VLOOKUP($A23,FILTRO_!$A$5:$AW$2499,20,FALSE),0) -> 0 | W23: =IFERROR(VLOOKUP($A23,FILTRO_!$A$5:$AW$2499,21,FALSE),0) -> 895 | X23: =IFERROR(VLOOKUP($A23,FILTRO_!$A$5:$AW$2499,22,FALSE),0) -> 135 | Y23: =IFERROR(VLOOKUP($A23,FILTRO_!$A$5:$AW$2499,23,FALSE),0) -> 292 | Z23: =IFERROR(VLOOKUP($A23,FILTRO_!$A$5:$AW$2499,24,FALSE),0) -> 0 | AA23: =IFERROR(VLOOKUP($A23,FILTRO_!$A$5:$AW$2499,25,FALSE),0) -> 0 | AB23: =IFERROR(VLOOKUP($A23,FILTRO_!$A$5:$AW$2499,26,FALSE),0) -> 0 | AC23: =IFERROR(VLOOKUP($A23,FILTRO_!$A$5:$AW$2499,27,FALSE),0) -> 8 | AD23: =IFERROR(VLOOKUP($A23,FILTRO_!$A$5:$AW$2499,28,FALSE),0) -> 35 | CA23: * El número de Sexo Hombres y mujeres debe ser igual al total. | CD23: =IF(AND(C23<>0,#REF!=""),"* No olvide registrar ingresos a control de salud de los respectivos RN, en REM A05-sección E. ","") ->  | DA23: 1 | DB23: 0 | DC23: 0 | DD23: 0 | DE23: 0 | DF23: 0 | DG23: 0 | DH23: 0 | DI23: 0 | DJ23: 0 | DK23: 0 | DL23: 0 | DM23: 0 | DN23: 0 | DO23: 0 | DP23: 0 | DQ23: 0
A24: 01501090 | B24: RECIÉN NACIDO HASTA 10 DÍAS DE VIDA | C24: MÉDICO | D24: =IFERROR(VLOOKUP($A24,FILTRO_!$A$5:$AW$2499,2,FALSE),0) -> 0 | E24: =IFERROR(VLOOKUP($A24,FILTRO_!$A$5:$AW$2499,3,FALSE),0) -> 0 | F24: =IFERROR(VLOOKUP($A24,FILTRO_!$A$5:$AW$2499,4,FALSE),0) -> 0 | G24: =IFERROR(VLOOKUP($A24,FILTRO_!$A$5:$AW$2499,5,FALSE),0) -> 0 | H24: =IFERROR(VLOOKUP($A24,FILTRO_!$A$5:$AW$2499,6,FALSE),0) -> 0 | I24: =IFERROR(VLOOKUP($A24,FILTRO_!$A$5:$AW$2499,7,FALSE),0) -> 0 | J24: =IFERROR(VLOOKUP($A24,FILTRO_!$A$5:$AW$2499,8,FALSE),0) -> 0 | K24: =IFERROR(VLOOKUP($A24,FILTRO_!$A$5:$AW$2499,9,FALSE),0) -> 0 | L24: =IFERROR(VLOOKUP($A24,FILTRO_!$A$5:$AW$2499,10,FALSE),0) -> 0 | M24: =IFERROR(VLOOKUP($A24,FILTRO_!$A$5:$AW$2499,11,FALSE),0) -> 0 | N24: =IFERROR(VLOOKUP($A24,FILTRO_!$A$5:$AW$2499,12,FALSE),0) -> 0 | O24: =IFERROR(VLOOKUP($A24,FILTRO_!$A$5:$AW$2499,13,FALSE),0) -> 0 | P24: =IFERROR(VLOOKUP($A24,FILTRO_!$A$5:$AW$2499,14,FALSE),0) -> 0 | Q24: =IFERROR(VLOOKUP($A24,FILTRO_!$A$5:$AW$2499,15,FALSE),0) -> 0 | R24: =IFERROR(VLOOKUP($A24,FILTRO_!$A$5:$AW$2499,16,FALSE),0) -> 0 | S24: =IFERROR(VLOOKUP($A24,FILTRO_!$A$5:$AW$2499,17,FALSE),0) -> 0 | T24: =IFERROR(VLOOKUP($A24,FILTRO_!$A$5:$AW$2499,18,FALSE),0) -> 0 | U24: =IFERROR(VLOOKUP($A24,FILTRO_!$A$5:$AW$2499,19,FALSE),0) -> 0 | V24: =IFERROR(VLOOKUP($A24,FILTRO_!$A$5:$AW$2499,20,FALSE),0) -> 0 | W24: =IFERROR(VLOOKUP($A24,FILTRO_!$A$5:$AW$2499,21,FALSE),0) -> 0 | X24: =IFERROR(VLOOKUP($A24,FILTRO_!$A$5:$AW$2499,22,FALSE),0) -> 0 | Y24: =IFERROR(VLOOKUP($A24,FILTRO_!$A$5:$AW$2499,23,FALSE),0) -> 0 | Z24: =IFERROR(VLOOKUP($A24,FILTRO_!$A$5:$AW$2499,24,FALSE),0) -> 0 | AA24: =IFERROR(VLOOKUP($A24,FILTRO_!$A$5:$AW$2499,25,FALSE),0) -> 0 | AB24: =IFERROR(VLOOKUP($A24,FILTRO_!$A$5:$AW$2499,26,FALSE),0) -> 0 | AC24: =IFERROR(VLOOKUP($A24,FILTRO_!$A$5:$AW$2499,27,FALSE),0) -> 0 | AD24: =IFERROR(VLOOKUP($A24,FILTRO_!$A$5:$AW$2499,28,FALSE),0) -> 0 | CA24: * El número de Sexo Hombres y mujeres debe ser igual al total. | DA24: 1 | DB24: 0 | DE24: 0 | DF24: 0 | DG24: 0 | DH24: 0 | DI24: 0 | DJ24: 0 | DK24: 0 | DL24: 0 | DM24: 0 | DN24: 0 | DO24: 0 | DP24: 0 | DQ24: 0
A25: 01502000 | C25: MATRONA /ÓN | D25: =IFERROR(VLOOKUP($A25,FILTRO_!$A$5:$AW$2499,2,FALSE),0) -> 650 | E25: =IFERROR(VLOOKUP($A25,FILTRO_!$A$5:$AW$2499,3,FALSE),0) -> 650 | F25: =IFERROR(VLOOKUP($A25,FILTRO_!$A$5:$AW$2499,4,FALSE),0) -> 0 | G25: =IFERROR(VLOOKUP($A25,FILTRO_!$A$5:$AW$2499,5,FALSE),0) -> 0 | H25: =IFERROR(VLOOKUP($A25,FILTRO_!$A$5:$AW$2499,6,FALSE),0) -> 0 | I25: =IFERROR(VLOOKUP($A25,FILTRO_!$A$5:$AW$2499,7,FALSE),0) -> 0 | J25: =IFERROR(VLOOKUP($A25,FILTRO_!$A$5:$AW$2499,8,FALSE),0) -> 0 | K25: =IFERROR(VLOOKUP($A25,FILTRO_!$A$5:$AW$2499,9,FALSE),0) -> 0 | L25: =IFERROR(VLOOKUP($A25,FILTRO_!$A$5:$AW$2499,10,FALSE),0) -> 0 | M25: =IFERROR(VLOOKUP($A25,FILTRO_!$A$5:$AW$2499,11,FALSE),0) -> 0 | N25: =IFERROR(VLOOKUP($A25,FILTRO_!$A$5:$AW$2499,12,FALSE),0) -> 0 | O25: =IFERROR(VLOOKUP($A25,FILTRO_!$A$5:$AW$2499,13,FALSE),0) -> 0 | P25: =IFERROR(VLOOKUP($A25,FILTRO_!$A$5:$AW$2499,14,FALSE),0) -> 0 | Q25: =IFERROR(VLOOKUP($A25,FILTRO_!$A$5:$AW$2499,15,FALSE),0) -> 0 | R25: =IFERROR(VLOOKUP($A25,FILTRO_!$A$5:$AW$2499,16,FALSE),0) -> 0 | S25: =IFERROR(VLOOKUP($A25,FILTRO_!$A$5:$AW$2499,17,FALSE),0) -> 0 | T25: =IFERROR(VLOOKUP($A25,FILTRO_!$A$5:$AW$2499,18,FALSE),0) -> 0 | U25: =IFERROR(VLOOKUP($A25,FILTRO_!$A$5:$AW$2499,19,FALSE),0) -> 0 | V25: =IFERROR(VLOOKUP($A25,FILTRO_!$A$5:$AW$2499,20,FALSE),0) -> 276 | W25: =IFERROR(VLOOKUP($A25,FILTRO_!$A$5:$AW$2499,21,FALSE),0) -> 352 | X25: =IFERROR(VLOOKUP($A25,FILTRO_!$A$5:$AW$2499,22,FALSE),0) -> 145 | Y25: =IFERROR(VLOOKUP($A25,FILTRO_!$A$5:$AW$2499,23,FALSE),0) -> 306 | Z25: =IFERROR(VLOOKUP($A25,FILTRO_!$A$5:$AW$2499,24,FALSE),0) -> 0 | AA25: =IFERROR(VLOOKUP($A25,FILTRO_!$A$5:$AW$2499,25,FALSE),0) -> 1 | AB25: =IFERROR(VLOOKUP($A25,FILTRO_!$A$5:$AW$2499,26,FALSE),0) -> 0 | AC25: =IFERROR(VLOOKUP($A25,FILTRO_!$A$5:$AW$2499,27,FALSE),0) -> 1 | AD25: =IFERROR(VLOOKUP($A25,FILTRO_!$A$5:$AW$2499,28,FALSE),0) -> 7 | CA25: * El número de Sexo Hombres y mujeres debe ser igual al total. | DA25: 1 | DB25: 0 | DE25: 0 | DF25: 0 | DG25: 0 | DH25: 0 | DI25: 0 | DJ25: 0 | DK25: 0 | DL25: 0 | DM25: 0 | DN25: 0 | DO25: 0 | DP25: 0 | DQ25: 0
A26: 01502010 | B26: RECIÉN NACIDO ENTRE 11 y 28 DÍAS | C26: MÉDICO | D26: =IFERROR(VLOOKUP($A26,FILTRO_!$A$5:$AW$2499,2,FALSE),0) -> 1 | E26: =IFERROR(VLOOKUP($A26,FILTRO_!$A$5:$AW$2499,3,FALSE),0) -> 1 | F26: =IFERROR(VLOOKUP($A26,FILTRO_!$A$5:$AW$2499,4,FALSE),0) -> 0 | G26: =IFERROR(VLOOKUP($A26,FILTRO_!$A$5:$AW$2499,5,FALSE),0) -> 0 | H26: =IFERROR(VLOOKUP($A26,FILTRO_!$A$5:$AW$2499,6,FALSE),0) -> 0 | I26: =IFERROR(VLOOKUP($A26,FILTRO_!$A$5:$AW$2499,7,FALSE),0) -> 0 | J26: =IFERROR(VLOOKUP($A26,FILTRO_!$A$5:$AW$2499,8,FALSE),0) -> 0 | K26: =IFERROR(VLOOKUP($A26,FILTRO_!$A$5:$AW$2499,9,FALSE),0) -> 0 | L26: =IFERROR(VLOOKUP($A26,FILTRO_!$A$5:$AW$2499,10,FALSE),0) -> 0 | M26: =IFERROR(VLOOKUP($A26,FILTRO_!$A$5:$AW$2499,11,FALSE),0) -> 0 | N26: =IFERROR(VLOOKUP($A26,FILTRO_!$A$5:$AW$2499,12,FALSE),0) -> 0 | O26: =IFERROR(VLOOKUP($A26,FILTRO_!$A$5:$AW$2499,13,FALSE),0) -> 0 | P26: =IFERROR(VLOOKUP($A26,FILTRO_!$A$5:$AW$2499,14,FALSE),0) -> 0 | Q26: =IFERROR(VLOOKUP($A26,FILTRO_!$A$5:$AW$2499,15,FALSE),0) -> 0 | R26: =IFERROR(VLOOKUP($A26,FILTRO_!$A$5:$AW$2499,16,FALSE),0) -> 0 | S26: =IFERROR(VLOOKUP($A26,FILTRO_!$A$5:$AW$2499,17,FALSE),0) -> 0 | T26: =IFERROR(VLOOKUP($A26,FILTRO_!$A$5:$AW$2499,18,FALSE),0) -> 0 | U26: =IFERROR(VLOOKUP($A26,FILTRO_!$A$5:$AW$2499,19,FALSE),0) -> 0 | V26: =IFERROR(VLOOKUP($A26,FILTRO_!$A$5:$AW$2499,20,FALSE),0) -> 0 | W26: =IFERROR(VLOOKUP($A26,FILTRO_!$A$5:$AW$2499,21,FALSE),0) -> 1 | X26: =IFERROR(VLOOKUP($A26,FILTRO_!$A$5:$AW$2499,22,FALSE),0) -> 0 | Y26: =IFERROR(VLOOKUP($A26,FILTRO_!$A$5:$AW$2499,23,FALSE),0) -> 0 | Z26: =IFERROR(VLOOKUP($A26,FILTRO_!$A$5:$AW$2499,24,FALSE),0) -> 0 | AA26: =IFERROR(VLOOKUP($A26,FILTRO_!$A$5:$AW$2499,25,FALSE),0) -> 0 | AB26: =IFERROR(VLOOKUP($A26,FILTRO_!$A$5:$AW$2499,26,FALSE),0) -> 0 | AC26: =IFERROR(VLOOKUP($A26,FILTRO_!$A$5:$AW$2499,27,FALSE),0) -> 0 | AD26: =IFERROR(VLOOKUP($A26,FILTRO_!$A$5:$AW$2499,28,FALSE),0) -> 0 | CA26: * El número de Sexo Hombres y mujeres debe ser igual al total. | DA26: 1 | DB26: 0 | DE26: 0 | DF26: 0 | DG26: 0 | DH26: 0 | DI26: 0 | DJ26: 0 | DK26: 0 | DL26: 0 | DM26: 0 | DN26: 0 | DO26: 0 | DP26: 0 | DQ26: 0
A27: 01502020 | C27: MATRONA /ÓN | D27: =IFERROR(VLOOKUP($A27,FILTRO_!$A$5:$AW$2499,2,FALSE),0) -> 317 | E27: =IFERROR(VLOOKUP($A27,FILTRO_!$A$5:$AW$2499,3,FALSE),0) -> 317 | F27: =IFERROR(VLOOKUP($A27,FILTRO_!$A$5:$AW$2499,4,FALSE),0) -> 0 | G27: =IFERROR(VLOOKUP($A27,FILTRO_!$A$5:$AW$2499,5,FALSE),0) -> 0 | H27: =IFERROR(VLOOKUP($A27,FILTRO_!$A$5:$AW$2499,6,FALSE),0) -> 0 | I27: =IFERROR(VLOOKUP($A27,FILTRO_!$A$5:$AW$2499,7,FALSE),0) -> 0 | J27: =IFERROR(VLOOKUP($A27,FILTRO_!$A$5:$AW$2499,8,FALSE),0) -> 0 | K27: =IFERROR(VLOOKUP($A27,FILTRO_!$A$5:$AW$2499,9,FALSE),0) -> 0 | L27: =IFERROR(VLOOKUP($A27,FILTRO_!$A$5:$AW$2499,10,FALSE),0) -> 0 | M27: =IFERROR(VLOOKUP($A27,FILTRO_!$A$5:$AW$2499,11,FALSE),0) -> 0 | N27: =IFERROR(VLOOKUP($A27,FILTRO_!$A$5:$AW$2499,12,FALSE),0) -> 0 | O27: =IFERROR(VLOOKUP($A27,FILTRO_!$A$5:$AW$2499,13,FALSE),0) -> 0 | P27: =IFERROR(VLOOKUP($A27,FILTRO_!$A$5:$AW$2499,14,FALSE),0) -> 0 | Q27: =IFERROR(VLOOKUP($A27,FILTRO_!$A$5:$AW$2499,15,FALSE),0) -> 0 | R27: =IFERROR(VLOOKUP($A27,FILTRO_!$A$5:$AW$2499,16,FALSE),0) -> 0 | S27: =IFERROR(VLOOKUP($A27,FILTRO_!$A$5:$AW$2499,17,FALSE),0) -> 0 | T27: =IFERROR(VLOOKUP($A27,FILTRO_!$A$5:$AW$2499,18,FALSE),0) -> 0 | U27: =IFERROR(VLOOKUP($A27,FILTRO_!$A$5:$AW$2499,19,FALSE),0) -> 0 | V27: =IFERROR(VLOOKUP($A27,FILTRO_!$A$5:$AW$2499,20,FALSE),0) -> 141 | W27: =IFERROR(VLOOKUP($A27,FILTRO_!$A$5:$AW$2499,21,FALSE),0) -> 169 | X27: =IFERROR(VLOOKUP($A27,FILTRO_!$A$5:$AW$2499,22,FALSE),0) -> 47 | Y27: =IFERROR(VLOOKUP($A27,FILTRO_!$A$5:$AW$2499,23,FALSE),0) -> 88 | Z27: =IFERROR(VLOOKUP($A27,FILTRO_!$A$5:$AW$2499,24,FALSE),0) -> 1 | AA27: =IFERROR(VLOOKUP($A27,FILTRO_!$A$5:$AW$2499,25,FALSE),0) -> 3 | AB27: =IFERROR(VLOOKUP($A27,FILTRO_!$A$5:$AW$2499,26,FALSE),0) -> 1 | AC27: =IFERROR(VLOOKUP($A27,FILTRO_!$A$5:$AW$2499,27,FALSE),0) -> 1 | AD27: =IFERROR(VLOOKUP($A27,FILTRO_!$A$5:$AW$2499,28,FALSE),0) -> 7 | CA27: * El número de Sexo Hombres y mujeres debe ser igual al total. | DA27: 1 | DB27: 0 | DE27: 0 | DF27: 0 | DG27: 0 | DH27: 0 | DI27: 0 | DJ27: 0 | DK27: 0 | DL27: 0 | DM27: 0 | DN27: 0 | DO27: 0 | DP27: 0 | DQ27: 0
A28: 01010601 | B28: GINECOLÓGICO | C28: MÉDICO/A | D28: =IFERROR(VLOOKUP($A28,FILTRO_!$A$5:$AW$2499,2,FALSE),0) -> 662 | E28: =IFERROR(VLOOKUP($A28,FILTRO_!$A$5:$AW$2499,3,FALSE),0) -> 0 | F28: =IFERROR(VLOOKUP($A28,FILTRO_!$A$5:$AW$2499,4,FALSE),0) -> 0 | G28: =IFERROR(VLOOKUP($A28,FILTRO_!$A$5:$AW$2499,5,FALSE),0) -> 23 | H28: =IFERROR(VLOOKUP($A28,FILTRO_!$A$5:$AW$2499,6,FALSE),0) -> 39 | I28: =IFERROR(VLOOKUP($A28,FILTRO_!$A$5:$AW$2499,7,FALSE),0) -> 39 | J28: =IFERROR(VLOOKUP($A28,FILTRO_!$A$5:$AW$2499,8,FALSE),0) -> 55 | K28: =IFERROR(VLOOKUP($A28,FILTRO_!$A$5:$AW$2499,9,FALSE),0) -> 87 | L28: =IFERROR(VLOOKUP($A28,FILTRO_!$A$5:$AW$2499,10,FALSE),0) -> 84 | M28: =IFERROR(VLOOKUP($A28,FILTRO_!$A$5:$AW$2499,11,FALSE),0) -> 93 | N28: =IFERROR(VLOOKUP($A28,FILTRO_!$A$5:$AW$2499,12,FALSE),0) -> 57 | O28: =IFERROR(VLOOKUP($A28,FILTRO_!$A$5:$AW$2499,13,FALSE),0) -> 64 | P28: =IFERROR(VLOOKUP($A28,FILTRO_!$A$5:$AW$2499,14,FALSE),0) -> 57 | Q28: =IFERROR(VLOOKUP($A28,FILTRO_!$A$5:$AW$2499,15,FALSE),0) -> 16 | R28: =IFERROR(VLOOKUP($A28,FILTRO_!$A$5:$AW$2499,16,FALSE),0) -> 21 | S28: =IFERROR(VLOOKUP($A28,FILTRO_!$A$5:$AW$2499,17,FALSE),0) -> 18 | T28: =IFERROR(VLOOKUP($A28,FILTRO_!$A$5:$AW$2499,18,FALSE),0) -> 7 | U28: =IFERROR(VLOOKUP($A28,FILTRO_!$A$5:$AW$2499,19,FALSE),0) -> 2 | V28: =IFERROR(VLOOKUP($A28,FILTRO_!$A$5:$AW$2499,20,FALSE),0) -> 0 | W28: =IFERROR(VLOOKUP($A28,FILTRO_!$A$5:$AW$2499,21,FALSE),0) -> 665 | X28: =IFERROR(VLOOKUP($A28,FILTRO_!$A$5:$AW$2499,22,FALSE),0) -> 0 | Y28: =IFERROR(VLOOKUP($A28,FILTRO_!$A$5:$AW$2499,23,FALSE),0) -> 0 | Z28: =IFERROR(VLOOKUP($A28,FILTRO_!$A$5:$AW$2499,24,FALSE),0) -> 0 | AA28: =IFERROR(VLOOKUP($A28,FILTRO_!$A$5:$AW$2499,25,FALSE),0) -> 0 | AB28: =IFERROR(VLOOKUP($A28,FILTRO_!$A$5:$AW$2499,26,FALSE),0) -> 0 | AC28: =IFERROR(VLOOKUP($A28,FILTRO_!$A$5:$AW$2499,27,FALSE),0) -> 0 | AD28: =IFERROR(VLOOKUP($A28,FILTRO_!$A$5:$AW$2499,28,FALSE),0) -> 15 | CA28: * El número de Sexo Hombres y mujeres debe ser igual al total. | DA28: 1 | DB28: 0 | DE28: 0 | DF28: 0 | DG28: 0 | DH28: 0 | DI28: 0 | DJ28: 0 | DK28: 0 | DL28: 0 | DM28: 0 | DN28: 0 | DO28: 0 | DP28: 0 | DQ28: 0
A29: 01010603 | C29: MATRONA/ÓN | D29: =IFERROR(VLOOKUP($A29,FILTRO_!$A$5:$AW$2499,2,FALSE),0) -> 27311 | E29: =IFERROR(VLOOKUP($A29,FILTRO_!$A$5:$AW$2499,3,FALSE),0) -> 0 | F29: =IFERROR(VLOOKUP($A29,FILTRO_!$A$5:$AW$2499,4,FALSE),0) -> 0 | G29: =IFERROR(VLOOKUP($A29,FILTRO_!$A$5:$AW$2499,5,FALSE),0) -> 183 | H29: =IFERROR(VLOOKUP($A29,FILTRO_!$A$5:$AW$2499,6,FALSE),0) -> 388 | I29: =IFERROR(VLOOKUP($A29,FILTRO_!$A$5:$AW$2499,7,FALSE),0) -> 1173 | J29: =IFERROR(VLOOKUP($A29,FILTRO_!$A$5:$AW$2499,8,FALSE),0) -> 2270 | K29: =IFERROR(VLOOKUP($A29,FILTRO_!$A$5:$AW$2499,9,FALSE),0) -> 2730 | L29: =IFERROR(VLOOKUP($A29,FILTRO_!$A$5:$AW$2499,10,FALSE),0) -> 2892 | M29: =IFERROR(VLOOKUP($A29,FILTRO_!$A$5:$AW$2499,11,FALSE),0) -> 3184 | N29: =IFERROR(VLOOKUP($A29,FILTRO_!$A$5:$AW$2499,12,FALSE),0) -> 3279 | O29: =IFERROR(VLOOKUP($A29,FILTRO_!$A$5:$AW$2499,13,FALSE),0) -> 3418 | P29: =IFERROR(VLOOKUP($A29,FILTRO_!$A$5:$AW$2499,14,FALSE),0) -> 3138 | Q29: =IFERROR(VLOOKUP($A29,FILTRO_!$A$5:$AW$2499,15,FALSE),0) -> 2499 | R29: =IFERROR(VLOOKUP($A29,FILTRO_!$A$5:$AW$2499,16,FALSE),0) -> 1312 | S29: =IFERROR(VLOOKUP($A29,FILTRO_!$A$5:$AW$2499,17,FALSE),0) -> 533 | T29: =IFERROR(VLOOKUP($A29,FILTRO_!$A$5:$AW$2499,18,FALSE),0) -> 224 | U29: =IFERROR(VLOOKUP($A29,FILTRO_!$A$5:$AW$2499,19,FALSE),0) -> 88 | V29: =IFERROR(VLOOKUP($A29,FILTRO_!$A$5:$AW$2499,20,FALSE),0) -> 0 | W29: =IFERROR(VLOOKUP($A29,FILTRO_!$A$5:$AW$2499,21,FALSE),0) -> 26996 | X29: =IFERROR(VLOOKUP($A29,FILTRO_!$A$5:$AW$2499,22,FALSE),0) -> 0 | Y29: =IFERROR(VLOOKUP($A29,FILTRO_!$A$5:$AW$2499,23,FALSE),0) -> 0 | Z29: =IFERROR(VLOOKUP($A29,FILTRO_!$A$5:$AW$2499,24,FALSE),0) -> 18 | AA29: =IFERROR(VLOOKUP($A29,FILTRO_!$A$5:$AW$2499,25,FALSE),0) -> 5 | AB29: =IFERROR(VLOOKUP($A29,FILTRO_!$A$5:$AW$2499,26,FALSE),0) -> 1 | AC29: =IFERROR(VLOOKUP($A29,FILTRO_!$A$5:$AW$2499,27,FALSE),0) -> 104 | AD29: =IFERROR(VLOOKUP($A29,FILTRO_!$A$5:$AW$2499,28,FALSE),0) -> 810 | CA29: * El número de Sexo Hombres y mujeres debe ser igual al total. | DA29: 1 | DB29: 0 | DE29: 0 | DF29: 0 | DG29: 0 | DH29: 0 | DI29: 0 | DJ29: 0 | DK29: 0 | DL29: 0 | DM29: 0 | DN29: 0 | DO29: 0 | DP29: 0 | DQ29: 0
A30: 01010901 | B30: CLIMATERIO | C30: MÉDICO/A | D30: =IFERROR(VLOOKUP($A30,FILTRO_!$A$5:$AW$2499,2,FALSE),0) -> 209 | E30: =IFERROR(VLOOKUP($A30,FILTRO_!$A$5:$AW$2499,3,FALSE),0) -> 0 | F30: =IFERROR(VLOOKUP($A30,FILTRO_!$A$5:$AW$2499,4,FALSE),0) -> 0 | G30: =IFERROR(VLOOKUP($A30,FILTRO_!$A$5:$AW$2499,5,FALSE),0) -> 0 | H30: =IFERROR(VLOOKUP($A30,FILTRO_!$A$5:$AW$2499,6,FALSE),0) -> 0 | I30: =IFERROR(VLOOKUP($A30,FILTRO_!$A$5:$AW$2499,7,FALSE),0) -> 0 | J30: =IFERROR(VLOOKUP($A30,FILTRO_!$A$5:$AW$2499,8,FALSE),0) -> 0 | K30: =IFERROR(VLOOKUP($A30,FILTRO_!$A$5:$AW$2499,9,FALSE),0) -> 0 | L30: =IFERROR(VLOOKUP($A30,FILTRO_!$A$5:$AW$2499,10,FALSE),0) -> 0 | M30: =IFERROR(VLOOKUP($A30,FILTRO_!$A$5:$AW$2499,11,FALSE),0) -> 0 | N30: =IFERROR(VLOOKUP($A30,FILTRO_!$A$5:$AW$2499,12,FALSE),0) -> 61 | O30: =IFERROR(VLOOKUP($A30,FILTRO_!$A$5:$AW$2499,13,FALSE),0) -> 73 | P30: =IFERROR(VLOOKUP($A30,FILTRO_!$A$5:$AW$2499,14,FALSE),0) -> 56 | Q30: =IFERROR(VLOOKUP($A30,FILTRO_!$A$5:$AW$2499,15,FALSE),0) -> 19 | R30: =IFERROR(VLOOKUP($A30,FILTRO_!$A$5:$AW$2499,16,FALSE),0) -> 0 | S30: =IFERROR(VLOOKUP($A30,FILTRO_!$A$5:$AW$2499,17,FALSE),0) -> 0 | T30: =IFERROR(VLOOKUP($A30,FILTRO_!$A$5:$AW$2499,18,FALSE),0) -> 0 | U30: =IFERROR(VLOOKUP($A30,FILTRO_!$A$5:$AW$2499,19,FALSE),0) -> 0 | V30: =IFERROR(VLOOKUP($A30,FILTRO_!$A$5:$AW$2499,20,FALSE),0) -> 0 | W30: =IFERROR(VLOOKUP($A30,FILTRO_!$A$5:$AW$2499,21,FALSE),0) -> 209 | X30: =IFERROR(VLOOKUP($A30,FILTRO_!$A$5:$AW$2499,22,FALSE),0) -> 0 | Y30: =IFERROR(VLOOKUP($A30,FILTRO_!$A$5:$AW$2499,23,FALSE),0) -> 0 | Z30: =IFERROR(VLOOKUP($A30,FILTRO_!$A$5:$AW$2499,24,FALSE),0) -> 0 | AA30: =IFERROR(VLOOKUP($A30,FILTRO_!$A$5:$AW$2499,25,FALSE),0) -> 0 | AB30: =IFERROR(VLOOKUP($A30,FILTRO_!$A$5:$AW$2499,26,FALSE),0) -> 0 | AC30: =IFERROR(VLOOKUP($A30,FILTRO_!$A$5:$AW$2499,27,FALSE),0) -> 4 | AD30: =IFERROR(VLOOKUP($A30,FILTRO_!$A$5:$AW$2499,28,FALSE),0) -> 6 | CA30: * El número de Sexo Hombres y mujeres debe ser igual al total. | DA30: 1 | DB30: 0 | DE30: 0 | DF30: 0 | DG30: 0 | DH30: 0 | DI30: 0 | DJ30: 0 | DK30: 0 | DL30: 0 | DM30: 0 | DN30: 0 | DO30: 0 | DP30: 0 | DQ30: 0
A31: 01010903 | C31: MATRONA/ÓN | D31: =IFERROR(VLOOKUP($A31,FILTRO_!$A$5:$AW$2499,2,FALSE),0) -> 2123 | E31: =IFERROR(VLOOKUP($A31,FILTRO_!$A$5:$AW$2499,3,FALSE),0) -> 0 | F31: =IFERROR(VLOOKUP($A31,FILTRO_!$A$5:$AW$2499,4,FALSE),0) -> 0 | G31: =IFERROR(VLOOKUP($A31,FILTRO_!$A$5:$AW$2499,5,FALSE),0) -> 0 | H31: =IFERROR(VLOOKUP($A31,FILTRO_!$A$5:$AW$2499,6,FALSE),0) -> 0 | I31: =IFERROR(VLOOKUP($A31,FILTRO_!$A$5:$AW$2499,7,FALSE),0) -> 0 | J31: =IFERROR(VLOOKUP($A31,FILTRO_!$A$5:$AW$2499,8,FALSE),0) -> 0 | K31: =IFERROR(VLOOKUP($A31,FILTRO_!$A$5:$AW$2499,9,FALSE),0) -> 0 | L31: =IFERROR(VLOOKUP($A31,FILTRO_!$A$5:$AW$2499,10,FALSE),0) -> 0 | M31: =IFERROR(VLOOKUP($A31,FILTRO_!$A$5:$AW$2499,11,FALSE),0) -> 0 | N31: =IFERROR(VLOOKUP($A31,FILTRO_!$A$5:$AW$2499,12,FALSE),0) -> 552 | O31: =IFERROR(VLOOKUP($A31,FILTRO_!$A$5:$AW$2499,13,FALSE),0) -> 826 | P31: =IFERROR(VLOOKUP($A31,FILTRO_!$A$5:$AW$2499,14,FALSE),0) -> 489 | Q31: =IFERROR(VLOOKUP($A31,FILTRO_!$A$5:$AW$2499,15,FALSE),0) -> 256 | R31: =IFERROR(VLOOKUP($A31,FILTRO_!$A$5:$AW$2499,16,FALSE),0) -> 0 | S31: =IFERROR(VLOOKUP($A31,FILTRO_!$A$5:$AW$2499,17,FALSE),0) -> 0 | T31: =IFERROR(VLOOKUP($A31,FILTRO_!$A$5:$AW$2499,18,FALSE),0) -> 0 | U31: =IFERROR(VLOOKUP($A31,FILTRO_!$A$5:$AW$2499,19,FALSE),0) -> 0 | V31: =IFERROR(VLOOKUP($A31,FILTRO_!$A$5:$AW$2499,20,FALSE),0) -> 0 | W31: =IFERROR(VLOOKUP($A31,FILTRO_!$A$5:$AW$2499,21,FALSE),0) -> 2139 | X31: =IFERROR(VLOOKUP($A31,FILTRO_!$A$5:$AW$2499,22,FALSE),0) -> 0 | Y31: =IFERROR(VLOOKUP($A31,FILTRO_!$A$5:$AW$2499,23,FALSE),0) -> 0 | Z31: =IFERROR(VLOOKUP($A31,FILTRO_!$A$5:$AW$2499,24,FALSE),0) -> 0 | AA31: =IFERROR(VLOOKUP($A31,FILTRO_!$A$5:$AW$2499,25,FALSE),0) -> 0 | AB31: =IFERROR(VLOOKUP($A31,FILTRO_!$A$5:$AW$2499,26,FALSE),0) -> 0 | AC31: =IFERROR(VLOOKUP($A31,FILTRO_!$A$5:$AW$2499,27,FALSE),0) -> 14 | AD31: =IFERROR(VLOOKUP($A31,FILTRO_!$A$5:$AW$2499,28,FALSE),0) -> 74 | CA31: * El número de Sexo Hombres y mujeres debe ser igual al total. | DA31: 1 | DB31: 0 | DE31: 0 | DF31: 0 | DG31: 0 | DH31: 0 | DI31: 0 | DJ31: 0 | DK31: 0 | DL31: 0 | DM31: 0 | DN31: 0 | DO31: 0 | DP31: 0 | DQ31: 0
A32: 01010401 | B32: REGULACIÓN DE FECUNDIDAD | C32: MÉDICO/A | D32: =IFERROR(VLOOKUP($A32,FILTRO_!$A$5:$AW$2499,2,FALSE),0) -> 1 | E32: =IFERROR(VLOOKUP($A32,FILTRO_!$A$5:$AW$2499,3,FALSE),0) -> 0 | F32: =IFERROR(VLOOKUP($A32,FILTRO_!$A$5:$AW$2499,4,FALSE),0) -> 0 | G32: =IFERROR(VLOOKUP($A32,FILTRO_!$A$5:$AW$2499,5,FALSE),0) -> 1 | H32: =IFERROR(VLOOKUP($A32,FILTRO_!$A$5:$AW$2499,6,FALSE),0) -> 0 | I32: =IFERROR(VLOOKUP($A32,FILTRO_!$A$5:$AW$2499,7,FALSE),0) -> 0 | J32: =IFERROR(VLOOKUP($A32,FILTRO_!$A$5:$AW$2499,8,FALSE),0) -> 0 | K32: =IFERROR(VLOOKUP($A32,FILTRO_!$A$5:$AW$2499,9,FALSE),0) -> 0 | L32: =IFERROR(VLOOKUP($A32,FILTRO_!$A$5:$AW$2499,10,FALSE),0) -> 0 | M32: =IFERROR(VLOOKUP($A32,FILTRO_!$A$5:$AW$2499,11,FALSE),0) -> 0 | N32: =IFERROR(VLOOKUP($A32,FILTRO_!$A$5:$AW$2499,12,FALSE),0) -> 0 | O32: =IFERROR(VLOOKUP($A32,FILTRO_!$A$5:$AW$2499,13,FALSE),0) -> 0 | P32: =IFERROR(VLOOKUP($A32,FILTRO_!$A$5:$AW$2499,14,FALSE),0) -> 0 | Q32: =IFERROR(VLOOKUP($A32,FILTRO_!$A$5:$AW$2499,15,FALSE),0) -> 0 | R32: =IFERROR(VLOOKUP($A32,FILTRO_!$A$5:$AW$2499,16,FALSE),0) -> 0 | S32: =IFERROR(VLOOKUP($A32,FILTRO_!$A$5:$AW$2499,17,FALSE),0) -> 0 | T32: =IFERROR(VLOOKUP($A32,FILTRO_!$A$5:$AW$2499,18,FALSE),0) -> 0 | U32: =IFERROR(VLOOKUP($A32,FILTRO_!$A$5:$AW$2499,19,FALSE),0) -> 0 | V32: =IFERROR(VLOOKUP($A32,FILTRO_!$A$5:$AW$2499,20,FALSE),0) -> 0 | W32: =IFERROR(VLOOKUP($A32,FILTRO_!$A$5:$AW$2499,21,FALSE),0) -> 8 | X32: =IFERROR(VLOOKUP($A32,FILTRO_!$A$5:$AW$2499,22,FALSE),0) -> 0 | Y32: =IFERROR(VLOOKUP($A32,FILTRO_!$A$5:$AW$2499,23,FALSE),0) -> 0 | Z32: =IFERROR(VLOOKUP($A32,FILTRO_!$A$5:$AW$2499,24,FALSE),0) -> 8 | AA32: =IFERROR(VLOOKUP($A32,FILTRO_!$A$5:$AW$2499,25,FALSE),0) -> 8 | AB32: =IFERROR(VLOOKUP($A32,FILTRO_!$A$5:$AW$2499,26,FALSE),0) -> 8 | AC32: =IFERROR(VLOOKUP($A32,FILTRO_!$A$5:$AW$2499,27,FALSE),0) -> 4 | AD32: =IFERROR(VLOOKUP($A32,FILTRO_!$A$5:$AW$2499,28,FALSE),0) -> 8 | CA32: * El número de Sexo Hombres y mujeres debe ser igual al total. | DA32: 1 | DB32: 0 | DE32: 0 | DF32: 0 | DG32: 0 | DH32: 0 | DI32: 0 | DJ32: 0 | DK32: 0 | DL32: 0 | DM32: 0 | DN32: 0 | DO32: 0 | DP32: 0 | DQ32: 0
A33: 01010403 | C33: MATRONA/ÓN | D33: =IFERROR(VLOOKUP($A33,FILTRO_!$A$5:$AW$2499,2,FALSE),0) -> 40393 | E33: =IFERROR(VLOOKUP($A33,FILTRO_!$A$5:$AW$2499,3,FALSE),0) -> 0 | F33: =IFERROR(VLOOKUP($A33,FILTRO_!$A$5:$AW$2499,4,FALSE),0) -> 0 | G33: =IFERROR(VLOOKUP($A33,FILTRO_!$A$5:$AW$2499,5,FALSE),0) -> 893 | H33: =IFERROR(VLOOKUP($A33,FILTRO_!$A$5:$AW$2499,6,FALSE),0) -> 5649 | I33: =IFERROR(VLOOKUP($A33,FILTRO_!$A$5:$AW$2499,7,FALSE),0) -> 6953 | J33: =IFERROR(VLOOKUP($A33,FILTRO_!$A$5:$AW$2499,8,FALSE),0) -> 7165 | K33: =IFERROR(VLOOKUP($A33,FILTRO_!$A$5:$AW$2499,9,FALSE),0) -> 6641 | L33: =IFERROR(VLOOKUP($A33,FILTRO_!$A$5:$AW$2499,10,FALSE),0) -> 5134 | M33: =IFERROR(VLOOKUP($A33,FILTRO_!$A$5:$AW$2499,11,FALSE),0) -> 3999 | N33: =IFERROR(VLOOKUP($A33,FILTRO_!$A$5:$AW$2499,12,FALSE),0) -> 2826 | O33: =IFERROR(VLOOKUP($A33,FILTRO_!$A$5:$AW$2499,13,FALSE),0) -> 979 | P33: =IFERROR(VLOOKUP($A33,FILTRO_!$A$5:$AW$2499,14,FALSE),0) -> 104 | Q33: =IFERROR(VLOOKUP($A33,FILTRO_!$A$5:$AW$2499,15,FALSE),0) -> 32 | R33: =IFERROR(VLOOKUP($A33,FILTRO_!$A$5:$AW$2499,16,FALSE),0) -> 13 | S33: =IFERROR(VLOOKUP($A33,FILTRO_!$A$5:$AW$2499,17,FALSE),0) -> 4 | T33: =IFERROR(VLOOKUP($A33,FILTRO_!$A$5:$AW$2499,18,FALSE),0) -> 0 | U33: =IFERROR(VLOOKUP($A33,FILTRO_!$A$5:$AW$2499,19,FALSE),0) -> 1 | V33: =IFERROR(VLOOKUP($A33,FILTRO_!$A$5:$AW$2499,20,FALSE),0) -> 281 | W33: =IFERROR(VLOOKUP($A33,FILTRO_!$A$5:$AW$2499,21,FALSE),0) -> 39730 | X33: =IFERROR(VLOOKUP($A33,FILTRO_!$A$5:$AW$2499,22,FALSE),0) -> 0 | Y33: =IFERROR(VLOOKUP($A33,FILTRO_!$A$5:$AW$2499,23,FALSE),0) -> 0 | Z33: =IFERROR(VLOOKUP($A33,FILTRO_!$A$5:$AW$2499,24,FALSE),0) -> 630 | AA33: =IFERROR(VLOOKUP($A33,FILTRO_!$A$5:$AW$2499,25,FALSE),0) -> 25 | AB33: =IFERROR(VLOOKUP($A33,FILTRO_!$A$5:$AW$2499,26,FALSE),0) -> 28 | AC33: =IFERROR(VLOOKUP($A33,FILTRO_!$A$5:$AW$2499,27,FALSE),0) -> 239 | AD33: =IFERROR(VLOOKUP($A33,FILTRO_!$A$5:$AW$2499,28,FALSE),0) -> 759 | CA33: * El número de Sexo Hombres y mujeres debe ser igual al total. | DA33: 1 | DB33: 0 | DE33: 0 | DF33: 0 | DG33: 0 | DH33: 0 | DI33: 0 | DJ33: 0 | DK33: 0 | DL33: 0 | DM33: 0 | DN33: 0 | DO33: 0 | DP33: 0 | DQ33: 0
B34: SECCIÓN B: CONTROLES DE SALUD SEGÚN CICLO VITAL
B35: TIPO DE CONTROL | C35: PROFESIONAL | D35: TOTAL | G35: POR EDAD | AJ35: Control con Presencia del Padre | AL35: Niños, Niñas, Adolescentes y Jóvenes SENAME | AM35: Niños, Niñas, Adolescentes y Jóvenes Mejor Niñez | AN35: Pueblos Originarios | AO35: Migrantes
D36: Ambos Sexos | E36: Hombres | F36: Mujeres | G36: Menor de 1 mes | H36: 1 mes | I36: 2 meses | J36: 3 meses | K36: 4 meses | L36: 5 meses | M36: 6 meses | N36: 7 - 11 meses | O36: 12 a 17 meses | P36: 18 - 23 meses | Q36: 24 - 47 meses | R36: 48 - 59 meses | S36: 60 - 71 meses | T36: 6 - 9 | U36: 10 - 14 | V36: 15 - 19 | W36: 20 - 24 | X36: 25 - 29 | Y36: 30 - 34 | Z36: 35 - 39 | AA36: 40 - 44 | AB36: 45 - 49 | AC36: 50 - 54 | AD36: 55 - 59 | AE36: 60 - 64 | AF36: 65 - 69 | AG36: 70 - 74 | AH36: 75 - 79 | AI36: 80 y mas | AJ36: menor 1 año | AK36: 1 año a 3 años 11 meses 29 días
A37: 02010101 | B37: DE SALUD | C37: MÉDICO/A | D37: =SUM(G37:AI37) -> 9173 | E37: =IFERROR(VLOOKUP($A37,FILTRO_!$A$5:$AW$2499,3,FALSE),0) -> 4203 | F37: =IFERROR(VLOOKUP($A37,FILTRO_!$A$5:$AW$2499,4,FALSE),0) -> 4975 | G37: =IFERROR(VLOOKUP($A37,FILTRO_!$A$5:$AW$2499,5,FALSE),0) -> 140 | H37: =IFERROR(VLOOKUP($A37,FILTRO_!$A$5:$AW$2499,6,FALSE),0) -> 2480 | I37: =IFERROR(VLOOKUP($A37,FILTRO_!$A$5:$AW$2499,7,FALSE),0) -> 213 | J37: =IFERROR(VLOOKUP($A37,FILTRO_!$A$5:$AW$2499,8,FALSE),0) -> 2420 | K37: =IFERROR(VLOOKUP($A37,FILTRO_!$A$5:$AW$2499,9,FALSE),0) -> 214 | L37: =IFERROR(VLOOKUP($A37,FILTRO_!$A$5:$AW$2499,10,FALSE),0) -> 45 | M37: =IFERROR(VLOOKUP($A37,FILTRO_!$A$5:$AW$2499,11,FALSE),0) -> 31 | N37: =IFERROR(VLOOKUP($A37,FILTRO_!$A$5:$AW$2499,12,FALSE),0) -> 24 | O37: =IFERROR(VLOOKUP($A37,FILTRO_!$A$5:$AW$2499,13,FALSE),0) -> 35 | P37: =IFERROR(VLOOKUP($A37,FILTRO_!$A$5:$AW$2499,14,FALSE),0) -> 33 | Q37: =IFERROR(VLOOKUP($A37,FILTRO_!$A$5:$AW$2499,15,FALSE),0) -> 100 | R37: =IFERROR(VLOOKUP($A37,FILTRO_!$A$5:$AW$2499,16,FALSE),0) -> 98 | S37: =IFERROR(VLOOKUP($A37,FILTRO_!$A$5:$AW$2499,17,FALSE),0) -> 120 | T37: =IFERROR(VLOOKUP($A37,FILTRO_!$A$5:$AW$2499,18,FALSE),0) -> 686 | U37: =IFERROR(VLOOKUP($A37,FILTRO_!$A$5:$AW$2499,19,FALSE),0) -> 183 | V37: =IFERROR(VLOOKUP($A37,FILTRO_!$A$5:$AW$2499,20,FALSE),0) -> 101 | W37: =IFERROR(VLOOKUP($A37,FILTRO_!$A$5:$AW$2499,21,FALSE),0) -> 27 | X37: =IFERROR(VLOOKUP($A37,FILTRO_!$A$5:$AW$2499,22,FALSE),0) -> 38 | Y37: =IFERROR(VLOOKUP($A37,FILTRO_!$A$5:$AW$2499,23,FALSE),0) -> 54 | Z37: =IFERROR(VLOOKUP($A37,FILTRO_!$A$5:$AW$2499,24,FALSE),0) -> 56 | AA37: =IFERROR(VLOOKUP($A37,FILTRO_!$A$5:$AW$2499,25,FALSE),0) -> 92 | AB37: =IFERROR(VLOOKUP($A37,FILTRO_!$A$5:$AW$2499,26,FALSE),0) -> 122 | AC37: =IFERROR(VLOOKUP($A37,FILTRO_!$A$5:$AW$2499,27,FALSE),0) -> 132 | AD37: =IFERROR(VLOOKUP($A37,FILTRO_!$A$5:$AW$2499,28,FALSE),0) -> 253 | AE37: =IFERROR(VLOOKUP($A37,FILTRO_!$A$5:$AW$2499,29,FALSE),0) -> 261 | AF37: =IFERROR(VLOOKUP($A37,FILTRO_!$A$5:$AW$2499,30,FALSE),0) -> 359 | AG37: =IFERROR(VLOOKUP($A37,FILTRO_!$A$5:$AW$2499,31,FALSE),0) -> 280 | AH37: =IFERROR(VLOOKUP($A37,FILTRO_!$A$5:$AW$2499,32,FALSE),0) -> 221 | AI37: =IFERROR(VLOOKUP($A37,FILTRO_!$A$5:$AW$2499,33,FALSE),0) -> 355 | AJ37: =IFERROR(VLOOKUP($A37,FILTRO_!$A$5:$AW$2499,34,FALSE),0) -> 1207 | AK37: =IFERROR(VLOOKUP($A37,FILTRO_!$A$5:$AW$2499,35,FALSE),0) -> 7 | AL37: =IFERROR(VLOOKUP($A37,FILTRO_!$A$5:$AW$2499,36,FALSE),0) -> 33 | AM37: =IFERROR(VLOOKUP($A37,FILTRO_!$A$5:$AW$2499,37,FALSE),0) -> 4 | AN37: =IFERROR(VLOOKUP($A37,FILTRO_!$A$5:$AW$2499,38,FALSE),0) -> 34 | AO37: =IFERROR(VLOOKUP($A37,FILTRO_!$A$5:$AW$2499,39,FALSE),0) -> 361 | CB37: * El número de controles con presencia de Padre para menor entre 1 año y 3 años NO DEBE ser Mayor a la suma de controles del rango correspondiente. | CC37: * El número de controles según sexo NO DEBE ser diferente al Total. | DA37: 0 | DB37: 1 | DC37: 1 | DD37: 0
A38: 02010201 | C38: ENFERMERA/O | D38: =SUM(G38:AI38) -> 52099 | E38: =IFERROR(VLOOKUP($A38,FILTRO_!$A$5:$AW$2499,3,FALSE),0) -> 24137 | F38: =IFERROR(VLOOKUP($A38,FILTRO_!$A$5:$AW$2499,4,FALSE),0) -> 27250 | G38: =IFERROR(VLOOKUP($A38,FILTRO_!$A$5:$AW$2499,5,FALSE),0) -> 23 | H38: =IFERROR(VLOOKUP($A38,FILTRO_!$A$5:$AW$2499,6,FALSE),0) -> 44 | I38: =IFERROR(VLOOKUP($A38,FILTRO_!$A$5:$AW$2499,7,FALSE),0) -> 2852 | J38: =IFERROR(VLOOKUP($A38,FILTRO_!$A$5:$AW$2499,8,FALSE),0) -> 143 | K38: =IFERROR(VLOOKUP($A38,FILTRO_!$A$5:$AW$2499,9,FALSE),0) -> 2723 | L38: =IFERROR(VLOOKUP($A38,FILTRO_!$A$5:$AW$2499,10,FALSE),0) -> 205 | M38: =IFERROR(VLOOKUP($A38,FILTRO_!$A$5:$AW$2499,11,FALSE),0) -> 2663 | N38: =IFERROR(VLOOKUP($A38,FILTRO_!$A$5:$AW$2499,12,FALSE),0) -> 3219 | O38: =IFERROR(VLOOKUP($A38,FILTRO_!$A$5:$AW$2499,13,FALSE),0) -> 3373 | P38: =IFERROR(VLOOKUP($A38,FILTRO_!$A$5:$AW$2499,14,FALSE),0) -> 2797 | Q38: =IFERROR(VLOOKUP($A38,FILTRO_!$A$5:$AW$2499,15,FALSE),0) -> 6521 | R38: =IFERROR(VLOOKUP($A38,FILTRO_!$A$5:$AW$2499,16,FALSE),0) -> 3029 | S38: =IFERROR(VLOOKUP($A38,FILTRO_!$A$5:$AW$2499,17,FALSE),0) -> 2783 | T38: =IFERROR(VLOOKUP($A38,FILTRO_!$A$5:$AW$2499,18,FALSE),0) -> 6442 | U38: =IFERROR(VLOOKUP($A38,FILTRO_!$A$5:$AW$2499,19,FALSE),0) -> 2946 | V38: =IFERROR(VLOOKUP($A38,FILTRO_!$A$5:$AW$2499,20,FALSE),0) -> 784 | W38: =IFERROR(VLOOKUP($A38,FILTRO_!$A$5:$AW$2499,21,FALSE),0) -> 371 | X38: =IFERROR(VLOOKUP($A38,FILTRO_!$A$5:$AW$2499,22,FALSE),0) -> 443 | Y38: =IFERROR(VLOOKUP($A38,FILTRO_!$A$5:$AW$2499,23,FALSE),0) -> 500 | Z38: =IFERROR(VLOOKUP($A38,FILTRO_!$A$5:$AW$2499,24,FALSE),0) -> 514 | AA38: =IFERROR(VLOOKUP($A38,FILTRO_!$A$5:$AW$2499,25,FALSE),0) -> 521 | AB38: =IFERROR(VLOOKUP($A38,FILTRO_!$A$5:$AW$2499,26,FALSE),0) -> 590 | AC38: =IFERROR(VLOOKUP($A38,FILTRO_!$A$5:$AW$2499,27,FALSE),0) -> 612 | AD38: =IFERROR(VLOOKUP($A38,FILTRO_!$A$5:$AW$2499,28,FALSE),0) -> 723 | AE38: =IFERROR(VLOOKUP($A38,FILTRO_!$A$5:$AW$2499,29,FALSE),0) -> 774 | AF38: =IFERROR(VLOOKUP($A38,FILTRO_!$A$5:$AW$2499,30,FALSE),0) -> 1668 | AG38: =IFERROR(VLOOKUP($A38,FILTRO_!$A$5:$AW$2499,31,FALSE),0) -> 1640 | AH38: =IFERROR(VLOOKUP($A38,FILTRO_!$A$5:$AW$2499,32,FALSE),0) -> 1376 | AI38: =IFERROR(VLOOKUP($A38,FILTRO_!$A$5:$AW$2499,33,FALSE),0) -> 1820 | AJ38: =IFERROR(VLOOKUP($A38,FILTRO_!$A$5:$AW$2499,34,FALSE),0) -> 2476 | AK38: =IFERROR(VLOOKUP($A38,FILTRO_!$A$5:$AW$2499,35,FALSE),0) -> 2114 | AL38: =IFERROR(VLOOKUP($A38,FILTRO_!$A$5:$AW$2499,36,FALSE),0) -> 236 | AM38: =IFERROR(VLOOKUP($A38,FILTRO_!$A$5:$AW$2499,37,FALSE),0) -> 124 | AN38: =IFERROR(VLOOKUP($A38,FILTRO_!$A$5:$AW$2499,38,FALSE),0) -> 444 | AO38: =IFERROR(VLOOKUP($A38,FILTRO_!$A$5:$AW$2499,39,FALSE),0) -> 799 | CC38: * El número de controles según sexo NO DEBE ser diferente al Total. | DA38: 0 | DB38: 0 | DC38: 1 | DD38: 0
A39: 02010103 | C39: MATRONA/ÓN | D39: =SUM(G39+U39+V39+W39+X39+Y39+Z39+AA39+AB39+AC39+AD39+AE39+AF39+AG39+AH39+AI39) -> 11124 | E39: =IFERROR(VLOOKUP($A39,FILTRO_!$A$5:$AW$2499,3,FALSE),0) -> 1990 | F39: =IFERROR(VLOOKUP($A39,FILTRO_!$A$5:$AW$2499,4,FALSE),0) -> 9029 | G39: =IFERROR(VLOOKUP($A39,FILTRO_!$A$5:$AW$2499,5,FALSE),0) -> 2029 | H39: =IFERROR(VLOOKUP($A39,FILTRO_!$A$5:$AW$2499,6,FALSE),0) -> 0 | I39: =IFERROR(VLOOKUP($A39,FILTRO_!$A$5:$AW$2499,7,FALSE),0) -> 0 | J39: =IFERROR(VLOOKUP($A39,FILTRO_!$A$5:$AW$2499,8,FALSE),0) -> 0 | K39: =IFERROR(VLOOKUP($A39,FILTRO_!$A$5:$AW$2499,9,FALSE),0) -> 0 | L39: =IFERROR(VLOOKUP($A39,FILTRO_!$A$5:$AW$2499,10,FALSE),0) -> 0 | M39: =IFERROR(VLOOKUP($A39,FILTRO_!$A$5:$AW$2499,11,FALSE),0) -> 0 | N39: =IFERROR(VLOOKUP($A39,FILTRO_!$A$5:$AW$2499,12,FALSE),0) -> 0 | O39: =IFERROR(VLOOKUP($A39,FILTRO_!$A$5:$AW$2499,13,FALSE),0) -> 0 | P39: =IFERROR(VLOOKUP($A39,FILTRO_!$A$5:$AW$2499,14,FALSE),0) -> 0 | Q39: =IFERROR(VLOOKUP($A39,FILTRO_!$A$5:$AW$2499,15,FALSE),0) -> 0 | R39: =IFERROR(VLOOKUP($A39,FILTRO_!$A$5:$AW$2499,16,FALSE),0) -> 0 | S39: =IFERROR(VLOOKUP($A39,FILTRO_!$A$5:$AW$2499,17,FALSE),0) -> 0 | T39: =IFERROR(VLOOKUP($A39,FILTRO_!$A$5:$AW$2499,18,FALSE),0) -> 0 | U39: =IFERROR(VLOOKUP($A39,FILTRO_!$A$5:$AW$2499,19,FALSE),0) -> 1440 | V39: =IFERROR(VLOOKUP($A39,FILTRO_!$A$5:$AW$2499,20,FALSE),0) -> 1345 | W39: =IFERROR(VLOOKUP($A39,FILTRO_!$A$5:$AW$2499,21,FALSE),0) -> 802 | X39: =IFERROR(VLOOKUP($A39,FILTRO_!$A$5:$AW$2499,22,FALSE),0) -> 999 | Y39: =IFERROR(VLOOKUP($A39,FILTRO_!$A$5:$AW$2499,23,FALSE),0) -> 1032 | Z39: =IFERROR(VLOOKUP($A39,FILTRO_!$A$5:$AW$2499,24,FALSE),0) -> 835 | AA39: =IFERROR(VLOOKUP($A39,FILTRO_!$A$5:$AW$2499,25,FALSE),0) -> 708 | AB39: =IFERROR(VLOOKUP($A39,FILTRO_!$A$5:$AW$2499,26,FALSE),0) -> 648 | AC39: =IFERROR(VLOOKUP($A39,FILTRO_!$A$5:$AW$2499,27,FALSE),0) -> 504 | AD39: =IFERROR(VLOOKUP($A39,FILTRO_!$A$5:$AW$2499,28,FALSE),0) -> 344 | AE39: =IFERROR(VLOOKUP($A39,FILTRO_!$A$5:$AW$2499,29,FALSE),0) -> 275 | AF39: =IFERROR(VLOOKUP($A39,FILTRO_!$A$5:$AW$2499,30,FALSE),0) -> 112 | AG39: =IFERROR(VLOOKUP($A39,FILTRO_!$A$5:$AW$2499,31,FALSE),0) -> 31 | AH39: =IFERROR(VLOOKUP($A39,FILTRO_!$A$5:$AW$2499,32,FALSE),0) -> 13 | AI39: =IFERROR(VLOOKUP($A39,FILTRO_!$A$5:$AW$2499,33,FALSE),0) -> 7 | AJ39: =IFERROR(VLOOKUP($A39,FILTRO_!$A$5:$AW$2499,34,FALSE),0) -> 894 | AK39: =IFERROR(VLOOKUP($A39,FILTRO_!$A$5:$AW$2499,35,FALSE),0) -> 0 | AL39: =IFERROR(VLOOKUP($A39,FILTRO_!$A$5:$AW$2499,36,FALSE),0) -> 9 | AM39: =IFERROR(VLOOKUP($A39,FILTRO_!$A$5:$AW$2499,37,FALSE),0) -> 13 | AN39: =IFERROR(VLOOKUP($A39,FILTRO_!$A$5:$AW$2499,38,FALSE),0) -> 38 | AO39: =IFERROR(VLOOKUP($A39,FILTRO_!$A$5:$AW$2499,39,FALSE),0) -> 172 | CB39: * El número de controles con presencia de Padre para menor entre 1 año y 3 años NO DEBE ser Mayor a la suma de controles del rango correspondiente. | CC39: * El número de controles según sexo NO DEBE ser diferente al Total. | DA39: 0 | DB39: 1 | DC39: 1 | DD39: 0
A40: 02010105 | C40: TÉCNICO EN ENFERMERÍA | D40: =SUM(O40:T40) -> 20 | E40: =IFERROR(VLOOKUP($A40,FILTRO_!$A$5:$AW$2499,3,FALSE),0) -> 11 | F40: =IFERROR(VLOOKUP($A40,FILTRO_!$A$5:$AW$2499,4,FALSE),0) -> 8 | G40: =IFERROR(VLOOKUP($A40,FILTRO_!$A$5:$AW$2499,5,FALSE),0) -> 0 | H40: =IFERROR(VLOOKUP($A40,FILTRO_!$A$5:$AW$2499,6,FALSE),0) -> 0 | I40: =IFERROR(VLOOKUP($A40,FILTRO_!$A$5:$AW$2499,7,FALSE),0) -> 0 | J40: =IFERROR(VLOOKUP($A40,FILTRO_!$A$5:$AW$2499,8,FALSE),0) -> 0 | K40: =IFERROR(VLOOKUP($A40,FILTRO_!$A$5:$AW$2499,9,FALSE),0) -> 0 | L40: =IFERROR(VLOOKUP($A40,FILTRO_!$A$5:$AW$2499,10,FALSE),0) -> 0 | M40: =IFERROR(VLOOKUP($A40,FILTRO_!$A$5:$AW$2499,11,FALSE),0) -> 0 | N40: =IFERROR(VLOOKUP($A40,FILTRO_!$A$5:$AW$2499,12,FALSE),0) -> 0 | O40: =IFERROR(VLOOKUP($A40,FILTRO_!$A$5:$AW$2499,13,FALSE),0) -> 1 | P40: =IFERROR(VLOOKUP($A40,FILTRO_!$A$5:$AW$2499,14,FALSE),0) -> 1 | Q40: =IFERROR(VLOOKUP($A40,FILTRO_!$A$5:$AW$2499,15,FALSE),0) -> 4 | R40: =IFERROR(VLOOKUP($A40,FILTRO_!$A$5:$AW$2499,16,FALSE),0) -> 0 | S40: =IFERROR(VLOOKUP($A40,FILTRO_!$A$5:$AW$2499,17,FALSE),0) -> 2 | T40: =IFERROR(VLOOKUP($A40,FILTRO_!$A$5:$AW$2499,18,FALSE),0) -> 12 | U40: =IFERROR(VLOOKUP($A40,FILTRO_!$A$5:$AW$2499,19,FALSE),0) -> 0 | V40: =IFERROR(VLOOKUP($A40,FILTRO_!$A$5:$AW$2499,20,FALSE),0) -> 0 | W40: =IFERROR(VLOOKUP($A40,FILTRO_!$A$5:$AW$2499,21,FALSE),0) -> 0 | X40: =IFERROR(VLOOKUP($A40,FILTRO_!$A$5:$AW$2499,22,FALSE),0) -> 0 | Y40: =IFERROR(VLOOKUP($A40,FILTRO_!$A$5:$AW$2499,23,FALSE),0) -> 0 | Z40: =IFERROR(VLOOKUP($A40,FILTRO_!$A$5:$AW$2499,24,FALSE),0) -> 0 | AA40: =IFERROR(VLOOKUP($A40,FILTRO_!$A$5:$AW$2499,25,FALSE),0) -> 0 | AB40: =IFERROR(VLOOKUP($A40,FILTRO_!$A$5:$AW$2499,26,FALSE),0) -> 0 | AC40: =IFERROR(VLOOKUP($A40,FILTRO_!$A$5:$AW$2499,27,FALSE),0) -> 0 | AD40: =IFERROR(VLOOKUP($A40,FILTRO_!$A$5:$AW$2499,28,FALSE),0) -> 0 | AE40: =IFERROR(VLOOKUP($A40,FILTRO_!$A$5:$AW$2499,29,FALSE),0) -> 0 | AF40: =IFERROR(VLOOKUP($A40,FILTRO_!$A$5:$AW$2499,30,FALSE),0) -> 0 | AG40: =IFERROR(VLOOKUP($A40,FILTRO_!$A$5:$AW$2499,31,FALSE),0) -> 0 | AH40: =IFERROR(VLOOKUP($A40,FILTRO_!$A$5:$AW$2499,32,FALSE),0) -> 0 | AI40: =IFERROR(VLOOKUP($A40,FILTRO_!$A$5:$AW$2499,33,FALSE),0) -> 0 | AJ40: =IFERROR(VLOOKUP($A40,FILTRO_!$A$5:$AW$2499,34,FALSE),0) -> 0 | AK40: =IFERROR(VLOOKUP($A40,FILTRO_!$A$5:$AW$2499,35,FALSE),0) -> 4 | AL40: =IFERROR(VLOOKUP($A40,FILTRO_!$A$5:$AW$2499,36,FALSE),0) -> 2 | AM40: =IFERROR(VLOOKUP($A40,FILTRO_!$A$5:$AW$2499,37,FALSE),0) -> 0 | AN40: =IFERROR(VLOOKUP($A40,FILTRO_!$A$5:$AW$2499,38,FALSE),0) -> 1 | AO40: =IFERROR(VLOOKUP($A40,FILTRO_!$A$5:$AW$2499,39,FALSE),0) -> 36 | CC40: * El número de controles según sexo NO DEBE ser diferente al Total. | DC40: 1 | DD40: 0
B41: SECCIÓN C: CONTROLES SEGÚN PROBLEMA DE SALUD
B42: TIPO DE CONTROL | C42: PROFESIONAL | D42: TOTAL | G42: POR EDAD | AO42: Pueblos Originarios | AP42: Migrantes
G43: 0 - 4 años | I43: 5 - 9 años | K43: 10 - 14 años | M43: 15 a 19 años | O43: 20 - 24 años | Q43: 25 - 29 años | S43: 30 - 34 años | U43: 35 - 39 años | W43: 40 - 44 años | Y43: 45 - 49 años | AA43: 50 - 54 años | AC43: 55 - 59 años | AE43: 60 - 64 años | AG43: 65 - 69 años | AI43: 70 - 74 años | AK43: 75 - 79 años | AM43: 80 y más años
D44: Ambos Sexos | E44: Hombres | F44: Mujeres | G44: Hombres | H44: Mujeres | I44: Hombres | J44: Mujeres | K44: Hombres | L44: Mujeres | M44: Hombres | N44: Mujeres | O44: Hombres | P44: Mujeres | Q44: Hombres | R44: Mujeres | S44: Hombres | T44: Mujeres | U44: Hombres | V44: Mujeres | W44: Hombres | X44: Mujeres | Y44: Hombres | Z44: Mujeres | AA44: Hombres | AB44: Mujeres | AC44: Hombres | AD44: Mujeres | AE44: Hombres | AF44: Mujeres | AG44: Hombres | AH44: Mujeres | AI44: Hombres | AJ44: Mujeres | AK44: Hombres | AL44: Mujeres | AM44: Hombres | AN44: Mujeres
A45: 03010501 | B45: DE SALUD CARDIOVASCULAR | C45: MÉDICO/A | D45: =SUM(E45:F45) -> 70883 | E45: =IFERROR(VLOOKUP($A45,FILTRO_!$A$5:$AW$2499,3,FALSE),0) -> 24420 | F45: =IFERROR(VLOOKUP($A45,FILTRO_!$A$5:$AW$2499,4,FALSE),0) -> 46463 | G45: =IFERROR(VLOOKUP($A45,FILTRO_!$A$5:$AW$2499,5,FALSE),0) -> 0 | H45: =IFERROR(VLOOKUP($A45,FILTRO_!$A$5:$AW$2499,6,FALSE),0) -> 0 | I45: =IFERROR(VLOOKUP($A45,FILTRO_!$A$5:$AW$2499,7,FALSE),0) -> 0 | J45: =IFERROR(VLOOKUP($A45,FILTRO_!$A$5:$AW$2499,8,FALSE),0) -> 0 | K45: =IFERROR(VLOOKUP($A45,FILTRO_!$A$5:$AW$2499,9,FALSE),0) -> 0 | L45: =IFERROR(VLOOKUP($A45,FILTRO_!$A$5:$AW$2499,10,FALSE),0) -> 0 | M45: =IFERROR(VLOOKUP($A45,FILTRO_!$A$5:$AW$2499,11,FALSE),0) -> 49 | N45: =IFERROR(VLOOKUP($A45,FILTRO_!$A$5:$AW$2499,12,FALSE),0) -> 81 | O45: =IFERROR(VLOOKUP($A45,FILTRO_!$A$5:$AW$2499,13,FALSE),0) -> 78 | P45: =IFERROR(VLOOKUP($A45,FILTRO_!$A$5:$AW$2499,14,FALSE),0) -> 177 | Q45: =IFERROR(VLOOKUP($A45,FILTRO_!$A$5:$AW$2499,15,FALSE),0) -> 122 | R45: =IFERROR(VLOOKUP($A45,FILTRO_!$A$5:$AW$2499,16,FALSE),0) -> 323 | S45: =IFERROR(VLOOKUP($A45,FILTRO_!$A$5:$AW$2499,17,FALSE),0) -> 209 | T45: =IFERROR(VLOOKUP($A45,FILTRO_!$A$5:$AW$2499,18,FALSE),0) -> 590 | U45: =IFERROR(VLOOKUP($A45,FILTRO_!$A$5:$AW$2499,19,FALSE),0) -> 352 | V45: =IFERROR(VLOOKUP($A45,FILTRO_!$A$5:$AW$2499,20,FALSE),0) -> 1008 | W45: =IFERROR(VLOOKUP($A45,FILTRO_!$A$5:$AW$2499,21,FALSE),0) -> 603 | X45: =IFERROR(VLOOKUP($A45,FILTRO_!$A$5:$AW$2499,22,FALSE),0) -> 1652 | Y45: =IFERROR(VLOOKUP($A45,FILTRO_!$A$5:$AW$2499,23,FALSE),0) -> 948 | Z45: =IFERROR(VLOOKUP($A45,FILTRO_!$A$5:$AW$2499,24,FALSE),0) -> 2621 | AA45: =IFERROR(VLOOKUP($A45,FILTRO_!$A$5:$AW$2499,25,FALSE),0) -> 1558 | AB45: =IFERROR(VLOOKUP($A45,FILTRO_!$A$5:$AW$2499,26,FALSE),0) -> 3952 | AC45: =IFERROR(VLOOKUP($A45,FILTRO_!$A$5:$AW$2499,27,FALSE),0) -> 2438 | AD45: =IFERROR(VLOOKUP($A45,FILTRO_!$A$5:$AW$2499,28,FALSE),0) -> 5764 | AE45: =IFERROR(VLOOKUP($A45,FILTRO_!$A$5:$AW$2499,29,FALSE),0) -> 3439 | AF45: =IFERROR(VLOOKUP($A45,FILTRO_!$A$5:$AW$2499,30,FALSE),0) -> 6661 | AG45: =IFERROR(VLOOKUP($A45,FILTRO_!$A$5:$AW$2499,31,FALSE),0) -> 4118 | AH45: =IFERROR(VLOOKUP($A45,FILTRO_!$A$5:$AW$2499,32,FALSE),0) -> 6858 | AI45: =IFERROR(VLOOKUP($A45,FILTRO_!$A$5:$AW$2499,33,FALSE),0) -> 3847 | AJ45: =IFERROR(VLOOKUP($A45,FILTRO_!$A$5:$AW$2499,34,FALSE),0) -> 5988 | AK45: =IFERROR(VLOOKUP($A45,FILTRO_!$A$5:$AW$2499,35,FALSE),0) -> 3306 | AL45: =IFERROR(VLOOKUP($A45,FILTRO_!$A$5:$AW$2499,36,FALSE),0) -> 5109 | AM45: =IFERROR(VLOOKUP($A45,FILTRO_!$A$5:$AW$2499,37,FALSE),0) -> 3540 | AN45: =IFERROR(VLOOKUP($A45,FILTRO_!$A$5:$AW$2499,38,FALSE),0) -> 5679 | AO45: =IFERROR(VLOOKUP($A45,FILTRO_!$A$5:$AW$2499,39,FALSE),0) -> 565 | AP45: =IFERROR(VLOOKUP($A45,FILTRO_!$A$5:$AW$2499,40,FALSE),0) -> 452 | DB45: 0 | DC45: 0 | DD45: 0 | DE45: 0
A46: 03010502 | C46: ENFERMERA/O | D46: =SUM(E46:F46) -> 30425 | E46: =IFERROR(VLOOKUP($A46,FILTRO_!$A$5:$AW$2499,3,FALSE),0) -> 11013 | F46: =IFERROR(VLOOKUP($A46,FILTRO_!$A$5:$AW$2499,4,FALSE),0) -> 19412 | G46: =IFERROR(VLOOKUP($A46,FILTRO_!$A$5:$AW$2499,5,FALSE),0) -> 0 | H46: =IFERROR(VLOOKUP($A46,FILTRO_!$A$5:$AW$2499,6,FALSE),0) -> 0 | I46: =IFERROR(VLOOKUP($A46,FILTRO_!$A$5:$AW$2499,7,FALSE),0) -> 0 | J46: =IFERROR(VLOOKUP($A46,FILTRO_!$A$5:$AW$2499,8,FALSE),0) -> 0 | K46: =IFERROR(VLOOKUP($A46,FILTRO_!$A$5:$AW$2499,9,FALSE),0) -> 0 | L46: =IFERROR(VLOOKUP($A46,FILTRO_!$A$5:$AW$2499,10,FALSE),0) -> 0 | M46: =IFERROR(VLOOKUP($A46,FILTRO_!$A$5:$AW$2499,11,FALSE),0) -> 19 | N46: =IFERROR(VLOOKUP($A46,FILTRO_!$A$5:$AW$2499,12,FALSE),0) -> 19 | O46: =IFERROR(VLOOKUP($A46,FILTRO_!$A$5:$AW$2499,13,FALSE),0) -> 22 | P46: =IFERROR(VLOOKUP($A46,FILTRO_!$A$5:$AW$2499,14,FALSE),0) -> 54 | Q46: =IFERROR(VLOOKUP($A46,FILTRO_!$A$5:$AW$2499,15,FALSE),0) -> 46 | R46: =IFERROR(VLOOKUP($A46,FILTRO_!$A$5:$AW$2499,16,FALSE),0) -> 115 | S46: =IFERROR(VLOOKUP($A46,FILTRO_!$A$5:$AW$2499,17,FALSE),0) -> 78 | T46: =IFERROR(VLOOKUP($A46,FILTRO_!$A$5:$AW$2499,18,FALSE),0) -> 224 | U46: =IFERROR(VLOOKUP($A46,FILTRO_!$A$5:$AW$2499,19,FALSE),0) -> 147 | V46: =IFERROR(VLOOKUP($A46,FILTRO_!$A$5:$AW$2499,20,FALSE),0) -> 396 | W46: =IFERROR(VLOOKUP($A46,FILTRO_!$A$5:$AW$2499,21,FALSE),0) -> 266 | X46: =IFERROR(VLOOKUP($A46,FILTRO_!$A$5:$AW$2499,22,FALSE),0) -> 671 | Y46: =IFERROR(VLOOKUP($A46,FILTRO_!$A$5:$AW$2499,23,FALSE),0) -> 398 | Z46: =IFERROR(VLOOKUP($A46,FILTRO_!$A$5:$AW$2499,24,FALSE),0) -> 1034 | AA46: =IFERROR(VLOOKUP($A46,FILTRO_!$A$5:$AW$2499,25,FALSE),0) -> 648 | AB46: =IFERROR(VLOOKUP($A46,FILTRO_!$A$5:$AW$2499,26,FALSE),0) -> 1561 | AC46: =IFERROR(VLOOKUP($A46,FILTRO_!$A$5:$AW$2499,27,FALSE),0) -> 1108 | AD46: =IFERROR(VLOOKUP($A46,FILTRO_!$A$5:$AW$2499,28,FALSE),0) -> 2269 | AE46: =IFERROR(VLOOKUP($A46,FILTRO_!$A$5:$AW$2499,29,FALSE),0) -> 1405 | AF46: =IFERROR(VLOOKUP($A46,FILTRO_!$A$5:$AW$2499,30,FALSE),0) -> 2648 | AG46: =IFERROR(VLOOKUP($A46,FILTRO_!$A$5:$AW$2499,31,FALSE),0) -> 1874 | AH46: =IFERROR(VLOOKUP($A46,FILTRO_!$A$5:$AW$2499,32,FALSE),0) -> 3039 | AI46: =IFERROR(VLOOKUP($A46,FILTRO_!$A$5:$AW$2499,33,FALSE),0) -> 1768 | AJ46: =IFERROR(VLOOKUP($A46,FILTRO_!$A$5:$AW$2499,34,FALSE),0) -> 2541 | AK46: =IFERROR(VLOOKUP($A46,FILTRO_!$A$5:$AW$2499,35,FALSE),0) -> 1454 | AL46: =IFERROR(VLOOKUP($A46,FILTRO_!$A$5:$AW$2499,36,FALSE),0) -> 2140 | AM46: =IFERROR(VLOOKUP($A46,FILTRO_!$A$5:$AW$2499,37,FALSE),0) -> 1780 | AN46: =IFERROR(VLOOKUP($A46,FILTRO_!$A$5:$AW$2499,38,FALSE),0) -> 2707 | AO46: =IFERROR(VLOOKUP($A46,FILTRO_!$A$5:$AW$2499,39,FALSE),0) -> 243 | AP46: =IFERROR(VLOOKUP($A46,FILTRO_!$A$5:$AW$2499,40,FALSE),0) -> 219 | DB46: 0 | DC46: 0 | DD46: 0 | DE46: 0
A47: 03010504 | C47: NUTRICIONISTA | D47: 29865 | E47: =IFERROR(VLOOKUP($A47,FILTRO_!$A$5:$AW$2499,3,FALSE),0) -> 9860 | F47: =IFERROR(VLOOKUP($A47,FILTRO_!$A$5:$AW$2499,4,FALSE),0) -> 20005 | G47: =IFERROR(VLOOKUP($A47,FILTRO_!$A$5:$AW$2499,5,FALSE),0) -> 0 | H47: =IFERROR(VLOOKUP($A47,FILTRO_!$A$5:$AW$2499,6,FALSE),0) -> 0 | I47: =IFERROR(VLOOKUP($A47,FILTRO_!$A$5:$AW$2499,7,FALSE),0) -> 0 | J47: =IFERROR(VLOOKUP($A47,FILTRO_!$A$5:$AW$2499,8,FALSE),0) -> 0 | K47: =IFERROR(VLOOKUP($A47,FILTRO_!$A$5:$AW$2499,9,FALSE),0) -> 0 | L47: =IFERROR(VLOOKUP($A47,FILTRO_!$A$5:$AW$2499,10,FALSE),0) -> 0 | M47: =IFERROR(VLOOKUP($A47,FILTRO_!$A$5:$AW$2499,11,FALSE),0) -> 25 | N47: =IFERROR(VLOOKUP($A47,FILTRO_!$A$5:$AW$2499,12,FALSE),0) -> 32 | O47: =IFERROR(VLOOKUP($A47,FILTRO_!$A$5:$AW$2499,13,FALSE),0) -> 33 | P47: =IFERROR(VLOOKUP($A47,FILTRO_!$A$5:$AW$2499,14,FALSE),0) -> 79 | Q47: =IFERROR(VLOOKUP($A47,FILTRO_!$A$5:$AW$2499,15,FALSE),0) -> 58 | R47: =IFERROR(VLOOKUP($A47,FILTRO_!$A$5:$AW$2499,16,FALSE),0) -> 147 | S47: =IFERROR(VLOOKUP($A47,FILTRO_!$A$5:$AW$2499,17,FALSE),0) -> 104 | T47: =IFERROR(VLOOKUP($A47,FILTRO_!$A$5:$AW$2499,18,FALSE),0) -> 300 | U47: =IFERROR(VLOOKUP($A47,FILTRO_!$A$5:$AW$2499,19,FALSE),0) -> 151 | V47: =IFERROR(VLOOKUP($A47,FILTRO_!$A$5:$AW$2499,20,FALSE),0) -> 506 | W47: =IFERROR(VLOOKUP($A47,FILTRO_!$A$5:$AW$2499,21,FALSE),0) -> 253 | X47: =IFERROR(VLOOKUP($A47,FILTRO_!$A$5:$AW$2499,22,FALSE),0) -> 804 | Y47: =IFERROR(VLOOKUP($A47,FILTRO_!$A$5:$AW$2499,23,FALSE),0) -> 430 | Z47: =IFERROR(VLOOKUP($A47,FILTRO_!$A$5:$AW$2499,24,FALSE),0) -> 1253 | AA47: =IFERROR(VLOOKUP($A47,FILTRO_!$A$5:$AW$2499,25,FALSE),0) -> 635 | AB47: =IFERROR(VLOOKUP($A47,FILTRO_!$A$5:$AW$2499,26,FALSE),0) -> 1778 | AC47: =IFERROR(VLOOKUP($A47,FILTRO_!$A$5:$AW$2499,27,FALSE),0) -> 976 | AD47: =IFERROR(VLOOKUP($A47,FILTRO_!$A$5:$AW$2499,28,FALSE),0) -> 2598 | AE47: =IFERROR(VLOOKUP($A47,FILTRO_!$A$5:$AW$2499,29,FALSE),0) -> 1354 | AF47: =IFERROR(VLOOKUP($A47,FILTRO_!$A$5:$AW$2499,30,FALSE),0) -> 2893 | AG47: =IFERROR(VLOOKUP($A47,FILTRO_!$A$5:$AW$2499,31,FALSE),0) -> 1621 | AH47: =IFERROR(VLOOKUP($A47,FILTRO_!$A$5:$AW$2499,32,FALSE),0) -> 2908 | AI47: =IFERROR(VLOOKUP($A47,FILTRO_!$A$5:$AW$2499,33,FALSE),0) -> 1579 | AJ47: =IFERROR(VLOOKUP($A47,FILTRO_!$A$5:$AW$2499,34,FALSE),0) -> 2492 | AK47: =IFERROR(VLOOKUP($A47,FILTRO_!$A$5:$AW$2499,35,FALSE),0) -> 1203 | AL47: =IFERROR(VLOOKUP($A47,FILTRO_!$A$5:$AW$2499,36,FALSE),0) -> 2027 | AM47: =IFERROR(VLOOKUP($A47,FILTRO_!$A$5:$AW$2499,37,FALSE),0) -> 1438 | AN47: =IFERROR(VLOOKUP($A47,FILTRO_!$A$5:$AW$2499,38,FALSE),0) -> 2188 | AO47: =IFERROR(VLOOKUP($A47,FILTRO_!$A$5:$AW$2499,39,FALSE),0) -> 533 | AP47: =IFERROR(VLOOKUP($A47,FILTRO_!$A$5:$AW$2499,40,FALSE),0) -> 230 | DB47: 0 | DC47: 0 | DD47: 0 | DE47: 0
A48: 03010505 | C48: TÉCNICO EN ENFERMERÍA | D48: 207 | E48: =IFERROR(VLOOKUP($A48,FILTRO_!$A$5:$AW$2499,3,FALSE),0) -> 99 | F48: =IFERROR(VLOOKUP($A48,FILTRO_!$A$5:$AW$2499,4,FALSE),0) -> 108 | G48: =IFERROR(VLOOKUP($A48,FILTRO_!$A$5:$AW$2499,5,FALSE),0) -> 0 | H48: =IFERROR(VLOOKUP($A48,FILTRO_!$A$5:$AW$2499,6,FALSE),0) -> 0 | I48: =IFERROR(VLOOKUP($A48,FILTRO_!$A$5:$AW$2499,7,FALSE),0) -> 0 | J48: =IFERROR(VLOOKUP($A48,FILTRO_!$A$5:$AW$2499,8,FALSE),0) -> 0 | K48: =IFERROR(VLOOKUP($A48,FILTRO_!$A$5:$AW$2499,9,FALSE),0) -> 0 | L48: =IFERROR(VLOOKUP($A48,FILTRO_!$A$5:$AW$2499,10,FALSE),0) -> 0 | M48: =IFERROR(VLOOKUP($A48,FILTRO_!$A$5:$AW$2499,11,FALSE),0) -> 0 | N48: =IFERROR(VLOOKUP($A48,FILTRO_!$A$5:$AW$2499,12,FALSE),0) -> 0 | O48: =IFERROR(VLOOKUP($A48,FILTRO_!$A$5:$AW$2499,13,FALSE),0) -> 0 | P48: =IFERROR(VLOOKUP($A48,FILTRO_!$A$5:$AW$2499,14,FALSE),0) -> 0 | Q48: =IFERROR(VLOOKUP($A48,FILTRO_!$A$5:$AW$2499,15,FALSE),0) -> 2 | R48: =IFERROR(VLOOKUP($A48,FILTRO_!$A$5:$AW$2499,16,FALSE),0) -> 1 | S48: =IFERROR(VLOOKUP($A48,FILTRO_!$A$5:$AW$2499,17,FALSE),0) -> 3 | T48: =IFERROR(VLOOKUP($A48,FILTRO_!$A$5:$AW$2499,18,FALSE),0) -> 3 | U48: =IFERROR(VLOOKUP($A48,FILTRO_!$A$5:$AW$2499,19,FALSE),0) -> 2 | V48: =IFERROR(VLOOKUP($A48,FILTRO_!$A$5:$AW$2499,20,FALSE),0) -> 3 | W48: =IFERROR(VLOOKUP($A48,FILTRO_!$A$5:$AW$2499,21,FALSE),0) -> 3 | X48: =IFERROR(VLOOKUP($A48,FILTRO_!$A$5:$AW$2499,22,FALSE),0) -> 4 | Y48: =IFERROR(VLOOKUP($A48,FILTRO_!$A$5:$AW$2499,23,FALSE),0) -> 10 | Z48: =IFERROR(VLOOKUP($A48,FILTRO_!$A$5:$AW$2499,24,FALSE),0) -> 7 | AA48: =IFERROR(VLOOKUP($A48,FILTRO_!$A$5:$AW$2499,25,FALSE),0) -> 4 | AB48: =IFERROR(VLOOKUP($A48,FILTRO_!$A$5:$AW$2499,26,FALSE),0) -> 17 | AC48: =IFERROR(VLOOKUP($A48,FILTRO_!$A$5:$AW$2499,27,FALSE),0) -> 14 | AD48: =IFERROR(VLOOKUP($A48,FILTRO_!$A$5:$AW$2499,28,FALSE),0) -> 17 | AE48: =IFERROR(VLOOKUP($A48,FILTRO_!$A$5:$AW$2499,29,FALSE),0) -> 10 | AF48: =IFERROR(VLOOKUP($A48,FILTRO_!$A$5:$AW$2499,30,FALSE),0) -> 7 | AG48: =IFERROR(VLOOKUP($A48,FILTRO_!$A$5:$AW$2499,31,FALSE),0) -> 12 | AH48: =IFERROR(VLOOKUP($A48,FILTRO_!$A$5:$AW$2499,32,FALSE),0) -> 13 | AI48: =IFERROR(VLOOKUP($A48,FILTRO_!$A$5:$AW$2499,33,FALSE),0) -> 8 | AJ48: =IFERROR(VLOOKUP($A48,FILTRO_!$A$5:$AW$2499,34,FALSE),0) -> 10 | AK48: =IFERROR(VLOOKUP($A48,FILTRO_!$A$5:$AW$2499,35,FALSE),0) -> 14 | AL48: =IFERROR(VLOOKUP($A48,FILTRO_!$A$5:$AW$2499,36,FALSE),0) -> 13 | AM48: =IFERROR(VLOOKUP($A48,FILTRO_!$A$5:$AW$2499,37,FALSE),0) -> 17 | AN48: =IFERROR(VLOOKUP($A48,FILTRO_!$A$5:$AW$2499,38,FALSE),0) -> 13 | AO48: =IFERROR(VLOOKUP($A48,FILTRO_!$A$5:$AW$2499,39,FALSE),0) -> 36 | AP48: =IFERROR(VLOOKUP($A48,FILTRO_!$A$5:$AW$2499,40,FALSE),0) -> 0 | DB48: 0 | DC48: 0 | DD48: 0 | DE48: 0
A49: 01030100A | B49: SEGUIMIENTO AUTOVALENTE CON RIESGO | C49: MÉDICO/A | D49: 25 | E49: =IFERROR(VLOOKUP($A49,FILTRO_!$A$5:$AW$2499,3,FALSE),0) -> 7 | F49: =IFERROR(VLOOKUP($A49,FILTRO_!$A$5:$AW$2499,4,FALSE),0) -> 18 | G49: =IFERROR(VLOOKUP($A49,FILTRO_!$A$5:$AW$2499,5,FALSE),0) -> 0 | H49: =IFERROR(VLOOKUP($A49,FILTRO_!$A$5:$AW$2499,6,FALSE),0) -> 0 | I49: =IFERROR(VLOOKUP($A49,FILTRO_!$A$5:$AW$2499,7,FALSE),0) -> 0 | J49: =IFERROR(VLOOKUP($A49,FILTRO_!$A$5:$AW$2499,8,FALSE),0) -> 0 | K49: =IFERROR(VLOOKUP($A49,FILTRO_!$A$5:$AW$2499,9,FALSE),0) -> 0 | L49: =IFERROR(VLOOKUP($A49,FILTRO_!$A$5:$AW$2499,10,FALSE),0) -> 0 | M49: =IFERROR(VLOOKUP($A49,FILTRO_!$A$5:$AW$2499,11,FALSE),0) -> 0 | N49: =IFERROR(VLOOKUP($A49,FILTRO_!$A$5:$AW$2499,12,FALSE),0) -> 0 | O49: =IFERROR(VLOOKUP($A49,FILTRO_!$A$5:$AW$2499,13,FALSE),0) -> 0 | P49: =IFERROR(VLOOKUP($A49,FILTRO_!$A$5:$AW$2499,14,FALSE),0) -> 0 | Q49: =IFERROR(VLOOKUP($A49,FILTRO_!$A$5:$AW$2499,15,FALSE),0) -> 0 | R49: =IFERROR(VLOOKUP($A49,FILTRO_!$A$5:$AW$2499,16,FALSE),0) -> 0 | S49: =IFERROR(VLOOKUP($A49,FILTRO_!$A$5:$AW$2499,17,FALSE),0) -> 0 | T49: =IFERROR(VLOOKUP($A49,FILTRO_!$A$5:$AW$2499,18,FALSE),0) -> 0 | U49: =IFERROR(VLOOKUP($A49,FILTRO_!$A$5:$AW$2499,19,FALSE),0) -> 0 | V49: =IFERROR(VLOOKUP($A49,FILTRO_!$A$5:$AW$2499,20,FALSE),0) -> 0 | W49: =IFERROR(VLOOKUP($A49,FILTRO_!$A$5:$AW$2499,21,FALSE),0) -> 0 | X49: =IFERROR(VLOOKUP($A49,FILTRO_!$A$5:$AW$2499,22,FALSE),0) -> 0 | Y49: =IFERROR(VLOOKUP($A49,FILTRO_!$A$5:$AW$2499,23,FALSE),0) -> 0 | Z49: =IFERROR(VLOOKUP($A49,FILTRO_!$A$5:$AW$2499,24,FALSE),0) -> 0 | AA49: =IFERROR(VLOOKUP($A49,FILTRO_!$A$5:$AW$2499,25,FALSE),0) -> 0 | AB49: =IFERROR(VLOOKUP($A49,FILTRO_!$A$5:$AW$2499,26,FALSE),0) -> 0 | AC49: =IFERROR(VLOOKUP($A49,FILTRO_!$A$5:$AW$2499,27,FALSE),0) -> 0 | AD49: =IFERROR(VLOOKUP($A49,FILTRO_!$A$5:$AW$2499,28,FALSE),0) -> 0 | AE49: =IFERROR(VLOOKUP($A49,FILTRO_!$A$5:$AW$2499,29,FALSE),0) -> 0 | AF49: =IFERROR(VLOOKUP($A49,FILTRO_!$A$5:$AW$2499,30,FALSE),0) -> 0 | AG49: =IFERROR(VLOOKUP($A49,FILTRO_!$A$5:$AW$2499,31,FALSE),0) -> 1 | AH49: =IFERROR(VLOOKUP($A49,FILTRO_!$A$5:$AW$2499,32,FALSE),0) -> 2 | AI49: =IFERROR(VLOOKUP($A49,FILTRO_!$A$5:$AW$2499,33,FALSE),0) -> 4 | AJ49: =IFERROR(VLOOKUP($A49,FILTRO_!$A$5:$AW$2499,34,FALSE),0) -> 3 | AK49: =IFERROR(VLOOKUP($A49,FILTRO_!$A$5:$AW$2499,35,FALSE),0) -> 0 | AL49: =IFERROR(VLOOKUP($A49,FILTRO_!$A$5:$AW$2499,36,FALSE),0) -> 8 | AM49: =IFERROR(VLOOKUP($A49,FILTRO_!$A$5:$AW$2499,37,FALSE),0) -> 2 | AN49: =IFERROR(VLOOKUP($A49,FILTRO_!$A$5:$AW$2499,38,FALSE),0) -> 5 | AO49: =IFERROR(VLOOKUP($A49,FILTRO_!$A$5:$AW$2499,39,FALSE),0) -> 0 | AP49: =IFERROR(VLOOKUP($A49,FILTRO_!$A$5:$AW$2499,40,FALSE),0) -> 0 | DB49: 0 | DC49: 0 | DD49: 0 | DE49: 0
A50: 01030200B | C50: ENFERMERA/O | D50: 772 | E50: =IFERROR(VLOOKUP($A50,FILTRO_!$A$5:$AW$2499,3,FALSE),0) -> 301 | F50: =IFERROR(VLOOKUP($A50,FILTRO_!$A$5:$AW$2499,4,FALSE),0) -> 471 | G50: =IFERROR(VLOOKUP($A50,FILTRO_!$A$5:$AW$2499,5,FALSE),0) -> 0 | H50: =IFERROR(VLOOKUP($A50,FILTRO_!$A$5:$AW$2499,6,FALSE),0) -> 0 | I50: =IFERROR(VLOOKUP($A50,FILTRO_!$A$5:$AW$2499,7,FALSE),0) -> 0 | J50: =IFERROR(VLOOKUP($A50,FILTRO_!$A$5:$AW$2499,8,FALSE),0) -> 0 | K50: =IFERROR(VLOOKUP($A50,FILTRO_!$A$5:$AW$2499,9,FALSE),0) -> 0 | L50: =IFERROR(VLOOKUP($A50,FILTRO_!$A$5:$AW$2499,10,FALSE),0) -> 0 | M50: =IFERROR(VLOOKUP($A50,FILTRO_!$A$5:$AW$2499,11,FALSE),0) -> 0 | N50: =IFERROR(VLOOKUP($A50,FILTRO_!$A$5:$AW$2499,12,FALSE),0) -> 0 | O50: =IFERROR(VLOOKUP($A50,FILTRO_!$A$5:$AW$2499,13,FALSE),0) -> 0 | P50: =IFERROR(VLOOKUP($A50,FILTRO_!$A$5:$AW$2499,14,FALSE),0) -> 0 | Q50: =IFERROR(VLOOKUP($A50,FILTRO_!$A$5:$AW$2499,15,FALSE),0) -> 0 | R50: =IFERROR(VLOOKUP($A50,FILTRO_!$A$5:$AW$2499,16,FALSE),0) -> 0 | S50: =IFERROR(VLOOKUP($A50,FILTRO_!$A$5:$AW$2499,17,FALSE),0) -> 0 | T50: =IFERROR(VLOOKUP($A50,FILTRO_!$A$5:$AW$2499,18,FALSE),0) -> 0 | U50: =IFERROR(VLOOKUP($A50,FILTRO_!$A$5:$AW$2499,19,FALSE),0) -> 0 | V50: =IFERROR(VLOOKUP($A50,FILTRO_!$A$5:$AW$2499,20,FALSE),0) -> 0 | W50: =IFERROR(VLOOKUP($A50,FILTRO_!$A$5:$AW$2499,21,FALSE),0) -> 0 | X50: =IFERROR(VLOOKUP($A50,FILTRO_!$A$5:$AW$2499,22,FALSE),0) -> 0 | Y50: =IFERROR(VLOOKUP($A50,FILTRO_!$A$5:$AW$2499,23,FALSE),0) -> 0 | Z50: =IFERROR(VLOOKUP($A50,FILTRO_!$A$5:$AW$2499,24,FALSE),0) -> 0 | AA50: =IFERROR(VLOOKUP($A50,FILTRO_!$A$5:$AW$2499,25,FALSE),0) -> 0 | AB50: =IFERROR(VLOOKUP($A50,FILTRO_!$A$5:$AW$2499,26,FALSE),0) -> 0 | AC50: =IFERROR(VLOOKUP($A50,FILTRO_!$A$5:$AW$2499,27,FALSE),0) -> 0 | AD50: =IFERROR(VLOOKUP($A50,FILTRO_!$A$5:$AW$2499,28,FALSE),0) -> 0 | AE50: =IFERROR(VLOOKUP($A50,FILTRO_!$A$5:$AW$2499,29,FALSE),0) -> 0 | AF50: =IFERROR(VLOOKUP($A50,FILTRO_!$A$5:$AW$2499,30,FALSE),0) -> 0 | AG50: =IFERROR(VLOOKUP($A50,FILTRO_!$A$5:$AW$2499,31,FALSE),0) -> 55 | AH50: =IFERROR(VLOOKUP($A50,FILTRO_!$A$5:$AW$2499,32,FALSE),0) -> 103 | AI50: =IFERROR(VLOOKUP($A50,FILTRO_!$A$5:$AW$2499,33,FALSE),0) -> 89 | AJ50: =IFERROR(VLOOKUP($A50,FILTRO_!$A$5:$AW$2499,34,FALSE),0) -> 139 | AK50: =IFERROR(VLOOKUP($A50,FILTRO_!$A$5:$AW$2499,35,FALSE),0) -> 74 | AL50: =IFERROR(VLOOKUP($A50,FILTRO_!$A$5:$AW$2499,36,FALSE),0) -> 111 | AM50: =IFERROR(VLOOKUP($A50,FILTRO_!$A$5:$AW$2499,37,FALSE),0) -> 83 | AN50: =IFERROR(VLOOKUP($A50,FILTRO_!$A$5:$AW$2499,38,FALSE),0) -> 118 | AO50: =IFERROR(VLOOKUP($A50,FILTRO_!$A$5:$AW$2499,39,FALSE),0) -> 1 | AP50: =IFERROR(VLOOKUP($A50,FILTRO_!$A$5:$AW$2499,40,FALSE),0) -> 0 | DB50: 0 | DC50: 0 | DD50: 0 | DE50: 0
A51: 09600204 | C51: OTROS PROFESIONALES DEBIDAMENTE CAPACITADOS | D51: 67 | E51: =IFERROR(VLOOKUP($A51,FILTRO_!$A$5:$AW$2499,3,FALSE),0) -> 23 | F51: =IFERROR(VLOOKUP($A51,FILTRO_!$A$5:$AW$2499,4,FALSE),0) -> 44 | G51: =IFERROR(VLOOKUP($A51,FILTRO_!$A$5:$AW$2499,5,FALSE),0) -> 0 | H51: =IFERROR(VLOOKUP($A51,FILTRO_!$A$5:$AW$2499,6,FALSE),0) -> 0 | I51: =IFERROR(VLOOKUP($A51,FILTRO_!$A$5:$AW$2499,7,FALSE),0) -> 0 | J51: =IFERROR(VLOOKUP($A51,FILTRO_!$A$5:$AW$2499,8,FALSE),0) -> 0 | K51: =IFERROR(VLOOKUP($A51,FILTRO_!$A$5:$AW$2499,9,FALSE),0) -> 0 | L51: =IFERROR(VLOOKUP($A51,FILTRO_!$A$5:$AW$2499,10,FALSE),0) -> 0 | M51: =IFERROR(VLOOKUP($A51,FILTRO_!$A$5:$AW$2499,11,FALSE),0) -> 0 | N51: =IFERROR(VLOOKUP($A51,FILTRO_!$A$5:$AW$2499,12,FALSE),0) -> 0 | O51: =IFERROR(VLOOKUP($A51,FILTRO_!$A$5:$AW$2499,13,FALSE),0) -> 0 | P51: =IFERROR(VLOOKUP($A51,FILTRO_!$A$5:$AW$2499,14,FALSE),0) -> 0 | Q51: =IFERROR(VLOOKUP($A51,FILTRO_!$A$5:$AW$2499,15,FALSE),0) -> 0 | R51: =IFERROR(VLOOKUP($A51,FILTRO_!$A$5:$AW$2499,16,FALSE),0) -> 0 | S51: =IFERROR(VLOOKUP($A51,FILTRO_!$A$5:$AW$2499,17,FALSE),0) -> 0 | T51: =IFERROR(VLOOKUP($A51,FILTRO_!$A$5:$AW$2499,18,FALSE),0) -> 0 | U51: =IFERROR(VLOOKUP($A51,FILTRO_!$A$5:$AW$2499,19,FALSE),0) -> 0 | V51: =IFERROR(VLOOKUP($A51,FILTRO_!$A$5:$AW$2499,20,FALSE),0) -> 0 | W51: =IFERROR(VLOOKUP($A51,FILTRO_!$A$5:$AW$2499,21,FALSE),0) -> 0 | X51: =IFERROR(VLOOKUP($A51,FILTRO_!$A$5:$AW$2499,22,FALSE),0) -> 0 | Y51: =IFERROR(VLOOKUP($A51,FILTRO_!$A$5:$AW$2499,23,FALSE),0) -> 0 | Z51: =IFERROR(VLOOKUP($A51,FILTRO_!$A$5:$AW$2499,24,FALSE),0) -> 0 | AA51: =IFERROR(VLOOKUP($A51,FILTRO_!$A$5:$AW$2499,25,FALSE),0) -> 0 | AB51: =IFERROR(VLOOKUP($A51,FILTRO_!$A$5:$AW$2499,26,FALSE),0) -> 0 | AC51: =IFERROR(VLOOKUP($A51,FILTRO_!$A$5:$AW$2499,27,FALSE),0) -> 0 | AD51: =IFERROR(VLOOKUP($A51,FILTRO_!$A$5:$AW$2499,28,FALSE),0) -> 0 | AE51: =IFERROR(VLOOKUP($A51,FILTRO_!$A$5:$AW$2499,29,FALSE),0) -> 0 | AF51: =IFERROR(VLOOKUP($A51,FILTRO_!$A$5:$AW$2499,30,FALSE),0) -> 0 | AG51: =IFERROR(VLOOKUP($A51,FILTRO_!$A$5:$AW$2499,31,FALSE),0) -> 5 | AH51: =IFERROR(VLOOKUP($A51,FILTRO_!$A$5:$AW$2499,32,FALSE),0) -> 11 | AI51: =IFERROR(VLOOKUP($A51,FILTRO_!$A$5:$AW$2499,33,FALSE),0) -> 6 | AJ51: =IFERROR(VLOOKUP($A51,FILTRO_!$A$5:$AW$2499,34,FALSE),0) -> 20 | AK51: =IFERROR(VLOOKUP($A51,FILTRO_!$A$5:$AW$2499,35,FALSE),0) -> 6 | AL51: =IFERROR(VLOOKUP($A51,FILTRO_!$A$5:$AW$2499,36,FALSE),0) -> 6 | AM51: =IFERROR(VLOOKUP($A51,FILTRO_!$A$5:$AW$2499,37,FALSE),0) -> 6 | AN51: =IFERROR(VLOOKUP($A51,FILTRO_!$A$5:$AW$2499,38,FALSE),0) -> 7 | AO51: =IFERROR(VLOOKUP($A51,FILTRO_!$A$5:$AW$2499,39,FALSE),0) -> 0 | AP51: =IFERROR(VLOOKUP($A51,FILTRO_!$A$5:$AW$2499,40,FALSE),0) -> 0 | DB51: 0 | DC51: 0 | DD51: 0 | DE51: 0
A52: 01030300C | B52: SEGUIMIENTO RIESGO DEPENDENCIA | C52: MÉDICO/A | D52: 17 | E52: =IFERROR(VLOOKUP($A52,FILTRO_!$A$5:$AW$2499,3,FALSE),0) -> 11 | F52: =IFERROR(VLOOKUP($A52,FILTRO_!$A$5:$AW$2499,4,FALSE),0) -> 6 | G52: =IFERROR(VLOOKUP($A52,FILTRO_!$A$5:$AW$2499,5,FALSE),0) -> 0 | H52: =IFERROR(VLOOKUP($A52,FILTRO_!$A$5:$AW$2499,6,FALSE),0) -> 0 | I52: =IFERROR(VLOOKUP($A52,FILTRO_!$A$5:$AW$2499,7,FALSE),0) -> 0 | J52: =IFERROR(VLOOKUP($A52,FILTRO_!$A$5:$AW$2499,8,FALSE),0) -> 0 | K52: =IFERROR(VLOOKUP($A52,FILTRO_!$A$5:$AW$2499,9,FALSE),0) -> 0 | L52: =IFERROR(VLOOKUP($A52,FILTRO_!$A$5:$AW$2499,10,FALSE),0) -> 0 | M52: =IFERROR(VLOOKUP($A52,FILTRO_!$A$5:$AW$2499,11,FALSE),0) -> 0 | N52: =IFERROR(VLOOKUP($A52,FILTRO_!$A$5:$AW$2499,12,FALSE),0) -> 0 | O52: =IFERROR(VLOOKUP($A52,FILTRO_!$A$5:$AW$2499,13,FALSE),0) -> 0 | P52: =IFERROR(VLOOKUP($A52,FILTRO_!$A$5:$AW$2499,14,FALSE),0) -> 0 | Q52: =IFERROR(VLOOKUP($A52,FILTRO_!$A$5:$AW$2499,15,FALSE),0) -> 0 | R52: =IFERROR(VLOOKUP($A52,FILTRO_!$A$5:$AW$2499,16,FALSE),0) -> 0 | S52: =IFERROR(VLOOKUP($A52,FILTRO_!$A$5:$AW$2499,17,FALSE),0) -> 0 | T52: =IFERROR(VLOOKUP($A52,FILTRO_!$A$5:$AW$2499,18,FALSE),0) -> 0 | U52: =IFERROR(VLOOKUP($A52,FILTRO_!$A$5:$AW$2499,19,FALSE),0) -> 0 | V52: =IFERROR(VLOOKUP($A52,FILTRO_!$A$5:$AW$2499,20,FALSE),0) -> 0 | W52: =IFERROR(VLOOKUP($A52,FILTRO_!$A$5:$AW$2499,21,FALSE),0) -> 0 | X52: =IFERROR(VLOOKUP($A52,FILTRO_!$A$5:$AW$2499,22,FALSE),0) -> 0 | Y52: =IFERROR(VLOOKUP($A52,FILTRO_!$A$5:$AW$2499,23,FALSE),0) -> 0 | Z52: =IFERROR(VLOOKUP($A52,FILTRO_!$A$5:$AW$2499,24,FALSE),0) -> 0 | AA52: =IFERROR(VLOOKUP($A52,FILTRO_!$A$5:$AW$2499,25,FALSE),0) -> 0 | AB52: =IFERROR(VLOOKUP($A52,FILTRO_!$A$5:$AW$2499,26,FALSE),0) -> 0 | AC52: =IFERROR(VLOOKUP($A52,FILTRO_!$A$5:$AW$2499,27,FALSE),0) -> 0 | AD52: =IFERROR(VLOOKUP($A52,FILTRO_!$A$5:$AW$2499,28,FALSE),0) -> 0 | AE52: =IFERROR(VLOOKUP($A52,FILTRO_!$A$5:$AW$2499,29,FALSE),0) -> 0 | AF52: =IFERROR(VLOOKUP($A52,FILTRO_!$A$5:$AW$2499,30,FALSE),0) -> 0 | AG52: =IFERROR(VLOOKUP($A52,FILTRO_!$A$5:$AW$2499,31,FALSE),0) -> 1 | AH52: =IFERROR(VLOOKUP($A52,FILTRO_!$A$5:$AW$2499,32,FALSE),0) -> 2 | AI52: =IFERROR(VLOOKUP($A52,FILTRO_!$A$5:$AW$2499,33,FALSE),0) -> 3 | AJ52: =IFERROR(VLOOKUP($A52,FILTRO_!$A$5:$AW$2499,34,FALSE),0) -> 2 | AK52: =IFERROR(VLOOKUP($A52,FILTRO_!$A$5:$AW$2499,35,FALSE),0) -> 4 | AL52: =IFERROR(VLOOKUP($A52,FILTRO_!$A$5:$AW$2499,36,FALSE),0) -> 1 | AM52: =IFERROR(VLOOKUP($A52,FILTRO_!$A$5:$AW$2499,37,FALSE),0) -> 3 | AN52: =IFERROR(VLOOKUP($A52,FILTRO_!$A$5:$AW$2499,38,FALSE),0) -> 1 | AO52: =IFERROR(VLOOKUP($A52,FILTRO_!$A$5:$AW$2499,39,FALSE),0) -> 1 | AP52: =IFERROR(VLOOKUP($A52,FILTRO_!$A$5:$AW$2499,40,FALSE),0) -> 0 | DB52: 0 | DC52: 0 | DD52: 0 | DE52: 0
A53: 01030400D | C53: ENFERMERA/O | D53: 359 | E53: =IFERROR(VLOOKUP($A53,FILTRO_!$A$5:$AW$2499,3,FALSE),0) -> 130 | F53: =IFERROR(VLOOKUP($A53,FILTRO_!$A$5:$AW$2499,4,FALSE),0) -> 229 | G53: =IFERROR(VLOOKUP($A53,FILTRO_!$A$5:$AW$2499,5,FALSE),0) -> 0 | H53: =IFERROR(VLOOKUP($A53,FILTRO_!$A$5:$AW$2499,6,FALSE),0) -> 0 | I53: =IFERROR(VLOOKUP($A53,FILTRO_!$A$5:$AW$2499,7,FALSE),0) -> 0 | J53: =IFERROR(VLOOKUP($A53,FILTRO_!$A$5:$AW$2499,8,FALSE),0) -> 0 | K53: =IFERROR(VLOOKUP($A53,FILTRO_!$A$5:$AW$2499,9,FALSE),0) -> 0 | L53: =IFERROR(VLOOKUP($A53,FILTRO_!$A$5:$AW$2499,10,FALSE),0) -> 0 | M53: =IFERROR(VLOOKUP($A53,FILTRO_!$A$5:$AW$2499,11,FALSE),0) -> 0 | N53: =IFERROR(VLOOKUP($A53,FILTRO_!$A$5:$AW$2499,12,FALSE),0) -> 0 | O53: =IFERROR(VLOOKUP($A53,FILTRO_!$A$5:$AW$2499,13,FALSE),0) -> 0 | P53: =IFERROR(VLOOKUP($A53,FILTRO_!$A$5:$AW$2499,14,FALSE),0) -> 0 | Q53: =IFERROR(VLOOKUP($A53,FILTRO_!$A$5:$AW$2499,15,FALSE),0) -> 0 | R53: =IFERROR(VLOOKUP($A53,FILTRO_!$A$5:$AW$2499,16,FALSE),0) -> 0 | S53: =IFERROR(VLOOKUP($A53,FILTRO_!$A$5:$AW$2499,17,FALSE),0) -> 0 | T53: =IFERROR(VLOOKUP($A53,FILTRO_!$A$5:$AW$2499,18,FALSE),0) -> 0 | U53: =IFERROR(VLOOKUP($A53,FILTRO_!$A$5:$AW$2499,19,FALSE),0) -> 0 | V53: =IFERROR(VLOOKUP($A53,FILTRO_!$A$5:$AW$2499,20,FALSE),0) -> 0 | W53: =IFERROR(VLOOKUP($A53,FILTRO_!$A$5:$AW$2499,21,FALSE),0) -> 0 | X53: =IFERROR(VLOOKUP($A53,FILTRO_!$A$5:$AW$2499,22,FALSE),0) -> 0 | Y53: =IFERROR(VLOOKUP($A53,FILTRO_!$A$5:$AW$2499,23,FALSE),0) -> 0 | Z53: =IFERROR(VLOOKUP($A53,FILTRO_!$A$5:$AW$2499,24,FALSE),0) -> 0 | AA53: =IFERROR(VLOOKUP($A53,FILTRO_!$A$5:$AW$2499,25,FALSE),0) -> 0 | AB53: =IFERROR(VLOOKUP($A53,FILTRO_!$A$5:$AW$2499,26,FALSE),0) -> 0 | AC53: =IFERROR(VLOOKUP($A53,FILTRO_!$A$5:$AW$2499,27,FALSE),0) -> 0 | AD53: =IFERROR(VLOOKUP($A53,FILTRO_!$A$5:$AW$2499,28,FALSE),0) -> 0 | AE53: =IFERROR(VLOOKUP($A53,FILTRO_!$A$5:$AW$2499,29,FALSE),0) -> 0 | AF53: =IFERROR(VLOOKUP($A53,FILTRO_!$A$5:$AW$2499,30,FALSE),0) -> 0 | AG53: =IFERROR(VLOOKUP($A53,FILTRO_!$A$5:$AW$2499,31,FALSE),0) -> 12 | AH53: =IFERROR(VLOOKUP($A53,FILTRO_!$A$5:$AW$2499,32,FALSE),0) -> 20 | AI53: =IFERROR(VLOOKUP($A53,FILTRO_!$A$5:$AW$2499,33,FALSE),0) -> 28 | AJ53: =IFERROR(VLOOKUP($A53,FILTRO_!$A$5:$AW$2499,34,FALSE),0) -> 58 | AK53: =IFERROR(VLOOKUP($A53,FILTRO_!$A$5:$AW$2499,35,FALSE),0) -> 28 | AL53: =IFERROR(VLOOKUP($A53,FILTRO_!$A$5:$AW$2499,36,FALSE),0) -> 51 | AM53: =IFERROR(VLOOKUP($A53,FILTRO_!$A$5:$AW$2499,37,FALSE),0) -> 62 | AN53: =IFERROR(VLOOKUP($A53,FILTRO_!$A$5:$AW$2499,38,FALSE),0) -> 100 | AO53: =IFERROR(VLOOKUP($A53,FILTRO_!$A$5:$AW$2499,39,FALSE),0) -> 5 | AP53: =IFERROR(VLOOKUP($A53,FILTRO_!$A$5:$AW$2499,40,FALSE),0) -> 0 | DB53: 0 | DC53: 0 | DD53: 0 | DE53: 0
A54: 09600205 | C54: OTROS PROFESIONALES DEBIDAMENTE CAPACITADOS | D54: 39 | E54: =IFERROR(VLOOKUP($A54,FILTRO_!$A$5:$AW$2499,3,FALSE),0) -> 15 | F54: =IFERROR(VLOOKUP($A54,FILTRO_!$A$5:$AW$2499,4,FALSE),0) -> 24 | G54: =IFERROR(VLOOKUP($A54,FILTRO_!$A$5:$AW$2499,5,FALSE),0) -> 0 | H54: =IFERROR(VLOOKUP($A54,FILTRO_!$A$5:$AW$2499,6,FALSE),0) -> 0 | I54: =IFERROR(VLOOKUP($A54,FILTRO_!$A$5:$AW$2499,7,FALSE),0) -> 0 | J54: =IFERROR(VLOOKUP($A54,FILTRO_!$A$5:$AW$2499,8,FALSE),0) -> 0 | K54: =IFERROR(VLOOKUP($A54,FILTRO_!$A$5:$AW$2499,9,FALSE),0) -> 0 | L54: =IFERROR(VLOOKUP($A54,FILTRO_!$A$5:$AW$2499,10,FALSE),0) -> 0 | M54: =IFERROR(VLOOKUP($A54,FILTRO_!$A$5:$AW$2499,11,FALSE),0) -> 0 | N54: =IFERROR(VLOOKUP($A54,FILTRO_!$A$5:$AW$2499,12,FALSE),0) -> 0 | O54: =IFERROR(VLOOKUP($A54,FILTRO_!$A$5:$AW$2499,13,FALSE),0) -> 0 | P54: =IFERROR(VLOOKUP($A54,FILTRO_!$A$5:$AW$2499,14,FALSE),0) -> 0 | Q54: =IFERROR(VLOOKUP($A54,FILTRO_!$A$5:$AW$2499,15,FALSE),0) -> 0 | R54: =IFERROR(VLOOKUP($A54,FILTRO_!$A$5:$AW$2499,16,FALSE),0) -> 0 | S54: =IFERROR(VLOOKUP($A54,FILTRO_!$A$5:$AW$2499,17,FALSE),0) -> 0 | T54: =IFERROR(VLOOKUP($A54,FILTRO_!$A$5:$AW$2499,18,FALSE),0) -> 0 | U54: =IFERROR(VLOOKUP($A54,FILTRO_!$A$5:$AW$2499,19,FALSE),0) -> 0 | V54: =IFERROR(VLOOKUP($A54,FILTRO_!$A$5:$AW$2499,20,FALSE),0) -> 0 | W54: =IFERROR(VLOOKUP($A54,FILTRO_!$A$5:$AW$2499,21,FALSE),0) -> 0 | X54: =IFERROR(VLOOKUP($A54,FILTRO_!$A$5:$AW$2499,22,FALSE),0) -> 0 | Y54: =IFERROR(VLOOKUP($A54,FILTRO_!$A$5:$AW$2499,23,FALSE),0) -> 0 | Z54: =IFERROR(VLOOKUP($A54,FILTRO_!$A$5:$AW$2499,24,FALSE),0) -> 0 | AA54: =IFERROR(VLOOKUP($A54,FILTRO_!$A$5:$AW$2499,25,FALSE),0) -> 0 | AB54: =IFERROR(VLOOKUP($A54,FILTRO_!$A$5:$AW$2499,26,FALSE),0) -> 0 | AC54: =IFERROR(VLOOKUP($A54,FILTRO_!$A$5:$AW$2499,27,FALSE),0) -> 0 | AD54: =IFERROR(VLOOKUP($A54,FILTRO_!$A$5:$AW$2499,28,FALSE),0) -> 0 | AE54: =IFERROR(VLOOKUP($A54,FILTRO_!$A$5:$AW$2499,29,FALSE),0) -> 0 | AF54: =IFERROR(VLOOKUP($A54,FILTRO_!$A$5:$AW$2499,30,FALSE),0) -> 0 | AG54: =IFERROR(VLOOKUP($A54,FILTRO_!$A$5:$AW$2499,31,FALSE),0) -> 2 | AH54: =IFERROR(VLOOKUP($A54,FILTRO_!$A$5:$AW$2499,32,FALSE),0) -> 3 | AI54: =IFERROR(VLOOKUP($A54,FILTRO_!$A$5:$AW$2499,33,FALSE),0) -> 3 | AJ54: =IFERROR(VLOOKUP($A54,FILTRO_!$A$5:$AW$2499,34,FALSE),0) -> 7 | AK54: =IFERROR(VLOOKUP($A54,FILTRO_!$A$5:$AW$2499,35,FALSE),0) -> 5 | AL54: =IFERROR(VLOOKUP($A54,FILTRO_!$A$5:$AW$2499,36,FALSE),0) -> 6 | AM54: =IFERROR(VLOOKUP($A54,FILTRO_!$A$5:$AW$2499,37,FALSE),0) -> 5 | AN54: =IFERROR(VLOOKUP($A54,FILTRO_!$A$5:$AW$2499,38,FALSE),0) -> 8 | AO54: =IFERROR(VLOOKUP($A54,FILTRO_!$A$5:$AW$2499,39,FALSE),0) -> 0 | AP54: =IFERROR(VLOOKUP($A54,FILTRO_!$A$5:$AW$2499,40,FALSE),0) -> 0 | DB54: 0 | DC54: 0 | DD54: 0 | DE54: 0
A55: 01200010 | B55: DE INFECCIÓN TRANSMISIÓN SEXUAL | C55: MÉDICO/A | D55: 38 | E55: =IFERROR(VLOOKUP($A55,FILTRO_!$A$5:$AW$2499,3,FALSE),0) -> 13 | F55: =IFERROR(VLOOKUP($A55,FILTRO_!$A$5:$AW$2499,4,FALSE),0) -> 25 | G55: =IFERROR(VLOOKUP($A55,FILTRO_!$A$5:$AW$2499,5,FALSE),0) -> 0 | H55: =IFERROR(VLOOKUP($A55,FILTRO_!$A$5:$AW$2499,6,FALSE),0) -> 0 | I55: =IFERROR(VLOOKUP($A55,FILTRO_!$A$5:$AW$2499,7,FALSE),0) -> 0 | J55: =IFERROR(VLOOKUP($A55,FILTRO_!$A$5:$AW$2499,8,FALSE),0) -> 0 | K55: =IFERROR(VLOOKUP($A55,FILTRO_!$A$5:$AW$2499,9,FALSE),0) -> 0 | L55: =IFERROR(VLOOKUP($A55,FILTRO_!$A$5:$AW$2499,10,FALSE),0) -> 0 | M55: =IFERROR(VLOOKUP($A55,FILTRO_!$A$5:$AW$2499,11,FALSE),0) -> 1 | N55: =IFERROR(VLOOKUP($A55,FILTRO_!$A$5:$AW$2499,12,FALSE),0) -> 1 | O55: =IFERROR(VLOOKUP($A55,FILTRO_!$A$5:$AW$2499,13,FALSE),0) -> 1 | P55: =IFERROR(VLOOKUP($A55,FILTRO_!$A$5:$AW$2499,14,FALSE),0) -> 1 | Q55: =IFERROR(VLOOKUP($A55,FILTRO_!$A$5:$AW$2499,15,FALSE),0) -> 1 | R55: =IFERROR(VLOOKUP($A55,FILTRO_!$A$5:$AW$2499,16,FALSE),0) -> 0 | S55: =IFERROR(VLOOKUP($A55,FILTRO_!$A$5:$AW$2499,17,FALSE),0) -> 1 | T55: =IFERROR(VLOOKUP($A55,FILTRO_!$A$5:$AW$2499,18,FALSE),0) -> 0 | U55: =IFERROR(VLOOKUP($A55,FILTRO_!$A$5:$AW$2499,19,FALSE),0) -> 1 | V55: =IFERROR(VLOOKUP($A55,FILTRO_!$A$5:$AW$2499,20,FALSE),0) -> 0 | W55: =IFERROR(VLOOKUP($A55,FILTRO_!$A$5:$AW$2499,21,FALSE),0) -> 0 | X55: =IFERROR(VLOOKUP($A55,FILTRO_!$A$5:$AW$2499,22,FALSE),0) -> 0 | Y55: =IFERROR(VLOOKUP($A55,FILTRO_!$A$5:$AW$2499,23,FALSE),0) -> 0 | Z55: =IFERROR(VLOOKUP($A55,FILTRO_!$A$5:$AW$2499,24,FALSE),0) -> 1 | AA55: =IFERROR(VLOOKUP($A55,FILTRO_!$A$5:$AW$2499,25,FALSE),0) -> 0 | AB55: =IFERROR(VLOOKUP($A55,FILTRO_!$A$5:$AW$2499,26,FALSE),0) -> 2 | AC55: =IFERROR(VLOOKUP($A55,FILTRO_!$A$5:$AW$2499,27,FALSE),0) -> 0 | AD55: =IFERROR(VLOOKUP($A55,FILTRO_!$A$5:$AW$2499,28,FALSE),0) -> 3 | AE55: =IFERROR(VLOOKUP($A55,FILTRO_!$A$5:$AW$2499,29,FALSE),0) -> 0 | AF55: =IFERROR(VLOOKUP($A55,FILTRO_!$A$5:$AW$2499,30,FALSE),0) -> 6 | AG55: =IFERROR(VLOOKUP($A55,FILTRO_!$A$5:$AW$2499,31,FALSE),0) -> 2 | AH55: =IFERROR(VLOOKUP($A55,FILTRO_!$A$5:$AW$2499,32,FALSE),0) -> 3 | AI55: =IFERROR(VLOOKUP($A55,FILTRO_!$A$5:$AW$2499,33,FALSE),0) -> 4 | AJ55: =IFERROR(VLOOKUP($A55,FILTRO_!$A$5:$AW$2499,34,FALSE),0) -> 3 | AK55: =IFERROR(VLOOKUP($A55,FILTRO_!$A$5:$AW$2499,35,FALSE),0) -> 1 | AL55: =IFERROR(VLOOKUP($A55,FILTRO_!$A$5:$AW$2499,36,FALSE),0) -> 2 | AM55: =IFERROR(VLOOKUP($A55,FILTRO_!$A$5:$AW$2499,37,FALSE),0) -> 1 | AN55: =IFERROR(VLOOKUP($A55,FILTRO_!$A$5:$AW$2499,38,FALSE),0) -> 3 | AO55: =IFERROR(VLOOKUP($A55,FILTRO_!$A$5:$AW$2499,39,FALSE),0) -> 0 | AP55: =IFERROR(VLOOKUP($A55,FILTRO_!$A$5:$AW$2499,40,FALSE),0) -> 0 | DB55: 0 | DC55: 0 | DD55: 0 | DE55: 0
A56: 01200020 | C56: ENFERMERA/O | D56: 54 | E56: =IFERROR(VLOOKUP($A56,FILTRO_!$A$5:$AW$2499,3,FALSE),0) -> 14 | F56: =IFERROR(VLOOKUP($A56,FILTRO_!$A$5:$AW$2499,4,FALSE),0) -> 40 | G56: =IFERROR(VLOOKUP($A56,FILTRO_!$A$5:$AW$2499,5,FALSE),0) -> 0 | H56: =IFERROR(VLOOKUP($A56,FILTRO_!$A$5:$AW$2499,6,FALSE),0) -> 0 | I56: =IFERROR(VLOOKUP($A56,FILTRO_!$A$5:$AW$2499,7,FALSE),0) -> 2 | J56: =IFERROR(VLOOKUP($A56,FILTRO_!$A$5:$AW$2499,8,FALSE),0) -> 1 | K56: =IFERROR(VLOOKUP($A56,FILTRO_!$A$5:$AW$2499,9,FALSE),0) -> 0 | L56: =IFERROR(VLOOKUP($A56,FILTRO_!$A$5:$AW$2499,10,FALSE),0) -> 4 | M56: =IFERROR(VLOOKUP($A56,FILTRO_!$A$5:$AW$2499,11,FALSE),0) -> 0 | N56: =IFERROR(VLOOKUP($A56,FILTRO_!$A$5:$AW$2499,12,FALSE),0) -> 1 | O56: =IFERROR(VLOOKUP($A56,FILTRO_!$A$5:$AW$2499,13,FALSE),0) -> 0 | P56: =IFERROR(VLOOKUP($A56,FILTRO_!$A$5:$AW$2499,14,FALSE),0) -> 1 | Q56: =IFERROR(VLOOKUP($A56,FILTRO_!$A$5:$AW$2499,15,FALSE),0) -> 0 | R56: =IFERROR(VLOOKUP($A56,FILTRO_!$A$5:$AW$2499,16,FALSE),0) -> 1 | S56: =IFERROR(VLOOKUP($A56,FILTRO_!$A$5:$AW$2499,17,FALSE),0) -> 0 | T56: =IFERROR(VLOOKUP($A56,FILTRO_!$A$5:$AW$2499,18,FALSE),0) -> 3 | U56: =IFERROR(VLOOKUP($A56,FILTRO_!$A$5:$AW$2499,19,FALSE),0) -> 0 | V56: =IFERROR(VLOOKUP($A56,FILTRO_!$A$5:$AW$2499,20,FALSE),0) -> 6 | W56: =IFERROR(VLOOKUP($A56,FILTRO_!$A$5:$AW$2499,21,FALSE),0) -> 0 | X56: =IFERROR(VLOOKUP($A56,FILTRO_!$A$5:$AW$2499,22,FALSE),0) -> 5 | Y56: =IFERROR(VLOOKUP($A56,FILTRO_!$A$5:$AW$2499,23,FALSE),0) -> 0 | Z56: =IFERROR(VLOOKUP($A56,FILTRO_!$A$5:$AW$2499,24,FALSE),0) -> 1 | AA56: =IFERROR(VLOOKUP($A56,FILTRO_!$A$5:$AW$2499,25,FALSE),0) -> 0 | AB56: =IFERROR(VLOOKUP($A56,FILTRO_!$A$5:$AW$2499,26,FALSE),0) -> 4 | AC56: =IFERROR(VLOOKUP($A56,FILTRO_!$A$5:$AW$2499,27,FALSE),0) -> 2 | AD56: =IFERROR(VLOOKUP($A56,FILTRO_!$A$5:$AW$2499,28,FALSE),0) -> 1 | AE56: =IFERROR(VLOOKUP($A56,FILTRO_!$A$5:$AW$2499,29,FALSE),0) -> 5 | AF56: =IFERROR(VLOOKUP($A56,FILTRO_!$A$5:$AW$2499,30,FALSE),0) -> 3 | AG56: =IFERROR(VLOOKUP($A56,FILTRO_!$A$5:$AW$2499,31,FALSE),0) -> 1 | AH56: =IFERROR(VLOOKUP($A56,FILTRO_!$A$5:$AW$2499,32,FALSE),0) -> 2 | AI56: =IFERROR(VLOOKUP($A56,FILTRO_!$A$5:$AW$2499,33,FALSE),0) -> 1 | AJ56: =IFERROR(VLOOKUP($A56,FILTRO_!$A$5:$AW$2499,34,FALSE),0) -> 3 | AK56: =IFERROR(VLOOKUP($A56,FILTRO_!$A$5:$AW$2499,35,FALSE),0) -> 2 | AL56: =IFERROR(VLOOKUP($A56,FILTRO_!$A$5:$AW$2499,36,FALSE),0) -> 2 | AM56: =IFERROR(VLOOKUP($A56,FILTRO_!$A$5:$AW$2499,37,FALSE),0) -> 1 | AN56: =IFERROR(VLOOKUP($A56,FILTRO_!$A$5:$AW$2499,38,FALSE),0) -> 2 | AO56: =IFERROR(VLOOKUP($A56,FILTRO_!$A$5:$AW$2499,39,FALSE),0) -> 5 | AP56: =IFERROR(VLOOKUP($A56,FILTRO_!$A$5:$AW$2499,40,FALSE),0) -> 0 | DB56: 0 | DC56: 0 | DD56: 0 | DE56: 0
A57: 01200030 | C57: MATRONA/ÓN | D57: 155 | E57: =IFERROR(VLOOKUP($A57,FILTRO_!$A$5:$AW$2499,3,FALSE),0) -> 37 | F57: =IFERROR(VLOOKUP($A57,FILTRO_!$A$5:$AW$2499,4,FALSE),0) -> 118 | G57: =IFERROR(VLOOKUP($A57,FILTRO_!$A$5:$AW$2499,5,FALSE),0) -> 0 | H57: =IFERROR(VLOOKUP($A57,FILTRO_!$A$5:$AW$2499,6,FALSE),0) -> 1 | I57: =IFERROR(VLOOKUP($A57,FILTRO_!$A$5:$AW$2499,7,FALSE),0) -> 0 | J57: =IFERROR(VLOOKUP($A57,FILTRO_!$A$5:$AW$2499,8,FALSE),0) -> 0 | K57: =IFERROR(VLOOKUP($A57,FILTRO_!$A$5:$AW$2499,9,FALSE),0) -> 0 | L57: =IFERROR(VLOOKUP($A57,FILTRO_!$A$5:$AW$2499,10,FALSE),0) -> 0 | M57: =IFERROR(VLOOKUP($A57,FILTRO_!$A$5:$AW$2499,11,FALSE),0) -> 2 | N57: =IFERROR(VLOOKUP($A57,FILTRO_!$A$5:$AW$2499,12,FALSE),0) -> 2 | O57: =IFERROR(VLOOKUP($A57,FILTRO_!$A$5:$AW$2499,13,FALSE),0) -> 8 | P57: =IFERROR(VLOOKUP($A57,FILTRO_!$A$5:$AW$2499,14,FALSE),0) -> 36 | Q57: =IFERROR(VLOOKUP($A57,FILTRO_!$A$5:$AW$2499,15,FALSE),0) -> 3 | R57: =IFERROR(VLOOKUP($A57,FILTRO_!$A$5:$AW$2499,16,FALSE),0) -> 14 | S57: =IFERROR(VLOOKUP($A57,FILTRO_!$A$5:$AW$2499,17,FALSE),0) -> 7 | T57: =IFERROR(VLOOKUP($A57,FILTRO_!$A$5:$AW$2499,18,FALSE),0) -> 19 | U57: =IFERROR(VLOOKUP($A57,FILTRO_!$A$5:$AW$2499,19,FALSE),0) -> 6 | V57: =IFERROR(VLOOKUP($A57,FILTRO_!$A$5:$AW$2499,20,FALSE),0) -> 9 | W57: =IFERROR(VLOOKUP($A57,FILTRO_!$A$5:$AW$2499,21,FALSE),0) -> 6 | X57: =IFERROR(VLOOKUP($A57,FILTRO_!$A$5:$AW$2499,22,FALSE),0) -> 12 | Y57: =IFERROR(VLOOKUP($A57,FILTRO_!$A$5:$AW$2499,23,FALSE),0) -> 3 | Z57: =IFERROR(VLOOKUP($A57,FILTRO_!$A$5:$AW$2499,24,FALSE),0) -> 5 | AA57: =IFERROR(VLOOKUP($A57,FILTRO_!$A$5:$AW$2499,25,FALSE),0) -> 1 | AB57: =IFERROR(VLOOKUP($A57,FILTRO_!$A$5:$AW$2499,26,FALSE),0) -> 10 | AC57: =IFERROR(VLOOKUP($A57,FILTRO_!$A$5:$AW$2499,27,FALSE),0) -> 0 | AD57: =IFERROR(VLOOKUP($A57,FILTRO_!$A$5:$AW$2499,28,FALSE),0) -> 1 | AE57: =IFERROR(VLOOKUP($A57,FILTRO_!$A$5:$AW$2499,29,FALSE),0) -> 0 | AF57: =IFERROR(VLOOKUP($A57,FILTRO_!$A$5:$AW$2499,30,FALSE),0) -> 1 | AG57: =IFERROR(VLOOKUP($A57,FILTRO_!$A$5:$AW$2499,31,FALSE),0) -> 1 | AH57: =IFERROR(VLOOKUP($A57,FILTRO_!$A$5:$AW$2499,32,FALSE),0) -> 2 | AI57: =IFERROR(VLOOKUP($A57,FILTRO_!$A$5:$AW$2499,33,FALSE),0) -> 0 | AJ57: =IFERROR(VLOOKUP($A57,FILTRO_!$A$5:$AW$2499,34,FALSE),0) -> 1 | AK57: =IFERROR(VLOOKUP($A57,FILTRO_!$A$5:$AW$2499,35,FALSE),0) -> 0 | AL57: =IFERROR(VLOOKUP($A57,FILTRO_!$A$5:$AW$2499,36,FALSE),0) -> 4 | AM57: =IFERROR(VLOOKUP($A57,FILTRO_!$A$5:$AW$2499,37,FALSE),0) -> 0 | AN57: =IFERROR(VLOOKUP($A57,FILTRO_!$A$5:$AW$2499,38,FALSE),0) -> 1 | AO57: =IFERROR(VLOOKUP($A57,FILTRO_!$A$5:$AW$2499,39,FALSE),0) -> 1 | AP57: =IFERROR(VLOOKUP($A57,FILTRO_!$A$5:$AW$2499,40,FALSE),0) -> 9 | DB57: 0 | DC57: 0 | DD57: 0 | DE57: 0
A58: 03030140 | B58: OTROS PROBLEMAS DE SALUD | C58: MÉDICO/A | D58: 14914 | E58: =IFERROR(VLOOKUP($A58,FILTRO_!$A$5:$AW$2499,3,FALSE),0) -> 4453 | F58: =IFERROR(VLOOKUP($A58,FILTRO_!$A$5:$AW$2499,4,FALSE),0) -> 10461 | G58: =IFERROR(VLOOKUP($A58,FILTRO_!$A$5:$AW$2499,5,FALSE),0) -> 44 | H58: =IFERROR(VLOOKUP($A58,FILTRO_!$A$5:$AW$2499,6,FALSE),0) -> 44 | I58: =IFERROR(VLOOKUP($A58,FILTRO_!$A$5:$AW$2499,7,FALSE),0) -> 79 | J58: =IFERROR(VLOOKUP($A58,FILTRO_!$A$5:$AW$2499,8,FALSE),0) -> 47 | K58: =IFERROR(VLOOKUP($A58,FILTRO_!$A$5:$AW$2499,9,FALSE),0) -> 54 | L58: =IFERROR(VLOOKUP($A58,FILTRO_!$A$5:$AW$2499,10,FALSE),0) -> 57 | M58: =IFERROR(VLOOKUP($A58,FILTRO_!$A$5:$AW$2499,11,FALSE),0) -> 60 | N58: =IFERROR(VLOOKUP($A58,FILTRO_!$A$5:$AW$2499,12,FALSE),0) -> 132 | O58: =IFERROR(VLOOKUP($A58,FILTRO_!$A$5:$AW$2499,13,FALSE),0) -> 70 | P58: =IFERROR(VLOOKUP($A58,FILTRO_!$A$5:$AW$2499,14,FALSE),0) -> 174 | Q58: =IFERROR(VLOOKUP($A58,FILTRO_!$A$5:$AW$2499,15,FALSE),0) -> 66 | R58: =IFERROR(VLOOKUP($A58,FILTRO_!$A$5:$AW$2499,16,FALSE),0) -> 207 | S58: =IFERROR(VLOOKUP($A58,FILTRO_!$A$5:$AW$2499,17,FALSE),0) -> 73 | T58: =IFERROR(VLOOKUP($A58,FILTRO_!$A$5:$AW$2499,18,FALSE),0) -> 316 | U58: =IFERROR(VLOOKUP($A58,FILTRO_!$A$5:$AW$2499,19,FALSE),0) -> 104 | V58: =IFERROR(VLOOKUP($A58,FILTRO_!$A$5:$AW$2499,20,FALSE),0) -> 407 | W58: =IFERROR(VLOOKUP($A58,FILTRO_!$A$5:$AW$2499,21,FALSE),0) -> 118 | X58: =IFERROR(VLOOKUP($A58,FILTRO_!$A$5:$AW$2499,22,FALSE),0) -> 469 | Y58: =IFERROR(VLOOKUP($A58,FILTRO_!$A$5:$AW$2499,23,FALSE),0) -> 124 | Z58: =IFERROR(VLOOKUP($A58,FILTRO_!$A$5:$AW$2499,24,FALSE),0) -> 646 | AA58: =IFERROR(VLOOKUP($A58,FILTRO_!$A$5:$AW$2499,25,FALSE),0) -> 227 | AB58: =IFERROR(VLOOKUP($A58,FILTRO_!$A$5:$AW$2499,26,FALSE),0) -> 780 | AC58: =IFERROR(VLOOKUP($A58,FILTRO_!$A$5:$AW$2499,27,FALSE),0) -> 332 | AD58: =IFERROR(VLOOKUP($A58,FILTRO_!$A$5:$AW$2499,28,FALSE),0) -> 1147 | AE58: =IFERROR(VLOOKUP($A58,FILTRO_!$A$5:$AW$2499,29,FALSE),0) -> 523 | AF58: =IFERROR(VLOOKUP($A58,FILTRO_!$A$5:$AW$2499,30,FALSE),0) -> 1324 | AG58: =IFERROR(VLOOKUP($A58,FILTRO_!$A$5:$AW$2499,31,FALSE),0) -> 556 | AH58: =IFERROR(VLOOKUP($A58,FILTRO_!$A$5:$AW$2499,32,FALSE),0) -> 1258 | AI58: =IFERROR(VLOOKUP($A58,FILTRO_!$A$5:$AW$2499,33,FALSE),0) -> 627 | AJ58: =IFERROR(VLOOKUP($A58,FILTRO_!$A$5:$AW$2499,34,FALSE),0) -> 1159 | AK58: =IFERROR(VLOOKUP($A58,FILTRO_!$A$5:$AW$2499,35,FALSE),0) -> 548 | AL58: =IFERROR(VLOOKUP($A58,FILTRO_!$A$5:$AW$2499,36,FALSE),0) -> 988 | AM58: =IFERROR(VLOOKUP($A58,FILTRO_!$A$5:$AW$2499,37,FALSE),0) -> 848 | AN58: =IFERROR(VLOOKUP($A58,FILTRO_!$A$5:$AW$2499,38,FALSE),0) -> 1306 | AO58: =IFERROR(VLOOKUP($A58,FILTRO_!$A$5:$AW$2499,39,FALSE),0) -> 39 | AP58: =IFERROR(VLOOKUP($A58,FILTRO_!$A$5:$AW$2499,40,FALSE),0) -> 76 | DB58: 0 | DC58: 0 | DD58: 0 | DE58: 0
A59: 03030150 | C59: ENFERMERA/O | D59: 1082 | E59: =IFERROR(VLOOKUP($A59,FILTRO_!$A$5:$AW$2499,3,FALSE),0) -> 309 | F59: =IFERROR(VLOOKUP($A59,FILTRO_!$A$5:$AW$2499,4,FALSE),0) -> 773 | G59: =IFERROR(VLOOKUP($A59,FILTRO_!$A$5:$AW$2499,5,FALSE),0) -> 8 | H59: =IFERROR(VLOOKUP($A59,FILTRO_!$A$5:$AW$2499,6,FALSE),0) -> 2 | I59: =IFERROR(VLOOKUP($A59,FILTRO_!$A$5:$AW$2499,7,FALSE),0) -> 2 | J59: =IFERROR(VLOOKUP($A59,FILTRO_!$A$5:$AW$2499,8,FALSE),0) -> 0 | K59: =IFERROR(VLOOKUP($A59,FILTRO_!$A$5:$AW$2499,9,FALSE),0) -> 2 | L59: =IFERROR(VLOOKUP($A59,FILTRO_!$A$5:$AW$2499,10,FALSE),0) -> 4 | M59: =IFERROR(VLOOKUP($A59,FILTRO_!$A$5:$AW$2499,11,FALSE),0) -> 2 | N59: =IFERROR(VLOOKUP($A59,FILTRO_!$A$5:$AW$2499,12,FALSE),0) -> 5 | O59: =IFERROR(VLOOKUP($A59,FILTRO_!$A$5:$AW$2499,13,FALSE),0) -> 3 | P59: =IFERROR(VLOOKUP($A59,FILTRO_!$A$5:$AW$2499,14,FALSE),0) -> 19 | Q59: =IFERROR(VLOOKUP($A59,FILTRO_!$A$5:$AW$2499,15,FALSE),0) -> 4 | R59: =IFERROR(VLOOKUP($A59,FILTRO_!$A$5:$AW$2499,16,FALSE),0) -> 11 | S59: =IFERROR(VLOOKUP($A59,FILTRO_!$A$5:$AW$2499,17,FALSE),0) -> 1 | T59: =IFERROR(VLOOKUP($A59,FILTRO_!$A$5:$AW$2499,18,FALSE),0) -> 33 | U59: =IFERROR(VLOOKUP($A59,FILTRO_!$A$5:$AW$2499,19,FALSE),0) -> 7 | V59: =IFERROR(VLOOKUP($A59,FILTRO_!$A$5:$AW$2499,20,FALSE),0) -> 38 | W59: =IFERROR(VLOOKUP($A59,FILTRO_!$A$5:$AW$2499,21,FALSE),0) -> 11 | X59: =IFERROR(VLOOKUP($A59,FILTRO_!$A$5:$AW$2499,22,FALSE),0) -> 52 | Y59: =IFERROR(VLOOKUP($A59,FILTRO_!$A$5:$AW$2499,23,FALSE),0) -> 9 | Z59: =IFERROR(VLOOKUP($A59,FILTRO_!$A$5:$AW$2499,24,FALSE),0) -> 49 | AA59: =IFERROR(VLOOKUP($A59,FILTRO_!$A$5:$AW$2499,25,FALSE),0) -> 18 | AB59: =IFERROR(VLOOKUP($A59,FILTRO_!$A$5:$AW$2499,26,FALSE),0) -> 74 | AC59: =IFERROR(VLOOKUP($A59,FILTRO_!$A$5:$AW$2499,27,FALSE),0) -> 27 | AD59: =IFERROR(VLOOKUP($A59,FILTRO_!$A$5:$AW$2499,28,FALSE),0) -> 78 | AE59: =IFERROR(VLOOKUP($A59,FILTRO_!$A$5:$AW$2499,29,FALSE),0) -> 35 | AF59: =IFERROR(VLOOKUP($A59,FILTRO_!$A$5:$AW$2499,30,FALSE),0) -> 92 | AG59: =IFERROR(VLOOKUP($A59,FILTRO_!$A$5:$AW$2499,31,FALSE),0) -> 47 | AH59: =IFERROR(VLOOKUP($A59,FILTRO_!$A$5:$AW$2499,32,FALSE),0) -> 77 | AI59: =IFERROR(VLOOKUP($A59,FILTRO_!$A$5:$AW$2499,33,FALSE),0) -> 46 | AJ59: =IFERROR(VLOOKUP($A59,FILTRO_!$A$5:$AW$2499,34,FALSE),0) -> 80 | AK59: =IFERROR(VLOOKUP($A59,FILTRO_!$A$5:$AW$2499,35,FALSE),0) -> 29 | AL59: =IFERROR(VLOOKUP($A59,FILTRO_!$A$5:$AW$2499,36,FALSE),0) -> 66 | AM59: =IFERROR(VLOOKUP($A59,FILTRO_!$A$5:$AW$2499,37,FALSE),0) -> 58 | AN59: =IFERROR(VLOOKUP($A59,FILTRO_!$A$5:$AW$2499,38,FALSE),0) -> 93 | AO59: =IFERROR(VLOOKUP($A59,FILTRO_!$A$5:$AW$2499,39,FALSE),0) -> 2 | AP59: =IFERROR(VLOOKUP($A59,FILTRO_!$A$5:$AW$2499,40,FALSE),0) -> 5 | DB59: 0 | DD59: 0
A60: 03030170 | C60: MATRONA/ÓN | D60: 95 | E60: =IFERROR(VLOOKUP($A60,FILTRO_!$A$5:$AW$2499,3,FALSE),0) -> 2 | F60: =IFERROR(VLOOKUP($A60,FILTRO_!$A$5:$AW$2499,4,FALSE),0) -> 93 | G60: =IFERROR(VLOOKUP($A60,FILTRO_!$A$5:$AW$2499,5,FALSE),0) -> 1 | H60: =IFERROR(VLOOKUP($A60,FILTRO_!$A$5:$AW$2499,6,FALSE),0) -> 0 | I60: =IFERROR(VLOOKUP($A60,FILTRO_!$A$5:$AW$2499,7,FALSE),0) -> 0 | J60: =IFERROR(VLOOKUP($A60,FILTRO_!$A$5:$AW$2499,8,FALSE),0) -> 1 | K60: =IFERROR(VLOOKUP($A60,FILTRO_!$A$5:$AW$2499,9,FALSE),0) -> 0 | L60: =IFERROR(VLOOKUP($A60,FILTRO_!$A$5:$AW$2499,10,FALSE),0) -> 2 | M60: =IFERROR(VLOOKUP($A60,FILTRO_!$A$5:$AW$2499,11,FALSE),0) -> 0 | N60: =IFERROR(VLOOKUP($A60,FILTRO_!$A$5:$AW$2499,12,FALSE),0) -> 6 | O60: =IFERROR(VLOOKUP($A60,FILTRO_!$A$5:$AW$2499,13,FALSE),0) -> 0 | P60: =IFERROR(VLOOKUP($A60,FILTRO_!$A$5:$AW$2499,14,FALSE),0) -> 21 | Q60: =IFERROR(VLOOKUP($A60,FILTRO_!$A$5:$AW$2499,15,FALSE),0) -> 0 | R60: =IFERROR(VLOOKUP($A60,FILTRO_!$A$5:$AW$2499,16,FALSE),0) -> 6 | S60: =IFERROR(VLOOKUP($A60,FILTRO_!$A$5:$AW$2499,17,FALSE),0) -> 0 | T60: =IFERROR(VLOOKUP($A60,FILTRO_!$A$5:$AW$2499,18,FALSE),0) -> 15 | U60: =IFERROR(VLOOKUP($A60,FILTRO_!$A$5:$AW$2499,19,FALSE),0) -> 0 | V60: =IFERROR(VLOOKUP($A60,FILTRO_!$A$5:$AW$2499,20,FALSE),0) -> 12 | W60: =IFERROR(VLOOKUP($A60,FILTRO_!$A$5:$AW$2499,21,FALSE),0) -> 0 | X60: =IFERROR(VLOOKUP($A60,FILTRO_!$A$5:$AW$2499,22,FALSE),0) -> 3 | Y60: =IFERROR(VLOOKUP($A60,FILTRO_!$A$5:$AW$2499,23,FALSE),0) -> 0 | Z60: =IFERROR(VLOOKUP($A60,FILTRO_!$A$5:$AW$2499,24,FALSE),0) -> 2 | AA60: =IFERROR(VLOOKUP($A60,FILTRO_!$A$5:$AW$2499,25,FALSE),0) -> 0 | AB60: =IFERROR(VLOOKUP($A60,FILTRO_!$A$5:$AW$2499,26,FALSE),0) -> 6 | AC60: =IFERROR(VLOOKUP($A60,FILTRO_!$A$5:$AW$2499,27,FALSE),0) -> 0 | AD60: =IFERROR(VLOOKUP($A60,FILTRO_!$A$5:$AW$2499,28,FALSE),0) -> 8 | AE60: =IFERROR(VLOOKUP($A60,FILTRO_!$A$5:$AW$2499,29,FALSE),0) -> 0 | AF60: =IFERROR(VLOOKUP($A60,FILTRO_!$A$5:$AW$2499,30,FALSE),0) -> 4 | AG60: =IFERROR(VLOOKUP($A60,FILTRO_!$A$5:$AW$2499,31,FALSE),0) -> 0 | AH60: =IFERROR(VLOOKUP($A60,FILTRO_!$A$5:$AW$2499,32,FALSE),0) -> 2 | AI60: =IFERROR(VLOOKUP($A60,FILTRO_!$A$5:$AW$2499,33,FALSE),0) -> 0 | AJ60: =IFERROR(VLOOKUP($A60,FILTRO_!$A$5:$AW$2499,34,FALSE),0) -> 2 | AK60: =IFERROR(VLOOKUP($A60,FILTRO_!$A$5:$AW$2499,35,FALSE),0) -> 0 | AL60: =IFERROR(VLOOKUP($A60,FILTRO_!$A$5:$AW$2499,36,FALSE),0) -> 0 | AM60: =IFERROR(VLOOKUP($A60,FILTRO_!$A$5:$AW$2499,37,FALSE),0) -> 1 | AN60: =IFERROR(VLOOKUP($A60,FILTRO_!$A$5:$AW$2499,38,FALSE),0) -> 3 | AO60: =IFERROR(VLOOKUP($A60,FILTRO_!$A$5:$AW$2499,39,FALSE),0) -> 0 | AP60: =IFERROR(VLOOKUP($A60,FILTRO_!$A$5:$AW$2499,40,FALSE),0) -> 3 | DB60: 0 | DD60: 0
A61: 03030160 | C61: NUTRICIONISTA | D61: 1702 | E61: =IFERROR(VLOOKUP($A61,FILTRO_!$A$5:$AW$2499,3,FALSE),0) -> 437 | F61: =IFERROR(VLOOKUP($A61,FILTRO_!$A$5:$AW$2499,4,FALSE),0) -> 1265 | G61: =IFERROR(VLOOKUP($A61,FILTRO_!$A$5:$AW$2499,5,FALSE),0) -> 101 | H61: =IFERROR(VLOOKUP($A61,FILTRO_!$A$5:$AW$2499,6,FALSE),0) -> 86 | I61: =IFERROR(VLOOKUP($A61,FILTRO_!$A$5:$AW$2499,7,FALSE),0) -> 42 | J61: =IFERROR(VLOOKUP($A61,FILTRO_!$A$5:$AW$2499,8,FALSE),0) -> 48 | K61: =IFERROR(VLOOKUP($A61,FILTRO_!$A$5:$AW$2499,9,FALSE),0) -> 28 | L61: =IFERROR(VLOOKUP($A61,FILTRO_!$A$5:$AW$2499,10,FALSE),0) -> 40 | M61: =IFERROR(VLOOKUP($A61,FILTRO_!$A$5:$AW$2499,11,FALSE),0) -> 19 | N61: =IFERROR(VLOOKUP($A61,FILTRO_!$A$5:$AW$2499,12,FALSE),0) -> 48 | O61: =IFERROR(VLOOKUP($A61,FILTRO_!$A$5:$AW$2499,13,FALSE),0) -> 22 | P61: =IFERROR(VLOOKUP($A61,FILTRO_!$A$5:$AW$2499,14,FALSE),0) -> 91 | Q61: =IFERROR(VLOOKUP($A61,FILTRO_!$A$5:$AW$2499,15,FALSE),0) -> 13 | R61: =IFERROR(VLOOKUP($A61,FILTRO_!$A$5:$AW$2499,16,FALSE),0) -> 83 | S61: =IFERROR(VLOOKUP($A61,FILTRO_!$A$5:$AW$2499,17,FALSE),0) -> 12 | T61: =IFERROR(VLOOKUP($A61,FILTRO_!$A$5:$AW$2499,18,FALSE),0) -> 110 | U61: =IFERROR(VLOOKUP($A61,FILTRO_!$A$5:$AW$2499,19,FALSE),0) -> 18 | V61: =IFERROR(VLOOKUP($A61,FILTRO_!$A$5:$AW$2499,20,FALSE),0) -> 92 | W61: =IFERROR(VLOOKUP($A61,FILTRO_!$A$5:$AW$2499,21,FALSE),0) -> 20 | X61: =IFERROR(VLOOKUP($A61,FILTRO_!$A$5:$AW$2499,22,FALSE),0) -> 91 | Y61: =IFERROR(VLOOKUP($A61,FILTRO_!$A$5:$AW$2499,23,FALSE),0) -> 17 | Z61: =IFERROR(VLOOKUP($A61,FILTRO_!$A$5:$AW$2499,24,FALSE),0) -> 111 | AA61: =IFERROR(VLOOKUP($A61,FILTRO_!$A$5:$AW$2499,25,FALSE),0) -> 17 | AB61: =IFERROR(VLOOKUP($A61,FILTRO_!$A$5:$AW$2499,26,FALSE),0) -> 120 | AC61: =IFERROR(VLOOKUP($A61,FILTRO_!$A$5:$AW$2499,27,FALSE),0) -> 21 | AD61: =IFERROR(VLOOKUP($A61,FILTRO_!$A$5:$AW$2499,28,FALSE),0) -> 98 | AE61: =IFERROR(VLOOKUP($A61,FILTRO_!$A$5:$AW$2499,29,FALSE),0) -> 22 | AF61: =IFERROR(VLOOKUP($A61,FILTRO_!$A$5:$AW$2499,30,FALSE),0) -> 89 | AG61: =IFERROR(VLOOKUP($A61,FILTRO_!$A$5:$AW$2499,31,FALSE),0) -> 31 | AH61: =IFERROR(VLOOKUP($A61,FILTRO_!$A$5:$AW$2499,32,FALSE),0) -> 60 | AI61: =IFERROR(VLOOKUP($A61,FILTRO_!$A$5:$AW$2499,33,FALSE),0) -> 23 | AJ61: =IFERROR(VLOOKUP($A61,FILTRO_!$A$5:$AW$2499,34,FALSE),0) -> 47 | AK61: =IFERROR(VLOOKUP($A61,FILTRO_!$A$5:$AW$2499,35,FALSE),0) -> 18 | AL61: =IFERROR(VLOOKUP($A61,FILTRO_!$A$5:$AW$2499,36,FALSE),0) -> 33 | AM61: =IFERROR(VLOOKUP($A61,FILTRO_!$A$5:$AW$2499,37,FALSE),0) -> 13 | AN61: =IFERROR(VLOOKUP($A61,FILTRO_!$A$5:$AW$2499,38,FALSE),0) -> 18 | AO61: =IFERROR(VLOOKUP($A61,FILTRO_!$A$5:$AW$2499,39,FALSE),0) -> 9 | AP61: =IFERROR(VLOOKUP($A61,FILTRO_!$A$5:$AW$2499,40,FALSE),0) -> 41 | DB61: 0 | DD61: 0
A62: 03030180 | C62: TÉCNICO EN ENFERMERÍA | D62: 151 | E62: =IFERROR(VLOOKUP($A62,FILTRO_!$A$5:$AW$2499,3,FALSE),0) -> 70 | F62: =IFERROR(VLOOKUP($A62,FILTRO_!$A$5:$AW$2499,4,FALSE),0) -> 81 | G62: =IFERROR(VLOOKUP($A62,FILTRO_!$A$5:$AW$2499,5,FALSE),0) -> 4 | H62: =IFERROR(VLOOKUP($A62,FILTRO_!$A$5:$AW$2499,6,FALSE),0) -> 2 | I62: =IFERROR(VLOOKUP($A62,FILTRO_!$A$5:$AW$2499,7,FALSE),0) -> 2 | J62: =IFERROR(VLOOKUP($A62,FILTRO_!$A$5:$AW$2499,8,FALSE),0) -> 1 | K62: =IFERROR(VLOOKUP($A62,FILTRO_!$A$5:$AW$2499,9,FALSE),0) -> 2 | L62: =IFERROR(VLOOKUP($A62,FILTRO_!$A$5:$AW$2499,10,FALSE),0) -> 2 | M62: =IFERROR(VLOOKUP($A62,FILTRO_!$A$5:$AW$2499,11,FALSE),0) -> 1 | N62: =IFERROR(VLOOKUP($A62,FILTRO_!$A$5:$AW$2499,12,FALSE),0) -> 1 | O62: =IFERROR(VLOOKUP($A62,FILTRO_!$A$5:$AW$2499,13,FALSE),0) -> 6 | P62: =IFERROR(VLOOKUP($A62,FILTRO_!$A$5:$AW$2499,14,FALSE),0) -> 12 | Q62: =IFERROR(VLOOKUP($A62,FILTRO_!$A$5:$AW$2499,15,FALSE),0) -> 1 | R62: =IFERROR(VLOOKUP($A62,FILTRO_!$A$5:$AW$2499,16,FALSE),0) -> 4 | S62: =IFERROR(VLOOKUP($A62,FILTRO_!$A$5:$AW$2499,17,FALSE),0) -> 4 | T62: =IFERROR(VLOOKUP($A62,FILTRO_!$A$5:$AW$2499,18,FALSE),0) -> 14 | U62: =IFERROR(VLOOKUP($A62,FILTRO_!$A$5:$AW$2499,19,FALSE),0) -> 3 | V62: =IFERROR(VLOOKUP($A62,FILTRO_!$A$5:$AW$2499,20,FALSE),0) -> 5 | W62: =IFERROR(VLOOKUP($A62,FILTRO_!$A$5:$AW$2499,21,FALSE),0) -> 12 | X62: =IFERROR(VLOOKUP($A62,FILTRO_!$A$5:$AW$2499,22,FALSE),0) -> 10 | Y62: =IFERROR(VLOOKUP($A62,FILTRO_!$A$5:$AW$2499,23,FALSE),0) -> 9 | Z62: =IFERROR(VLOOKUP($A62,FILTRO_!$A$5:$AW$2499,24,FALSE),0) -> 0 | AA62: =IFERROR(VLOOKUP($A62,FILTRO_!$A$5:$AW$2499,25,FALSE),0) -> 2 | AB62: =IFERROR(VLOOKUP($A62,FILTRO_!$A$5:$AW$2499,26,FALSE),0) -> 7 | AC62: =IFERROR(VLOOKUP($A62,FILTRO_!$A$5:$AW$2499,27,FALSE),0) -> 6 | AD62: =IFERROR(VLOOKUP($A62,FILTRO_!$A$5:$AW$2499,28,FALSE),0) -> 8 | AE62: =IFERROR(VLOOKUP($A62,FILTRO_!$A$5:$AW$2499,29,FALSE),0) -> 2 | AF62: =IFERROR(VLOOKUP($A62,FILTRO_!$A$5:$AW$2499,30,FALSE),0) -> 5 | AG62: =IFERROR(VLOOKUP($A62,FILTRO_!$A$5:$AW$2499,31,FALSE),0) -> 3 | AH62: =IFERROR(VLOOKUP($A62,FILTRO_!$A$5:$AW$2499,32,FALSE),0) -> 3 | AI62: =IFERROR(VLOOKUP($A62,FILTRO_!$A$5:$AW$2499,33,FALSE),0) -> 7 | AJ62: =IFERROR(VLOOKUP($A62,FILTRO_!$A$5:$AW$2499,34,FALSE),0) -> 2 | AK62: =IFERROR(VLOOKUP($A62,FILTRO_!$A$5:$AW$2499,35,FALSE),0) -> 1 | AL62: =IFERROR(VLOOKUP($A62,FILTRO_!$A$5:$AW$2499,36,FALSE),0) -> 3 | AM62: =IFERROR(VLOOKUP($A62,FILTRO_!$A$5:$AW$2499,37,FALSE),0) -> 5 | AN62: =IFERROR(VLOOKUP($A62,FILTRO_!$A$5:$AW$2499,38,FALSE),0) -> 2 | AO62: =IFERROR(VLOOKUP($A62,FILTRO_!$A$5:$AW$2499,39,FALSE),0) -> 8 | AP62: =IFERROR(VLOOKUP($A62,FILTRO_!$A$5:$AW$2499,40,FALSE),0) -> 0 | DB62: 0 | DD62: 0
A63: 09600206 | C63: OTROS PROFESIONALES DEBIDAMENTE CAPACITADOS | D63: 0 | E63: =IFERROR(VLOOKUP($A63,FILTRO_!$A$5:$AW$2499,3,FALSE),0) -> 0 | F63: =IFERROR(VLOOKUP($A63,FILTRO_!$A$5:$AW$2499,4,FALSE),0) -> 0 | G63: =IFERROR(VLOOKUP($A63,FILTRO_!$A$5:$AW$2499,5,FALSE),0) -> 0 | H63: =IFERROR(VLOOKUP($A63,FILTRO_!$A$5:$AW$2499,6,FALSE),0) -> 0 | I63: =IFERROR(VLOOKUP($A63,FILTRO_!$A$5:$AW$2499,7,FALSE),0) -> 0 | J63: =IFERROR(VLOOKUP($A63,FILTRO_!$A$5:$AW$2499,8,FALSE),0) -> 0 | K63: =IFERROR(VLOOKUP($A63,FILTRO_!$A$5:$AW$2499,9,FALSE),0) -> 0 | L63: =IFERROR(VLOOKUP($A63,FILTRO_!$A$5:$AW$2499,10,FALSE),0) -> 0 | M63: =IFERROR(VLOOKUP($A63,FILTRO_!$A$5:$AW$2499,11,FALSE),0) -> 0 | N63: =IFERROR(VLOOKUP($A63,FILTRO_!$A$5:$AW$2499,12,FALSE),0) -> 0 | O63: =IFERROR(VLOOKUP($A63,FILTRO_!$A$5:$AW$2499,13,FALSE),0) -> 0 | P63: =IFERROR(VLOOKUP($A63,FILTRO_!$A$5:$AW$2499,14,FALSE),0) -> 0 | Q63: =IFERROR(VLOOKUP($A63,FILTRO_!$A$5:$AW$2499,15,FALSE),0) -> 0 | R63: =IFERROR(VLOOKUP($A63,FILTRO_!$A$5:$AW$2499,16,FALSE),0) -> 0 | S63: =IFERROR(VLOOKUP($A63,FILTRO_!$A$5:$AW$2499,17,FALSE),0) -> 0 | T63: =IFERROR(VLOOKUP($A63,FILTRO_!$A$5:$AW$2499,18,FALSE),0) -> 0 | U63: =IFERROR(VLOOKUP($A63,FILTRO_!$A$5:$AW$2499,19,FALSE),0) -> 0 | V63: =IFERROR(VLOOKUP($A63,FILTRO_!$A$5:$AW$2499,20,FALSE),0) -> 0 | W63: =IFERROR(VLOOKUP($A63,FILTRO_!$A$5:$AW$2499,21,FALSE),0) -> 0 | X63: =IFERROR(VLOOKUP($A63,FILTRO_!$A$5:$AW$2499,22,FALSE),0) -> 0 | Y63: =IFERROR(VLOOKUP($A63,FILTRO_!$A$5:$AW$2499,23,FALSE),0) -> 0 | Z63: =IFERROR(VLOOKUP($A63,FILTRO_!$A$5:$AW$2499,24,FALSE),0) -> 0 | AA63: =IFERROR(VLOOKUP($A63,FILTRO_!$A$5:$AW$2499,25,FALSE),0) -> 0 | AB63: =IFERROR(VLOOKUP($A63,FILTRO_!$A$5:$AW$2499,26,FALSE),0) -> 0 | AC63: =IFERROR(VLOOKUP($A63,FILTRO_!$A$5:$AW$2499,27,FALSE),0) -> 0 | AD63: =IFERROR(VLOOKUP($A63,FILTRO_!$A$5:$AW$2499,28,FALSE),0) -> 0 | AE63: =IFERROR(VLOOKUP($A63,FILTRO_!$A$5:$AW$2499,29,FALSE),0) -> 0 | AF63: =IFERROR(VLOOKUP($A63,FILTRO_!$A$5:$AW$2499,30,FALSE),0) -> 0 | AG63: =IFERROR(VLOOKUP($A63,FILTRO_!$A$5:$AW$2499,31,FALSE),0) -> 0 | AH63: =IFERROR(VLOOKUP($A63,FILTRO_!$A$5:$AW$2499,32,FALSE),0) -> 0 | AI63: =IFERROR(VLOOKUP($A63,FILTRO_!$A$5:$AW$2499,33,FALSE),0) -> 0 | AJ63: =IFERROR(VLOOKUP($A63,FILTRO_!$A$5:$AW$2499,34,FALSE),0) -> 0 | AK63: =IFERROR(VLOOKUP($A63,FILTRO_!$A$5:$AW$2499,35,FALSE),0) -> 0 | AL63: =IFERROR(VLOOKUP($A63,FILTRO_!$A$5:$AW$2499,36,FALSE),0) -> 0 | AM63: =IFERROR(VLOOKUP($A63,FILTRO_!$A$5:$AW$2499,37,FALSE),0) -> 0 | AN63: =IFERROR(VLOOKUP($A63,FILTRO_!$A$5:$AW$2499,38,FALSE),0) -> 0 | AO63: =IFERROR(VLOOKUP($A63,FILTRO_!$A$5:$AW$2499,39,FALSE),0) -> 0 | AP63: =IFERROR(VLOOKUP($A63,FILTRO_!$A$5:$AW$2499,40,FALSE),0) -> 0 | DB63: 0 | DD63: 0
A64: 01200031 | B64: NIÑOS CON NECESIDADES ESPECIALES | C64: MÉDICO/A | D64: 37 | E64: =IFERROR(VLOOKUP($A64,FILTRO_!$A$5:$AW$2499,3,FALSE),0) -> 28 | F64: =IFERROR(VLOOKUP($A64,FILTRO_!$A$5:$AW$2499,4,FALSE),0) -> 9 | G64: =IFERROR(VLOOKUP($A64,FILTRO_!$A$5:$AW$2499,5,FALSE),0) -> 17 | H64: =IFERROR(VLOOKUP($A64,FILTRO_!$A$5:$AW$2499,6,FALSE),0) -> 4 | I64: =IFERROR(VLOOKUP($A64,FILTRO_!$A$5:$AW$2499,7,FALSE),0) -> 8 | J64: =IFERROR(VLOOKUP($A64,FILTRO_!$A$5:$AW$2499,8,FALSE),0) -> 4 | K64: =IFERROR(VLOOKUP($A64,FILTRO_!$A$5:$AW$2499,9,FALSE),0) -> 1 | L64: =IFERROR(VLOOKUP($A64,FILTRO_!$A$5:$AW$2499,10,FALSE),0) -> 1 | M64: =IFERROR(VLOOKUP($A64,FILTRO_!$A$5:$AW$2499,11,FALSE),0) -> 2 | N64: =IFERROR(VLOOKUP($A64,FILTRO_!$A$5:$AW$2499,12,FALSE),0) -> 0 | O64: =IFERROR(VLOOKUP($A64,FILTRO_!$A$5:$AW$2499,13,FALSE),0) -> 0 | P64: =IFERROR(VLOOKUP($A64,FILTRO_!$A$5:$AW$2499,14,FALSE),0) -> 0 | Q64: =IFERROR(VLOOKUP($A64,FILTRO_!$A$5:$AW$2499,15,FALSE),0) -> 0 | R64: =IFERROR(VLOOKUP($A64,FILTRO_!$A$5:$AW$2499,16,FALSE),0) -> 0 | S64: =IFERROR(VLOOKUP($A64,FILTRO_!$A$5:$AW$2499,17,FALSE),0) -> 0 | T64: =IFERROR(VLOOKUP($A64,FILTRO_!$A$5:$AW$2499,18,FALSE),0) -> 0 | U64: =IFERROR(VLOOKUP($A64,FILTRO_!$A$5:$AW$2499,19,FALSE),0) -> 0 | V64: =IFERROR(VLOOKUP($A64,FILTRO_!$A$5:$AW$2499,20,FALSE),0) -> 0 | W64: =IFERROR(VLOOKUP($A64,FILTRO_!$A$5:$AW$2499,21,FALSE),0) -> 0 | X64: =IFERROR(VLOOKUP($A64,FILTRO_!$A$5:$AW$2499,22,FALSE),0) -> 0 | Y64: =IFERROR(VLOOKUP($A64,FILTRO_!$A$5:$AW$2499,23,FALSE),0) -> 0 | Z64: =IFERROR(VLOOKUP($A64,FILTRO_!$A$5:$AW$2499,24,FALSE),0) -> 0 | AA64: =IFERROR(VLOOKUP($A64,FILTRO_!$A$5:$AW$2499,25,FALSE),0) -> 0 | AB64: =IFERROR(VLOOKUP($A64,FILTRO_!$A$5:$AW$2499,26,FALSE),0) -> 0 | AC64: =IFERROR(VLOOKUP($A64,FILTRO_!$A$5:$AW$2499,27,FALSE),0) -> 0 | AD64: =IFERROR(VLOOKUP($A64,FILTRO_!$A$5:$AW$2499,28,FALSE),0) -> 0 | AE64: =IFERROR(VLOOKUP($A64,FILTRO_!$A$5:$AW$2499,29,FALSE),0) -> 0 | AF64: =IFERROR(VLOOKUP($A64,FILTRO_!$A$5:$AW$2499,30,FALSE),0) -> 0 | AG64: =IFERROR(VLOOKUP($A64,FILTRO_!$A$5:$AW$2499,31,FALSE),0) -> 0 | AH64: =IFERROR(VLOOKUP($A64,FILTRO_!$A$5:$AW$2499,32,FALSE),0) -> 0 | AI64: =IFERROR(VLOOKUP($A64,FILTRO_!$A$5:$AW$2499,33,FALSE),0) -> 0 | AJ64: =IFERROR(VLOOKUP($A64,FILTRO_!$A$5:$AW$2499,34,FALSE),0) -> 0 | AK64: =IFERROR(VLOOKUP($A64,FILTRO_!$A$5:$AW$2499,35,FALSE),0) -> 0 | AL64: =IFERROR(VLOOKUP($A64,FILTRO_!$A$5:$AW$2499,36,FALSE),0) -> 0 | AM64: =IFERROR(VLOOKUP($A64,FILTRO_!$A$5:$AW$2499,37,FALSE),0) -> 0 | AN64: =IFERROR(VLOOKUP($A64,FILTRO_!$A$5:$AW$2499,38,FALSE),0) -> 0 | AO64: =IFERROR(VLOOKUP($A64,FILTRO_!$A$5:$AW$2499,39,FALSE),0) -> 0 | AP64: =IFERROR(VLOOKUP($A64,FILTRO_!$A$5:$AW$2499,40,FALSE),0) -> 0 | DB64: 0 | DC64: 0 | DD64: 0 | DE64: 0
A65: 01200032 | C65: ENFERMERA/O | D65: 420 | E65: =IFERROR(VLOOKUP($A65,FILTRO_!$A$5:$AW$2499,3,FALSE),0) -> 277 | F65: =IFERROR(VLOOKUP($A65,FILTRO_!$A$5:$AW$2499,4,FALSE),0) -> 143 | G65: =IFERROR(VLOOKUP($A65,FILTRO_!$A$5:$AW$2499,5,FALSE),0) -> 187 | H65: =IFERROR(VLOOKUP($A65,FILTRO_!$A$5:$AW$2499,6,FALSE),0) -> 99 | I65: =IFERROR(VLOOKUP($A65,FILTRO_!$A$5:$AW$2499,7,FALSE),0) -> 66 | J65: =IFERROR(VLOOKUP($A65,FILTRO_!$A$5:$AW$2499,8,FALSE),0) -> 34 | K65: =IFERROR(VLOOKUP($A65,FILTRO_!$A$5:$AW$2499,9,FALSE),0) -> 14 | L65: =IFERROR(VLOOKUP($A65,FILTRO_!$A$5:$AW$2499,10,FALSE),0) -> 6 | M65: =IFERROR(VLOOKUP($A65,FILTRO_!$A$5:$AW$2499,11,FALSE),0) -> 10 | N65: =IFERROR(VLOOKUP($A65,FILTRO_!$A$5:$AW$2499,12,FALSE),0) -> 6 | O65: =IFERROR(VLOOKUP($A65,FILTRO_!$A$5:$AW$2499,13,FALSE),0) -> 0 | P65: =IFERROR(VLOOKUP($A65,FILTRO_!$A$5:$AW$2499,14,FALSE),0) -> 0 | Q65: =IFERROR(VLOOKUP($A65,FILTRO_!$A$5:$AW$2499,15,FALSE),0) -> 0 | R65: =IFERROR(VLOOKUP($A65,FILTRO_!$A$5:$AW$2499,16,FALSE),0) -> 0 | S65: =IFERROR(VLOOKUP($A65,FILTRO_!$A$5:$AW$2499,17,FALSE),0) -> 0 | T65: =IFERROR(VLOOKUP($A65,FILTRO_!$A$5:$AW$2499,18,FALSE),0) -> 0 | U65: =IFERROR(VLOOKUP($A65,FILTRO_!$A$5:$AW$2499,19,FALSE),0) -> 0 | V65: =IFERROR(VLOOKUP($A65,FILTRO_!$A$5:$AW$2499,20,FALSE),0) -> 0 | W65: =IFERROR(VLOOKUP($A65,FILTRO_!$A$5:$AW$2499,21,FALSE),0) -> 0 | X65: =IFERROR(VLOOKUP($A65,FILTRO_!$A$5:$AW$2499,22,FALSE),0) -> 0 | Y65: =IFERROR(VLOOKUP($A65,FILTRO_!$A$5:$AW$2499,23,FALSE),0) -> 0 | Z65: =IFERROR(VLOOKUP($A65,FILTRO_!$A$5:$AW$2499,24,FALSE),0) -> 0 | AA65: =IFERROR(VLOOKUP($A65,FILTRO_!$A$5:$AW$2499,25,FALSE),0) -> 0 | AB65: =IFERROR(VLOOKUP($A65,FILTRO_!$A$5:$AW$2499,26,FALSE),0) -> 0 | AC65: =IFERROR(VLOOKUP($A65,FILTRO_!$A$5:$AW$2499,27,FALSE),0) -> 0 | AD65: =IFERROR(VLOOKUP($A65,FILTRO_!$A$5:$AW$2499,28,FALSE),0) -> 0 | AE65: =IFERROR(VLOOKUP($A65,FILTRO_!$A$5:$AW$2499,29,FALSE),0) -> 0 | AF65: =IFERROR(VLOOKUP($A65,FILTRO_!$A$5:$AW$2499,30,FALSE),0) -> 0 | AG65: =IFERROR(VLOOKUP($A65,FILTRO_!$A$5:$AW$2499,31,FALSE),0) -> 0 | AH65: =IFERROR(VLOOKUP($A65,FILTRO_!$A$5:$AW$2499,32,FALSE),0) -> 0 | AI65: =IFERROR(VLOOKUP($A65,FILTRO_!$A$5:$AW$2499,33,FALSE),0) -> 0 | AJ65: =IFERROR(VLOOKUP($A65,FILTRO_!$A$5:$AW$2499,34,FALSE),0) -> 0 | AK65: =IFERROR(VLOOKUP($A65,FILTRO_!$A$5:$AW$2499,35,FALSE),0) -> 0 | AL65: =IFERROR(VLOOKUP($A65,FILTRO_!$A$5:$AW$2499,36,FALSE),0) -> 0 | AM65: =IFERROR(VLOOKUP($A65,FILTRO_!$A$5:$AW$2499,37,FALSE),0) -> 0 | AN65: =IFERROR(VLOOKUP($A65,FILTRO_!$A$5:$AW$2499,38,FALSE),0) -> 0 | AO65: =IFERROR(VLOOKUP($A65,FILTRO_!$A$5:$AW$2499,39,FALSE),0) -> 1 | AP65: =IFERROR(VLOOKUP($A65,FILTRO_!$A$5:$AW$2499,40,FALSE),0) -> 0 | DB65: 0 | DD65: 0
A66: 01200033 | C66: MATRONA/ÓN | D66: 6 | E66: =IFERROR(VLOOKUP($A66,FILTRO_!$A$5:$AW$2499,3,FALSE),0) -> 2 | F66: =IFERROR(VLOOKUP($A66,FILTRO_!$A$5:$AW$2499,4,FALSE),0) -> 4 | G66: =IFERROR(VLOOKUP($A66,FILTRO_!$A$5:$AW$2499,5,FALSE),0) -> 1 | H66: =IFERROR(VLOOKUP($A66,FILTRO_!$A$5:$AW$2499,6,FALSE),0) -> 2 | I66: =IFERROR(VLOOKUP($A66,FILTRO_!$A$5:$AW$2499,7,FALSE),0) -> 1 | J66: =IFERROR(VLOOKUP($A66,FILTRO_!$A$5:$AW$2499,8,FALSE),0) -> 1 | K66: =IFERROR(VLOOKUP($A66,FILTRO_!$A$5:$AW$2499,9,FALSE),0) -> 0 | L66: =IFERROR(VLOOKUP($A66,FILTRO_!$A$5:$AW$2499,10,FALSE),0) -> 1 | M66: =IFERROR(VLOOKUP($A66,FILTRO_!$A$5:$AW$2499,11,FALSE),0) -> 0 | N66: =IFERROR(VLOOKUP($A66,FILTRO_!$A$5:$AW$2499,12,FALSE),0) -> 0 | O66: =IFERROR(VLOOKUP($A66,FILTRO_!$A$5:$AW$2499,13,FALSE),0) -> 0 | P66: =IFERROR(VLOOKUP($A66,FILTRO_!$A$5:$AW$2499,14,FALSE),0) -> 0 | Q66: =IFERROR(VLOOKUP($A66,FILTRO_!$A$5:$AW$2499,15,FALSE),0) -> 0 | R66: =IFERROR(VLOOKUP($A66,FILTRO_!$A$5:$AW$2499,16,FALSE),0) -> 0 | S66: =IFERROR(VLOOKUP($A66,FILTRO_!$A$5:$AW$2499,17,FALSE),0) -> 0 | T66: =IFERROR(VLOOKUP($A66,FILTRO_!$A$5:$AW$2499,18,FALSE),0) -> 0 | U66: =IFERROR(VLOOKUP($A66,FILTRO_!$A$5:$AW$2499,19,FALSE),0) -> 0 | V66: =IFERROR(VLOOKUP($A66,FILTRO_!$A$5:$AW$2499,20,FALSE),0) -> 0 | W66: =IFERROR(VLOOKUP($A66,FILTRO_!$A$5:$AW$2499,21,FALSE),0) -> 0 | X66: =IFERROR(VLOOKUP($A66,FILTRO_!$A$5:$AW$2499,22,FALSE),0) -> 0 | Y66: =IFERROR(VLOOKUP($A66,FILTRO_!$A$5:$AW$2499,23,FALSE),0) -> 0 | Z66: =IFERROR(VLOOKUP($A66,FILTRO_!$A$5:$AW$2499,24,FALSE),0) -> 0 | AA66: =IFERROR(VLOOKUP($A66,FILTRO_!$A$5:$AW$2499,25,FALSE),0) -> 0 | AB66: =IFERROR(VLOOKUP($A66,FILTRO_!$A$5:$AW$2499,26,FALSE),0) -> 0 | AC66: =IFERROR(VLOOKUP($A66,FILTRO_!$A$5:$AW$2499,27,FALSE),0) -> 0 | AD66: =IFERROR(VLOOKUP($A66,FILTRO_!$A$5:$AW$2499,28,FALSE),0) -> 0 | AE66: =IFERROR(VLOOKUP($A66,FILTRO_!$A$5:$AW$2499,29,FALSE),0) -> 0 | AF66: =IFERROR(VLOOKUP($A66,FILTRO_!$A$5:$AW$2499,30,FALSE),0) -> 0 | AG66: =IFERROR(VLOOKUP($A66,FILTRO_!$A$5:$AW$2499,31,FALSE),0) -> 0 | AH66: =IFERROR(VLOOKUP($A66,FILTRO_!$A$5:$AW$2499,32,FALSE),0) -> 0 | AI66: =IFERROR(VLOOKUP($A66,FILTRO_!$A$5:$AW$2499,33,FALSE),0) -> 0 | AJ66: =IFERROR(VLOOKUP($A66,FILTRO_!$A$5:$AW$2499,34,FALSE),0) -> 0 | AK66: =IFERROR(VLOOKUP($A66,FILTRO_!$A$5:$AW$2499,35,FALSE),0) -> 0 | AL66: =IFERROR(VLOOKUP($A66,FILTRO_!$A$5:$AW$2499,36,FALSE),0) -> 0 | AM66: =IFERROR(VLOOKUP($A66,FILTRO_!$A$5:$AW$2499,37,FALSE),0) -> 0 | AN66: =IFERROR(VLOOKUP($A66,FILTRO_!$A$5:$AW$2499,38,FALSE),0) -> 0 | AO66: =IFERROR(VLOOKUP($A66,FILTRO_!$A$5:$AW$2499,39,FALSE),0) -> 0 | AP66: =IFERROR(VLOOKUP($A66,FILTRO_!$A$5:$AW$2499,40,FALSE),0) -> 0 | DB66: 0 | DD66: 0
A67: 01200034 | C67: NUTRICIONISTA | D67: 121 | E67: =IFERROR(VLOOKUP($A67,FILTRO_!$A$5:$AW$2499,3,FALSE),0) -> 85 | F67: =IFERROR(VLOOKUP($A67,FILTRO_!$A$5:$AW$2499,4,FALSE),0) -> 36 | G67: =IFERROR(VLOOKUP($A67,FILTRO_!$A$5:$AW$2499,5,FALSE),0) -> 49 | H67: =IFERROR(VLOOKUP($A67,FILTRO_!$A$5:$AW$2499,6,FALSE),0) -> 21 | I67: =IFERROR(VLOOKUP($A67,FILTRO_!$A$5:$AW$2499,7,FALSE),0) -> 19 | J67: =IFERROR(VLOOKUP($A67,FILTRO_!$A$5:$AW$2499,8,FALSE),0) -> 12 | K67: =IFERROR(VLOOKUP($A67,FILTRO_!$A$5:$AW$2499,9,FALSE),0) -> 14 | L67: =IFERROR(VLOOKUP($A67,FILTRO_!$A$5:$AW$2499,10,FALSE),0) -> 2 | M67: =IFERROR(VLOOKUP($A67,FILTRO_!$A$5:$AW$2499,11,FALSE),0) -> 3 | N67: =IFERROR(VLOOKUP($A67,FILTRO_!$A$5:$AW$2499,12,FALSE),0) -> 1 | O67: =IFERROR(VLOOKUP($A67,FILTRO_!$A$5:$AW$2499,13,FALSE),0) -> 0 | P67: =IFERROR(VLOOKUP($A67,FILTRO_!$A$5:$AW$2499,14,FALSE),0) -> 0 | Q67: =IFERROR(VLOOKUP($A67,FILTRO_!$A$5:$AW$2499,15,FALSE),0) -> 0 | R67: =IFERROR(VLOOKUP($A67,FILTRO_!$A$5:$AW$2499,16,FALSE),0) -> 0 | S67: =IFERROR(VLOOKUP($A67,FILTRO_!$A$5:$AW$2499,17,FALSE),0) -> 0 | T67: =IFERROR(VLOOKUP($A67,FILTRO_!$A$5:$AW$2499,18,FALSE),0) -> 0 | U67: =IFERROR(VLOOKUP($A67,FILTRO_!$A$5:$AW$2499,19,FALSE),0) -> 0 | V67: =IFERROR(VLOOKUP($A67,FILTRO_!$A$5:$AW$2499,20,FALSE),0) -> 0 | W67: =IFERROR(VLOOKUP($A67,FILTRO_!$A$5:$AW$2499,21,FALSE),0) -> 0 | X67: =IFERROR(VLOOKUP($A67,FILTRO_!$A$5:$AW$2499,22,FALSE),0) -> 0 | Y67: =IFERROR(VLOOKUP($A67,FILTRO_!$A$5:$AW$2499,23,FALSE),0) -> 0 | Z67: =IFERROR(VLOOKUP($A67,FILTRO_!$A$5:$AW$2499,24,FALSE),0) -> 0 | AA67: =IFERROR(VLOOKUP($A67,FILTRO_!$A$5:$AW$2499,25,FALSE),0) -> 0 | AB67: =IFERROR(VLOOKUP($A67,FILTRO_!$A$5:$AW$2499,26,FALSE),0) -> 0 | AC67: =IFERROR(VLOOKUP($A67,FILTRO_!$A$5:$AW$2499,27,FALSE),0) -> 0 | AD67: =IFERROR(VLOOKUP($A67,FILTRO_!$A$5:$AW$2499,28,FALSE),0) -> 0 | AE67: =IFERROR(VLOOKUP($A67,FILTRO_!$A$5:$AW$2499,29,FALSE),0) -> 0 | AF67: =IFERROR(VLOOKUP($A67,FILTRO_!$A$5:$AW$2499,30,FALSE),0) -> 0 | AG67: =IFERROR(VLOOKUP($A67,FILTRO_!$A$5:$AW$2499,31,FALSE),0) -> 0 | AH67: =IFERROR(VLOOKUP($A67,FILTRO_!$A$5:$AW$2499,32,FALSE),0) -> 0 | AI67: =IFERROR(VLOOKUP($A67,FILTRO_!$A$5:$AW$2499,33,FALSE),0) -> 0 | AJ67: =IFERROR(VLOOKUP($A67,FILTRO_!$A$5:$AW$2499,34,FALSE),0) -> 0 | AK67: =IFERROR(VLOOKUP($A67,FILTRO_!$A$5:$AW$2499,35,FALSE),0) -> 0 | AL67: =IFERROR(VLOOKUP($A67,FILTRO_!$A$5:$AW$2499,36,FALSE),0) -> 0 | AM67: =IFERROR(VLOOKUP($A67,FILTRO_!$A$5:$AW$2499,37,FALSE),0) -> 0 | AN67: =IFERROR(VLOOKUP($A67,FILTRO_!$A$5:$AW$2499,38,FALSE),0) -> 0 | AO67: =IFERROR(VLOOKUP($A67,FILTRO_!$A$5:$AW$2499,39,FALSE),0) -> 0 | AP67: =IFERROR(VLOOKUP($A67,FILTRO_!$A$5:$AW$2499,40,FALSE),0) -> 0 | DB67: 0 | DD67: 0
B68: SECCIÓN D: CONTROL DE SALUD INTEGRAL DE ADOLESCENTES (incluidos en sección B)
B69: LUGAR DEL CONTROL, SEGÚN EDAD | D69: 10 A 14 AÑOS | I69: 15 A 19 AÑOS | N69: Niños, Niñas, Adolescentes y Jóvenes SENAME | O69: Niños, Niñas, Adolescentes y Jóvenes Mejor Niñez
D70: Ambos Sexos | E70: Hombres | F70: Mujeres | G70: Pueblos Originarios | H70: Migrantes | I70: Ambos Sexos | J70: Hombres | K70: Mujeres | L70: Pueblos Originarios | M70: Migrantes
A71: 01030500 | B71: EN ESPACIO AMIGABLE | D71: =IFERROR(VLOOKUP($A71,FILTRO_!$A$5:$AW$2499,2,FALSE),0) -> 440 | E71: =IFERROR(VLOOKUP($A71,FILTRO_!$A$5:$AW$2499,3,FALSE),0) -> 171 | F71: =IFERROR(VLOOKUP($A71,FILTRO_!$A$5:$AW$2499,4,FALSE),0) -> 269 | G71: =IFERROR(VLOOKUP($A71,FILTRO_!$A$5:$AW$2499,5,FALSE),0) -> 10 | H71: =IFERROR(VLOOKUP($A71,FILTRO_!$A$5:$AW$2499,6,FALSE),0) -> 9 | I71: =IFERROR(VLOOKUP($A71,FILTRO_!$A$5:$AW$2499,7,FALSE),0) -> 334 | J71: =IFERROR(VLOOKUP($A71,FILTRO_!$A$5:$AW$2499,8,FALSE),0) -> 62 | K71: =IFERROR(VLOOKUP($A71,FILTRO_!$A$5:$AW$2499,9,FALSE),0) -> 272 | L71: =IFERROR(VLOOKUP($A71,FILTRO_!$A$5:$AW$2499,10,FALSE),0) -> 8 | M71: =IFERROR(VLOOKUP($A71,FILTRO_!$A$5:$AW$2499,11,FALSE),0) -> 11 | N71: =IFERROR(VLOOKUP($A71,FILTRO_!$A$5:$AW$2499,12,FALSE),0) -> 6 | O71: =IFERROR(VLOOKUP($A71,FILTRO_!$A$5:$AW$2499,13,FALSE),0) -> 29 | CF71: * Pueblos Originarios NO DEBE ser mayor al Total de controles de adolescentes de 10 a 14 años. | CH71: * Migrantes NO DEBE ser mayor al Total de controles de adolescentes de 10 a 14 años. | CJ71: * Pueblos Originarios NO DEBE ser mayor al Total de controles de adolescentes de 15 a 19 años. | DF71: 1 | DH71: 1 | DJ71: 1
A72: 01030600 | B72: EN OTROS ESPACIOS DEL ESTABLECIMIENTO DE SALUD | D72: =IFERROR(VLOOKUP($A72,FILTRO_!$A$5:$AW$2499,2,FALSE),0) -> 1791 | E72: =IFERROR(VLOOKUP($A72,FILTRO_!$A$5:$AW$2499,3,FALSE),0) -> 785 | F72: =IFERROR(VLOOKUP($A72,FILTRO_!$A$5:$AW$2499,4,FALSE),0) -> 1006 | G72: =IFERROR(VLOOKUP($A72,FILTRO_!$A$5:$AW$2499,5,FALSE),0) -> 118 | H72: =IFERROR(VLOOKUP($A72,FILTRO_!$A$5:$AW$2499,6,FALSE),0) -> 70 | I72: =IFERROR(VLOOKUP($A72,FILTRO_!$A$5:$AW$2499,7,FALSE),0) -> 750 | J72: =IFERROR(VLOOKUP($A72,FILTRO_!$A$5:$AW$2499,8,FALSE),0) -> 262 | K72: =IFERROR(VLOOKUP($A72,FILTRO_!$A$5:$AW$2499,9,FALSE),0) -> 488 | L72: =IFERROR(VLOOKUP($A72,FILTRO_!$A$5:$AW$2499,10,FALSE),0) -> 73 | M72: =IFERROR(VLOOKUP($A72,FILTRO_!$A$5:$AW$2499,11,FALSE),0) -> 41 | N72: =IFERROR(VLOOKUP($A72,FILTRO_!$A$5:$AW$2499,12,FALSE),0) -> 42 | O72: =IFERROR(VLOOKUP($A72,FILTRO_!$A$5:$AW$2499,13,FALSE),0) -> 42 | CF72: * Pueblos Originarios NO DEBE ser mayor al Total de controles de adolescentes de 10 a 14 años. | CH72: * Migrantes NO DEBE ser mayor al Total de controles de adolescentes de 10 a 14 años. | CJ72: * Pueblos Originarios NO DEBE ser mayor al Total de controles de adolescentes de 15 a 19 años. | CL72: * Migrantes NO DEBE ser mayor al Total de controles de adolescentes de 15 a 19 años. | DF72: 1 | DH72: 1 | DJ72: 1 | DL72: 1
A73: 01030700 | B73: EN ESTABLECIMIENTOS EDUCACIONALES | D73: =IFERROR(VLOOKUP($A73,FILTRO_!$A$5:$AW$2499,2,FALSE),0) -> 2152 | E73: =IFERROR(VLOOKUP($A73,FILTRO_!$A$5:$AW$2499,3,FALSE),0) -> 1024 | F73: =IFERROR(VLOOKUP($A73,FILTRO_!$A$5:$AW$2499,4,FALSE),0) -> 1128 | G73: =IFERROR(VLOOKUP($A73,FILTRO_!$A$5:$AW$2499,5,FALSE),0) -> 78 | H73: =IFERROR(VLOOKUP($A73,FILTRO_!$A$5:$AW$2499,6,FALSE),0) -> 55 | I73: =IFERROR(VLOOKUP($A73,FILTRO_!$A$5:$AW$2499,7,FALSE),0) -> 406 | J73: =IFERROR(VLOOKUP($A73,FILTRO_!$A$5:$AW$2499,8,FALSE),0) -> 189 | K73: =IFERROR(VLOOKUP($A73,FILTRO_!$A$5:$AW$2499,9,FALSE),0) -> 217 | L73: =IFERROR(VLOOKUP($A73,FILTRO_!$A$5:$AW$2499,10,FALSE),0) -> 17 | M73: =IFERROR(VLOOKUP($A73,FILTRO_!$A$5:$AW$2499,11,FALSE),0) -> 12 | N73: =IFERROR(VLOOKUP($A73,FILTRO_!$A$5:$AW$2499,12,FALSE),0) -> 3 | O73: =IFERROR(VLOOKUP($A73,FILTRO_!$A$5:$AW$2499,13,FALSE),0) -> 1 | CB73: * Niños, Niñas, Adolescentes y Jóvenes SENAME NO DEBE ser mayor al Total. | CF73: * Pueblos Originarios NO DEBE ser mayor al Total de controles de adolescentes de 10 a 14 años. | CH73: * Migrantes NO DEBE ser mayor al Total de controles de adolescentes de 10 a 14 años. | CJ73: * Pueblos Originarios NO DEBE ser mayor al Total de controles de adolescentes de 15 a 19 años. | CL73: * Migrantes NO DEBE ser mayor al Total de controles de adolescentes de 15 a 19 años. | DB73: 1 | DF73: 1 | DH73: 1 | DJ73: 1 | DL73: 1
A74: 01030800 | B74: EN OTROS LUGARES FUERA DEL ESTABLECIMIENTO DE SALUD | D74: =IFERROR(VLOOKUP($A74,FILTRO_!$A$5:$AW$2499,2,FALSE),0) -> 211 | E74: =IFERROR(VLOOKUP($A74,FILTRO_!$A$5:$AW$2499,3,FALSE),0) -> 98 | F74: =IFERROR(VLOOKUP($A74,FILTRO_!$A$5:$AW$2499,4,FALSE),0) -> 113 | G74: =IFERROR(VLOOKUP($A74,FILTRO_!$A$5:$AW$2499,5,FALSE),0) -> 7 | H74: =IFERROR(VLOOKUP($A74,FILTRO_!$A$5:$AW$2499,6,FALSE),0) -> 2 | I74: =IFERROR(VLOOKUP($A74,FILTRO_!$A$5:$AW$2499,7,FALSE),0) -> 56 | J74: =IFERROR(VLOOKUP($A74,FILTRO_!$A$5:$AW$2499,8,FALSE),0) -> 39 | K74: =IFERROR(VLOOKUP($A74,FILTRO_!$A$5:$AW$2499,9,FALSE),0) -> 18 | L74: =IFERROR(VLOOKUP($A74,FILTRO_!$A$5:$AW$2499,10,FALSE),0) -> 5 | M74: =IFERROR(VLOOKUP($A74,FILTRO_!$A$5:$AW$2499,11,FALSE),0) -> 0 | N74: =IFERROR(VLOOKUP($A74,FILTRO_!$A$5:$AW$2499,12,FALSE),0) -> 40 | O74: =IFERROR(VLOOKUP($A74,FILTRO_!$A$5:$AW$2499,13,FALSE),0) -> 67 | CD74: * Niños, Niñas, Adolescentes y Jóvenes Mejor Niñez NO DEBE ser mayor al Total. | CF74: * Pueblos Originarios NO DEBE ser mayor al Total de controles de adolescentes de 10 a 14 años. | CH74: * Migrantes NO DEBE ser mayor al Total de controles de adolescentes de 10 a 14 años. | CJ74: * Pueblos Originarios NO DEBE ser mayor al Total de controles de adolescentes de 15 a 19 años. | CL74: * Migrantes NO DEBE ser mayor al Total de controles de adolescentes de 15 a 19 años. | DD74: 1 | DF74: 1 | DH74: 1 | DJ74: 1 | DL74: 1
B75: TOTAL | D75: =SUM(D71:D74) -> 4594 | E75: 2078 | F75: 2516 | G75: 213 | H75: =SUM(H71:H74) -> 136 | I75: 1546 | J75: 552 | K75: 995 | L75: 103 | M75: 64 | N75: =SUM(N71:N74) -> 91 | O75: =SUM(O71:O74) -> 139
B76: SECCIÓN E: CONTROLES DE SALUD EN ESTABLECIMIENTOS EDUCACIONALES
B77: SECCIÓN E1: CONTROLES INDIVIDUALES
B78: CURSO | C78: TOTAL | D78: SEXO | F78: Pueblos Originarios | G78: Migrantes | H78: Niños, Niñas, Adolescentes y Jóvenes SENAME | I78: Niños, Niñas, Adolescentes y Jóvenes Mejor Niñez
D79: Hombres | E79: Mujeres
A80: 01031000 | B80: KÍNDER | C80: =IFERROR(VLOOKUP($A80,FILTRO_!$A$5:$AW$2499,2,FALSE),0) -> 187 | D80: =IFERROR(VLOOKUP($A80,FILTRO_!$A$5:$AW$2499,3,FALSE),0) -> 75 | E80: =IFERROR(VLOOKUP($A80,FILTRO_!$A$5:$AW$2499,4,FALSE),0) -> 112 | F80: =IFERROR(VLOOKUP($A80,FILTRO_!$A$5:$AW$2499,5,FALSE),0) -> 0 | G80: =IFERROR(VLOOKUP($A80,FILTRO_!$A$5:$AW$2499,6,FALSE),0) -> 0 | H80: =IFERROR(VLOOKUP($A80,FILTRO_!$A$5:$AW$2499,7,FALSE),0) -> 0 | I80: =IFERROR(VLOOKUP($A80,FILTRO_!$A$5:$AW$2499,8,FALSE),0) -> 0
A81: 01031100 | B81: PRIMERO BÁSICO | C81: =IFERROR(VLOOKUP($A81,FILTRO_!$A$5:$AW$2499,2,FALSE),0) -> 274 | D81: =IFERROR(VLOOKUP($A81,FILTRO_!$A$5:$AW$2499,3,FALSE),0) -> 128 | E81: =IFERROR(VLOOKUP($A81,FILTRO_!$A$5:$AW$2499,4,FALSE),0) -> 146 | F81: =IFERROR(VLOOKUP($A81,FILTRO_!$A$5:$AW$2499,5,FALSE),0) -> 0 | G81: =IFERROR(VLOOKUP($A81,FILTRO_!$A$5:$AW$2499,6,FALSE),0) -> 1 | H81: =IFERROR(VLOOKUP($A81,FILTRO_!$A$5:$AW$2499,7,FALSE),0) -> 1 | I81: =IFERROR(VLOOKUP($A81,FILTRO_!$A$5:$AW$2499,8,FALSE),0) -> 0
A82: 01031200 | B82: SEGUNDO BÁSICO | C82: =IFERROR(VLOOKUP($A82,FILTRO_!$A$5:$AW$2499,2,FALSE),0) -> 375 | D82: =IFERROR(VLOOKUP($A82,FILTRO_!$A$5:$AW$2499,3,FALSE),0) -> 174 | E82: =IFERROR(VLOOKUP($A82,FILTRO_!$A$5:$AW$2499,4,FALSE),0) -> 201 | F82: =IFERROR(VLOOKUP($A82,FILTRO_!$A$5:$AW$2499,5,FALSE),0) -> 0 | G82: =IFERROR(VLOOKUP($A82,FILTRO_!$A$5:$AW$2499,6,FALSE),0) -> 1 | H82: =IFERROR(VLOOKUP($A82,FILTRO_!$A$5:$AW$2499,7,FALSE),0) -> 0 | I82: =IFERROR(VLOOKUP($A82,FILTRO_!$A$5:$AW$2499,8,FALSE),0) -> 0
A83: 01031300 | B83: TERCERO BÁSICO | C83: =IFERROR(VLOOKUP($A83,FILTRO_!$A$5:$AW$2499,2,FALSE),0) -> 429 | D83: =IFERROR(VLOOKUP($A83,FILTRO_!$A$5:$AW$2499,3,FALSE),0) -> 203 | E83: =IFERROR(VLOOKUP($A83,FILTRO_!$A$5:$AW$2499,4,FALSE),0) -> 226 | F83: =IFERROR(VLOOKUP($A83,FILTRO_!$A$5:$AW$2499,5,FALSE),0) -> 0 | G83: =IFERROR(VLOOKUP($A83,FILTRO_!$A$5:$AW$2499,6,FALSE),0) -> 0 | H83: =IFERROR(VLOOKUP($A83,FILTRO_!$A$5:$AW$2499,7,FALSE),0) -> 0 | I83: =IFERROR(VLOOKUP($A83,FILTRO_!$A$5:$AW$2499,8,FALSE),0) -> 0
A84: 01031400 | B84: CUARTO BÁSICO | C84: =IFERROR(VLOOKUP($A84,FILTRO_!$A$5:$AW$2499,2,FALSE),0) -> 371 | D84: =IFERROR(VLOOKUP($A84,FILTRO_!$A$5:$AW$2499,3,FALSE),0) -> 157 | E84: =IFERROR(VLOOKUP($A84,FILTRO_!$A$5:$AW$2499,4,FALSE),0) -> 214 | F84: =IFERROR(VLOOKUP($A84,FILTRO_!$A$5:$AW$2499,5,FALSE),0) -> 0 | G84: =IFERROR(VLOOKUP($A84,FILTRO_!$A$5:$AW$2499,6,FALSE),0) -> 0 | H84: =IFERROR(VLOOKUP($A84,FILTRO_!$A$5:$AW$2499,7,FALSE),0) -> 0 | I84: =IFERROR(VLOOKUP($A84,FILTRO_!$A$5:$AW$2499,8,FALSE),0) -> 0
B85: SECCIÓN E2: CONTROLES GRUPALES
B86: CURSO | C86: TOTAL DE GRUPOS | D86: TOTAL | E86: SEXO | G86: Pueblos Originarios | H86: Migrantes | I86: Niños, Niñas, Adolescentes y Jóvenes SENAME | J86: Niños, Niñas, Adolescentes y Jóvenes Mejor Niñez
E87: Hombres | F87: Mujeres
A88: 01031500 | B88: KÍNDER | C88: =IFERROR(VLOOKUP($A88,FILTRO_!$A$5:$AW$2499,2,FALSE),0) -> 0 | D88: =IFERROR(VLOOKUP($A88,FILTRO_!$A$5:$AW$2499,3,FALSE),0) -> 0 | E88: =IFERROR(VLOOKUP($A88,FILTRO_!$A$5:$AW$2499,4,FALSE),0) -> 0 | F88: =IFERROR(VLOOKUP($A88,FILTRO_!$A$5:$AW$2499,5,FALSE),0) -> 0 | G88: =IFERROR(VLOOKUP($A88,FILTRO_!$A$5:$AW$2499,6,FALSE),0) -> 0 | H88: =IFERROR(VLOOKUP($A88,FILTRO_!$A$5:$AW$2499,7,FALSE),0) -> 0 | I88: =IFERROR(VLOOKUP($A88,FILTRO_!$A$5:$AW$2499,8,FALSE),0) -> 0 | J88: =IFERROR(VLOOKUP($A88,FILTRO_!$A$5:$AW$2499,9,FALSE),0) -> 0
A89: 01031600 | B89: PRIMERO BÁSICO | C89: =IFERROR(VLOOKUP($A89,FILTRO_!$A$5:$AW$2499,2,FALSE),0) -> 0 | D89: =IFERROR(VLOOKUP($A89,FILTRO_!$A$5:$AW$2499,3,FALSE),0) -> 0 | E89: =IFERROR(VLOOKUP($A89,FILTRO_!$A$5:$AW$2499,4,FALSE),0) -> 0 | F89: =IFERROR(VLOOKUP($A89,FILTRO_!$A$5:$AW$2499,5,FALSE),0) -> 0 | G89: =IFERROR(VLOOKUP($A89,FILTRO_!$A$5:$AW$2499,6,FALSE),0) -> 0 | H89: =IFERROR(VLOOKUP($A89,FILTRO_!$A$5:$AW$2499,7,FALSE),0) -> 0 | I89: =IFERROR(VLOOKUP($A89,FILTRO_!$A$5:$AW$2499,8,FALSE),0) -> 0 | J89: =IFERROR(VLOOKUP($A89,FILTRO_!$A$5:$AW$2499,9,FALSE),0) -> 0
A90: 01031700 | B90: SEGUNDO BÁSICO | C90: =IFERROR(VLOOKUP($A90,FILTRO_!$A$5:$AW$2499,2,FALSE),0) -> 0 | D90: =IFERROR(VLOOKUP($A90,FILTRO_!$A$5:$AW$2499,3,FALSE),0) -> 0 | E90: =IFERROR(VLOOKUP($A90,FILTRO_!$A$5:$AW$2499,4,FALSE),0) -> 0 | F90: =IFERROR(VLOOKUP($A90,FILTRO_!$A$5:$AW$2499,5,FALSE),0) -> 0 | G90: =IFERROR(VLOOKUP($A90,FILTRO_!$A$5:$AW$2499,6,FALSE),0) -> 0 | H90: =IFERROR(VLOOKUP($A90,FILTRO_!$A$5:$AW$2499,7,FALSE),0) -> 0 | I90: =IFERROR(VLOOKUP($A90,FILTRO_!$A$5:$AW$2499,8,FALSE),0) -> 0 | J90: =IFERROR(VLOOKUP($A90,FILTRO_!$A$5:$AW$2499,9,FALSE),0) -> 0
A91: 01031800 | B91: TERCERO BÁSICO | C91: =IFERROR(VLOOKUP($A91,FILTRO_!$A$5:$AW$2499,2,FALSE),0) -> 0 | D91: =IFERROR(VLOOKUP($A91,FILTRO_!$A$5:$AW$2499,3,FALSE),0) -> 0 | E91: =IFERROR(VLOOKUP($A91,FILTRO_!$A$5:$AW$2499,4,FALSE),0) -> 0 | F91: =IFERROR(VLOOKUP($A91,FILTRO_!$A$5:$AW$2499,5,FALSE),0) -> 0 | G91: =IFERROR(VLOOKUP($A91,FILTRO_!$A$5:$AW$2499,6,FALSE),0) -> 0 | H91: =IFERROR(VLOOKUP($A91,FILTRO_!$A$5:$AW$2499,7,FALSE),0) -> 0 | I91: =IFERROR(VLOOKUP($A91,FILTRO_!$A$5:$AW$2499,8,FALSE),0) -> 0 | J91: =IFERROR(VLOOKUP($A91,FILTRO_!$A$5:$AW$2499,9,FALSE),0) -> 0
A92: 01031900 | B92: CUARTO BÁSICO | C92: =IFERROR(VLOOKUP($A92,FILTRO_!$A$5:$AW$2499,2,FALSE),0) -> 0 | D92: =IFERROR(VLOOKUP($A92,FILTRO_!$A$5:$AW$2499,3,FALSE),0) -> 0 | E92: =IFERROR(VLOOKUP($A92,FILTRO_!$A$5:$AW$2499,4,FALSE),0) -> 0 | F92: =IFERROR(VLOOKUP($A92,FILTRO_!$A$5:$AW$2499,5,FALSE),0) -> 0 | G92: =IFERROR(VLOOKUP($A92,FILTRO_!$A$5:$AW$2499,6,FALSE),0) -> 0 | H92: =IFERROR(VLOOKUP($A92,FILTRO_!$A$5:$AW$2499,7,FALSE),0) -> 1 | I92: =IFERROR(VLOOKUP($A92,FILTRO_!$A$5:$AW$2499,8,FALSE),0) -> 0 | J92: =IFERROR(VLOOKUP($A92,FILTRO_!$A$5:$AW$2499,9,FALSE),0) -> 0 | CB92: * Niños, Niñas, Adolescentes y Jóvenes SENAME NO DEBE ser mayor al Total. | DB92: 1
B93: SECCIÓN F: CONTROLES INTEGRALES DE PERSONAS CON CONDICIONES CRÓNICAS (incluidos en Secciones B y C)
B94: TIPO DE CONTROL | C94: TOTAL | F94: POR EDAD | AH94: Migrantes | AI94: Pueblos Originarios
F95: 15 - 19 años | H95: 20 - 24 años | J95: 25 - 29 años | L95: 30 - 34 años | N95: 35 - 39 años | P95: 40 - 44 años | R95: 45 - 49 años | T95: 50 - 54 años | V95: 55 - 59 años | X95: 60 - 64 años | Z95: 65 - 69 años | AB95: 70 - 74 años | AD95: 75 - 79 años | AF95: 80 y más años
C96: Ambos Sexos | D96: Hombres | E96: Mujeres | F96: Hombres | G96: Mujeres | H96: Hombres | I96: Mujeres | J96: Hombres | K96: Mujeres | L96: Hombres | M96: Mujeres | N96: Hombres | O96: Mujeres | P96: Hombres | Q96: Mujeres | R96: Hombres | S96: Mujeres | T96: Hombres | U96: Mujeres | V96: Hombres | W96: Mujeres | X96: Hombres | Y96: Mujeres | Z96: Hombres | AA96: Mujeres | AB96: Hombres | AC96: Mujeres | AD96: Hombres | AE96: Mujeres | AF96: Hombres | AG96: Mujeres
A97: 01501010 | B97: CONTROL INTEGRAL CON RIESGO LEVE (G1) | C97: =IFERROR(VLOOKUP($A97,FILTRO_!$A$5:$AW$2499,2,FALSE),0) -> 251 | D97: =IFERROR(VLOOKUP($A97,FILTRO_!$A$5:$AW$2499,3,FALSE),0) -> 98 | E97: =IFERROR(VLOOKUP($A97,FILTRO_!$A$5:$AW$2499,4,FALSE),0) -> 153 | F97: =IFERROR(VLOOKUP($A97,FILTRO_!$A$5:$AW$2499,5,FALSE),0) -> 2 | G97: =IFERROR(VLOOKUP($A97,FILTRO_!$A$5:$AW$2499,6,FALSE),0) -> 0 | H97: =IFERROR(VLOOKUP($A97,FILTRO_!$A$5:$AW$2499,7,FALSE),0) -> 2 | I97: =IFERROR(VLOOKUP($A97,FILTRO_!$A$5:$AW$2499,8,FALSE),0) -> 1 | J97: =IFERROR(VLOOKUP($A97,FILTRO_!$A$5:$AW$2499,9,FALSE),0) -> 3 | K97: =IFERROR(VLOOKUP($A97,FILTRO_!$A$5:$AW$2499,10,FALSE),0) -> 0 | L97: =IFERROR(VLOOKUP($A97,FILTRO_!$A$5:$AW$2499,11,FALSE),0) -> 4 | M97: =IFERROR(VLOOKUP($A97,FILTRO_!$A$5:$AW$2499,12,FALSE),0) -> 6 | N97: =IFERROR(VLOOKUP($A97,FILTRO_!$A$5:$AW$2499,13,FALSE),0) -> 1 | O97: =IFERROR(VLOOKUP($A97,FILTRO_!$A$5:$AW$2499,14,FALSE),0) -> 7 | P97: =IFERROR(VLOOKUP($A97,FILTRO_!$A$5:$AW$2499,15,FALSE),0) -> 5 | Q97: =IFERROR(VLOOKUP($A97,FILTRO_!$A$5:$AW$2499,16,FALSE),0) -> 9 | R97: =IFERROR(VLOOKUP($A97,FILTRO_!$A$5:$AW$2499,17,FALSE),0) -> 5 | S97: =IFERROR(VLOOKUP($A97,FILTRO_!$A$5:$AW$2499,18,FALSE),0) -> 15 | T97: =IFERROR(VLOOKUP($A97,FILTRO_!$A$5:$AW$2499,19,FALSE),0) -> 12 | U97: =IFERROR(VLOOKUP($A97,FILTRO_!$A$5:$AW$2499,20,FALSE),0) -> 11 | V97: =IFERROR(VLOOKUP($A97,FILTRO_!$A$5:$AW$2499,21,FALSE),0) -> 12 | W97: =IFERROR(VLOOKUP($A97,FILTRO_!$A$5:$AW$2499,22,FALSE),0) -> 24 | X97: =IFERROR(VLOOKUP($A97,FILTRO_!$A$5:$AW$2499,23,FALSE),0) -> 18 | Y97: =IFERROR(VLOOKUP($A97,FILTRO_!$A$5:$AW$2499,24,FALSE),0) -> 21 | Z97: =IFERROR(VLOOKUP($A97,FILTRO_!$A$5:$AW$2499,25,FALSE),0) -> 11 | AA97: =IFERROR(VLOOKUP($A97,FILTRO_!$A$5:$AW$2499,26,FALSE),0) -> 19 | AB97: =IFERROR(VLOOKUP($A97,FILTRO_!$A$5:$AW$2499,27,FALSE),0) -> 8 | AC97: =IFERROR(VLOOKUP($A97,FILTRO_!$A$5:$AW$2499,28,FALSE),0) -> 10 | AD97: =IFERROR(VLOOKUP($A97,FILTRO_!$A$5:$AW$2499,29,FALSE),0) -> 7 | AE97: =IFERROR(VLOOKUP($A97,FILTRO_!$A$5:$AW$2499,30,FALSE),0) -> 16 | AF97: =IFERROR(VLOOKUP($A97,FILTRO_!$A$5:$AW$2499,31,FALSE),0) -> 8 | AG97: =IFERROR(VLOOKUP($A97,FILTRO_!$A$5:$AW$2499,32,FALSE),0) -> 14 | AH97: =IFERROR(VLOOKUP($A97,FILTRO_!$A$5:$AW$2499,33,FALSE),0) -> 0 | AI97: =IFERROR(VLOOKUP($A97,FILTRO_!$A$5:$AW$2499,34,FALSE),0) -> 0 | DA97: 0 | DB97: 0
A98: 01501020 | B98: CONTROL INTEGRAL CON RIESGO MODERADO (G2) | C98: =IFERROR(VLOOKUP($A98,FILTRO_!$A$5:$AW$2499,2,FALSE),0) -> 224 | D98: =IFERROR(VLOOKUP($A98,FILTRO_!$A$5:$AW$2499,3,FALSE),0) -> 79 | E98: =IFERROR(VLOOKUP($A98,FILTRO_!$A$5:$AW$2499,4,FALSE),0) -> 145 | F98: =IFERROR(VLOOKUP($A98,FILTRO_!$A$5:$AW$2499,5,FALSE),0) -> 1 | G98: =IFERROR(VLOOKUP($A98,FILTRO_!$A$5:$AW$2499,6,FALSE),0) -> 0 | H98: =IFERROR(VLOOKUP($A98,FILTRO_!$A$5:$AW$2499,7,FALSE),0) -> 0 | I98: =IFERROR(VLOOKUP($A98,FILTRO_!$A$5:$AW$2499,8,FALSE),0) -> 0 | J98: =IFERROR(VLOOKUP($A98,FILTRO_!$A$5:$AW$2499,9,FALSE),0) -> 3 | K98: =IFERROR(VLOOKUP($A98,FILTRO_!$A$5:$AW$2499,10,FALSE),0) -> 2 | L98: =IFERROR(VLOOKUP($A98,FILTRO_!$A$5:$AW$2499,11,FALSE),0) -> 0 | M98: =IFERROR(VLOOKUP($A98,FILTRO_!$A$5:$AW$2499,12,FALSE),0) -> 0 | N98: =IFERROR(VLOOKUP($A98,FILTRO_!$A$5:$AW$2499,13,FALSE),0) -> 2 | O98: =IFERROR(VLOOKUP($A98,FILTRO_!$A$5:$AW$2499,14,FALSE),0) -> 2 | P98: =IFERROR(VLOOKUP($A98,FILTRO_!$A$5:$AW$2499,15,FALSE),0) -> 1 | Q98: =IFERROR(VLOOKUP($A98,FILTRO_!$A$5:$AW$2499,16,FALSE),0) -> 7 | R98: =IFERROR(VLOOKUP($A98,FILTRO_!$A$5:$AW$2499,17,FALSE),0) -> 5 | S98: =IFERROR(VLOOKUP($A98,FILTRO_!$A$5:$AW$2499,18,FALSE),0) -> 9 | T98: =IFERROR(VLOOKUP($A98,FILTRO_!$A$5:$AW$2499,19,FALSE),0) -> 5 | U98: =IFERROR(VLOOKUP($A98,FILTRO_!$A$5:$AW$2499,20,FALSE),0) -> 5 | V98: =IFERROR(VLOOKUP($A98,FILTRO_!$A$5:$AW$2499,21,FALSE),0) -> 13 | W98: =IFERROR(VLOOKUP($A98,FILTRO_!$A$5:$AW$2499,22,FALSE),0) -> 31 | X98: =IFERROR(VLOOKUP($A98,FILTRO_!$A$5:$AW$2499,23,FALSE),0) -> 8 | Y98: =IFERROR(VLOOKUP($A98,FILTRO_!$A$5:$AW$2499,24,FALSE),0) -> 20 | Z98: =IFERROR(VLOOKUP($A98,FILTRO_!$A$5:$AW$2499,25,FALSE),0) -> 13 | AA98: =IFERROR(VLOOKUP($A98,FILTRO_!$A$5:$AW$2499,26,FALSE),0) -> 17 | AB98: =IFERROR(VLOOKUP($A98,FILTRO_!$A$5:$AW$2499,27,FALSE),0) -> 16 | AC98: =IFERROR(VLOOKUP($A98,FILTRO_!$A$5:$AW$2499,28,FALSE),0) -> 19 | AD98: =IFERROR(VLOOKUP($A98,FILTRO_!$A$5:$AW$2499,29,FALSE),0) -> 6 | AE98: =IFERROR(VLOOKUP($A98,FILTRO_!$A$5:$AW$2499,30,FALSE),0) -> 8 | AF98: =IFERROR(VLOOKUP($A98,FILTRO_!$A$5:$AW$2499,31,FALSE),0) -> 6 | AG98: =IFERROR(VLOOKUP($A98,FILTRO_!$A$5:$AW$2499,32,FALSE),0) -> 25 | AH98: =IFERROR(VLOOKUP($A98,FILTRO_!$A$5:$AW$2499,33,FALSE),0) -> 0 | AI98: =IFERROR(VLOOKUP($A98,FILTRO_!$A$5:$AW$2499,34,FALSE),0) -> 0 | DA98: 0 | DB98: 0
A99: 01501030 | B99: CONTROL INTEGRAL CON RIESGO ALTO (G3) | C99: =IFERROR(VLOOKUP($A99,FILTRO_!$A$5:$AW$2499,2,FALSE),0) -> 748 | D99: =IFERROR(VLOOKUP($A99,FILTRO_!$A$5:$AW$2499,3,FALSE),0) -> 248 | E99: =IFERROR(VLOOKUP($A99,FILTRO_!$A$5:$AW$2499,4,FALSE),0) -> 500 | F99: =IFERROR(VLOOKUP($A99,FILTRO_!$A$5:$AW$2499,5,FALSE),0) -> 0 | G99: =IFERROR(VLOOKUP($A99,FILTRO_!$A$5:$AW$2499,6,FALSE),0) -> 0 | H99: =IFERROR(VLOOKUP($A99,FILTRO_!$A$5:$AW$2499,7,FALSE),0) -> 0 | I99: =IFERROR(VLOOKUP($A99,FILTRO_!$A$5:$AW$2499,8,FALSE),0) -> 1 | J99: =IFERROR(VLOOKUP($A99,FILTRO_!$A$5:$AW$2499,9,FALSE),0) -> 0 | K99: =IFERROR(VLOOKUP($A99,FILTRO_!$A$5:$AW$2499,10,FALSE),0) -> 0 | L99: =IFERROR(VLOOKUP($A99,FILTRO_!$A$5:$AW$2499,11,FALSE),0) -> 0 | M99: =IFERROR(VLOOKUP($A99,FILTRO_!$A$5:$AW$2499,12,FALSE),0) -> 3 | N99: =IFERROR(VLOOKUP($A99,FILTRO_!$A$5:$AW$2499,13,FALSE),0) -> 4 | O99: =IFERROR(VLOOKUP($A99,FILTRO_!$A$5:$AW$2499,14,FALSE),0) -> 6 | P99: =IFERROR(VLOOKUP($A99,FILTRO_!$A$5:$AW$2499,15,FALSE),0) -> 1 | Q99: =IFERROR(VLOOKUP($A99,FILTRO_!$A$5:$AW$2499,16,FALSE),0) -> 8 | R99: =IFERROR(VLOOKUP($A99,FILTRO_!$A$5:$AW$2499,17,FALSE),0) -> 9 | S99: =IFERROR(VLOOKUP($A99,FILTRO_!$A$5:$AW$2499,18,FALSE),0) -> 16 | T99: =IFERROR(VLOOKUP($A99,FILTRO_!$A$5:$AW$2499,19,FALSE),0) -> 15 | U99: =IFERROR(VLOOKUP($A99,FILTRO_!$A$5:$AW$2499,20,FALSE),0) -> 32 | V99: =IFERROR(VLOOKUP($A99,FILTRO_!$A$5:$AW$2499,21,FALSE),0) -> 20 | W99: =IFERROR(VLOOKUP($A99,FILTRO_!$A$5:$AW$2499,22,FALSE),0) -> 62 | X99: =IFERROR(VLOOKUP($A99,FILTRO_!$A$5:$AW$2499,23,FALSE),0) -> 36 | Y99: =IFERROR(VLOOKUP($A99,FILTRO_!$A$5:$AW$2499,24,FALSE),0) -> 63 | Z99: =IFERROR(VLOOKUP($A99,FILTRO_!$A$5:$AW$2499,25,FALSE),0) -> 57 | AA99: =IFERROR(VLOOKUP($A99,FILTRO_!$A$5:$AW$2499,26,FALSE),0) -> 86 | AB99: =IFERROR(VLOOKUP($A99,FILTRO_!$A$5:$AW$2499,27,FALSE),0) -> 34 | AC99: =IFERROR(VLOOKUP($A99,FILTRO_!$A$5:$AW$2499,28,FALSE),0) -> 76 | AD99: =IFERROR(VLOOKUP($A99,FILTRO_!$A$5:$AW$2499,29,FALSE),0) -> 32 | AE99: =IFERROR(VLOOKUP($A99,FILTRO_!$A$5:$AW$2499,30,FALSE),0) -> 70 | AF99: =IFERROR(VLOOKUP($A99,FILTRO_!$A$5:$AW$2499,31,FALSE),0) -> 40 | AG99: =IFERROR(VLOOKUP($A99,FILTRO_!$A$5:$AW$2499,32,FALSE),0) -> 77 | AH99: =IFERROR(VLOOKUP($A99,FILTRO_!$A$5:$AW$2499,33,FALSE),0) -> 2 | AI99: =IFERROR(VLOOKUP($A99,FILTRO_!$A$5:$AW$2499,34,FALSE),0) -> 0 | DA99: 0 | DB99: 0
A100: 01502030 | B100: SEGUIMIENTO A DISTANCIA CON RIESGO LEVE (G1) | C100: =IFERROR(VLOOKUP($A100,FILTRO_!$A$5:$AW$2499,2,FALSE),0) -> 0 | D100: =IFERROR(VLOOKUP($A100,FILTRO_!$A$5:$AW$2499,3,FALSE),0) -> 0 | E100: =IFERROR(VLOOKUP($A100,FILTRO_!$A$5:$AW$2499,4,FALSE),0) -> 0 | F100: =IFERROR(VLOOKUP($A100,FILTRO_!$A$5:$AW$2499,5,FALSE),0) -> 0 | G100: =IFERROR(VLOOKUP($A100,FILTRO_!$A$5:$AW$2499,6,FALSE),0) -> 0 | H100: =IFERROR(VLOOKUP($A100,FILTRO_!$A$5:$AW$2499,7,FALSE),0) -> 0 | I100: =IFERROR(VLOOKUP($A100,FILTRO_!$A$5:$AW$2499,8,FALSE),0) -> 0 | J100: =IFERROR(VLOOKUP($A100,FILTRO_!$A$5:$AW$2499,9,FALSE),0) -> 0 | K100: =IFERROR(VLOOKUP($A100,FILTRO_!$A$5:$AW$2499,10,FALSE),0) -> 0 | L100: =IFERROR(VLOOKUP($A100,FILTRO_!$A$5:$AW$2499,11,FALSE),0) -> 0 | M100: =IFERROR(VLOOKUP($A100,FILTRO_!$A$5:$AW$2499,12,FALSE),0) -> 0 | N100: =IFERROR(VLOOKUP($A100,FILTRO_!$A$5:$AW$2499,13,FALSE),0) -> 0 | O100: =IFERROR(VLOOKUP($A100,FILTRO_!$A$5:$AW$2499,14,FALSE),0) -> 0 | P100: =IFERROR(VLOOKUP($A100,FILTRO_!$A$5:$AW$2499,15,FALSE),0) -> 0 | Q100: =IFERROR(VLOOKUP($A100,FILTRO_!$A$5:$AW$2499,16,FALSE),0) -> 0 | R100: =IFERROR(VLOOKUP($A100,FILTRO_!$A$5:$AW$2499,17,FALSE),0) -> 0 | S100: =IFERROR(VLOOKUP($A100,FILTRO_!$A$5:$AW$2499,18,FALSE),0) -> 0 | T100: =IFERROR(VLOOKUP($A100,FILTRO_!$A$5:$AW$2499,19,FALSE),0) -> 0 | U100: =IFERROR(VLOOKUP($A100,FILTRO_!$A$5:$AW$2499,20,FALSE),0) -> 0 | V100: =IFERROR(VLOOKUP($A100,FILTRO_!$A$5:$AW$2499,21,FALSE),0) -> 0 | W100: =IFERROR(VLOOKUP($A100,FILTRO_!$A$5:$AW$2499,22,FALSE),0) -> 0 | X100: =IFERROR(VLOOKUP($A100,FILTRO_!$A$5:$AW$2499,23,FALSE),0) -> 0 | Y100: =IFERROR(VLOOKUP($A100,FILTRO_!$A$5:$AW$2499,24,FALSE),0) -> 0 | Z100: =IFERROR(VLOOKUP($A100,FILTRO_!$A$5:$AW$2499,25,FALSE),0) -> 0 | AA100: =IFERROR(VLOOKUP($A100,FILTRO_!$A$5:$AW$2499,26,FALSE),0) -> 0 | AB100: =IFERROR(VLOOKUP($A100,FILTRO_!$A$5:$AW$2499,27,FALSE),0) -> 0 | AC100: =IFERROR(VLOOKUP($A100,FILTRO_!$A$5:$AW$2499,28,FALSE),0) -> 0 | AD100: =IFERROR(VLOOKUP($A100,FILTRO_!$A$5:$AW$2499,29,FALSE),0) -> 0 | AE100: =IFERROR(VLOOKUP($A100,FILTRO_!$A$5:$AW$2499,30,FALSE),0) -> 0 | AF100: =IFERROR(VLOOKUP($A100,FILTRO_!$A$5:$AW$2499,31,FALSE),0) -> 0 | AG100: =IFERROR(VLOOKUP($A100,FILTRO_!$A$5:$AW$2499,32,FALSE),0) -> 0 | AH100: =IFERROR(VLOOKUP($A100,FILTRO_!$A$5:$AW$2499,33,FALSE),0) -> 0 | AI100: =IFERROR(VLOOKUP($A100,FILTRO_!$A$5:$AW$2499,34,FALSE),0) -> 0 | DA100: 0 | DB100: 0
A101: 01502040 | B101: SEGUIMIENTO A DISTANCIA CON RIESGO MODERADO (G2) | C101: =IFERROR(VLOOKUP($A101,FILTRO_!$A$5:$AW$2499,2,FALSE),0) -> 1 | D101: =IFERROR(VLOOKUP($A101,FILTRO_!$A$5:$AW$2499,3,FALSE),0) -> 0 | E101: =IFERROR(VLOOKUP($A101,FILTRO_!$A$5:$AW$2499,4,FALSE),0) -> 1 | F101: =IFERROR(VLOOKUP($A101,FILTRO_!$A$5:$AW$2499,5,FALSE),0) -> 0 | G101: =IFERROR(VLOOKUP($A101,FILTRO_!$A$5:$AW$2499,6,FALSE),0) -> 0 | H101: =IFERROR(VLOOKUP($A101,FILTRO_!$A$5:$AW$2499,7,FALSE),0) -> 0 | I101: =IFERROR(VLOOKUP($A101,FILTRO_!$A$5:$AW$2499,8,FALSE),0) -> 0 | J101: =IFERROR(VLOOKUP($A101,FILTRO_!$A$5:$AW$2499,9,FALSE),0) -> 0 | K101: =IFERROR(VLOOKUP($A101,FILTRO_!$A$5:$AW$2499,10,FALSE),0) -> 1 | L101: =IFERROR(VLOOKUP($A101,FILTRO_!$A$5:$AW$2499,11,FALSE),0) -> 0 | M101: =IFERROR(VLOOKUP($A101,FILTRO_!$A$5:$AW$2499,12,FALSE),0) -> 0 | N101: =IFERROR(VLOOKUP($A101,FILTRO_!$A$5:$AW$2499,13,FALSE),0) -> 0 | O101: =IFERROR(VLOOKUP($A101,FILTRO_!$A$5:$AW$2499,14,FALSE),0) -> 0 | P101: =IFERROR(VLOOKUP($A101,FILTRO_!$A$5:$AW$2499,15,FALSE),0) -> 0 | Q101: =IFERROR(VLOOKUP($A101,FILTRO_!$A$5:$AW$2499,16,FALSE),0) -> 0 | R101: =IFERROR(VLOOKUP($A101,FILTRO_!$A$5:$AW$2499,17,FALSE),0) -> 0 | S101: =IFERROR(VLOOKUP($A101,FILTRO_!$A$5:$AW$2499,18,FALSE),0) -> 0 | T101: =IFERROR(VLOOKUP($A101,FILTRO_!$A$5:$AW$2499,19,FALSE),0) -> 0 | U101: =IFERROR(VLOOKUP($A101,FILTRO_!$A$5:$AW$2499,20,FALSE),0) -> 0 | V101: =IFERROR(VLOOKUP($A101,FILTRO_!$A$5:$AW$2499,21,FALSE),0) -> 0 | W101: =IFERROR(VLOOKUP($A101,FILTRO_!$A$5:$AW$2499,22,FALSE),0) -> 0 | X101: =IFERROR(VLOOKUP($A101,FILTRO_!$A$5:$AW$2499,23,FALSE),0) -> 0 | Y101: =IFERROR(VLOOKUP($A101,FILTRO_!$A$5:$AW$2499,24,FALSE),0) -> 0 | Z101: =IFERROR(VLOOKUP($A101,FILTRO_!$A$5:$AW$2499,25,FALSE),0) -> 0 | AA101: =IFERROR(VLOOKUP($A101,FILTRO_!$A$5:$AW$2499,26,FALSE),0) -> 0 | AB101: =IFERROR(VLOOKUP($A101,FILTRO_!$A$5:$AW$2499,27,FALSE),0) -> 0 | AC101: =IFERROR(VLOOKUP($A101,FILTRO_!$A$5:$AW$2499,28,FALSE),0) -> 0 | AD101: =IFERROR(VLOOKUP($A101,FILTRO_!$A$5:$AW$2499,29,FALSE),0) -> 0 | AE101: =IFERROR(VLOOKUP($A101,FILTRO_!$A$5:$AW$2499,30,FALSE),0) -> 0 | AF101: =IFERROR(VLOOKUP($A101,FILTRO_!$A$5:$AW$2499,31,FALSE),0) -> 0 | AG101: =IFERROR(VLOOKUP($A101,FILTRO_!$A$5:$AW$2499,32,FALSE),0) -> 0 | AH101: =IFERROR(VLOOKUP($A101,FILTRO_!$A$5:$AW$2499,33,FALSE),0) -> 0 | AI101: =IFERROR(VLOOKUP($A101,FILTRO_!$A$5:$AW$2499,34,FALSE),0) -> 0 | DA101: 0 | DB101: 0
A102: 01501040 | B102: SEGUIMIENTO A DISTANCIA CON RIESGO ALTO (G3) | C102: =IFERROR(VLOOKUP($A102,FILTRO_!$A$5:$AW$2499,2,FALSE),0) -> 893 | D102: =IFERROR(VLOOKUP($A102,FILTRO_!$A$5:$AW$2499,3,FALSE),0) -> 274 | E102: =IFERROR(VLOOKUP($A102,FILTRO_!$A$5:$AW$2499,4,FALSE),0) -> 619 | F102: =IFERROR(VLOOKUP($A102,FILTRO_!$A$5:$AW$2499,5,FALSE),0) -> 0 | G102: =IFERROR(VLOOKUP($A102,FILTRO_!$A$5:$AW$2499,6,FALSE),0) -> 0 | H102: =IFERROR(VLOOKUP($A102,FILTRO_!$A$5:$AW$2499,7,FALSE),0) -> 0 | I102: =IFERROR(VLOOKUP($A102,FILTRO_!$A$5:$AW$2499,8,FALSE),0) -> 2 | J102: =IFERROR(VLOOKUP($A102,FILTRO_!$A$5:$AW$2499,9,FALSE),0) -> 0 | K102: =IFERROR(VLOOKUP($A102,FILTRO_!$A$5:$AW$2499,10,FALSE),0) -> 0 | L102: =IFERROR(VLOOKUP($A102,FILTRO_!$A$5:$AW$2499,11,FALSE),0) -> 2 | M102: =IFERROR(VLOOKUP($A102,FILTRO_!$A$5:$AW$2499,12,FALSE),0) -> 0 | N102: =IFERROR(VLOOKUP($A102,FILTRO_!$A$5:$AW$2499,13,FALSE),0) -> 0 | O102: =IFERROR(VLOOKUP($A102,FILTRO_!$A$5:$AW$2499,14,FALSE),0) -> 11 | P102: =IFERROR(VLOOKUP($A102,FILTRO_!$A$5:$AW$2499,15,FALSE),0) -> 0 | Q102: =IFERROR(VLOOKUP($A102,FILTRO_!$A$5:$AW$2499,16,FALSE),0) -> 11 | R102: =IFERROR(VLOOKUP($A102,FILTRO_!$A$5:$AW$2499,17,FALSE),0) -> 1 | S102: =IFERROR(VLOOKUP($A102,FILTRO_!$A$5:$AW$2499,18,FALSE),0) -> 10 | T102: =IFERROR(VLOOKUP($A102,FILTRO_!$A$5:$AW$2499,19,FALSE),0) -> 5 | U102: =IFERROR(VLOOKUP($A102,FILTRO_!$A$5:$AW$2499,20,FALSE),0) -> 57 | V102: =IFERROR(VLOOKUP($A102,FILTRO_!$A$5:$AW$2499,21,FALSE),0) -> 19 | W102: =IFERROR(VLOOKUP($A102,FILTRO_!$A$5:$AW$2499,22,FALSE),0) -> 91 | X102: =IFERROR(VLOOKUP($A102,FILTRO_!$A$5:$AW$2499,23,FALSE),0) -> 48 | Y102: =IFERROR(VLOOKUP($A102,FILTRO_!$A$5:$AW$2499,24,FALSE),0) -> 103 | Z102: =IFERROR(VLOOKUP($A102,FILTRO_!$A$5:$AW$2499,25,FALSE),0) -> 78 | AA102: =IFERROR(VLOOKUP($A102,FILTRO_!$A$5:$AW$2499,26,FALSE),0) -> 124 | AB102: =IFERROR(VLOOKUP($A102,FILTRO_!$A$5:$AW$2499,27,FALSE),0) -> 48 | AC102: =IFERROR(VLOOKUP($A102,FILTRO_!$A$5:$AW$2499,28,FALSE),0) -> 112 | AD102: =IFERROR(VLOOKUP($A102,FILTRO_!$A$5:$AW$2499,29,FALSE),0) -> 30 | AE102: =IFERROR(VLOOKUP($A102,FILTRO_!$A$5:$AW$2499,30,FALSE),0) -> 44 | AF102: =IFERROR(VLOOKUP($A102,FILTRO_!$A$5:$AW$2499,31,FALSE),0) -> 43 | AG102: =IFERROR(VLOOKUP($A102,FILTRO_!$A$5:$AW$2499,32,FALSE),0) -> 54 | AH102: =IFERROR(VLOOKUP($A102,FILTRO_!$A$5:$AW$2499,33,FALSE),0) -> 2 | AI102: =IFERROR(VLOOKUP($A102,FILTRO_!$A$5:$AW$2499,34,FALSE),0) -> 2 | DA102: 0 | DB102: 0
A105: CODIGOS NUEVOS
A106: 09600204
A107: 09600205
A108: 09600206
A109: CODIGOS ELIMINADOS
A110: 01200035
B193: =SUM(D12:D33,V32:W33,Y20:Y23,X14:X15,D37:D40,E37:F40,D45:F67,D71:D75,I71:I75,C80:C84,D88:D92,C97:C99) -> 605418 | C193: =SUM(DB1:EA99) -> 24

Sheet A02
B1: SERVICIO DE SALUD
B2: =CONCATENATE("COMUNA: ",#REF!," - ","( ",#REF!,#REF!,#REF!,#REF!,#REF!," )") -> 
B3: =CONCATENATE("ESTABLECIMIENTO/ESTRATEGIA: ",#REF!," - ","( ",#REF!,#REF!,#REF!,#REF!,#REF!,#REF!," )") -> 
B4: =CONCATENATE("MES: ",#REF!," - ","( ",#REF!,#REF!," )") -> 
B5: =CONCATENATE("AÑO: ",#REF!) -> 
B6: REM-A02. EXAMEN DE MEDICINA PREVENTIVA EN MAYORES DE 15 AÑOS
B8: SECCIÓN A: EMP REALIZADO POR PROFESIONAL
B9: PROFESIONAL | C9: TOTAL | F9: Pueblos Originarios | G9: Migrantes
C10: Ambos Sexos | D10: Hombres | E10: Mujeres
B11: TOTAL | C11: =SUM(C12:C17) -> 50423 | D11: =SUM(D12:D17) -> 17877 | E11: =SUM(E12:E17) -> 32588 | F11: =SUM(F12:F17) -> 117 | G11: =SUM(G12:G17) -> 576
A12: 03030101 | B12: MÉDICO/A | C12: =IFERROR(VLOOKUP($A12,FILTRO_!$A$5:$AW$2499,2,FALSE),0) -> 449 | D12: =IFERROR(VLOOKUP($A12,FILTRO_!$A$5:$AW$2499,3,FALSE),0) -> 160 | E12: =IFERROR(VLOOKUP($A12,FILTRO_!$A$5:$AW$2499,4,FALSE),0) -> 289 | F12: =IFERROR(VLOOKUP($A12,FILTRO_!$A$5:$AW$2499,5,FALSE),0) -> 0 | G12: =IFERROR(VLOOKUP($A12,FILTRO_!$A$5:$AW$2499,6,FALSE),0) -> 1
A13: 03030102 | B13: ENFERMERA/O | C13: =IFERROR(VLOOKUP($A13,FILTRO_!$A$5:$AW$2499,2,FALSE),0) -> 30772 | D13: =IFERROR(VLOOKUP($A13,FILTRO_!$A$5:$AW$2499,3,FALSE),0) -> 11662 | E13: =IFERROR(VLOOKUP($A13,FILTRO_!$A$5:$AW$2499,4,FALSE),0) -> 19113 | F13: =IFERROR(VLOOKUP($A13,FILTRO_!$A$5:$AW$2499,5,FALSE),0) -> 69 | G13: =IFERROR(VLOOKUP($A13,FILTRO_!$A$5:$AW$2499,6,FALSE),0) -> 247
A14: 03030103 | B14: MATRONA/ÓN | C14: =IFERROR(VLOOKUP($A14,FILTRO_!$A$5:$AW$2499,2,FALSE),0) -> 1649 | D14: =IFERROR(VLOOKUP($A14,FILTRO_!$A$5:$AW$2499,3,FALSE),0) -> 114 | E14: =IFERROR(VLOOKUP($A14,FILTRO_!$A$5:$AW$2499,4,FALSE),0) -> 1566 | F14: =IFERROR(VLOOKUP($A14,FILTRO_!$A$5:$AW$2499,5,FALSE),0) -> 4 | G14: =IFERROR(VLOOKUP($A14,FILTRO_!$A$5:$AW$2499,6,FALSE),0) -> 21
A15: 03030104 | B15: NUTRICIONISTA | C15: =IFERROR(VLOOKUP($A15,FILTRO_!$A$5:$AW$2499,2,FALSE),0) -> 3590 | D15: =IFERROR(VLOOKUP($A15,FILTRO_!$A$5:$AW$2499,3,FALSE),0) -> 1175 | E15: =IFERROR(VLOOKUP($A15,FILTRO_!$A$5:$AW$2499,4,FALSE),0) -> 2423 | F15: =IFERROR(VLOOKUP($A15,FILTRO_!$A$5:$AW$2499,5,FALSE),0) -> 1 | G15: =IFERROR(VLOOKUP($A15,FILTRO_!$A$5:$AW$2499,6,FALSE),0) -> 85
A16: 03030350 | B16: OTRO PROFESIONAL (capacitados en EMP Y EMPAM) | C16: =IFERROR(VLOOKUP($A16,FILTRO_!$A$5:$AW$2499,2,FALSE),0) -> 5996 | D16: =IFERROR(VLOOKUP($A16,FILTRO_!$A$5:$AW$2499,3,FALSE),0) -> 2209 | E16: =IFERROR(VLOOKUP($A16,FILTRO_!$A$5:$AW$2499,4,FALSE),0) -> 3787 | F16: =IFERROR(VLOOKUP($A16,FILTRO_!$A$5:$AW$2499,5,FALSE),0) -> 13 | G16: =IFERROR(VLOOKUP($A16,FILTRO_!$A$5:$AW$2499,6,FALSE),0) -> 99
A17: 03030110 | B17: TÉCNICO EN ENFERMERÍA | C17: =IFERROR(VLOOKUP($A17,FILTRO_!$A$5:$AW$2499,2,FALSE),0) -> 7967 | D17: =IFERROR(VLOOKUP($A17,FILTRO_!$A$5:$AW$2499,3,FALSE),0) -> 2557 | E17: =IFERROR(VLOOKUP($A17,FILTRO_!$A$5:$AW$2499,4,FALSE),0) -> 5410 | F17: =IFERROR(VLOOKUP($A17,FILTRO_!$A$5:$AW$2499,5,FALSE),0) -> 30 | G17: =IFERROR(VLOOKUP($A17,FILTRO_!$A$5:$AW$2499,6,FALSE),0) -> 123
B18: SECCIÓN B: EMP SEGÚN RESULTADO DEL ESTADO NUTRICIONAL
B19: ESTADO NUTRICIONAL | C19: TOTAL | F19: 15 a 19 años | H19: 20 a 24 años | J19: 25 a 29 años | L19: 30 a 34 años | N19: 35 a 39 años | P19: 40 a 44 años | R19: 45 a 49 años | T19: 50 a 54 años | V19: 55 a 59 años | X19: 60 a 64 años | Z19: 65 a 69 años | AB19: 70 a 74 años | AD19: 75 a 79 años | AF19: 80 y más años | AH19: Pueblos Originarios | AI19: Migrantes
C20: Ambos Sexos | D20: Hombres | E20: Mujeres | F20: Hombres | G20: Mujeres | H20: Hombres | I20: Mujeres | J20: Hombres | K20: Mujeres | L20: Hombres | M20: Mujeres | N20: Hombres | O20: Mujeres | P20: Hombres | Q20: Mujeres | R20: Hombres | S20: Mujeres | T20: Hombres | U20: Mujeres | V20: Hombres | W20: Mujeres | X20: Hombres | Y20: Mujeres | Z20: Hombres | AA20: Mujeres | AB20: Hombres | AC20: Mujeres | AD20: Hombres | AE20: Mujeres | AF20: Hombres | AG20: Mujeres
B21: TOTAL | C21: =SUM(C22:C25) -> 50207 | D21: =SUM(D22:D25) -> 17719 | E21: =SUM(E22:E25) -> 32488 | F21: =SUM(F22:F25) -> 135 | G21: 266 | H21: 1123 | I21: 2366 | J21: 1153 | K21: 2646 | L21: 1288 | M21: 2965 | N21: 1137 | O21: 2736 | P21: 1106 | Q21: 2434 | R21: 1085 | S21: 2288 | T21: 1097 | U21: 2035 | V21: 1030 | W21: 1604 | X21: 835 | Y21: 1223 | Z21: 1915 | AA21: 3086 | AB21: 1897 | AC21: 2837 | AD21: 1703 | AE21: 2454 | AF21: 2215 | AG21: 3558 | AH21: =SUM(AH22:AH25) -> 120 | AI21: =SUM(AI22:AI25) -> 500 | CA21: * Debe coincidir el total de EMP según Estado Nutricional con EMP realizado según profesional. | DA21: 1 | DB21: 0
A22: 03030330 | B22: NORMAL | C22: =IFERROR(VLOOKUP($A22,FILTRO_!$A$5:$AW$2499,2,FALSE),0) -> 15266 | D22: =IFERROR(VLOOKUP($A22,FILTRO_!$A$5:$AW$2499,3,FALSE),0) -> 5883 | E22: =IFERROR(VLOOKUP($A22,FILTRO_!$A$5:$AW$2499,4,FALSE),0) -> 9383 | F22: =IFERROR(VLOOKUP($A22,FILTRO_!$A$5:$AW$2499,5,FALSE),0) -> 65 | G22: =IFERROR(VLOOKUP($A22,FILTRO_!$A$5:$AW$2499,6,FALSE),0) -> 117 | H22: =IFERROR(VLOOKUP($A22,FILTRO_!$A$5:$AW$2499,7,FALSE),0) -> 502 | I22: =IFERROR(VLOOKUP($A22,FILTRO_!$A$5:$AW$2499,8,FALSE),0) -> 863 | J22: =IFERROR(VLOOKUP($A22,FILTRO_!$A$5:$AW$2499,9,FALSE),0) -> 370 | K22: =IFERROR(VLOOKUP($A22,FILTRO_!$A$5:$AW$2499,10,FALSE),0) -> 778 | L22: =IFERROR(VLOOKUP($A22,FILTRO_!$A$5:$AW$2499,11,FALSE),0) -> 325 | M22: =IFERROR(VLOOKUP($A22,FILTRO_!$A$5:$AW$2499,12,FALSE),0) -> 774 | N22: =IFERROR(VLOOKUP($A22,FILTRO_!$A$5:$AW$2499,13,FALSE),0) -> 251 | O22: =IFERROR(VLOOKUP($A22,FILTRO_!$A$5:$AW$2499,14,FALSE),0) -> 626 | P22: =IFERROR(VLOOKUP($A22,FILTRO_!$A$5:$AW$2499,15,FALSE),0) -> 221 | Q22: =IFERROR(VLOOKUP($A22,FILTRO_!$A$5:$AW$2499,16,FALSE),0) -> 548 | R22: =IFERROR(VLOOKUP($A22,FILTRO_!$A$5:$AW$2499,17,FALSE),0) -> 218 | S22: =IFERROR(VLOOKUP($A22,FILTRO_!$A$5:$AW$2499,18,FALSE),0) -> 511 | T22: =IFERROR(VLOOKUP($A22,FILTRO_!$A$5:$AW$2499,19,FALSE),0) -> 214 | U22: =IFERROR(VLOOKUP($A22,FILTRO_!$A$5:$AW$2499,20,FALSE),0) -> 380 | V22: =IFERROR(VLOOKUP($A22,FILTRO_!$A$5:$AW$2499,21,FALSE),0) -> 202 | W22: =IFERROR(VLOOKUP($A22,FILTRO_!$A$5:$AW$2499,22,FALSE),0) -> 329 | X22: =IFERROR(VLOOKUP($A22,FILTRO_!$A$5:$AW$2499,23,FALSE),0) -> 188 | Y22: =IFERROR(VLOOKUP($A22,FILTRO_!$A$5:$AW$2499,24,FALSE),0) -> 313 | Z22: =IFERROR(VLOOKUP($A22,FILTRO_!$A$5:$AW$2499,25,FALSE),0) -> 722 | AA22: =IFERROR(VLOOKUP($A22,FILTRO_!$A$5:$AW$2499,26,FALSE),0) -> 947 | AB22: =IFERROR(VLOOKUP($A22,FILTRO_!$A$5:$AW$2499,27,FALSE),0) -> 767 | AC22: =IFERROR(VLOOKUP($A22,FILTRO_!$A$5:$AW$2499,28,FALSE),0) -> 907 | AD22: =IFERROR(VLOOKUP($A22,FILTRO_!$A$5:$AW$2499,29,FALSE),0) -> 751 | AE22: =IFERROR(VLOOKUP($A22,FILTRO_!$A$5:$AW$2499,30,FALSE),0) -> 857 | AF22: =IFERROR(VLOOKUP($A22,FILTRO_!$A$5:$AW$2499,31,FALSE),0) -> 1087 | AG22: =IFERROR(VLOOKUP($A22,FILTRO_!$A$5:$AW$2499,32,FALSE),0) -> 1434 | AH22: =IFERROR(VLOOKUP($A22,FILTRO_!$A$5:$AW$2499,33,FALSE),0) -> 36 | AI22: =IFERROR(VLOOKUP($A22,FILTRO_!$A$5:$AW$2499,34,FALSE),0) -> 114
A23: 03030340 | B23: BAJO PESO | C23: =IFERROR(VLOOKUP($A23,FILTRO_!$A$5:$AW$2499,2,FALSE),0) -> 2151 | D23: =IFERROR(VLOOKUP($A23,FILTRO_!$A$5:$AW$2499,3,FALSE),0) -> 847 | E23: =IFERROR(VLOOKUP($A23,FILTRO_!$A$5:$AW$2499,4,FALSE),0) -> 1304 | F23: =IFERROR(VLOOKUP($A23,FILTRO_!$A$5:$AW$2499,5,FALSE),0) -> 19 | G23: =IFERROR(VLOOKUP($A23,FILTRO_!$A$5:$AW$2499,6,FALSE),0) -> 5 | H23: =IFERROR(VLOOKUP($A23,FILTRO_!$A$5:$AW$2499,7,FALSE),0) -> 26 | I23: =IFERROR(VLOOKUP($A23,FILTRO_!$A$5:$AW$2499,8,FALSE),0) -> 62 | J23: =IFERROR(VLOOKUP($A23,FILTRO_!$A$5:$AW$2499,9,FALSE),0) -> 16 | K23: =IFERROR(VLOOKUP($A23,FILTRO_!$A$5:$AW$2499,10,FALSE),0) -> 29 | L23: =IFERROR(VLOOKUP($A23,FILTRO_!$A$5:$AW$2499,11,FALSE),0) -> 16 | M23: =IFERROR(VLOOKUP($A23,FILTRO_!$A$5:$AW$2499,12,FALSE),0) -> 24 | N23: =IFERROR(VLOOKUP($A23,FILTRO_!$A$5:$AW$2499,13,FALSE),0) -> 2 | O23: =IFERROR(VLOOKUP($A23,FILTRO_!$A$5:$AW$2499,14,FALSE),0) -> 18 | P23: =IFERROR(VLOOKUP($A23,FILTRO_!$A$5:$AW$2499,15,FALSE),0) -> 3 | Q23: =IFERROR(VLOOKUP($A23,FILTRO_!$A$5:$AW$2499,16,FALSE),0) -> 12 | R23: =IFERROR(VLOOKUP($A23,FILTRO_!$A$5:$AW$2499,17,FALSE),0) -> 6 | S23: =IFERROR(VLOOKUP($A23,FILTRO_!$A$5:$AW$2499,18,FALSE),0) -> 15 | T23: =IFERROR(VLOOKUP($A23,FILTRO_!$A$5:$AW$2499,19,FALSE),0) -> 5 | U23: =IFERROR(VLOOKUP($A23,FILTRO_!$A$5:$AW$2499,20,FALSE),0) -> 13 | V23: =IFERROR(VLOOKUP($A23,FILTRO_!$A$5:$AW$2499,21,FALSE),0) -> 5 | W23: =IFERROR(VLOOKUP($A23,FILTRO_!$A$5:$AW$2499,22,FALSE),0) -> 13 | X23: =IFERROR(VLOOKUP($A23,FILTRO_!$A$5:$AW$2499,23,FALSE),0) -> 10 | Y23: =IFERROR(VLOOKUP($A23,FILTRO_!$A$5:$AW$2499,24,FALSE),0) -> 12 | Z23: =IFERROR(VLOOKUP($A23,FILTRO_!$A$5:$AW$2499,25,FALSE),0) -> 103 | AA23: =IFERROR(VLOOKUP($A23,FILTRO_!$A$5:$AW$2499,26,FALSE),0) -> 159 | AB23: =IFERROR(VLOOKUP($A23,FILTRO_!$A$5:$AW$2499,27,FALSE),0) -> 147 | AC23: =IFERROR(VLOOKUP($A23,FILTRO_!$A$5:$AW$2499,28,FALSE),0) -> 181 | AD23: =IFERROR(VLOOKUP($A23,FILTRO_!$A$5:$AW$2499,29,FALSE),0) -> 148 | AE23: =IFERROR(VLOOKUP($A23,FILTRO_!$A$5:$AW$2499,30,FALSE),0) -> 190 | AF23: =IFERROR(VLOOKUP($A23,FILTRO_!$A$5:$AW$2499,31,FALSE),0) -> 341 | AG23: =IFERROR(VLOOKUP($A23,FILTRO_!$A$5:$AW$2499,32,FALSE),0) -> 571 | AH23: =IFERROR(VLOOKUP($A23,FILTRO_!$A$5:$AW$2499,33,FALSE),0) -> 11 | AI23: =IFERROR(VLOOKUP($A23,FILTRO_!$A$5:$AW$2499,34,FALSE),0) -> 45
A24: 03030120 | B24: SOBREPESO | C24: =IFERROR(VLOOKUP($A24,FILTRO_!$A$5:$AW$2499,2,FALSE),0) -> 17794 | D24: =IFERROR(VLOOKUP($A24,FILTRO_!$A$5:$AW$2499,3,FALSE),0) -> 6752 | E24: =IFERROR(VLOOKUP($A24,FILTRO_!$A$5:$AW$2499,4,FALSE),0) -> 11042 | F24: =IFERROR(VLOOKUP($A24,FILTRO_!$A$5:$AW$2499,5,FALSE),0) -> 29 | G24: =IFERROR(VLOOKUP($A24,FILTRO_!$A$5:$AW$2499,6,FALSE),0) -> 67 | H24: =IFERROR(VLOOKUP($A24,FILTRO_!$A$5:$AW$2499,7,FALSE),0) -> 358 | I24: =IFERROR(VLOOKUP($A24,FILTRO_!$A$5:$AW$2499,8,FALSE),0) -> 719 | J24: =IFERROR(VLOOKUP($A24,FILTRO_!$A$5:$AW$2499,9,FALSE),0) -> 443 | K24: =IFERROR(VLOOKUP($A24,FILTRO_!$A$5:$AW$2499,10,FALSE),0) -> 885 | L24: =IFERROR(VLOOKUP($A24,FILTRO_!$A$5:$AW$2499,11,FALSE),0) -> 566 | M24: =IFERROR(VLOOKUP($A24,FILTRO_!$A$5:$AW$2499,12,FALSE),0) -> 1027 | N24: =IFERROR(VLOOKUP($A24,FILTRO_!$A$5:$AW$2499,13,FALSE),0) -> 534 | O24: =IFERROR(VLOOKUP($A24,FILTRO_!$A$5:$AW$2499,14,FALSE),0) -> 1060 | P24: =IFERROR(VLOOKUP($A24,FILTRO_!$A$5:$AW$2499,15,FALSE),0) -> 502 | Q24: =IFERROR(VLOOKUP($A24,FILTRO_!$A$5:$AW$2499,16,FALSE),0) -> 935 | R24: =IFERROR(VLOOKUP($A24,FILTRO_!$A$5:$AW$2499,17,FALSE),0) -> 515 | S24: =IFERROR(VLOOKUP($A24,FILTRO_!$A$5:$AW$2499,18,FALSE),0) -> 919 | T24: =IFERROR(VLOOKUP($A24,FILTRO_!$A$5:$AW$2499,19,FALSE),0) -> 510 | U24: =IFERROR(VLOOKUP($A24,FILTRO_!$A$5:$AW$2499,20,FALSE),0) -> 875 | V24: =IFERROR(VLOOKUP($A24,FILTRO_!$A$5:$AW$2499,21,FALSE),0) -> 507 | W24: =IFERROR(VLOOKUP($A24,FILTRO_!$A$5:$AW$2499,22,FALSE),0) -> 668 | X24: =IFERROR(VLOOKUP($A24,FILTRO_!$A$5:$AW$2499,23,FALSE),0) -> 410 | Y24: =IFERROR(VLOOKUP($A24,FILTRO_!$A$5:$AW$2499,24,FALSE),0) -> 469 | Z24: =IFERROR(VLOOKUP($A24,FILTRO_!$A$5:$AW$2499,25,FALSE),0) -> 657 | AA24: =IFERROR(VLOOKUP($A24,FILTRO_!$A$5:$AW$2499,26,FALSE),0) -> 927 | AB24: =IFERROR(VLOOKUP($A24,FILTRO_!$A$5:$AW$2499,27,FALSE),0) -> 635 | AC24: =IFERROR(VLOOKUP($A24,FILTRO_!$A$5:$AW$2499,28,FALSE),0) -> 862 | AD24: =IFERROR(VLOOKUP($A24,FILTRO_!$A$5:$AW$2499,29,FALSE),0) -> 538 | AE24: =IFERROR(VLOOKUP($A24,FILTRO_!$A$5:$AW$2499,30,FALSE),0) -> 771 | AF24: =IFERROR(VLOOKUP($A24,FILTRO_!$A$5:$AW$2499,31,FALSE),0) -> 548 | AG24: =IFERROR(VLOOKUP($A24,FILTRO_!$A$5:$AW$2499,32,FALSE),0) -> 861 | AH24: =IFERROR(VLOOKUP($A24,FILTRO_!$A$5:$AW$2499,33,FALSE),0) -> 36 | AI24: =IFERROR(VLOOKUP($A24,FILTRO_!$A$5:$AW$2499,34,FALSE),0) -> 179
A25: 03030130 | B25: OBESOS | C25: =IFERROR(VLOOKUP($A25,FILTRO_!$A$5:$AW$2499,2,FALSE),0) -> 14996 | D25: =IFERROR(VLOOKUP($A25,FILTRO_!$A$5:$AW$2499,3,FALSE),0) -> 4237 | E25: =IFERROR(VLOOKUP($A25,FILTRO_!$A$5:$AW$2499,4,FALSE),0) -> 10759 | F25: =IFERROR(VLOOKUP($A25,FILTRO_!$A$5:$AW$2499,5,FALSE),0) -> 22 | G25: =IFERROR(VLOOKUP($A25,FILTRO_!$A$5:$AW$2499,6,FALSE),0) -> 77 | H25: =IFERROR(VLOOKUP($A25,FILTRO_!$A$5:$AW$2499,7,FALSE),0) -> 237 | I25: =IFERROR(VLOOKUP($A25,FILTRO_!$A$5:$AW$2499,8,FALSE),0) -> 722 | J25: =IFERROR(VLOOKUP($A25,FILTRO_!$A$5:$AW$2499,9,FALSE),0) -> 324 | K25: =IFERROR(VLOOKUP($A25,FILTRO_!$A$5:$AW$2499,10,FALSE),0) -> 954 | L25: =IFERROR(VLOOKUP($A25,FILTRO_!$A$5:$AW$2499,11,FALSE),0) -> 381 | M25: =IFERROR(VLOOKUP($A25,FILTRO_!$A$5:$AW$2499,12,FALSE),0) -> 1140 | N25: =IFERROR(VLOOKUP($A25,FILTRO_!$A$5:$AW$2499,13,FALSE),0) -> 350 | O25: =IFERROR(VLOOKUP($A25,FILTRO_!$A$5:$AW$2499,14,FALSE),0) -> 1032 | P25: =IFERROR(VLOOKUP($A25,FILTRO_!$A$5:$AW$2499,15,FALSE),0) -> 380 | Q25: =IFERROR(VLOOKUP($A25,FILTRO_!$A$5:$AW$2499,16,FALSE),0) -> 939 | R25: =IFERROR(VLOOKUP($A25,FILTRO_!$A$5:$AW$2499,17,FALSE),0) -> 346 | S25: =IFERROR(VLOOKUP($A25,FILTRO_!$A$5:$AW$2499,18,FALSE),0) -> 843 | T25: =IFERROR(VLOOKUP($A25,FILTRO_!$A$5:$AW$2499,19,FALSE),0) -> 368 | U25: =IFERROR(VLOOKUP($A25,FILTRO_!$A$5:$AW$2499,20,FALSE),0) -> 767 | V25: =IFERROR(VLOOKUP($A25,FILTRO_!$A$5:$AW$2499,21,FALSE),0) -> 316 | W25: =IFERROR(VLOOKUP($A25,FILTRO_!$A$5:$AW$2499,22,FALSE),0) -> 594 | X25: =IFERROR(VLOOKUP($A25,FILTRO_!$A$5:$AW$2499,23,FALSE),0) -> 227 | Y25: =IFERROR(VLOOKUP($A25,FILTRO_!$A$5:$AW$2499,24,FALSE),0) -> 429 | Z25: =IFERROR(VLOOKUP($A25,FILTRO_!$A$5:$AW$2499,25,FALSE),0) -> 433 | AA25: =IFERROR(VLOOKUP($A25,FILTRO_!$A$5:$AW$2499,26,FALSE),0) -> 1053 | AB25: =IFERROR(VLOOKUP($A25,FILTRO_!$A$5:$AW$2499,27,FALSE),0) -> 348 | AC25: =IFERROR(VLOOKUP($A25,FILTRO_!$A$5:$AW$2499,28,FALSE),0) -> 887 | AD25: =IFERROR(VLOOKUP($A25,FILTRO_!$A$5:$AW$2499,29,FALSE),0) -> 266 | AE25: =IFERROR(VLOOKUP($A25,FILTRO_!$A$5:$AW$2499,30,FALSE),0) -> 636 | AF25: =IFERROR(VLOOKUP($A25,FILTRO_!$A$5:$AW$2499,31,FALSE),0) -> 239 | AG25: =IFERROR(VLOOKUP($A25,FILTRO_!$A$5:$AW$2499,32,FALSE),0) -> 692 | AH25: =IFERROR(VLOOKUP($A25,FILTRO_!$A$5:$AW$2499,33,FALSE),0) -> 37 | AI25: =IFERROR(VLOOKUP($A25,FILTRO_!$A$5:$AW$2499,34,FALSE),0) -> 162
B26: SECCIÓN C: RESULTADOS DE EMP SEGÚN ESTADO DE SALUD
B27: ESTADO DE SALUD | C27: TOTAL | F27: 15 a 19 años | H27: 20 a 24 años | J27: 25 a 29 años | L27: 30 a 34 años | N27: 35 a 39 años | P27: 40 a 44 años | R27: 45 a 49 años | T27: 50 a 54 años | V27: 55 a 59 años | X27: 60 a 64 años | Z27: 65 a 69 años | AB27: 70 a 74 años | AD27: 75 a 79 años | AF27: 80 y más años | AH27: Pueblos Originarios | AI27: Migrantes
C28: Ambos Sexos | D28: Hombres | E28: Mujeres | F28: Hombres | G28: Mujeres | H28: Hombres | I28: Mujeres | J28: Hombres | K28: Mujeres | L28: Hombres | M28: Mujeres | N28: Hombres | O28: Mujeres | P28: Hombres | Q28: Mujeres | R28: Hombres | S28: Mujeres | T28: Hombres | U28: Mujeres | V28: Hombres | W28: Mujeres | X28: Hombres | Y28: Mujeres | Z28: Hombres | AA28: Mujeres | AB28: Hombres | AC28: Mujeres | AD28: Hombres | AE28: Mujeres | AF28: Hombres | AG28: Mujeres
A29: 02200010 | B29: TABAQUISMO | C29: =IFERROR(VLOOKUP($A29,FILTRO_!$A$5:$AW$2499,2,FALSE),0) -> 8562 | D29: =IFERROR(VLOOKUP($A29,FILTRO_!$A$5:$AW$2499,3,FALSE),0) -> 3221 | E29: =IFERROR(VLOOKUP($A29,FILTRO_!$A$5:$AW$2499,4,FALSE),0) -> 5341 | F29: =IFERROR(VLOOKUP($A29,FILTRO_!$A$5:$AW$2499,5,FALSE),0) -> 8 | G29: =IFERROR(VLOOKUP($A29,FILTRO_!$A$5:$AW$2499,6,FALSE),0) -> 18 | H29: =IFERROR(VLOOKUP($A29,FILTRO_!$A$5:$AW$2499,7,FALSE),0) -> 308 | I29: =IFERROR(VLOOKUP($A29,FILTRO_!$A$5:$AW$2499,8,FALSE),0) -> 543 | J29: =IFERROR(VLOOKUP($A29,FILTRO_!$A$5:$AW$2499,9,FALSE),0) -> 344 | K29: =IFERROR(VLOOKUP($A29,FILTRO_!$A$5:$AW$2499,10,FALSE),0) -> 597 | L29: =IFERROR(VLOOKUP($A29,FILTRO_!$A$5:$AW$2499,11,FALSE),0) -> 375 | M29: =IFERROR(VLOOKUP($A29,FILTRO_!$A$5:$AW$2499,12,FALSE),0) -> 752 | N29: =IFERROR(VLOOKUP($A29,FILTRO_!$A$5:$AW$2499,13,FALSE),0) -> 361 | O29: =IFERROR(VLOOKUP($A29,FILTRO_!$A$5:$AW$2499,14,FALSE),0) -> 704 | P29: =IFERROR(VLOOKUP($A29,FILTRO_!$A$5:$AW$2499,15,FALSE),0) -> 379 | Q29: =IFERROR(VLOOKUP($A29,FILTRO_!$A$5:$AW$2499,16,FALSE),0) -> 616 | R29: =IFERROR(VLOOKUP($A29,FILTRO_!$A$5:$AW$2499,17,FALSE),0) -> 320 | S29: =IFERROR(VLOOKUP($A29,FILTRO_!$A$5:$AW$2499,18,FALSE),0) -> 595 | T29: =IFERROR(VLOOKUP($A29,FILTRO_!$A$5:$AW$2499,19,FALSE),0) -> 326 | U29: =IFERROR(VLOOKUP($A29,FILTRO_!$A$5:$AW$2499,20,FALSE),0) -> 498 | V29: =IFERROR(VLOOKUP($A29,FILTRO_!$A$5:$AW$2499,21,FALSE),0) -> 269 | W29: =IFERROR(VLOOKUP($A29,FILTRO_!$A$5:$AW$2499,22,FALSE),0) -> 339 | X29: =IFERROR(VLOOKUP($A29,FILTRO_!$A$5:$AW$2499,23,FALSE),0) -> 170 | Y29: =IFERROR(VLOOKUP($A29,FILTRO_!$A$5:$AW$2499,24,FALSE),0) -> 232 | Z29: =IFERROR(VLOOKUP($A29,FILTRO_!$A$5:$AW$2499,25,FALSE),0) -> 131 | AA29: =IFERROR(VLOOKUP($A29,FILTRO_!$A$5:$AW$2499,26,FALSE),0) -> 190 | AB29: =IFERROR(VLOOKUP($A29,FILTRO_!$A$5:$AW$2499,27,FALSE),0) -> 104 | AC29: =IFERROR(VLOOKUP($A29,FILTRO_!$A$5:$AW$2499,28,FALSE),0) -> 125 | AD29: =IFERROR(VLOOKUP($A29,FILTRO_!$A$5:$AW$2499,29,FALSE),0) -> 74 | AE29: =IFERROR(VLOOKUP($A29,FILTRO_!$A$5:$AW$2499,30,FALSE),0) -> 74 | AF29: =IFERROR(VLOOKUP($A29,FILTRO_!$A$5:$AW$2499,31,FALSE),0) -> 52 | AG29: =IFERROR(VLOOKUP($A29,FILTRO_!$A$5:$AW$2499,32,FALSE),0) -> 59 | AH29: =IFERROR(VLOOKUP($A29,FILTRO_!$A$5:$AW$2499,33,FALSE),0) -> 15 | AI29: =IFERROR(VLOOKUP($A29,FILTRO_!$A$5:$AW$2499,34,FALSE),0) -> 42
A30: 02200020 | B30: PRESIÓN ARTERIAL ELEVADA (= >140/90 mmHg) | C30: =IFERROR(VLOOKUP($A30,FILTRO_!$A$5:$AW$2499,2,FALSE),0) -> 7490 | D30: =IFERROR(VLOOKUP($A30,FILTRO_!$A$5:$AW$2499,3,FALSE),0) -> 3268 | E30: =IFERROR(VLOOKUP($A30,FILTRO_!$A$5:$AW$2499,4,FALSE),0) -> 4222 | F30: =IFERROR(VLOOKUP($A30,FILTRO_!$A$5:$AW$2499,5,FALSE),0) -> 13 | G30: =IFERROR(VLOOKUP($A30,FILTRO_!$A$5:$AW$2499,6,FALSE),0) -> 24 | H30: =IFERROR(VLOOKUP($A30,FILTRO_!$A$5:$AW$2499,7,FALSE),0) -> 99 | I30: =IFERROR(VLOOKUP($A30,FILTRO_!$A$5:$AW$2499,8,FALSE),0) -> 99 | J30: =IFERROR(VLOOKUP($A30,FILTRO_!$A$5:$AW$2499,9,FALSE),0) -> 111 | K30: =IFERROR(VLOOKUP($A30,FILTRO_!$A$5:$AW$2499,10,FALSE),0) -> 104 | L30: =IFERROR(VLOOKUP($A30,FILTRO_!$A$5:$AW$2499,11,FALSE),0) -> 136 | M30: =IFERROR(VLOOKUP($A30,FILTRO_!$A$5:$AW$2499,12,FALSE),0) -> 163 | N30: =IFERROR(VLOOKUP($A30,FILTRO_!$A$5:$AW$2499,13,FALSE),0) -> 142 | O30: =IFERROR(VLOOKUP($A30,FILTRO_!$A$5:$AW$2499,14,FALSE),0) -> 219 | P30: =IFERROR(VLOOKUP($A30,FILTRO_!$A$5:$AW$2499,15,FALSE),0) -> 181 | Q30: =IFERROR(VLOOKUP($A30,FILTRO_!$A$5:$AW$2499,16,FALSE),0) -> 245 | R30: =IFERROR(VLOOKUP($A30,FILTRO_!$A$5:$AW$2499,17,FALSE),0) -> 225 | S30: =IFERROR(VLOOKUP($A30,FILTRO_!$A$5:$AW$2499,18,FALSE),0) -> 299 | T30: =IFERROR(VLOOKUP($A30,FILTRO_!$A$5:$AW$2499,19,FALSE),0) -> 291 | U30: =IFERROR(VLOOKUP($A30,FILTRO_!$A$5:$AW$2499,20,FALSE),0) -> 343 | V30: =IFERROR(VLOOKUP($A30,FILTRO_!$A$5:$AW$2499,21,FALSE),0) -> 279 | W30: =IFERROR(VLOOKUP($A30,FILTRO_!$A$5:$AW$2499,22,FALSE),0) -> 260 | X30: =IFERROR(VLOOKUP($A30,FILTRO_!$A$5:$AW$2499,23,FALSE),0) -> 221 | Y30: =IFERROR(VLOOKUP($A30,FILTRO_!$A$5:$AW$2499,24,FALSE),0) -> 234 | Z30: =IFERROR(VLOOKUP($A30,FILTRO_!$A$5:$AW$2499,25,FALSE),0) -> 417 | AA30: =IFERROR(VLOOKUP($A30,FILTRO_!$A$5:$AW$2499,26,FALSE),0) -> 548 | AB30: =IFERROR(VLOOKUP($A30,FILTRO_!$A$5:$AW$2499,27,FALSE),0) -> 398 | AC30: =IFERROR(VLOOKUP($A30,FILTRO_!$A$5:$AW$2499,28,FALSE),0) -> 529 | AD30: =IFERROR(VLOOKUP($A30,FILTRO_!$A$5:$AW$2499,29,FALSE),0) -> 378 | AE30: =IFERROR(VLOOKUP($A30,FILTRO_!$A$5:$AW$2499,30,FALSE),0) -> 503 | AF30: =IFERROR(VLOOKUP($A30,FILTRO_!$A$5:$AW$2499,31,FALSE),0) -> 377 | AG30: =IFERROR(VLOOKUP($A30,FILTRO_!$A$5:$AW$2499,32,FALSE),0) -> 652 | AH30: =IFERROR(VLOOKUP($A30,FILTRO_!$A$5:$AW$2499,33,FALSE),0) -> 21 | AI30: =IFERROR(VLOOKUP($A30,FILTRO_!$A$5:$AW$2499,34,FALSE),0) -> 54
B31: SECCIÓN D: RESULTADOS DE EMP SEGÚN ESTADO DE SALUD (EXÁMENES DE LABORATORIO)
B32: ESTADO DE SALUD | C32: TOTAL | F32: 15 a 19 años | H32: 20 a 24 años | J32: 25 a 29 años | L32: 30 a 34 años | N32: 35 a 39 años | P32: 40 a 44 años | R32: 45 a 49 años | T32: 50 a 54 años | V32: 55 a 59 años | X32: 60 a 64 años | Z32: 65 a 69 años | AB32: 70 a 74 años | AD32: 75 a 79 años | AF32: 80 y más años | AH32: Pueblos Originarios | AI32: Migrantes
C33: Ambos Sexos | D33: Hombres | E33: Mujeres | F33: Hombres | G33: Mujeres | H33: Hombres | I33: Mujeres | J33: Hombres | K33: Mujeres | L33: Hombres | M33: Mujeres | N33: Hombres | O33: Mujeres | P33: Hombres | Q33: Mujeres | R33: Hombres | S33: Mujeres | T33: Hombres | U33: Mujeres | V33: Hombres | W33: Mujeres | X33: Hombres | Y33: Mujeres | Z33: Hombres | AA33: Mujeres | AB33: Hombres | AC33: Mujeres | AD33: Hombres | AE33: Mujeres | AF33: Hombres | AG33: Mujeres
A34: 02200030 | B34: GLICEMIA ALTERADA (= > a 100 mg/dl) | C34: =IFERROR(VLOOKUP($A34,FILTRO_!$A$5:$AW$2499,2,FALSE),0) -> 6324 | D34: =IFERROR(VLOOKUP($A34,FILTRO_!$A$5:$AW$2499,3,FALSE),0) -> 2204 | E34: =IFERROR(VLOOKUP($A34,FILTRO_!$A$5:$AW$2499,4,FALSE),0) -> 4120 | F34: =IFERROR(VLOOKUP($A34,FILTRO_!$A$5:$AW$2499,5,FALSE),0) -> 5 | G34: =IFERROR(VLOOKUP($A34,FILTRO_!$A$5:$AW$2499,6,FALSE),0) -> 11 | H34: =IFERROR(VLOOKUP($A34,FILTRO_!$A$5:$AW$2499,7,FALSE),0) -> 120 | I34: =IFERROR(VLOOKUP($A34,FILTRO_!$A$5:$AW$2499,8,FALSE),0) -> 282 | J34: =IFERROR(VLOOKUP($A34,FILTRO_!$A$5:$AW$2499,9,FALSE),0) -> 98 | K34: =IFERROR(VLOOKUP($A34,FILTRO_!$A$5:$AW$2499,10,FALSE),0) -> 318 | L34: =IFERROR(VLOOKUP($A34,FILTRO_!$A$5:$AW$2499,11,FALSE),0) -> 172 | M34: =IFERROR(VLOOKUP($A34,FILTRO_!$A$5:$AW$2499,12,FALSE),0) -> 366 | N34: =IFERROR(VLOOKUP($A34,FILTRO_!$A$5:$AW$2499,13,FALSE),0) -> 168 | O34: =IFERROR(VLOOKUP($A34,FILTRO_!$A$5:$AW$2499,14,FALSE),0) -> 389 | P34: =IFERROR(VLOOKUP($A34,FILTRO_!$A$5:$AW$2499,15,FALSE),0) -> 173 | Q34: =IFERROR(VLOOKUP($A34,FILTRO_!$A$5:$AW$2499,16,FALSE),0) -> 373 | R34: =IFERROR(VLOOKUP($A34,FILTRO_!$A$5:$AW$2499,17,FALSE),0) -> 170 | S34: =IFERROR(VLOOKUP($A34,FILTRO_!$A$5:$AW$2499,18,FALSE),0) -> 378 | T34: =IFERROR(VLOOKUP($A34,FILTRO_!$A$5:$AW$2499,19,FALSE),0) -> 220 | U34: =IFERROR(VLOOKUP($A34,FILTRO_!$A$5:$AW$2499,20,FALSE),0) -> 349 | V34: =IFERROR(VLOOKUP($A34,FILTRO_!$A$5:$AW$2499,21,FALSE),0) -> 192 | W34: =IFERROR(VLOOKUP($A34,FILTRO_!$A$5:$AW$2499,22,FALSE),0) -> 281 | X34: =IFERROR(VLOOKUP($A34,FILTRO_!$A$5:$AW$2499,23,FALSE),0) -> 163 | Y34: =IFERROR(VLOOKUP($A34,FILTRO_!$A$5:$AW$2499,24,FALSE),0) -> 239 | Z34: =IFERROR(VLOOKUP($A34,FILTRO_!$A$5:$AW$2499,25,FALSE),0) -> 211 | AA34: =IFERROR(VLOOKUP($A34,FILTRO_!$A$5:$AW$2499,26,FALSE),0) -> 354 | AB34: =IFERROR(VLOOKUP($A34,FILTRO_!$A$5:$AW$2499,27,FALSE),0) -> 203 | AC34: =IFERROR(VLOOKUP($A34,FILTRO_!$A$5:$AW$2499,28,FALSE),0) -> 271 | AD34: =IFERROR(VLOOKUP($A34,FILTRO_!$A$5:$AW$2499,29,FALSE),0) -> 153 | AE34: =IFERROR(VLOOKUP($A34,FILTRO_!$A$5:$AW$2499,30,FALSE),0) -> 240 | AF34: =IFERROR(VLOOKUP($A34,FILTRO_!$A$5:$AW$2499,31,FALSE),0) -> 156 | AG34: =IFERROR(VLOOKUP($A34,FILTRO_!$A$5:$AW$2499,32,FALSE),0) -> 269 | AH34: =IFERROR(VLOOKUP($A34,FILTRO_!$A$5:$AW$2499,33,FALSE),0) -> 18 | AI34: =IFERROR(VLOOKUP($A34,FILTRO_!$A$5:$AW$2499,34,FALSE),0) -> 74
A35: 02200040 | B35: COLESTEROL ELEVADO (= > 200 mg/dl) | C35: =IFERROR(VLOOKUP($A35,FILTRO_!$A$5:$AW$2499,2,FALSE),0) -> 2345 | D35: =IFERROR(VLOOKUP($A35,FILTRO_!$A$5:$AW$2499,3,FALSE),0) -> 770 | E35: =IFERROR(VLOOKUP($A35,FILTRO_!$A$5:$AW$2499,4,FALSE),0) -> 1575 | F35: =IFERROR(VLOOKUP($A35,FILTRO_!$A$5:$AW$2499,5,FALSE),0) -> 0 | G35: =IFERROR(VLOOKUP($A35,FILTRO_!$A$5:$AW$2499,6,FALSE),0) -> 2 | H35: =IFERROR(VLOOKUP($A35,FILTRO_!$A$5:$AW$2499,7,FALSE),0) -> 11 | I35: =IFERROR(VLOOKUP($A35,FILTRO_!$A$5:$AW$2499,8,FALSE),0) -> 31 | J35: =IFERROR(VLOOKUP($A35,FILTRO_!$A$5:$AW$2499,9,FALSE),0) -> 24 | K35: =IFERROR(VLOOKUP($A35,FILTRO_!$A$5:$AW$2499,10,FALSE),0) -> 48 | L35: =IFERROR(VLOOKUP($A35,FILTRO_!$A$5:$AW$2499,11,FALSE),0) -> 42 | M35: =IFERROR(VLOOKUP($A35,FILTRO_!$A$5:$AW$2499,12,FALSE),0) -> 68 | N35: =IFERROR(VLOOKUP($A35,FILTRO_!$A$5:$AW$2499,13,FALSE),0) -> 35 | O35: =IFERROR(VLOOKUP($A35,FILTRO_!$A$5:$AW$2499,14,FALSE),0) -> 78 | P35: =IFERROR(VLOOKUP($A35,FILTRO_!$A$5:$AW$2499,15,FALSE),0) -> 70 | Q35: =IFERROR(VLOOKUP($A35,FILTRO_!$A$5:$AW$2499,16,FALSE),0) -> 116 | R35: =IFERROR(VLOOKUP($A35,FILTRO_!$A$5:$AW$2499,17,FALSE),0) -> 71 | S35: =IFERROR(VLOOKUP($A35,FILTRO_!$A$5:$AW$2499,18,FALSE),0) -> 149 | T35: =IFERROR(VLOOKUP($A35,FILTRO_!$A$5:$AW$2499,19,FALSE),0) -> 61 | U35: =IFERROR(VLOOKUP($A35,FILTRO_!$A$5:$AW$2499,20,FALSE),0) -> 135 | V35: =IFERROR(VLOOKUP($A35,FILTRO_!$A$5:$AW$2499,21,FALSE),0) -> 76 | W35: =IFERROR(VLOOKUP($A35,FILTRO_!$A$5:$AW$2499,22,FALSE),0) -> 122 | X35: =IFERROR(VLOOKUP($A35,FILTRO_!$A$5:$AW$2499,23,FALSE),0) -> 54 | Y35: =IFERROR(VLOOKUP($A35,FILTRO_!$A$5:$AW$2499,24,FALSE),0) -> 101 | Z35: =IFERROR(VLOOKUP($A35,FILTRO_!$A$5:$AW$2499,25,FALSE),0) -> 102 | AA35: =IFERROR(VLOOKUP($A35,FILTRO_!$A$5:$AW$2499,26,FALSE),0) -> 236 | AB35: =IFERROR(VLOOKUP($A35,FILTRO_!$A$5:$AW$2499,27,FALSE),0) -> 90 | AC35: =IFERROR(VLOOKUP($A35,FILTRO_!$A$5:$AW$2499,28,FALSE),0) -> 202 | AD35: =IFERROR(VLOOKUP($A35,FILTRO_!$A$5:$AW$2499,29,FALSE),0) -> 71 | AE35: =IFERROR(VLOOKUP($A35,FILTRO_!$A$5:$AW$2499,30,FALSE),0) -> 138 | AF35: =IFERROR(VLOOKUP($A35,FILTRO_!$A$5:$AW$2499,31,FALSE),0) -> 63 | AG35: =IFERROR(VLOOKUP($A35,FILTRO_!$A$5:$AW$2499,32,FALSE),0) -> 149 | AH35: =IFERROR(VLOOKUP($A35,FILTRO_!$A$5:$AW$2499,33,FALSE),0) -> 6 | AI35: =IFERROR(VLOOKUP($A35,FILTRO_!$A$5:$AW$2499,34,FALSE),0) -> 12
B195: =SUM(C12:C17,C21:C25,C29:C30,C34:C35) -> 175558 | C195: =SUM(DB7:EA52) -> 0

Sheet A03
B1: SERVICIO DE SALUD
B2: =CONCATENATE("COMUNA: ",#REF!," - ","( ",#REF!,#REF!,#REF!,#REF!,#REF!," )") -> 
B3: =CONCATENATE("ESTABLECIMIENTO/ESTRATEGIA: ",#REF!," - ","( ",#REF!,#REF!,#REF!,#REF!,#REF!,#REF!," )") -> 
B4: =CONCATENATE("MES: ",#REF!," - ","( ",#REF!,#REF!," )") -> 
B5: =CONCATENATE("AÑO: ",#REF!) -> 
B6: REM-A03. APLICACIÓN Y RESULTADOS DE ESCALAS DE EVALUACIÓN
B7: SECCIÓN A: APLICACIÓN DE INSTRUMENTO Y RESULTADO EN EL NIÑO (A)
B8: SECCIÓN A.1: APLICACIÓN Y RESULTADOS DE PAUTA BREVE
B9: EVALUACIONES POR EDAD DEL NIÑO | D9: TOTAL | G9: GRUPO DE EDAD
G10: Menor de 1 mes | I10: 1 mes | K10: 2 meses | M10: 3 meses | O10: 4 meses | Q10: 5 meses | S10: 6 meses | U10: 7 - 11 meses | W10: 12 - 17 meses | Y10: 18 - 24 meses
D11: Ambos Sexos | E11: Hombres | F11: Mujeres | G11: Hombres | H11: Mujeres | I11: Hombres | J11: Mujeres | K11: Hombres | L11: Mujeres | M11: Hombres | N11: Mujeres | O11: Hombres | P11: Mujeres | Q11: Hombres | R11: Mujeres | S11: Hombres | T11: Mujeres | U11: Hombres | V11: Mujeres | W11: Hombres | X11: Mujeres | Y11: Hombres | Z11: Mujeres
A12: 02021730 | B12: APLICACIÓN PAUTA BREVE | D12: =IFERROR(VLOOKUP($A12,FILTRO_!$A$5:$AW$2499,2,FALSE),0) -> 7330 | E12: =IFERROR(VLOOKUP($A12,FILTRO_!$A$5:$AW$2499,3,FALSE),0) -> 3653 | F12: =IFERROR(VLOOKUP($A12,FILTRO_!$A$5:$AW$2499,4,FALSE),0) -> 3677 | G12: =IFERROR(VLOOKUP($A12,FILTRO_!$A$5:$AW$2499,5,FALSE),0) -> 3 | H12: =IFERROR(VLOOKUP($A12,FILTRO_!$A$5:$AW$2499,6,FALSE),0) -> 12 | I12: =IFERROR(VLOOKUP($A12,FILTRO_!$A$5:$AW$2499,7,FALSE),0) -> 34 | J12: =IFERROR(VLOOKUP($A12,FILTRO_!$A$5:$AW$2499,8,FALSE),0) -> 34 | K12: =IFERROR(VLOOKUP($A12,FILTRO_!$A$5:$AW$2499,9,FALSE),0) -> 1 | L12: =IFERROR(VLOOKUP($A12,FILTRO_!$A$5:$AW$2499,10,FALSE),0) -> 8 | M12: =IFERROR(VLOOKUP($A12,FILTRO_!$A$5:$AW$2499,11,FALSE),0) -> 39 | N12: =IFERROR(VLOOKUP($A12,FILTRO_!$A$5:$AW$2499,12,FALSE),0) -> 67 | O12: =IFERROR(VLOOKUP($A12,FILTRO_!$A$5:$AW$2499,13,FALSE),0) -> 1252 | P12: =IFERROR(VLOOKUP($A12,FILTRO_!$A$5:$AW$2499,14,FALSE),0) -> 1301 | Q12: =IFERROR(VLOOKUP($A12,FILTRO_!$A$5:$AW$2499,15,FALSE),0) -> 55 | R12: =IFERROR(VLOOKUP($A12,FILTRO_!$A$5:$AW$2499,16,FALSE),0) -> 51 | S12: =IFERROR(VLOOKUP($A12,FILTRO_!$A$5:$AW$2499,17,FALSE),0) -> 10 | T12: =IFERROR(VLOOKUP($A12,FILTRO_!$A$5:$AW$2499,18,FALSE),0) -> 11 | U12: =IFERROR(VLOOKUP($A12,FILTRO_!$A$5:$AW$2499,19,FALSE),0) -> 46 | V12: =IFERROR(VLOOKUP($A12,FILTRO_!$A$5:$AW$2499,20,FALSE),0) -> 43 | W12: =IFERROR(VLOOKUP($A12,FILTRO_!$A$5:$AW$2499,21,FALSE),0) -> 1255 | X12: =IFERROR(VLOOKUP($A12,FILTRO_!$A$5:$AW$2499,22,FALSE),0) -> 1152 | Y12: =IFERROR(VLOOKUP($A12,FILTRO_!$A$5:$AW$2499,23,FALSE),0) -> 958 | Z12: =IFERROR(VLOOKUP($A12,FILTRO_!$A$5:$AW$2499,24,FALSE),0) -> 1008
A13: 03500020 | B13: RESULTADOS | C13: NORMAL | D13: =IFERROR(VLOOKUP($A13,FILTRO_!$A$5:$AW$2499,2,FALSE),0) -> 6568 | E13: =IFERROR(VLOOKUP($A13,FILTRO_!$A$5:$AW$2499,3,FALSE),0) -> 3185 | F13: =IFERROR(VLOOKUP($A13,FILTRO_!$A$5:$AW$2499,4,FALSE),0) -> 3383 | G13: =IFERROR(VLOOKUP($A13,FILTRO_!$A$5:$AW$2499,5,FALSE),0) -> 3 | H13: =IFERROR(VLOOKUP($A13,FILTRO_!$A$5:$AW$2499,6,FALSE),0) -> 11 | I13: =IFERROR(VLOOKUP($A13,FILTRO_!$A$5:$AW$2499,7,FALSE),0) -> 34 | J13: =IFERROR(VLOOKUP($A13,FILTRO_!$A$5:$AW$2499,8,FALSE),0) -> 34 | K13: =IFERROR(VLOOKUP($A13,FILTRO_!$A$5:$AW$2499,9,FALSE),0) -> 1 | L13: =IFERROR(VLOOKUP($A13,FILTRO_!$A$5:$AW$2499,10,FALSE),0) -> 8 | M13: =IFERROR(VLOOKUP($A13,FILTRO_!$A$5:$AW$2499,11,FALSE),0) -> 39 | N13: =IFERROR(VLOOKUP($A13,FILTRO_!$A$5:$AW$2499,12,FALSE),0) -> 67 | O13: =IFERROR(VLOOKUP($A13,FILTRO_!$A$5:$AW$2499,13,FALSE),0) -> 1193 | P13: =IFERROR(VLOOKUP($A13,FILTRO_!$A$5:$AW$2499,14,FALSE),0) -> 1258 | Q13: =IFERROR(VLOOKUP($A13,FILTRO_!$A$5:$AW$2499,15,FALSE),0) -> 51 | R13: =IFERROR(VLOOKUP($A13,FILTRO_!$A$5:$AW$2499,16,FALSE),0) -> 48 | S13: =IFERROR(VLOOKUP($A13,FILTRO_!$A$5:$AW$2499,17,FALSE),0) -> 10 | T13: =IFERROR(VLOOKUP($A13,FILTRO_!$A$5:$AW$2499,18,FALSE),0) -> 8 | U13: =IFERROR(VLOOKUP($A13,FILTRO_!$A$5:$AW$2499,19,FALSE),0) -> 42 | V13: =IFERROR(VLOOKUP($A13,FILTRO_!$A$5:$AW$2499,20,FALSE),0) -> 38 | W13: =IFERROR(VLOOKUP($A13,FILTRO_!$A$5:$AW$2499,21,FALSE),0) -> 1093 | X13: =IFERROR(VLOOKUP($A13,FILTRO_!$A$5:$AW$2499,22,FALSE),0) -> 1058 | Y13: =IFERROR(VLOOKUP($A13,FILTRO_!$A$5:$AW$2499,23,FALSE),0) -> 719 | Z13: =IFERROR(VLOOKUP($A13,FILTRO_!$A$5:$AW$2499,24,FALSE),0) -> 853 | CF13: * Aplicacion de Pauta Breve en Hombres Menor de 1 mes debe ser igual a la suma de resultados. | CO13: * Aplicacion de Pauta Breve en Mujeres de 4 meses debe ser igual a la suma de resultados. | CP13: * Aplicacion de Pauta Breve en Hombres de 5 meses debe ser igual a la suma de resultados. | CT13: * Aplicacion de Pauta Breve en Hombres de 7 - 11 meses debe ser igual a la suma de resultados. | CW13: * Aplicacion de Pauta Breve en Mujeres de 12 - 17 meses debe ser igual a la suma de resultados. | CX13: * Aplicacion de Pauta Breve en Hombres de 18 - 24 meses debe ser igual a la suma de resultados. | CY13: * Aplicacion de Pauta Breve en Mujeres de 18 - 24 meses debe ser igual a la suma de resultados. | DE13: 0 | DF13: 1 | DG13: 0 | DH13: 0 | DI13: 0 | DJ13: 0 | DK13: 0 | DL13: 0 | DM13: 0 | DN13: 0 | DO13: 1 | DP13: 1 | DQ13: 0 | DR13: 0 | DS13: 0 | DT13: 1 | DU13: 0 | DV13: 0 | DW13: 1 | DX13: 1 | DY13: 1 | DZ13: 0
A14: 03500030 | C14: ALTERADO | D14: =IFERROR(VLOOKUP($A14,FILTRO_!$A$5:$AW$2499,2,FALSE),0) -> 789 | E14: =IFERROR(VLOOKUP($A14,FILTRO_!$A$5:$AW$2499,3,FALSE),0) -> 483 | F14: =IFERROR(VLOOKUP($A14,FILTRO_!$A$5:$AW$2499,4,FALSE),0) -> 306 | G14: =IFERROR(VLOOKUP($A14,FILTRO_!$A$5:$AW$2499,5,FALSE),0) -> 0 | H14: =IFERROR(VLOOKUP($A14,FILTRO_!$A$5:$AW$2499,6,FALSE),0) -> 1 | I14: =IFERROR(VLOOKUP($A14,FILTRO_!$A$5:$AW$2499,7,FALSE),0) -> 0 | J14: =IFERROR(VLOOKUP($A14,FILTRO_!$A$5:$AW$2499,8,FALSE),0) -> 0 | K14: =IFERROR(VLOOKUP($A14,FILTRO_!$A$5:$AW$2499,9,FALSE),0) -> 0 | L14: =IFERROR(VLOOKUP($A14,FILTRO_!$A$5:$AW$2499,10,FALSE),0) -> 0 | M14: =IFERROR(VLOOKUP($A14,FILTRO_!$A$5:$AW$2499,11,FALSE),0) -> 0 | N14: =IFERROR(VLOOKUP($A14,FILTRO_!$A$5:$AW$2499,12,FALSE),0) -> 0 | O14: =IFERROR(VLOOKUP($A14,FILTRO_!$A$5:$AW$2499,13,FALSE),0) -> 61 | P14: =IFERROR(VLOOKUP($A14,FILTRO_!$A$5:$AW$2499,14,FALSE),0) -> 41 | Q14: =IFERROR(VLOOKUP($A14,FILTRO_!$A$5:$AW$2499,15,FALSE),0) -> 4 | R14: =IFERROR(VLOOKUP($A14,FILTRO_!$A$5:$AW$2499,16,FALSE),0) -> 3 | S14: =IFERROR(VLOOKUP($A14,FILTRO_!$A$5:$AW$2499,17,FALSE),0) -> 0 | T14: =IFERROR(VLOOKUP($A14,FILTRO_!$A$5:$AW$2499,18,FALSE),0) -> 2 | U14: =IFERROR(VLOOKUP($A14,FILTRO_!$A$5:$AW$2499,19,FALSE),0) -> 4 | V14: =IFERROR(VLOOKUP($A14,FILTRO_!$A$5:$AW$2499,20,FALSE),0) -> 5 | W14: =IFERROR(VLOOKUP($A14,FILTRO_!$A$5:$AW$2499,21,FALSE),0) -> 171 | X14: =IFERROR(VLOOKUP($A14,FILTRO_!$A$5:$AW$2499,22,FALSE),0) -> 96 | Y14: =IFERROR(VLOOKUP($A14,FILTRO_!$A$5:$AW$2499,23,FALSE),0) -> 243 | Z14: =IFERROR(VLOOKUP($A14,FILTRO_!$A$5:$AW$2499,24,FALSE),0) -> 159
B15: SECCIÓN A.2: RESULTADOS DE LA APLICACIÓN DE ESCALA DE EVALUACIÓN DEL DESARROLLO PSICOMOTOR
B16: ACTIVIDAD | C16: RESULTADO | D16: TOTAL | G16: POR EDAD | S16: Pueblos Originarios | T16: Migrantes
G17: Menor 7 meses | I17: 7 - 11 meses | K17: 12 - 17 meses | M17: 18 - 23 meses | O17: 24 - 47 meses | Q17: 48 - 59 meses
D18: Ambos Sexos | E18: Hombres | F18: Mujeres | G18: Hombres | H18: Mujeres | I18: Hombres | J18: Mujeres | K18: Hombres | L18: Mujeres | M18: Hombres | N18: Mujeres | O18: Hombres | P18: Mujeres | Q18: Hombres | R18: Mujeres
A19: 02021740 | B19: APLICACIÓN TEST DE DESARROLLO PSICOMOTOR | D19: =IFERROR(VLOOKUP($A19,FILTRO_!$A$5:$AW$2499,2,FALSE),0) -> 8968 | E19: =IFERROR(VLOOKUP($A19,FILTRO_!$A$5:$AW$2499,3,FALSE),0) -> 4630 | F19: =IFERROR(VLOOKUP($A19,FILTRO_!$A$5:$AW$2499,4,FALSE),0) -> 4338 | G19: =IFERROR(VLOOKUP($A19,FILTRO_!$A$5:$AW$2499,5,FALSE),0) -> 40 | H19: =IFERROR(VLOOKUP($A19,FILTRO_!$A$5:$AW$2499,6,FALSE),0) -> 34 | I19: =IFERROR(VLOOKUP($A19,FILTRO_!$A$5:$AW$2499,7,FALSE),0) -> 1431 | J19: =IFERROR(VLOOKUP($A19,FILTRO_!$A$5:$AW$2499,8,FALSE),0) -> 1408 | K19: =IFERROR(VLOOKUP($A19,FILTRO_!$A$5:$AW$2499,9,FALSE),0) -> 328 | L19: =IFERROR(VLOOKUP($A19,FILTRO_!$A$5:$AW$2499,10,FALSE),0) -> 267 | M19: =IFERROR(VLOOKUP($A19,FILTRO_!$A$5:$AW$2499,11,FALSE),0) -> 1483 | N19: =IFERROR(VLOOKUP($A19,FILTRO_!$A$5:$AW$2499,12,FALSE),0) -> 1368 | O19: =IFERROR(VLOOKUP($A19,FILTRO_!$A$5:$AW$2499,13,FALSE),0) -> 1232 | P19: =IFERROR(VLOOKUP($A19,FILTRO_!$A$5:$AW$2499,14,FALSE),0) -> 1166 | Q19: =IFERROR(VLOOKUP($A19,FILTRO_!$A$5:$AW$2499,15,FALSE),0) -> 116 | R19: =IFERROR(VLOOKUP($A19,FILTRO_!$A$5:$AW$2499,16,FALSE),0) -> 96 | S19: =IFERROR(VLOOKUP($A19,FILTRO_!$A$5:$AW$2499,17,FALSE),0) -> 45 | T19: =IFERROR(VLOOKUP($A19,FILTRO_!$A$5:$AW$2499,18,FALSE),0) -> 49 | CA19: * El total de aplicaciones de menor a 7 meses debe ser IGUAL a los resultados de la totalidad de las aplicaciones de la primera evaluación y la reevaluación. | CB19: * El total de aplicaciones de 7-11 debe ser IGUAL a los resultados de la totalidad de las aplicaciones de la primera evaluación y la reevaluación. | CC19: * El total de aplicaciones de 12-17 debe ser IGUAL a los resultados de la totalidad de las aplicaciones de la primera evaluación y la reevaluación. | CD19: * El total de aplicaciones de 18-23 debe ser IGUAL a los resultados de la totalidad de las aplicaciones de la primera evaluación y la reevaluación. | CE19: * El total de aplicaciones de 24-47 debe ser IGUAL a los resultados de la totalidad de las aplicaciones de la primera evaluación y la reevaluación. | CF19: * El total de aplicaciones de 48-59 debe ser IGUAL a los resultados de la totalidad de las aplicaciones de la primera evaluación y la reevaluación. | CH19: * El total de aplicaciones de Pueblos Originarios no debe superar el total general de aplicaciones. | CI19: * El total de aplicaciones de Migrantes debe ser IGUAL a los resultados de la totalidad de las aplicaciones de la primera evaluación y la reevaluación. | CJ19: * El total de aplicaciones de Migrantes no debe superar el total general de aplicaciones. | CL19: 0 | CM19: 0 | CN19: 0 | CO19: 0 | DA19: 1 | DB19: 1 | DC19: 1 | DD19: 1 | DE19: 1 | DF19: 1 | DG19: 0 | DH19: 1 | DI19: 1 | DJ19: 1 | DK19: 0
A20: 02010320 | B20: PRIMERA EVALUACIÓN | C20: NORMAL | D20: =IFERROR(VLOOKUP($A20,FILTRO_!$A$5:$AW$2499,2,FALSE),0) -> 6872 | E20: =IFERROR(VLOOKUP($A20,FILTRO_!$A$5:$AW$2499,3,FALSE),0) -> 3317 | F20: =IFERROR(VLOOKUP($A20,FILTRO_!$A$5:$AW$2499,4,FALSE),0) -> 3555 | G20: =IFERROR(VLOOKUP($A20,FILTRO_!$A$5:$AW$2499,5,FALSE),0) -> 32 | H20: =IFERROR(VLOOKUP($A20,FILTRO_!$A$5:$AW$2499,6,FALSE),0) -> 28 | I20: =IFERROR(VLOOKUP($A20,FILTRO_!$A$5:$AW$2499,7,FALSE),0) -> 1285 | J20: =IFERROR(VLOOKUP($A20,FILTRO_!$A$5:$AW$2499,8,FALSE),0) -> 1266 | K20: =IFERROR(VLOOKUP($A20,FILTRO_!$A$5:$AW$2499,9,FALSE),0) -> 222 | L20: =IFERROR(VLOOKUP($A20,FILTRO_!$A$5:$AW$2499,10,FALSE),0) -> 212 | M20: =IFERROR(VLOOKUP($A20,FILTRO_!$A$5:$AW$2499,11,FALSE),0) -> 988 | N20: =IFERROR(VLOOKUP($A20,FILTRO_!$A$5:$AW$2499,12,FALSE),0) -> 1099 | O20: =IFERROR(VLOOKUP($A20,FILTRO_!$A$5:$AW$2499,13,FALSE),0) -> 725 | P20: =IFERROR(VLOOKUP($A20,FILTRO_!$A$5:$AW$2499,14,FALSE),0) -> 867 | Q20: =IFERROR(VLOOKUP($A20,FILTRO_!$A$5:$AW$2499,15,FALSE),0) -> 65 | R20: =IFERROR(VLOOKUP($A20,FILTRO_!$A$5:$AW$2499,16,FALSE),0) -> 83 | S20: =IFERROR(VLOOKUP($A20,FILTRO_!$A$5:$AW$2499,17,FALSE),0) -> 32 | T20: =IFERROR(VLOOKUP($A20,FILTRO_!$A$5:$AW$2499,18,FALSE),0) -> 40
A21: 05225303 | C21: NORMAL CON REZAGO | D21: =IFERROR(VLOOKUP($A21,FILTRO_!$A$5:$AW$2499,2,FALSE),0) -> 495 | E21: =IFERROR(VLOOKUP($A21,FILTRO_!$A$5:$AW$2499,3,FALSE),0) -> 290 | F21: =IFERROR(VLOOKUP($A21,FILTRO_!$A$5:$AW$2499,4,FALSE),0) -> 205 | G21: =IFERROR(VLOOKUP($A21,FILTRO_!$A$5:$AW$2499,5,FALSE),0) -> 4 | H21: =IFERROR(VLOOKUP($A21,FILTRO_!$A$5:$AW$2499,6,FALSE),0) -> 1 | I21: =IFERROR(VLOOKUP($A21,FILTRO_!$A$5:$AW$2499,7,FALSE),0) -> 41 | J21: =IFERROR(VLOOKUP($A21,FILTRO_!$A$5:$AW$2499,8,FALSE),0) -> 43 | K21: =IFERROR(VLOOKUP($A21,FILTRO_!$A$5:$AW$2499,9,FALSE),0) -> 23 | L21: =IFERROR(VLOOKUP($A21,FILTRO_!$A$5:$AW$2499,10,FALSE),0) -> 13 | M21: =IFERROR(VLOOKUP($A21,FILTRO_!$A$5:$AW$2499,11,FALSE),0) -> 89 | N21: =IFERROR(VLOOKUP($A21,FILTRO_!$A$5:$AW$2499,12,FALSE),0) -> 52 | O21: =IFERROR(VLOOKUP($A21,FILTRO_!$A$5:$AW$2499,13,FALSE),0) -> 126 | P21: =IFERROR(VLOOKUP($A21,FILTRO_!$A$5:$AW$2499,14,FALSE),0) -> 96 | Q21: =IFERROR(VLOOKUP($A21,FILTRO_!$A$5:$AW$2499,15,FALSE),0) -> 7 | R21: =IFERROR(VLOOKUP($A21,FILTRO_!$A$5:$AW$2499,16,FALSE),0) -> 0 | S21: =IFERROR(VLOOKUP($A21,FILTRO_!$A$5:$AW$2499,17,FALSE),0) -> 6 | T21: =IFERROR(VLOOKUP($A21,FILTRO_!$A$5:$AW$2499,18,FALSE),0) -> 4
A22: 02010321 | C22: RIESGO | D22: =IFERROR(VLOOKUP($A22,FILTRO_!$A$5:$AW$2499,2,FALSE),0) -> 710 | E22: =IFERROR(VLOOKUP($A22,FILTRO_!$A$5:$AW$2499,3,FALSE),0) -> 437 | F22: =IFERROR(VLOOKUP($A22,FILTRO_!$A$5:$AW$2499,4,FALSE),0) -> 273 | G22: =IFERROR(VLOOKUP($A22,FILTRO_!$A$5:$AW$2499,5,FALSE),0) -> 9 | H22: =IFERROR(VLOOKUP($A22,FILTRO_!$A$5:$AW$2499,6,FALSE),0) -> 4 | I22: =IFERROR(VLOOKUP($A22,FILTRO_!$A$5:$AW$2499,7,FALSE),0) -> 53 | J22: =IFERROR(VLOOKUP($A22,FILTRO_!$A$5:$AW$2499,8,FALSE),0) -> 55 | K22: =IFERROR(VLOOKUP($A22,FILTRO_!$A$5:$AW$2499,9,FALSE),0) -> 32 | L22: =IFERROR(VLOOKUP($A22,FILTRO_!$A$5:$AW$2499,10,FALSE),0) -> 11 | M22: =IFERROR(VLOOKUP($A22,FILTRO_!$A$5:$AW$2499,11,FALSE),0) -> 166 | N22: =IFERROR(VLOOKUP($A22,FILTRO_!$A$5:$AW$2499,12,FALSE),0) -> 105 | O22: =IFERROR(VLOOKUP($A22,FILTRO_!$A$5:$AW$2499,13,FALSE),0) -> 170 | P22: =IFERROR(VLOOKUP($A22,FILTRO_!$A$5:$AW$2499,14,FALSE),0) -> 89 | Q22: =IFERROR(VLOOKUP($A22,FILTRO_!$A$5:$AW$2499,15,FALSE),0) -> 7 | R22: =IFERROR(VLOOKUP($A22,FILTRO_!$A$5:$AW$2499,16,FALSE),0) -> 9 | S22: =IFERROR(VLOOKUP($A22,FILTRO_!$A$5:$AW$2499,17,FALSE),0) -> 1 | T22: =IFERROR(VLOOKUP($A22,FILTRO_!$A$5:$AW$2499,18,FALSE),0) -> 4
A23: 02010322 | C23: RETRASO | D23: =IFERROR(VLOOKUP($A23,FILTRO_!$A$5:$AW$2499,2,FALSE),0) -> 225 | E23: =IFERROR(VLOOKUP($A23,FILTRO_!$A$5:$AW$2499,3,FALSE),0) -> 156 | F23: =IFERROR(VLOOKUP($A23,FILTRO_!$A$5:$AW$2499,4,FALSE),0) -> 69 | G23: =IFERROR(VLOOKUP($A23,FILTRO_!$A$5:$AW$2499,5,FALSE),0) -> 1 | H23: =IFERROR(VLOOKUP($A23,FILTRO_!$A$5:$AW$2499,6,FALSE),0) -> 1 | I23: =IFERROR(VLOOKUP($A23,FILTRO_!$A$5:$AW$2499,7,FALSE),0) -> 9 | J23: =IFERROR(VLOOKUP($A23,FILTRO_!$A$5:$AW$2499,8,FALSE),0) -> 9 | K23: =IFERROR(VLOOKUP($A23,FILTRO_!$A$5:$AW$2499,9,FALSE),0) -> 7 | L23: =IFERROR(VLOOKUP($A23,FILTRO_!$A$5:$AW$2499,10,FALSE),0) -> 1 | M23: =IFERROR(VLOOKUP($A23,FILTRO_!$A$5:$AW$2499,11,FALSE),0) -> 80 | N23: =IFERROR(VLOOKUP($A23,FILTRO_!$A$5:$AW$2499,12,FALSE),0) -> 27 | O23: =IFERROR(VLOOKUP($A23,FILTRO_!$A$5:$AW$2499,13,FALSE),0) -> 51 | P23: =IFERROR(VLOOKUP($A23,FILTRO_!$A$5:$AW$2499,14,FALSE),0) -> 28 | Q23: =IFERROR(VLOOKUP($A23,FILTRO_!$A$5:$AW$2499,15,FALSE),0) -> 8 | R23: =IFERROR(VLOOKUP($A23,FILTRO_!$A$5:$AW$2499,16,FALSE),0) -> 3 | S23: =IFERROR(VLOOKUP($A23,FILTRO_!$A$5:$AW$2499,17,FALSE),0) -> 0 | T23: =IFERROR(VLOOKUP($A23,FILTRO_!$A$5:$AW$2499,18,FALSE),0) -> 1
A24: 05225304 | B24: REEVALUACIÓN | C24: NORMAL (desde normal con rezago) | D24: =IFERROR(VLOOKUP($A24,FILTRO_!$A$5:$AW$2499,2,FALSE),0) -> 211 | E24: =IFERROR(VLOOKUP($A24,FILTRO_!$A$5:$AW$2499,3,FALSE),0) -> 119 | F24: =IFERROR(VLOOKUP($A24,FILTRO_!$A$5:$AW$2499,4,FALSE),0) -> 92 | G24: =IFERROR(VLOOKUP($A24,FILTRO_!$A$5:$AW$2499,5,FALSE),0) -> 1 | H24: =IFERROR(VLOOKUP($A24,FILTRO_!$A$5:$AW$2499,6,FALSE),0) -> 1 | I24: =IFERROR(VLOOKUP($A24,FILTRO_!$A$5:$AW$2499,7,FALSE),0) -> 19 | J24: =IFERROR(VLOOKUP($A24,FILTRO_!$A$5:$AW$2499,8,FALSE),0) -> 19 | K24: =IFERROR(VLOOKUP($A24,FILTRO_!$A$5:$AW$2499,9,FALSE),0) -> 12 | L24: =IFERROR(VLOOKUP($A24,FILTRO_!$A$5:$AW$2499,10,FALSE),0) -> 14 | M24: =IFERROR(VLOOKUP($A24,FILTRO_!$A$5:$AW$2499,11,FALSE),0) -> 26 | N24: =IFERROR(VLOOKUP($A24,FILTRO_!$A$5:$AW$2499,12,FALSE),0) -> 19 | O24: =IFERROR(VLOOKUP($A24,FILTRO_!$A$5:$AW$2499,13,FALSE),0) -> 51 | P24: =IFERROR(VLOOKUP($A24,FILTRO_!$A$5:$AW$2499,14,FALSE),0) -> 33 | Q24: =IFERROR(VLOOKUP($A24,FILTRO_!$A$5:$AW$2499,15,FALSE),0) -> 10 | R24: =IFERROR(VLOOKUP($A24,FILTRO_!$A$5:$AW$2499,16,FALSE),0) -> 6 | S24: =IFERROR(VLOOKUP($A24,FILTRO_!$A$5:$AW$2499,17,FALSE),0) -> 3 | T24: =IFERROR(VLOOKUP($A24,FILTRO_!$A$5:$AW$2499,18,FALSE),0) -> 0
A25: 02010420 | C25: NORMAL (desde riesgo) | D25: =IFERROR(VLOOKUP($A25,FILTRO_!$A$5:$AW$2499,2,FALSE),0) -> 226 | E25: =IFERROR(VLOOKUP($A25,FILTRO_!$A$5:$AW$2499,3,FALSE),0) -> 133 | F25: =IFERROR(VLOOKUP($A25,FILTRO_!$A$5:$AW$2499,4,FALSE),0) -> 93 | G25: =IFERROR(VLOOKUP($A25,FILTRO_!$A$5:$AW$2499,5,FALSE),0) -> 1 | H25: =IFERROR(VLOOKUP($A25,FILTRO_!$A$5:$AW$2499,6,FALSE),0) -> 1 | I25: =IFERROR(VLOOKUP($A25,FILTRO_!$A$5:$AW$2499,7,FALSE),0) -> 11 | J25: =IFERROR(VLOOKUP($A25,FILTRO_!$A$5:$AW$2499,8,FALSE),0) -> 10 | K25: =IFERROR(VLOOKUP($A25,FILTRO_!$A$5:$AW$2499,9,FALSE),0) -> 13 | L25: =IFERROR(VLOOKUP($A25,FILTRO_!$A$5:$AW$2499,10,FALSE),0) -> 8 | M25: =IFERROR(VLOOKUP($A25,FILTRO_!$A$5:$AW$2499,11,FALSE),0) -> 56 | N25: =IFERROR(VLOOKUP($A25,FILTRO_!$A$5:$AW$2499,12,FALSE),0) -> 38 | O25: =IFERROR(VLOOKUP($A25,FILTRO_!$A$5:$AW$2499,13,FALSE),0) -> 44 | P25: =IFERROR(VLOOKUP($A25,FILTRO_!$A$5:$AW$2499,14,FALSE),0) -> 31 | Q25: =IFERROR(VLOOKUP($A25,FILTRO_!$A$5:$AW$2499,15,FALSE),0) -> 8 | R25: =IFERROR(VLOOKUP($A25,FILTRO_!$A$5:$AW$2499,16,FALSE),0) -> 5 | S25: =IFERROR(VLOOKUP($A25,FILTRO_!$A$5:$AW$2499,17,FALSE),0) -> 0 | T25: =IFERROR(VLOOKUP($A25,FILTRO_!$A$5:$AW$2499,18,FALSE),0) -> 0
A26: 05225305 | C26: NORMAL (desde retraso) | D26: =IFERROR(VLOOKUP($A26,FILTRO_!$A$5:$AW$2499,2,FALSE),0) -> 26 | E26: =IFERROR(VLOOKUP($A26,FILTRO_!$A$5:$AW$2499,3,FALSE),0) -> 15 | F26: =IFERROR(VLOOKUP($A26,FILTRO_!$A$5:$AW$2499,4,FALSE),0) -> 11 | G26: =IFERROR(VLOOKUP($A26,FILTRO_!$A$5:$AW$2499,5,FALSE),0) -> 0 | H26: =IFERROR(VLOOKUP($A26,FILTRO_!$A$5:$AW$2499,6,FALSE),0) -> 0 | I26: =IFERROR(VLOOKUP($A26,FILTRO_!$A$5:$AW$2499,7,FALSE),0) -> 0 | J26: =IFERROR(VLOOKUP($A26,FILTRO_!$A$5:$AW$2499,8,FALSE),0) -> 2 | K26: =IFERROR(VLOOKUP($A26,FILTRO_!$A$5:$AW$2499,9,FALSE),0) -> 0 | L26: =IFERROR(VLOOKUP($A26,FILTRO_!$A$5:$AW$2499,10,FALSE),0) -> 0 | M26: =IFERROR(VLOOKUP($A26,FILTRO_!$A$5:$AW$2499,11,FALSE),0) -> 7 | N26: =IFERROR(VLOOKUP($A26,FILTRO_!$A$5:$AW$2499,12,FALSE),0) -> 2 | O26: =IFERROR(VLOOKUP($A26,FILTRO_!$A$5:$AW$2499,13,FALSE),0) -> 4 | P26: =IFERROR(VLOOKUP($A26,FILTRO_!$A$5:$AW$2499,14,FALSE),0) -> 7 | Q26: =IFERROR(VLOOKUP($A26,FILTRO_!$A$5:$AW$2499,15,FALSE),0) -> 4 | R26: =IFERROR(VLOOKUP($A26,FILTRO_!$A$5:$AW$2499,16,FALSE),0) -> 0 | S26: =IFERROR(VLOOKUP($A26,FILTRO_!$A$5:$AW$2499,17,FALSE),0) -> 3 | T26: =IFERROR(VLOOKUP($A26,FILTRO_!$A$5:$AW$2499,18,FALSE),0) -> 0
A27: 03500366 | C27: NORMAL CON REZAGO (desde riesgo) | D27: =IFERROR(VLOOKUP($A27,FILTRO_!$A$5:$AW$2499,2,FALSE),0) -> 77 | E27: =IFERROR(VLOOKUP($A27,FILTRO_!$A$5:$AW$2499,3,FALSE),0) -> 55 | F27: =IFERROR(VLOOKUP($A27,FILTRO_!$A$5:$AW$2499,4,FALSE),0) -> 22 | G27: =IFERROR(VLOOKUP($A27,FILTRO_!$A$5:$AW$2499,5,FALSE),0) -> 0 | H27: =IFERROR(VLOOKUP($A27,FILTRO_!$A$5:$AW$2499,6,FALSE),0) -> 0 | I27: =IFERROR(VLOOKUP($A27,FILTRO_!$A$5:$AW$2499,7,FALSE),0) -> 3 | J27: =IFERROR(VLOOKUP($A27,FILTRO_!$A$5:$AW$2499,8,FALSE),0) -> 4 | K27: =IFERROR(VLOOKUP($A27,FILTRO_!$A$5:$AW$2499,9,FALSE),0) -> 4 | L27: =IFERROR(VLOOKUP($A27,FILTRO_!$A$5:$AW$2499,10,FALSE),0) -> 1 | M27: =IFERROR(VLOOKUP($A27,FILTRO_!$A$5:$AW$2499,11,FALSE),0) -> 34 | N27: =IFERROR(VLOOKUP($A27,FILTRO_!$A$5:$AW$2499,12,FALSE),0) -> 11 | O27: =IFERROR(VLOOKUP($A27,FILTRO_!$A$5:$AW$2499,13,FALSE),0) -> 12 | P27: =IFERROR(VLOOKUP($A27,FILTRO_!$A$5:$AW$2499,14,FALSE),0) -> 5 | Q27: =IFERROR(VLOOKUP($A27,FILTRO_!$A$5:$AW$2499,15,FALSE),0) -> 3 | R27: =IFERROR(VLOOKUP($A27,FILTRO_!$A$5:$AW$2499,16,FALSE),0) -> 1 | S27: =IFERROR(VLOOKUP($A27,FILTRO_!$A$5:$AW$2499,17,FALSE),0) -> 0 | T27: =IFERROR(VLOOKUP($A27,FILTRO_!$A$5:$AW$2499,18,FALSE),0) -> 0
A28: 03500400 | C28: NORMAL CON REZAGO (desde retraso) | D28: =IFERROR(VLOOKUP($A28,FILTRO_!$A$5:$AW$2499,2,FALSE),0) -> 14 | E28: =IFERROR(VLOOKUP($A28,FILTRO_!$A$5:$AW$2499,3,FALSE),0) -> 8 | F28: =IFERROR(VLOOKUP($A28,FILTRO_!$A$5:$AW$2499,4,FALSE),0) -> 6 | G28: =IFERROR(VLOOKUP($A28,FILTRO_!$A$5:$AW$2499,5,FALSE),0) -> 0 | H28: =IFERROR(VLOOKUP($A28,FILTRO_!$A$5:$AW$2499,6,FALSE),0) -> 0 | I28: =IFERROR(VLOOKUP($A28,FILTRO_!$A$5:$AW$2499,7,FALSE),0) -> 1 | J28: =IFERROR(VLOOKUP($A28,FILTRO_!$A$5:$AW$2499,8,FALSE),0) -> 0 | K28: =IFERROR(VLOOKUP($A28,FILTRO_!$A$5:$AW$2499,9,FALSE),0) -> 0 | L28: =IFERROR(VLOOKUP($A28,FILTRO_!$A$5:$AW$2499,10,FALSE),0) -> 1 | M28: =IFERROR(VLOOKUP($A28,FILTRO_!$A$5:$AW$2499,11,FALSE),0) -> 2 | N28: =IFERROR(VLOOKUP($A28,FILTRO_!$A$5:$AW$2499,12,FALSE),0) -> 2 | O28: =IFERROR(VLOOKUP($A28,FILTRO_!$A$5:$AW$2499,13,FALSE),0) -> 3 | P28: =IFERROR(VLOOKUP($A28,FILTRO_!$A$5:$AW$2499,14,FALSE),0) -> 3 | Q28: =IFERROR(VLOOKUP($A28,FILTRO_!$A$5:$AW$2499,15,FALSE),0) -> 2 | R28: =IFERROR(VLOOKUP($A28,FILTRO_!$A$5:$AW$2499,16,FALSE),0) -> 0 | S28: =IFERROR(VLOOKUP($A28,FILTRO_!$A$5:$AW$2499,17,FALSE),0) -> 0 | T28: =IFERROR(VLOOKUP($A28,FILTRO_!$A$5:$AW$2499,18,FALSE),0) -> 0
A29: 03500401 | C29: RIESGO (desde retraso) | D29: =IFERROR(VLOOKUP($A29,FILTRO_!$A$5:$AW$2499,2,FALSE),0) -> 15 | E29: =IFERROR(VLOOKUP($A29,FILTRO_!$A$5:$AW$2499,3,FALSE),0) -> 10 | F29: =IFERROR(VLOOKUP($A29,FILTRO_!$A$5:$AW$2499,4,FALSE),0) -> 5 | G29: =IFERROR(VLOOKUP($A29,FILTRO_!$A$5:$AW$2499,5,FALSE),0) -> 0 | H29: =IFERROR(VLOOKUP($A29,FILTRO_!$A$5:$AW$2499,6,FALSE),0) -> 0 | I29: =IFERROR(VLOOKUP($A29,FILTRO_!$A$5:$AW$2499,7,FALSE),0) -> 0 | J29: =IFERROR(VLOOKUP($A29,FILTRO_!$A$5:$AW$2499,8,FALSE),0) -> 0 | K29: =IFERROR(VLOOKUP($A29,FILTRO_!$A$5:$AW$2499,9,FALSE),0) -> 2 | L29: =IFERROR(VLOOKUP($A29,FILTRO_!$A$5:$AW$2499,10,FALSE),0) -> 1 | M29: =IFERROR(VLOOKUP($A29,FILTRO_!$A$5:$AW$2499,11,FALSE),0) -> 2 | N29: =IFERROR(VLOOKUP($A29,FILTRO_!$A$5:$AW$2499,12,FALSE),0) -> 1 | O29: =IFERROR(VLOOKUP($A29,FILTRO_!$A$5:$AW$2499,13,FALSE),0) -> 6 | P29: =IFERROR(VLOOKUP($A29,FILTRO_!$A$5:$AW$2499,14,FALSE),0) -> 3 | Q29: =IFERROR(VLOOKUP($A29,FILTRO_!$A$5:$AW$2499,15,FALSE),0) -> 0 | R29: =IFERROR(VLOOKUP($A29,FILTRO_!$A$5:$AW$2499,16,FALSE),0) -> 0 | S29: =IFERROR(VLOOKUP($A29,FILTRO_!$A$5:$AW$2499,17,FALSE),0) -> 0 | T29: =IFERROR(VLOOKUP($A29,FILTRO_!$A$5:$AW$2499,18,FALSE),0) -> 0
A30: 05225306 | C30: NORMAL CON REZAGO (desde normal con rezago) | D30: =IFERROR(VLOOKUP($A30,FILTRO_!$A$5:$AW$2499,2,FALSE),0) -> 55 | E30: =IFERROR(VLOOKUP($A30,FILTRO_!$A$5:$AW$2499,3,FALSE),0) -> 45 | F30: =IFERROR(VLOOKUP($A30,FILTRO_!$A$5:$AW$2499,4,FALSE),0) -> 10 | G30: =IFERROR(VLOOKUP($A30,FILTRO_!$A$5:$AW$2499,5,FALSE),0) -> 0 | H30: =IFERROR(VLOOKUP($A30,FILTRO_!$A$5:$AW$2499,6,FALSE),0) -> 0 | I30: =IFERROR(VLOOKUP($A30,FILTRO_!$A$5:$AW$2499,7,FALSE),0) -> 3 | J30: =IFERROR(VLOOKUP($A30,FILTRO_!$A$5:$AW$2499,8,FALSE),0) -> 0 | K30: =IFERROR(VLOOKUP($A30,FILTRO_!$A$5:$AW$2499,9,FALSE),0) -> 2 | L30: =IFERROR(VLOOKUP($A30,FILTRO_!$A$5:$AW$2499,10,FALSE),0) -> 0 | M30: =IFERROR(VLOOKUP($A30,FILTRO_!$A$5:$AW$2499,11,FALSE),0) -> 11 | N30: =IFERROR(VLOOKUP($A30,FILTRO_!$A$5:$AW$2499,12,FALSE),0) -> 3 | O30: =IFERROR(VLOOKUP($A30,FILTRO_!$A$5:$AW$2499,13,FALSE),0) -> 22 | P30: =IFERROR(VLOOKUP($A30,FILTRO_!$A$5:$AW$2499,14,FALSE),0) -> 6 | Q30: =IFERROR(VLOOKUP($A30,FILTRO_!$A$5:$AW$2499,15,FALSE),0) -> 7 | R30: =IFERROR(VLOOKUP($A30,FILTRO_!$A$5:$AW$2499,16,FALSE),0) -> 1 | S30: =IFERROR(VLOOKUP($A30,FILTRO_!$A$5:$AW$2499,17,FALSE),0) -> 1 | T30: =IFERROR(VLOOKUP($A30,FILTRO_!$A$5:$AW$2499,18,FALSE),0) -> 0
A31: 02010421 | C31: RIESGO (desde riesgo) | D31: =IFERROR(VLOOKUP($A31,FILTRO_!$A$5:$AW$2499,2,FALSE),0) -> 64 | E31: =IFERROR(VLOOKUP($A31,FILTRO_!$A$5:$AW$2499,3,FALSE),0) -> 45 | F31: =IFERROR(VLOOKUP($A31,FILTRO_!$A$5:$AW$2499,4,FALSE),0) -> 19 | G31: =IFERROR(VLOOKUP($A31,FILTRO_!$A$5:$AW$2499,5,FALSE),0) -> 0 | H31: =IFERROR(VLOOKUP($A31,FILTRO_!$A$5:$AW$2499,6,FALSE),0) -> 0 | I31: =IFERROR(VLOOKUP($A31,FILTRO_!$A$5:$AW$2499,7,FALSE),0) -> 4 | J31: =IFERROR(VLOOKUP($A31,FILTRO_!$A$5:$AW$2499,8,FALSE),0) -> 1 | K31: =IFERROR(VLOOKUP($A31,FILTRO_!$A$5:$AW$2499,9,FALSE),0) -> 7 | L31: =IFERROR(VLOOKUP($A31,FILTRO_!$A$5:$AW$2499,10,FALSE),0) -> 1 | M31: =IFERROR(VLOOKUP($A31,FILTRO_!$A$5:$AW$2499,11,FALSE),0) -> 22 | N31: =IFERROR(VLOOKUP($A31,FILTRO_!$A$5:$AW$2499,12,FALSE),0) -> 10 | O31: =IFERROR(VLOOKUP($A31,FILTRO_!$A$5:$AW$2499,13,FALSE),0) -> 11 | P31: =IFERROR(VLOOKUP($A31,FILTRO_!$A$5:$AW$2499,14,FALSE),0) -> 7 | Q31: =IFERROR(VLOOKUP($A31,FILTRO_!$A$5:$AW$2499,15,FALSE),0) -> 1 | R31: =IFERROR(VLOOKUP($A31,FILTRO_!$A$5:$AW$2499,16,FALSE),0) -> 0 | S31: =IFERROR(VLOOKUP($A31,FILTRO_!$A$5:$AW$2499,17,FALSE),0) -> 0 | T31: =IFERROR(VLOOKUP($A31,FILTRO_!$A$5:$AW$2499,18,FALSE),0) -> 0
A32: 03600110 | C32: RIESGO (desde normal con rezago) | D32: =IFERROR(VLOOKUP($A32,FILTRO_!$A$5:$AW$2499,2,FALSE),0) -> 17 | E32: =IFERROR(VLOOKUP($A32,FILTRO_!$A$5:$AW$2499,3,FALSE),0) -> 13 | F32: =IFERROR(VLOOKUP($A32,FILTRO_!$A$5:$AW$2499,4,FALSE),0) -> 4 | G32: =IFERROR(VLOOKUP($A32,FILTRO_!$A$5:$AW$2499,5,FALSE),0) -> 0 | H32: =IFERROR(VLOOKUP($A32,FILTRO_!$A$5:$AW$2499,6,FALSE),0) -> 0 | I32: =IFERROR(VLOOKUP($A32,FILTRO_!$A$5:$AW$2499,7,FALSE),0) -> 1 | J32: =IFERROR(VLOOKUP($A32,FILTRO_!$A$5:$AW$2499,8,FALSE),0) -> 1 | K32: =IFERROR(VLOOKUP($A32,FILTRO_!$A$5:$AW$2499,9,FALSE),0) -> 3 | L32: =IFERROR(VLOOKUP($A32,FILTRO_!$A$5:$AW$2499,10,FALSE),0) -> 2 | M32: =IFERROR(VLOOKUP($A32,FILTRO_!$A$5:$AW$2499,11,FALSE),0) -> 1 | N32: =IFERROR(VLOOKUP($A32,FILTRO_!$A$5:$AW$2499,12,FALSE),0) -> 1 | O32: =IFERROR(VLOOKUP($A32,FILTRO_!$A$5:$AW$2499,13,FALSE),0) -> 8 | P32: =IFERROR(VLOOKUP($A32,FILTRO_!$A$5:$AW$2499,14,FALSE),0) -> 0 | Q32: =IFERROR(VLOOKUP($A32,FILTRO_!$A$5:$AW$2499,15,FALSE),0) -> 0 | R32: =IFERROR(VLOOKUP($A32,FILTRO_!$A$5:$AW$2499,16,FALSE),0) -> 0 | S32: =IFERROR(VLOOKUP($A32,FILTRO_!$A$5:$AW$2499,17,FALSE),0) -> 0 | T32: =IFERROR(VLOOKUP($A32,FILTRO_!$A$5:$AW$2499,18,FALSE),0) -> 0
A33: 02010422 | C33: RETRASO (desde retraso) | D33: =IFERROR(VLOOKUP($A33,FILTRO_!$A$5:$AW$2499,2,FALSE),0) -> 14 | E33: =IFERROR(VLOOKUP($A33,FILTRO_!$A$5:$AW$2499,3,FALSE),0) -> 11 | F33: =IFERROR(VLOOKUP($A33,FILTRO_!$A$5:$AW$2499,4,FALSE),0) -> 3 | G33: =IFERROR(VLOOKUP($A33,FILTRO_!$A$5:$AW$2499,5,FALSE),0) -> 0 | H33: =IFERROR(VLOOKUP($A33,FILTRO_!$A$5:$AW$2499,6,FALSE),0) -> 0 | I33: =IFERROR(VLOOKUP($A33,FILTRO_!$A$5:$AW$2499,7,FALSE),0) -> 0 | J33: =IFERROR(VLOOKUP($A33,FILTRO_!$A$5:$AW$2499,8,FALSE),0) -> 0 | K33: =IFERROR(VLOOKUP($A33,FILTRO_!$A$5:$AW$2499,9,FALSE),0) -> 0 | L33: =IFERROR(VLOOKUP($A33,FILTRO_!$A$5:$AW$2499,10,FALSE),0) -> 0 | M33: =IFERROR(VLOOKUP($A33,FILTRO_!$A$5:$AW$2499,11,FALSE),0) -> 4 | N33: =IFERROR(VLOOKUP($A33,FILTRO_!$A$5:$AW$2499,12,FALSE),0) -> 2 | O33: =IFERROR(VLOOKUP($A33,FILTRO_!$A$5:$AW$2499,13,FALSE),0) -> 5 | P33: =IFERROR(VLOOKUP($A33,FILTRO_!$A$5:$AW$2499,14,FALSE),0) -> 1 | Q33: =IFERROR(VLOOKUP($A33,FILTRO_!$A$5:$AW$2499,15,FALSE),0) -> 2 | R33: =IFERROR(VLOOKUP($A33,FILTRO_!$A$5:$AW$2499,16,FALSE),0) -> 0 | S33: =IFERROR(VLOOKUP($A33,FILTRO_!$A$5:$AW$2499,17,FALSE),0) -> 0 | T33: =IFERROR(VLOOKUP($A33,FILTRO_!$A$5:$AW$2499,18,FALSE),0) -> 0
A34: 03600120 | C34: RETRASO (desde riesgo) | D34: =IFERROR(VLOOKUP($A34,FILTRO_!$A$5:$AW$2499,2,FALSE),0) -> 26 | E34: =IFERROR(VLOOKUP($A34,FILTRO_!$A$5:$AW$2499,3,FALSE),0) -> 21 | F34: =IFERROR(VLOOKUP($A34,FILTRO_!$A$5:$AW$2499,4,FALSE),0) -> 5 | G34: =IFERROR(VLOOKUP($A34,FILTRO_!$A$5:$AW$2499,5,FALSE),0) -> 0 | H34: =IFERROR(VLOOKUP($A34,FILTRO_!$A$5:$AW$2499,6,FALSE),0) -> 0 | I34: =IFERROR(VLOOKUP($A34,FILTRO_!$A$5:$AW$2499,7,FALSE),0) -> 0 | J34: =IFERROR(VLOOKUP($A34,FILTRO_!$A$5:$AW$2499,8,FALSE),0) -> 0 | K34: =IFERROR(VLOOKUP($A34,FILTRO_!$A$5:$AW$2499,9,FALSE),0) -> 4 | L34: =IFERROR(VLOOKUP($A34,FILTRO_!$A$5:$AW$2499,10,FALSE),0) -> 0 | M34: =IFERROR(VLOOKUP($A34,FILTRO_!$A$5:$AW$2499,11,FALSE),0) -> 2 | N34: =IFERROR(VLOOKUP($A34,FILTRO_!$A$5:$AW$2499,12,FALSE),0) -> 2 | O34: =IFERROR(VLOOKUP($A34,FILTRO_!$A$5:$AW$2499,13,FALSE),0) -> 12 | P34: =IFERROR(VLOOKUP($A34,FILTRO_!$A$5:$AW$2499,14,FALSE),0) -> 3 | Q34: =IFERROR(VLOOKUP($A34,FILTRO_!$A$5:$AW$2499,15,FALSE),0) -> 3 | R34: =IFERROR(VLOOKUP($A34,FILTRO_!$A$5:$AW$2499,16,FALSE),0) -> 0 | S34: =IFERROR(VLOOKUP($A34,FILTRO_!$A$5:$AW$2499,17,FALSE),0) -> 0 | T34: =IFERROR(VLOOKUP($A34,FILTRO_!$A$5:$AW$2499,18,FALSE),0) -> 0
A35: 03600130 | C35: RETRASO (desde normal con rezago) | D35: =IFERROR(VLOOKUP($A35,FILTRO_!$A$5:$AW$2499,2,FALSE),0) -> 6 | E35: =IFERROR(VLOOKUP($A35,FILTRO_!$A$5:$AW$2499,3,FALSE),0) -> 3 | F35: =IFERROR(VLOOKUP($A35,FILTRO_!$A$5:$AW$2499,4,FALSE),0) -> 3 | G35: =IFERROR(VLOOKUP($A35,FILTRO_!$A$5:$AW$2499,5,FALSE),0) -> 0 | H35: =IFERROR(VLOOKUP($A35,FILTRO_!$A$5:$AW$2499,6,FALSE),0) -> 0 | I35: =IFERROR(VLOOKUP($A35,FILTRO_!$A$5:$AW$2499,7,FALSE),0) -> 0 | J35: =IFERROR(VLOOKUP($A35,FILTRO_!$A$5:$AW$2499,8,FALSE),0) -> 0 | K35: =IFERROR(VLOOKUP($A35,FILTRO_!$A$5:$AW$2499,9,FALSE),0) -> 2 | L35: =IFERROR(VLOOKUP($A35,FILTRO_!$A$5:$AW$2499,10,FALSE),0) -> 1 | M35: =IFERROR(VLOOKUP($A35,FILTRO_!$A$5:$AW$2499,11,FALSE),0) -> 0 | N35: =IFERROR(VLOOKUP($A35,FILTRO_!$A$5:$AW$2499,12,FALSE),0) -> 0 | O35: =IFERROR(VLOOKUP($A35,FILTRO_!$A$5:$AW$2499,13,FALSE),0) -> 1 | P35: =IFERROR(VLOOKUP($A35,FILTRO_!$A$5:$AW$2499,14,FALSE),0) -> 2 | Q35: =IFERROR(VLOOKUP($A35,FILTRO_!$A$5:$AW$2499,15,FALSE),0) -> 0 | R35: =IFERROR(VLOOKUP($A35,FILTRO_!$A$5:$AW$2499,16,FALSE),0) -> 0 | S35: =IFERROR(VLOOKUP($A35,FILTRO_!$A$5:$AW$2499,17,FALSE),0) -> 0 | T35: =IFERROR(VLOOKUP($A35,FILTRO_!$A$5:$AW$2499,18,FALSE),0) -> 0
A36: 03500331 | B36: DERIVADOS A ESPECIALIDAD | C36: RIESGO | D36: =IFERROR(VLOOKUP($A36,FILTRO_!$A$5:$AW$2499,2,FALSE),0) -> 86 | E36: =IFERROR(VLOOKUP($A36,FILTRO_!$A$5:$AW$2499,3,FALSE),0) -> 54 | F36: =IFERROR(VLOOKUP($A36,FILTRO_!$A$5:$AW$2499,4,FALSE),0) -> 32 | G36: =IFERROR(VLOOKUP($A36,FILTRO_!$A$5:$AW$2499,5,FALSE),0) -> 0 | H36: =IFERROR(VLOOKUP($A36,FILTRO_!$A$5:$AW$2499,6,FALSE),0) -> 0 | I36: =IFERROR(VLOOKUP($A36,FILTRO_!$A$5:$AW$2499,7,FALSE),0) -> 8 | J36: =IFERROR(VLOOKUP($A36,FILTRO_!$A$5:$AW$2499,8,FALSE),0) -> 6 | K36: =IFERROR(VLOOKUP($A36,FILTRO_!$A$5:$AW$2499,9,FALSE),0) -> 8 | L36: =IFERROR(VLOOKUP($A36,FILTRO_!$A$5:$AW$2499,10,FALSE),0) -> 5 | M36: =IFERROR(VLOOKUP($A36,FILTRO_!$A$5:$AW$2499,11,FALSE),0) -> 20 | N36: =IFERROR(VLOOKUP($A36,FILTRO_!$A$5:$AW$2499,12,FALSE),0) -> 12 | O36: =IFERROR(VLOOKUP($A36,FILTRO_!$A$5:$AW$2499,13,FALSE),0) -> 17 | P36: =IFERROR(VLOOKUP($A36,FILTRO_!$A$5:$AW$2499,14,FALSE),0) -> 9 | Q36: =IFERROR(VLOOKUP($A36,FILTRO_!$A$5:$AW$2499,15,FALSE),0) -> 1 | R36: =IFERROR(VLOOKUP($A36,FILTRO_!$A$5:$AW$2499,16,FALSE),0) -> 1 | S36: =IFERROR(VLOOKUP($A36,FILTRO_!$A$5:$AW$2499,17,FALSE),0) -> 0 | T36: =IFERROR(VLOOKUP($A36,FILTRO_!$A$5:$AW$2499,18,FALSE),0) -> 0
A37: 03500332 | C37: RETRASO | D37: =IFERROR(VLOOKUP($A37,FILTRO_!$A$5:$AW$2499,2,FALSE),0) -> 82 | E37: =IFERROR(VLOOKUP($A37,FILTRO_!$A$5:$AW$2499,3,FALSE),0) -> 64 | F37: =IFERROR(VLOOKUP($A37,FILTRO_!$A$5:$AW$2499,4,FALSE),0) -> 18 | G37: =IFERROR(VLOOKUP($A37,FILTRO_!$A$5:$AW$2499,5,FALSE),0) -> 0 | H37: =IFERROR(VLOOKUP($A37,FILTRO_!$A$5:$AW$2499,6,FALSE),0) -> 1 | I37: =IFERROR(VLOOKUP($A37,FILTRO_!$A$5:$AW$2499,7,FALSE),0) -> 1 | J37: =IFERROR(VLOOKUP($A37,FILTRO_!$A$5:$AW$2499,8,FALSE),0) -> 2 | K37: =IFERROR(VLOOKUP($A37,FILTRO_!$A$5:$AW$2499,9,FALSE),0) -> 9 | L37: =IFERROR(VLOOKUP($A37,FILTRO_!$A$5:$AW$2499,10,FALSE),0) -> 1 | M37: =IFERROR(VLOOKUP($A37,FILTRO_!$A$5:$AW$2499,11,FALSE),0) -> 30 | N37: =IFERROR(VLOOKUP($A37,FILTRO_!$A$5:$AW$2499,12,FALSE),0) -> 8 | O37: =IFERROR(VLOOKUP($A37,FILTRO_!$A$5:$AW$2499,13,FALSE),0) -> 20 | P37: =IFERROR(VLOOKUP($A37,FILTRO_!$A$5:$AW$2499,14,FALSE),0) -> 4 | Q37: =IFERROR(VLOOKUP($A37,FILTRO_!$A$5:$AW$2499,15,FALSE),0) -> 4 | R37: =IFERROR(VLOOKUP($A37,FILTRO_!$A$5:$AW$2499,16,FALSE),0) -> 2 | S37: =IFERROR(VLOOKUP($A37,FILTRO_!$A$5:$AW$2499,17,FALSE),0) -> 0 | T37: =IFERROR(VLOOKUP($A37,FILTRO_!$A$5:$AW$2499,18,FALSE),0) -> 1
A38: 03500333 | B38: TRASLADO DE ESTABLECIMIENTO | C38: NORMAL CON REZAGO | D38: =IFERROR(VLOOKUP($A38,FILTRO_!$A$5:$AW$2499,2,FALSE),0) -> 2 | E38: =IFERROR(VLOOKUP($A38,FILTRO_!$A$5:$AW$2499,3,FALSE),0) -> 0 | F38: =IFERROR(VLOOKUP($A38,FILTRO_!$A$5:$AW$2499,4,FALSE),0) -> 2 | G38: =IFERROR(VLOOKUP($A38,FILTRO_!$A$5:$AW$2499,5,FALSE),0) -> 0 | H38: =IFERROR(VLOOKUP($A38,FILTRO_!$A$5:$AW$2499,6,FALSE),0) -> 0 | I38: =IFERROR(VLOOKUP($A38,FILTRO_!$A$5:$AW$2499,7,FALSE),0) -> 0 | J38: =IFERROR(VLOOKUP($A38,FILTRO_!$A$5:$AW$2499,8,FALSE),0) -> 1 | K38: =IFERROR(VLOOKUP($A38,FILTRO_!$A$5:$AW$2499,9,FALSE),0) -> 0 | L38: =IFERROR(VLOOKUP($A38,FILTRO_!$A$5:$AW$2499,10,FALSE),0) -> 0 | M38: =IFERROR(VLOOKUP($A38,FILTRO_!$A$5:$AW$2499,11,FALSE),0) -> 0 | N38: =IFERROR(VLOOKUP($A38,FILTRO_!$A$5:$AW$2499,12,FALSE),0) -> 1 | O38: =IFERROR(VLOOKUP($A38,FILTRO_!$A$5:$AW$2499,13,FALSE),0) -> 0 | P38: =IFERROR(VLOOKUP($A38,FILTRO_!$A$5:$AW$2499,14,FALSE),0) -> 0 | Q38: =IFERROR(VLOOKUP($A38,FILTRO_!$A$5:$AW$2499,15,FALSE),0) -> 0 | R38: =IFERROR(VLOOKUP($A38,FILTRO_!$A$5:$AW$2499,16,FALSE),0) -> 0 | S38: =IFERROR(VLOOKUP($A38,FILTRO_!$A$5:$AW$2499,17,FALSE),0) -> 0 | T38: =IFERROR(VLOOKUP($A38,FILTRO_!$A$5:$AW$2499,18,FALSE),0) -> 0
A39: 03500334 | C39: RIESGO | D39: =IFERROR(VLOOKUP($A39,FILTRO_!$A$5:$AW$2499,2,FALSE),0) -> 10 | E39: =IFERROR(VLOOKUP($A39,FILTRO_!$A$5:$AW$2499,3,FALSE),0) -> 7 | F39: =IFERROR(VLOOKUP($A39,FILTRO_!$A$5:$AW$2499,4,FALSE),0) -> 3 | G39: =IFERROR(VLOOKUP($A39,FILTRO_!$A$5:$AW$2499,5,FALSE),0) -> 0 | H39: =IFERROR(VLOOKUP($A39,FILTRO_!$A$5:$AW$2499,6,FALSE),0) -> 0 | I39: =IFERROR(VLOOKUP($A39,FILTRO_!$A$5:$AW$2499,7,FALSE),0) -> 0 | J39: =IFERROR(VLOOKUP($A39,FILTRO_!$A$5:$AW$2499,8,FALSE),0) -> 0 | K39: =IFERROR(VLOOKUP($A39,FILTRO_!$A$5:$AW$2499,9,FALSE),0) -> 2 | L39: =IFERROR(VLOOKUP($A39,FILTRO_!$A$5:$AW$2499,10,FALSE),0) -> 0 | M39: =IFERROR(VLOOKUP($A39,FILTRO_!$A$5:$AW$2499,11,FALSE),0) -> 4 | N39: =IFERROR(VLOOKUP($A39,FILTRO_!$A$5:$AW$2499,12,FALSE),0) -> 1 | O39: =IFERROR(VLOOKUP($A39,FILTRO_!$A$5:$AW$2499,13,FALSE),0) -> 1 | P39: =IFERROR(VLOOKUP($A39,FILTRO_!$A$5:$AW$2499,14,FALSE),0) -> 1 | Q39: =IFERROR(VLOOKUP($A39,FILTRO_!$A$5:$AW$2499,15,FALSE),0) -> 0 | R39: =IFERROR(VLOOKUP($A39,FILTRO_!$A$5:$AW$2499,16,FALSE),0) -> 1 | S39: =IFERROR(VLOOKUP($A39,FILTRO_!$A$5:$AW$2499,17,FALSE),0) -> 0 | T39: =IFERROR(VLOOKUP($A39,FILTRO_!$A$5:$AW$2499,18,FALSE),0) -> 0
A40: 03500335 | C40: RETRASO | D40: =IFERROR(VLOOKUP($A40,FILTRO_!$A$5:$AW$2499,2,FALSE),0) -> 0 | E40: =IFERROR(VLOOKUP($A40,FILTRO_!$A$5:$AW$2499,3,FALSE),0) -> 0 | F40: =IFERROR(VLOOKUP($A40,FILTRO_!$A$5:$AW$2499,4,FALSE),0) -> 0 | G40: =IFERROR(VLOOKUP($A40,FILTRO_!$A$5:$AW$2499,5,FALSE),0) -> 0 | H40: =IFERROR(VLOOKUP($A40,FILTRO_!$A$5:$AW$2499,6,FALSE),0) -> 0 | I40: =IFERROR(VLOOKUP($A40,FILTRO_!$A$5:$AW$2499,7,FALSE),0) -> 0 | J40: =IFERROR(VLOOKUP($A40,FILTRO_!$A$5:$AW$2499,8,FALSE),0) -> 0 | K40: =IFERROR(VLOOKUP($A40,FILTRO_!$A$5:$AW$2499,9,FALSE),0) -> 0 | L40: =IFERROR(VLOOKUP($A40,FILTRO_!$A$5:$AW$2499,10,FALSE),0) -> 0 | M40: =IFERROR(VLOOKUP($A40,FILTRO_!$A$5:$AW$2499,11,FALSE),0) -> 0 | N40: =IFERROR(VLOOKUP($A40,FILTRO_!$A$5:$AW$2499,12,FALSE),0) -> 0 | O40: =IFERROR(VLOOKUP($A40,FILTRO_!$A$5:$AW$2499,13,FALSE),0) -> 0 | P40: =IFERROR(VLOOKUP($A40,FILTRO_!$A$5:$AW$2499,14,FALSE),0) -> 0 | Q40: =IFERROR(VLOOKUP($A40,FILTRO_!$A$5:$AW$2499,15,FALSE),0) -> 0 | R40: =IFERROR(VLOOKUP($A40,FILTRO_!$A$5:$AW$2499,16,FALSE),0) -> 0 | S40: =IFERROR(VLOOKUP($A40,FILTRO_!$A$5:$AW$2499,17,FALSE),0) -> 0 | T40: =IFERROR(VLOOKUP($A40,FILTRO_!$A$5:$AW$2499,18,FALSE),0) -> 0
B41: SECCIÓN A.3: NIÑOS Y NIÑAS CON REZAGO, DÉFICIT U OTRA VULNERABILIDAD DERIVADOS A ALGUNA MODALIDAD DE ESTIMULACIÓN EN LA PRIMERA EVALUACIÓN
B42: NIÑO / A | C42: TOTAL | F42: POR EDAD
F43: Menor 7 meses | H43: 7 - 11 meses | J43: 12 - 17 meses | L43: 18 - 23 meses | N43: 24 - 47 meses | P43: 48 - 59 meses
C44: Ambos Sexos | D44: Hombres | E44: Mujeres | F44: Hombres | G44: Mujeres | H44: Hombres | I44: Mujeres | J44: Hombres | K44: Mujeres | L44: Hombres | M44: Mujeres | N44: Hombres | O44: Mujeres | P44: Hombres | Q44: Mujeres
A45: 02021790 | B45: NORMAL CON REZAGO | C45: =IFERROR(VLOOKUP($A45,FILTRO_!$A$5:$AW$2499,2,FALSE),0) -> 608 | D45: =IFERROR(VLOOKUP($A45,FILTRO_!$A$5:$AW$2499,3,FALSE),0) -> 344 | E45: =IFERROR(VLOOKUP($A45,FILTRO_!$A$5:$AW$2499,4,FALSE),0) -> 264 | F45: =IFERROR(VLOOKUP($A45,FILTRO_!$A$5:$AW$2499,5,FALSE),0) -> 17 | G45: =IFERROR(VLOOKUP($A45,FILTRO_!$A$5:$AW$2499,6,FALSE),0) -> 15 | H45: =IFERROR(VLOOKUP($A45,FILTRO_!$A$5:$AW$2499,7,FALSE),0) -> 40 | I45: =IFERROR(VLOOKUP($A45,FILTRO_!$A$5:$AW$2499,8,FALSE),0) -> 48 | J45: =IFERROR(VLOOKUP($A45,FILTRO_!$A$5:$AW$2499,9,FALSE),0) -> 40 | K45: =IFERROR(VLOOKUP($A45,FILTRO_!$A$5:$AW$2499,10,FALSE),0) -> 19 | L45: =IFERROR(VLOOKUP($A45,FILTRO_!$A$5:$AW$2499,11,FALSE),0) -> 101 | M45: =IFERROR(VLOOKUP($A45,FILTRO_!$A$5:$AW$2499,12,FALSE),0) -> 71 | N45: =IFERROR(VLOOKUP($A45,FILTRO_!$A$5:$AW$2499,13,FALSE),0) -> 139 | O45: =IFERROR(VLOOKUP($A45,FILTRO_!$A$5:$AW$2499,14,FALSE),0) -> 110 | P45: =IFERROR(VLOOKUP($A45,FILTRO_!$A$5:$AW$2499,15,FALSE),0) -> 8 | Q45: =IFERROR(VLOOKUP($A45,FILTRO_!$A$5:$AW$2499,16,FALSE),0) -> 1 | CB45: =IF(C45<#REF!,"* Niños derivados deben ser mayores o iguales al ingreso de niños(as) Normal con Rezago a salas de estimulación REM A05 sección F. ","") ->  | DB45: =IF(C45<#REF!,1,0) -> 
A46: 02021810 | B46: RIESGO | C46: =IFERROR(VLOOKUP($A46,FILTRO_!$A$5:$AW$2499,2,FALSE),0) -> 677 | D46: =IFERROR(VLOOKUP($A46,FILTRO_!$A$5:$AW$2499,3,FALSE),0) -> 424 | E46: =IFERROR(VLOOKUP($A46,FILTRO_!$A$5:$AW$2499,4,FALSE),0) -> 253 | F46: =IFERROR(VLOOKUP($A46,FILTRO_!$A$5:$AW$2499,5,FALSE),0) -> 7 | G46: =IFERROR(VLOOKUP($A46,FILTRO_!$A$5:$AW$2499,6,FALSE),0) -> 6 | H46: =IFERROR(VLOOKUP($A46,FILTRO_!$A$5:$AW$2499,7,FALSE),0) -> 46 | I46: =IFERROR(VLOOKUP($A46,FILTRO_!$A$5:$AW$2499,8,FALSE),0) -> 53 | J46: =IFERROR(VLOOKUP($A46,FILTRO_!$A$5:$AW$2499,9,FALSE),0) -> 42 | K46: =IFERROR(VLOOKUP($A46,FILTRO_!$A$5:$AW$2499,10,FALSE),0) -> 20 | L46: =IFERROR(VLOOKUP($A46,FILTRO_!$A$5:$AW$2499,11,FALSE),0) -> 152 | M46: =IFERROR(VLOOKUP($A46,FILTRO_!$A$5:$AW$2499,12,FALSE),0) -> 87 | N46: =IFERROR(VLOOKUP($A46,FILTRO_!$A$5:$AW$2499,13,FALSE),0) -> 169 | O46: =IFERROR(VLOOKUP($A46,FILTRO_!$A$5:$AW$2499,14,FALSE),0) -> 84 | P46: =IFERROR(VLOOKUP($A46,FILTRO_!$A$5:$AW$2499,15,FALSE),0) -> 8 | Q46: =IFERROR(VLOOKUP($A46,FILTRO_!$A$5:$AW$2499,16,FALSE),0) -> 3 | CB46: =IF(C46<#REF!,"* Niños derivados deben ser mayores o iguales al ingreso de niños(as) Normal con Rezago a salas de estimulación REM A05 sección F. ","") ->  | DB46: =IF(C46<#REF!,1,0) -> 
A47: 02021820 | B47: RETRASO | C47: =IFERROR(VLOOKUP($A47,FILTRO_!$A$5:$AW$2499,2,FALSE),0) -> 215 | D47: =IFERROR(VLOOKUP($A47,FILTRO_!$A$5:$AW$2499,3,FALSE),0) -> 156 | E47: =IFERROR(VLOOKUP($A47,FILTRO_!$A$5:$AW$2499,4,FALSE),0) -> 59 | F47: =IFERROR(VLOOKUP($A47,FILTRO_!$A$5:$AW$2499,5,FALSE),0) -> 1 | G47: =IFERROR(VLOOKUP($A47,FILTRO_!$A$5:$AW$2499,6,FALSE),0) -> 1 | H47: =IFERROR(VLOOKUP($A47,FILTRO_!$A$5:$AW$2499,7,FALSE),0) -> 7 | I47: =IFERROR(VLOOKUP($A47,FILTRO_!$A$5:$AW$2499,8,FALSE),0) -> 4 | J47: =IFERROR(VLOOKUP($A47,FILTRO_!$A$5:$AW$2499,9,FALSE),0) -> 13 | K47: =IFERROR(VLOOKUP($A47,FILTRO_!$A$5:$AW$2499,10,FALSE),0) -> 3 | L47: =IFERROR(VLOOKUP($A47,FILTRO_!$A$5:$AW$2499,11,FALSE),0) -> 68 | M47: =IFERROR(VLOOKUP($A47,FILTRO_!$A$5:$AW$2499,12,FALSE),0) -> 28 | N47: =IFERROR(VLOOKUP($A47,FILTRO_!$A$5:$AW$2499,13,FALSE),0) -> 57 | O47: =IFERROR(VLOOKUP($A47,FILTRO_!$A$5:$AW$2499,14,FALSE),0) -> 21 | P47: =IFERROR(VLOOKUP($A47,FILTRO_!$A$5:$AW$2499,15,FALSE),0) -> 10 | Q47: =IFERROR(VLOOKUP($A47,FILTRO_!$A$5:$AW$2499,16,FALSE),0) -> 2 | CB47: =IF(C47<#REF!,"* Niños derivados deben ser mayores o iguales al ingreso de niños(as) Normal con Rezago a salas de estimulación REM A05 sección F. ","") ->  | DB47: =IF(C47<#REF!,1,0) -> 
A48: 05225307 | B48: OTRA VULNERABILIDAD | C48: =IFERROR(VLOOKUP($A48,FILTRO_!$A$5:$AW$2499,2,FALSE),0) -> 1181 | D48: =IFERROR(VLOOKUP($A48,FILTRO_!$A$5:$AW$2499,3,FALSE),0) -> 694 | E48: =IFERROR(VLOOKUP($A48,FILTRO_!$A$5:$AW$2499,4,FALSE),0) -> 487 | F48: =IFERROR(VLOOKUP($A48,FILTRO_!$A$5:$AW$2499,5,FALSE),0) -> 188 | G48: =IFERROR(VLOOKUP($A48,FILTRO_!$A$5:$AW$2499,6,FALSE),0) -> 164 | H48: =IFERROR(VLOOKUP($A48,FILTRO_!$A$5:$AW$2499,7,FALSE),0) -> 58 | I48: =IFERROR(VLOOKUP($A48,FILTRO_!$A$5:$AW$2499,8,FALSE),0) -> 58 | J48: =IFERROR(VLOOKUP($A48,FILTRO_!$A$5:$AW$2499,9,FALSE),0) -> 77 | K48: =IFERROR(VLOOKUP($A48,FILTRO_!$A$5:$AW$2499,10,FALSE),0) -> 46 | L48: =IFERROR(VLOOKUP($A48,FILTRO_!$A$5:$AW$2499,11,FALSE),0) -> 95 | M48: =IFERROR(VLOOKUP($A48,FILTRO_!$A$5:$AW$2499,12,FALSE),0) -> 66 | N48: =IFERROR(VLOOKUP($A48,FILTRO_!$A$5:$AW$2499,13,FALSE),0) -> 223 | O48: =IFERROR(VLOOKUP($A48,FILTRO_!$A$5:$AW$2499,14,FALSE),0) -> 120 | P48: =IFERROR(VLOOKUP($A48,FILTRO_!$A$5:$AW$2499,15,FALSE),0) -> 53 | Q48: =IFERROR(VLOOKUP($A48,FILTRO_!$A$5:$AW$2499,16,FALSE),0) -> 33 | CB48: =IF(C48<#REF!,"* Niños derivados deben ser mayores o iguales al ingreso de niños(as) Normal con Rezago a salas de estimulación REM A05 sección F. ","") ->  | DB48: =IF(C48<#REF!,1,0) -> 
B49: SECCIÓN A.4: RESULTADOS DE LA APLICACIÓN DE PROTOCOLO NEUROSENSORIAL
B50: RESULTADOS | C50: TOTAL | F50: POR EDAD
F51: 1 mes | H51: 2 meses
C52: Ambos Sexos | D52: Hombres | E52: Mujeres | F52: Hombres | G52: Mujeres | H52: Hombres | I52: Mujeres
A53: 02021760 | B53: APLICACIÓN DE PROTOCOLO NEUROSENSORIAL (1-2 MESES) | C53: =IFERROR(VLOOKUP($A53,FILTRO_!$A$5:$AW$2499,2,FALSE),0) -> 2470 | D53: =IFERROR(VLOOKUP($A53,FILTRO_!$A$5:$AW$2499,3,FALSE),0) -> 1212 | E53: =IFERROR(VLOOKUP($A53,FILTRO_!$A$5:$AW$2499,4,FALSE),0) -> 1258 | F53: =IFERROR(VLOOKUP($A53,FILTRO_!$A$5:$AW$2499,5,FALSE),0) -> 1000 | G53: =IFERROR(VLOOKUP($A53,FILTRO_!$A$5:$AW$2499,6,FALSE),0) -> 1024 | H53: =IFERROR(VLOOKUP($A53,FILTRO_!$A$5:$AW$2499,7,FALSE),0) -> 212 | I53: =IFERROR(VLOOKUP($A53,FILTRO_!$A$5:$AW$2499,8,FALSE),0) -> 234
A54: 03500040 | B54: NORMAL | C54: =IFERROR(VLOOKUP($A54,FILTRO_!$A$5:$AW$2499,2,FALSE),0) -> 2087 | D54: =IFERROR(VLOOKUP($A54,FILTRO_!$A$5:$AW$2499,3,FALSE),0) -> 1016 | E54: =IFERROR(VLOOKUP($A54,FILTRO_!$A$5:$AW$2499,4,FALSE),0) -> 1071 | F54: =IFERROR(VLOOKUP($A54,FILTRO_!$A$5:$AW$2499,5,FALSE),0) -> 849 | G54: =IFERROR(VLOOKUP($A54,FILTRO_!$A$5:$AW$2499,6,FALSE),0) -> 875 | H54: =IFERROR(VLOOKUP($A54,FILTRO_!$A$5:$AW$2499,7,FALSE),0) -> 167 | I54: =IFERROR(VLOOKUP($A54,FILTRO_!$A$5:$AW$2499,8,FALSE),0) -> 196
A55: 03500050 | B55: ANORMAL | C55: =IFERROR(VLOOKUP($A55,FILTRO_!$A$5:$AW$2499,2,FALSE),0) -> 350 | D55: =IFERROR(VLOOKUP($A55,FILTRO_!$A$5:$AW$2499,3,FALSE),0) -> 176 | E55: =IFERROR(VLOOKUP($A55,FILTRO_!$A$5:$AW$2499,4,FALSE),0) -> 174 | F55: =IFERROR(VLOOKUP($A55,FILTRO_!$A$5:$AW$2499,5,FALSE),0) -> 136 | G55: =IFERROR(VLOOKUP($A55,FILTRO_!$A$5:$AW$2499,6,FALSE),0) -> 140 | H55: =IFERROR(VLOOKUP($A55,FILTRO_!$A$5:$AW$2499,7,FALSE),0) -> 40 | I55: =IFERROR(VLOOKUP($A55,FILTRO_!$A$5:$AW$2499,8,FALSE),0) -> 34
A56: 03500060 | B56: MUY ANORMAL | C56: =IFERROR(VLOOKUP($A56,FILTRO_!$A$5:$AW$2499,2,FALSE),0) -> 33 | D56: =IFERROR(VLOOKUP($A56,FILTRO_!$A$5:$AW$2499,3,FALSE),0) -> 20 | E56: =IFERROR(VLOOKUP($A56,FILTRO_!$A$5:$AW$2499,4,FALSE),0) -> 13 | F56: =IFERROR(VLOOKUP($A56,FILTRO_!$A$5:$AW$2499,5,FALSE),0) -> 15 | G56: =IFERROR(VLOOKUP($A56,FILTRO_!$A$5:$AW$2499,6,FALSE),0) -> 9 | H56: =IFERROR(VLOOKUP($A56,FILTRO_!$A$5:$AW$2499,7,FALSE),0) -> 5 | I56: =IFERROR(VLOOKUP($A56,FILTRO_!$A$5:$AW$2499,8,FALSE),0) -> 4
B57: SECCIÓN A.5: LACTANCIA EN NIÑOS Y NIÑAS CONTROLADOS
B58: TIPO DE ALIMENTACIÓN | D58: TOTAL | E58: SEGÚN CONTROL PROGRAMÁTICO | K58: Pueblos Originarios | L58: Migrantes
E59: Diada | F59: Del 1° mes | G59: Del 3° mes | H59: Del 6° mes | I59: Del 12° mes | J59: Del 24° mes | CB59: 0 | CC59: 0 | CD59: 0 | CE59: 0 | CF59: 0
A60: A0200002 | B60: LACTANCIA MATERNA EXCLUSIVA | D60: =IFERROR(VLOOKUP($A60,FILTRO_!$A$5:$AW$2499,2,FALSE),0) -> 6356 | E60: =IFERROR(VLOOKUP($A60,FILTRO_!$A$5:$AW$2499,3,FALSE),0) -> 1703 | F60: =IFERROR(VLOOKUP($A60,FILTRO_!$A$5:$AW$2499,4,FALSE),0) -> 1625 | G60: =IFERROR(VLOOKUP($A60,FILTRO_!$A$5:$AW$2499,5,FALSE),0) -> 1590 | H60: =IFERROR(VLOOKUP($A60,FILTRO_!$A$5:$AW$2499,6,FALSE),0) -> 1465 | I60: =IFERROR(VLOOKUP($A60,FILTRO_!$A$5:$AW$2499,7,FALSE),0) -> 0 | J60: =IFERROR(VLOOKUP($A60,FILTRO_!$A$5:$AW$2499,8,FALSE),0) -> 0 | K60: =IFERROR(VLOOKUP($A60,FILTRO_!$A$5:$AW$2499,9,FALSE),0) -> 20 | L60: =IFERROR(VLOOKUP($A60,FILTRO_!$A$5:$AW$2499,10,FALSE),0) -> 29 | CD60: * * El campo Migrantes NO PUEDE ser mayor al Total. | CF60: 0 | CG60: 0 | CH60: 0 | DA60: 0 | DB60: 0 | DC60: 0 | DD60: 1 | DE60: 0
A61: 03500359 | B61: LACTANCIA MATERNA / FORMULA LÁCTEA | D61: =IFERROR(VLOOKUP($A61,FILTRO_!$A$5:$AW$2499,2,FALSE),0) -> 1880 | E61: =IFERROR(VLOOKUP($A61,FILTRO_!$A$5:$AW$2499,3,FALSE),0) -> 412 | F61: =IFERROR(VLOOKUP($A61,FILTRO_!$A$5:$AW$2499,4,FALSE),0) -> 600 | G61: =IFERROR(VLOOKUP($A61,FILTRO_!$A$5:$AW$2499,5,FALSE),0) -> 519 | H61: =IFERROR(VLOOKUP($A61,FILTRO_!$A$5:$AW$2499,6,FALSE),0) -> 350 | I61: =IFERROR(VLOOKUP($A61,FILTRO_!$A$5:$AW$2499,7,FALSE),0) -> 0 | J61: =IFERROR(VLOOKUP($A61,FILTRO_!$A$5:$AW$2499,8,FALSE),0) -> 0 | K61: =IFERROR(VLOOKUP($A61,FILTRO_!$A$5:$AW$2499,9,FALSE),0) -> 4 | L61: =IFERROR(VLOOKUP($A61,FILTRO_!$A$5:$AW$2499,10,FALSE),0) -> 6 | CD61: * * El campo Migrantes NO PUEDE ser mayor al Total. | DA61: 0 | DB61: 0 | DC61: 0 | DD61: 1 | DE61: 0
A62: 03500360 | B62: FORMULA LÁCTEA | D62: =IFERROR(VLOOKUP($A62,FILTRO_!$A$5:$AW$2499,2,FALSE),0) -> 691 | E62: =IFERROR(VLOOKUP($A62,FILTRO_!$A$5:$AW$2499,3,FALSE),0) -> 28 | F62: =IFERROR(VLOOKUP($A62,FILTRO_!$A$5:$AW$2499,4,FALSE),0) -> 146 | G62: =IFERROR(VLOOKUP($A62,FILTRO_!$A$5:$AW$2499,5,FALSE),0) -> 232 | H62: =IFERROR(VLOOKUP($A62,FILTRO_!$A$5:$AW$2499,6,FALSE),0) -> 286 | I62: =IFERROR(VLOOKUP($A62,FILTRO_!$A$5:$AW$2499,7,FALSE),0) -> 0 | J62: =IFERROR(VLOOKUP($A62,FILTRO_!$A$5:$AW$2499,8,FALSE),0) -> 0 | K62: =IFERROR(VLOOKUP($A62,FILTRO_!$A$5:$AW$2499,9,FALSE),0) -> 0 | L62: =IFERROR(VLOOKUP($A62,FILTRO_!$A$5:$AW$2499,10,FALSE),0) -> 1 | DA62: 0 | DB62: 0 | DC62: 0 | DD62: 0 | DE62: 0
A63: A0200003 | B63: LACTANCIA MATERNA MAS ALIMENTACIÓN COMPLEMENTARIA | D63: =IFERROR(VLOOKUP($A63,FILTRO_!$A$5:$AW$2499,2,FALSE),0) -> 1056 | E63: =IFERROR(VLOOKUP($A63,FILTRO_!$A$5:$AW$2499,3,FALSE),0) -> 3 | F63: =IFERROR(VLOOKUP($A63,FILTRO_!$A$5:$AW$2499,4,FALSE),0) -> 2 | G63: =IFERROR(VLOOKUP($A63,FILTRO_!$A$5:$AW$2499,5,FALSE),0) -> 6 | H63: =IFERROR(VLOOKUP($A63,FILTRO_!$A$5:$AW$2499,6,FALSE),0) -> 167 | I63: =IFERROR(VLOOKUP($A63,FILTRO_!$A$5:$AW$2499,7,FALSE),0) -> 658 | J63: =IFERROR(VLOOKUP($A63,FILTRO_!$A$5:$AW$2499,8,FALSE),0) -> 221 | K63: =IFERROR(VLOOKUP($A63,FILTRO_!$A$5:$AW$2499,9,FALSE),0) -> 4 | L63: =IFERROR(VLOOKUP($A63,FILTRO_!$A$5:$AW$2499,10,FALSE),0) -> 7 | CC63: * * El campo Pueblos Originarios NO PUEDE ser mayor al Total. | CD63: * * El campo Migrantes NO PUEDE ser mayor al Total. | DA63: 0 | DB63: 0 | DC63: 1 | DD63: 1 | DE63: 0
A64: 03600140 | B64: LACTANCIA MATERNA/ FÓRMULA LÁCTEA/ ALIMENTACIÓN COMPLEMENTARIA | D64: =IFERROR(VLOOKUP($A64,FILTRO_!$A$5:$AW$2499,2,FALSE),0) -> 1276 | E64: =IFERROR(VLOOKUP($A64,FILTRO_!$A$5:$AW$2499,3,FALSE),0) -> 9 | F64: =IFERROR(VLOOKUP($A64,FILTRO_!$A$5:$AW$2499,4,FALSE),0) -> 0 | G64: =IFERROR(VLOOKUP($A64,FILTRO_!$A$5:$AW$2499,5,FALSE),0) -> 0 | H64: =IFERROR(VLOOKUP($A64,FILTRO_!$A$5:$AW$2499,6,FALSE),0) -> 178 | I64: =IFERROR(VLOOKUP($A64,FILTRO_!$A$5:$AW$2499,7,FALSE),0) -> 660 | J64: =IFERROR(VLOOKUP($A64,FILTRO_!$A$5:$AW$2499,8,FALSE),0) -> 429 | K64: =IFERROR(VLOOKUP($A64,FILTRO_!$A$5:$AW$2499,9,FALSE),0) -> 2 | L64: =IFERROR(VLOOKUP($A64,FILTRO_!$A$5:$AW$2499,10,FALSE),0) -> 3 | CC64: * * El campo Pueblos Originarios NO PUEDE ser mayor al Total. | DA64: 0 | DB64: 0 | DC64: 1 | DD64: 0 | DE64: 0
A65: 03600150 | B65: FORMULA LÁCTEA ALIMENTACIÓN COMPLEMENTARIA | D65: =IFERROR(VLOOKUP($A65,FILTRO_!$A$5:$AW$2499,2,FALSE),0) -> 1993 | E65: =IFERROR(VLOOKUP($A65,FILTRO_!$A$5:$AW$2499,3,FALSE),0) -> 9 | F65: =IFERROR(VLOOKUP($A65,FILTRO_!$A$5:$AW$2499,4,FALSE),0) -> 0 | G65: =IFERROR(VLOOKUP($A65,FILTRO_!$A$5:$AW$2499,5,FALSE),0) -> 0 | H65: =IFERROR(VLOOKUP($A65,FILTRO_!$A$5:$AW$2499,6,FALSE),0) -> 172 | I65: =IFERROR(VLOOKUP($A65,FILTRO_!$A$5:$AW$2499,7,FALSE),0) -> 788 | J65: =IFERROR(VLOOKUP($A65,FILTRO_!$A$5:$AW$2499,8,FALSE),0) -> 1025 | K65: =IFERROR(VLOOKUP($A65,FILTRO_!$A$5:$AW$2499,9,FALSE),0) -> 2 | L65: =IFERROR(VLOOKUP($A65,FILTRO_!$A$5:$AW$2499,10,FALSE),0) -> 17 | CC65: * * El campo Pueblos Originarios NO PUEDE ser mayor al Total. | CD65: * * El campo Migrantes NO PUEDE ser mayor al Total. | DA65: 0 | DB65: 0 | DC65: 1 | DD65: 1 | DE65: 0
A66: A0200001 | B66: NÚMERO DE NIÑOS Y NIÑAS CONTROLADOS | D66: =IFERROR(VLOOKUP($A66,FILTRO_!$A$5:$AW$2499,2,FALSE),0) -> 12272 | E66: =IFERROR(VLOOKUP($A66,FILTRO_!$A$5:$AW$2499,3,FALSE),0) -> 1700 | F66: =IFERROR(VLOOKUP($A66,FILTRO_!$A$5:$AW$2499,4,FALSE),0) -> 2120 | G66: =IFERROR(VLOOKUP($A66,FILTRO_!$A$5:$AW$2499,5,FALSE),0) -> 2138 | H66: =IFERROR(VLOOKUP($A66,FILTRO_!$A$5:$AW$2499,6,FALSE),0) -> 2608 | I66: =IFERROR(VLOOKUP($A66,FILTRO_!$A$5:$AW$2499,7,FALSE),0) -> 2068 | J66: =IFERROR(VLOOKUP($A66,FILTRO_!$A$5:$AW$2499,8,FALSE),0) -> 1703 | K66: =IFERROR(VLOOKUP($A66,FILTRO_!$A$5:$AW$2499,9,FALSE),0) -> 11 | L66: =IFERROR(VLOOKUP($A66,FILTRO_!$A$5:$AW$2499,10,FALSE),0) -> 36 | CC66: * * El campo Pueblos Originarios NO PUEDE ser mayor al Total. | CD66: * * El campo Migrantes NO PUEDE ser mayor al Total. | CE66: * El número de menores con lactancia materna Exclusiva o Artificial al control del 6er mes NO debe ser MAYOR al número de menores controlados. | CG66: * El número de menores con lactancia Materna o Artificial mas Solidos al control del 24 meses NO debe ser MAYOR al número de menores controlados. | DA66: 0 | DB66: 0 | DC66: 1 | DD66: 1 | DE66: 1 | DF66: 0 | DG66: 1 | DH66: 0
B67: SECCIÓN A.6: RESULTADOS RADIOGRAFÍA DE PELVIS (CADERA)
B68: RESULTADO | C68: TOTAL | F68: POR EDAD | J68: 3 MESES | L68: 4 MESES
F69: 3 MESES | H69: 4 MESES | J69: Pueblos Originarios | K69: Migrantes | L69: Pueblos Originarios | M69: Migrantes
C70: Ambos Sexos | D70: Hombres | E70: Mujeres | F70: Hombres | G70: Mujeres | H70: Hombres | I70: Mujeres
A71: 09600207 | B71: NORMAL | C71: =IFERROR(VLOOKUP($A71,FILTRO_!$A$5:$AW$2499,2,FALSE),0) -> 1746 | D71: =IFERROR(VLOOKUP($A71,FILTRO_!$A$5:$AW$2499,3,FALSE),0) -> 917 | E71: =IFERROR(VLOOKUP($A71,FILTRO_!$A$5:$AW$2499,4,FALSE),0) -> 829 | F71: =IFERROR(VLOOKUP($A71,FILTRO_!$A$5:$AW$2499,5,FALSE),0) -> 682 | G71: =IFERROR(VLOOKUP($A71,FILTRO_!$A$5:$AW$2499,6,FALSE),0) -> 660 | H71: =IFERROR(VLOOKUP($A71,FILTRO_!$A$5:$AW$2499,7,FALSE),0) -> 235 | I71: =IFERROR(VLOOKUP($A71,FILTRO_!$A$5:$AW$2499,8,FALSE),0) -> 169 | J71: =IFERROR(VLOOKUP($A71,FILTRO_!$A$5:$AW$2499,9,FALSE),0) -> 7 | K71: =IFERROR(VLOOKUP($A71,FILTRO_!$A$5:$AW$2499,10,FALSE),0) -> 7 | L71: =IFERROR(VLOOKUP($A71,FILTRO_!$A$5:$AW$2499,11,FALSE),0) -> 0 | M71: =IFERROR(VLOOKUP($A71,FILTRO_!$A$5:$AW$2499,12,FALSE),0) -> 7 | DA71: 0 | DB71: 0 | DC71: 0 | DD71: 0 | DE71: 0 | DF71: 0 | DG71: 0 | DH71: 0 | DI71: 0
A72: 09600208 | B72: ANORMAL | C72: =IFERROR(VLOOKUP($A72,FILTRO_!$A$5:$AW$2499,2,FALSE),0) -> 327 | D72: =IFERROR(VLOOKUP($A72,FILTRO_!$A$5:$AW$2499,3,FALSE),0) -> 129 | E72: =IFERROR(VLOOKUP($A72,FILTRO_!$A$5:$AW$2499,4,FALSE),0) -> 198 | F72: =IFERROR(VLOOKUP($A72,FILTRO_!$A$5:$AW$2499,5,FALSE),0) -> 93 | G72: =IFERROR(VLOOKUP($A72,FILTRO_!$A$5:$AW$2499,6,FALSE),0) -> 129 | H72: =IFERROR(VLOOKUP($A72,FILTRO_!$A$5:$AW$2499,7,FALSE),0) -> 36 | I72: =IFERROR(VLOOKUP($A72,FILTRO_!$A$5:$AW$2499,8,FALSE),0) -> 69 | J72: =IFERROR(VLOOKUP($A72,FILTRO_!$A$5:$AW$2499,9,FALSE),0) -> 0 | K72: =IFERROR(VLOOKUP($A72,FILTRO_!$A$5:$AW$2499,10,FALSE),0) -> 1 | L72: =IFERROR(VLOOKUP($A72,FILTRO_!$A$5:$AW$2499,11,FALSE),0) -> 0 | M72: =IFERROR(VLOOKUP($A72,FILTRO_!$A$5:$AW$2499,12,FALSE),0) -> 1 | DA72: 0 | DB72: 0 | DC72: 0 | DD72: 0 | DE72: 0 | DF72: 0 | DG72: 0 | DH72: 0 | DI72: 0
A73: 09600209 | B73: INMADURA | C73: =IFERROR(VLOOKUP($A73,FILTRO_!$A$5:$AW$2499,2,FALSE),0) -> 352 | D73: =IFERROR(VLOOKUP($A73,FILTRO_!$A$5:$AW$2499,3,FALSE),0) -> 134 | E73: =IFERROR(VLOOKUP($A73,FILTRO_!$A$5:$AW$2499,4,FALSE),0) -> 218 | F73: =IFERROR(VLOOKUP($A73,FILTRO_!$A$5:$AW$2499,5,FALSE),0) -> 109 | G73: =IFERROR(VLOOKUP($A73,FILTRO_!$A$5:$AW$2499,6,FALSE),0) -> 164 | H73: =IFERROR(VLOOKUP($A73,FILTRO_!$A$5:$AW$2499,7,FALSE),0) -> 25 | I73: =IFERROR(VLOOKUP($A73,FILTRO_!$A$5:$AW$2499,8,FALSE),0) -> 54 | J73: =IFERROR(VLOOKUP($A73,FILTRO_!$A$5:$AW$2499,9,FALSE),0) -> 3 | K73: =IFERROR(VLOOKUP($A73,FILTRO_!$A$5:$AW$2499,10,FALSE),0) -> 5 | L73: =IFERROR(VLOOKUP($A73,FILTRO_!$A$5:$AW$2499,11,FALSE),0) -> 0 | M73: =IFERROR(VLOOKUP($A73,FILTRO_!$A$5:$AW$2499,12,FALSE),0) -> 4 | DA73: 0 | DB73: 0 | DC73: 0 | DD73: 0 | DE73: 0 | DF73: 0 | DG73: 0 | DH73: 0 | DI73: 0
B74: SECCION B: EVALUACIÓN, APLICACIÓN Y RESULTADOS DE ESCALAS EN LA MUJER
B75: SECCIÓN B.1: EVALUACIÓN DEL ESTADO NUTRICIONAL A MUJERES CONTROLADAS AL OCTAVO MES POST PARTO
B76: ESTADO NUTRICIONAL | C76: TOTAL
B78: TOTAL | C78: =SUM(C79:C82) -> 506
A79: 03500120 | B79: OBESA | C79: =IFERROR(VLOOKUP($A79,FILTRO_!$A$5:$AW$2499,2,FALSE),0) -> 194
A80: 03500130 | B80: SOBREPESO | C80: =IFERROR(VLOOKUP($A80,FILTRO_!$A$5:$AW$2499,2,FALSE),0) -> 196
A81: 03500140 | B81: NORMAL | C81: =IFERROR(VLOOKUP($A81,FILTRO_!$A$5:$AW$2499,2,FALSE),0) -> 105
A82: 03500150 | B82: BAJO PESO | C82: =IFERROR(VLOOKUP($A82,FILTRO_!$A$5:$AW$2499,2,FALSE),0) -> 11
B83: SECCIÓN B.2: APLICACIÓN DE ESCALA SEGÚN EVALUACIÓN DE RIESGO PSICOSOCIAL ABREVIADA A GESTANTES
B84: TIPO | C84: Total de Aplicaciones | D84: Riesgo | E84: Derivadas a equipo de cabecera | F84: Violencia Intrafamiliar | CG84: 0
A85: 02021830 | B85: EVALUACIÓN AL INGRESO | C85: =IFERROR(VLOOKUP($A85,FILTRO_!$A$5:$AW$2499,2,FALSE),0) -> 3196 | D85: =IFERROR(VLOOKUP($A85,FILTRO_!$A$5:$AW$2499,3,FALSE),0) -> 863 | E85: =IFERROR(VLOOKUP($A85,FILTRO_!$A$5:$AW$2499,4,FALSE),0) -> 694 | F85: =IFERROR(VLOOKUP($A85,FILTRO_!$A$5:$AW$2499,5,FALSE),0) -> 69 | G85: =CA85&CB85&CC85 ->  | BU85: =IF(CA85=1,"* Las Aplicaciones de EPSA con resultado de Riesgo NO DEBE ser MAYOR que el Total de las aplicaciones. ","") ->  | CA85: =IF(CG85=1,"* Las Aplicaciones de EPSA con resultado de Riesgo NO DEBE ser MAYOR que el Total de las aplicaciones. ","") ->  | CB85: =IF(CH85=1,"* Las Aplicaciones de EPSA con resultado de Riesgo NO DEBE ser MENOR que las Derivaciones a equipo de cabecera. ","") ->  | CC85: =IF(CI85=1,"* Las Aplicaciones de EPSA asociadas a Violencia Intrafamiliar NO DEBEN ser MAYOR al Total de las aplicaciones. ","") ->  | CG85: =IF(C85<D85,1,0) -> 0 | CH85: =IF(D85<E85,1,0) -> 0 | CI85: =IF(F85>C85,1,0) -> 0
A86: 03600160 | B86: EVALUACIÓN AL TERCER TRIMESTRE | C86: =IFERROR(VLOOKUP($A86,FILTRO_!$A$5:$AW$2499,2,FALSE),0) -> 178 | D86: =IFERROR(VLOOKUP($A86,FILTRO_!$A$5:$AW$2499,3,FALSE),0) -> 26 | E86: =IFERROR(VLOOKUP($A86,FILTRO_!$A$5:$AW$2499,4,FALSE),0) -> 22 | F86: =IFERROR(VLOOKUP($A86,FILTRO_!$A$5:$AW$2499,5,FALSE),0) -> 1 | G86: =CA86&CB86&CC86 ->  | CA86: =IF(CG86=1,"* Las Aplicaciones de EPSA con resultado de Riesgo NO DEBE ser MAYOR que el Total de las aplicaciones. ","") ->  | CB86: =IF(CH86=1,"* Las Aplicaciones de EPSA con resultado de Riesgo NO DEBE ser MENOR que las Derivaciones a equipo de cabecera. ","") ->  | CC86: =IF(CI86=1,"* Las Aplicaciones de EPSA asociadas a Violencia Intrafamiliar NO DEBEN ser MAYOR al Total de las aplicaciones. ","") ->  | CG86: =IF(C86<D86,1,0) -> 0 | CH86: =IF(D86<E86,1,0) -> 0 | CI86: =IF(F86>C86,1,0) -> 0
B87: SECCIÓN B.3: APLICACIÓN DE ESCALA DE EDIMBURGO A GESTANTES Y MUJERES POST PARTO | CH87: 0
B88: CONCEPTO | D88: TOTAL DE APLICACIONES | E88: RESULTADOS 10 O MÁS PTOS. O RESULTADO DISTINTO DE 0 EN PREG 10 . (PUERPERAS) | F88: RESULTADOS 13 O MÁS PTOS O RESULTADO DISTINTO DE 0 EN PREG 10. (GESTANTES) | G88: TOTAL DE CASOS ALTERADOS DERIVADOS A SALUD MENTAL | CH88: 0
A89: 03500160 | B89: EVALUACIÓN A GESTANTES | C89: PRIMERA EVALUACIÓN (2º control prenatal) | D89: =IFERROR(VLOOKUP($A89,FILTRO_!$A$5:$AW$2499,2,FALSE),0) -> 3179 | E89: =IFERROR(VLOOKUP($A89,FILTRO_!$A$5:$AW$2499,3,FALSE),0) -> 0 | F89: =IFERROR(VLOOKUP($A89,FILTRO_!$A$5:$AW$2499,4,FALSE),0) -> 272 | G89: =IFERROR(VLOOKUP($A89,FILTRO_!$A$5:$AW$2499,5,FALSE),0) -> 265 | CH89: 0 | DA89: 0 | DC89: 0
A90: 03500170 | C90: REEVALUACIÓN (con puntaje elevado en la primera evaluación) | D90: =IFERROR(VLOOKUP($A90,FILTRO_!$A$5:$AW$2499,2,FALSE),0) -> 53 | E90: =IFERROR(VLOOKUP($A90,FILTRO_!$A$5:$AW$2499,3,FALSE),0) -> 0 | F90: =IFERROR(VLOOKUP($A90,FILTRO_!$A$5:$AW$2499,4,FALSE),0) -> 21 | G90: =IFERROR(VLOOKUP($A90,FILTRO_!$A$5:$AW$2499,5,FALSE),0) -> 11 | CH90: 0 | DA90: 0 | DC90: 0
A91: 03500200 | B91: EVALUACIÓN A MUJERES POST PARTO O SÍNTOMAS DE DEPRESIÓN | C91: A los 2 meses | D91: =IFERROR(VLOOKUP($A91,FILTRO_!$A$5:$AW$2499,2,FALSE),0) -> 2338 | E91: =IFERROR(VLOOKUP($A91,FILTRO_!$A$5:$AW$2499,3,FALSE),0) -> 349 | F91: =IFERROR(VLOOKUP($A91,FILTRO_!$A$5:$AW$2499,4,FALSE),0) -> 0 | G91: =IFERROR(VLOOKUP($A91,FILTRO_!$A$5:$AW$2499,5,FALSE),0) -> 254 | CH91: 0 | DA91: 0 | DB91: 0
A92: 03500210 | C92: A los 6 meses | D92: =IFERROR(VLOOKUP($A92,FILTRO_!$A$5:$AW$2499,2,FALSE),0) -> 2157 | E92: =IFERROR(VLOOKUP($A92,FILTRO_!$A$5:$AW$2499,3,FALSE),0) -> 332 | F92: =IFERROR(VLOOKUP($A92,FILTRO_!$A$5:$AW$2499,4,FALSE),0) -> 0 | G92: =IFERROR(VLOOKUP($A92,FILTRO_!$A$5:$AW$2499,5,FALSE),0) -> 218 | CH92: 0 | DA92: 0 | DB92: 0
B93: SECCIÓN C: RESULTADOS DE LA EVALUACIÓN DEL ESTADO NUTRICIONAL DEL ADOLESCENTE CON CONTROL SALUD INTEGRAL
B94: ESTADO NUTRICIONAL | D94: TOTAL | G94: 10 A 14 años | I94: 15 A 19 años
D95: Ambos Sexos | E95: Hombres | F95: Mujeres | G95: Hombres | H95: Mujeres | I95: Hombres | J95: Mujeres
B96: TOTAL | D96: =SUM(D97:D101) -> 5621 | E96: =SUM(E97:E101) -> 2377 | F96: 3244 | G96: =SUM(G97:G101) -> 1816 | H96: 2232 | I96: 561 | J96: 1012
A97: 03050400 | B97: NORMAL | D97: =SUM(E97+F97) -> 2477 | E97: =IFERROR(VLOOKUP($A97,FILTRO_!$A$5:$AW$2499,3,FALSE),0) -> 1005 | F97: =IFERROR(VLOOKUP($A97,FILTRO_!$A$5:$AW$2499,4,FALSE),0) -> 1472 | G97: =IFERROR(VLOOKUP($A97,FILTRO_!$A$5:$AW$2499,5,FALSE),0) -> 749 | H97: =IFERROR(VLOOKUP($A97,FILTRO_!$A$5:$AW$2499,6,FALSE),0) -> 1029 | I97: =IFERROR(VLOOKUP($A97,FILTRO_!$A$5:$AW$2499,7,FALSE),0) -> 256 | J97: =IFERROR(VLOOKUP($A97,FILTRO_!$A$5:$AW$2499,8,FALSE),0) -> 443
A98: 03050500 | B98: BAJO PESO | D98: =SUM(E98+F98) -> 369 | E98: =IFERROR(VLOOKUP($A98,FILTRO_!$A$5:$AW$2499,3,FALSE),0) -> 191 | F98: =IFERROR(VLOOKUP($A98,FILTRO_!$A$5:$AW$2499,4,FALSE),0) -> 178 | G98: =IFERROR(VLOOKUP($A98,FILTRO_!$A$5:$AW$2499,5,FALSE),0) -> 124 | H98: =IFERROR(VLOOKUP($A98,FILTRO_!$A$5:$AW$2499,6,FALSE),0) -> 125 | I98: =IFERROR(VLOOKUP($A98,FILTRO_!$A$5:$AW$2499,7,FALSE),0) -> 67 | J98: =IFERROR(VLOOKUP($A98,FILTRO_!$A$5:$AW$2499,8,FALSE),0) -> 53
A99: 03050600 | B99: SOBREPESO | D99: =SUM(E99+F99) -> 1401 | E99: =IFERROR(VLOOKUP($A99,FILTRO_!$A$5:$AW$2499,3,FALSE),0) -> 548 | F99: =IFERROR(VLOOKUP($A99,FILTRO_!$A$5:$AW$2499,4,FALSE),0) -> 853 | G99: =IFERROR(VLOOKUP($A99,FILTRO_!$A$5:$AW$2499,5,FALSE),0) -> 433 | H99: =IFERROR(VLOOKUP($A99,FILTRO_!$A$5:$AW$2499,6,FALSE),0) -> 591 | I99: =IFERROR(VLOOKUP($A99,FILTRO_!$A$5:$AW$2499,7,FALSE),0) -> 115 | J99: =IFERROR(VLOOKUP($A99,FILTRO_!$A$5:$AW$2499,8,FALSE),0) -> 262
A100: 03050700 | B100: OBESOS | D100: =SUM(E100+F100) -> 1142 | E100: =IFERROR(VLOOKUP($A100,FILTRO_!$A$5:$AW$2499,3,FALSE),0) -> 515 | F100: =IFERROR(VLOOKUP($A100,FILTRO_!$A$5:$AW$2499,4,FALSE),0) -> 627 | G100: =IFERROR(VLOOKUP($A100,FILTRO_!$A$5:$AW$2499,5,FALSE),0) -> 421 | H100: =IFERROR(VLOOKUP($A100,FILTRO_!$A$5:$AW$2499,6,FALSE),0) -> 417 | I100: =IFERROR(VLOOKUP($A100,FILTRO_!$A$5:$AW$2499,7,FALSE),0) -> 94 | J100: =IFERROR(VLOOKUP($A100,FILTRO_!$A$5:$AW$2499,8,FALSE),0) -> 210
A101: 03050710 | B101: OBESOS SEVEROS | D101: =SUM(E101+F101) -> 232 | E101: =IFERROR(VLOOKUP($A101,FILTRO_!$A$5:$AW$2499,3,FALSE),0) -> 118 | F101: =IFERROR(VLOOKUP($A101,FILTRO_!$A$5:$AW$2499,4,FALSE),0) -> 114 | G101: =IFERROR(VLOOKUP($A101,FILTRO_!$A$5:$AW$2499,5,FALSE),0) -> 89 | H101: =IFERROR(VLOOKUP($A101,FILTRO_!$A$5:$AW$2499,6,FALSE),0) -> 70 | I101: =IFERROR(VLOOKUP($A101,FILTRO_!$A$5:$AW$2499,7,FALSE),0) -> 29 | J101: =IFERROR(VLOOKUP($A101,FILTRO_!$A$5:$AW$2499,8,FALSE),0) -> 44
B102: SECCIÓN D: OTRAS EVALUACIONES, APLICACIONES Y RESULTADOS DE ESCALAS EN TODAS LAS EDADES
B103: SECCIÓN D.1: APLICACIÓN DE TAMIZAJE PARA EVALUAR EL NIVEL DE RIESGO DE CONSUMO DE ALCOHOL, TABACO Y OTRAS DROGAS
B104: COMPONENTE | D104: TOTAL | G104: POR EDAD
G105: 10-14 años | I105: 15-19 años | K105: 20-24 años | M105: 25-44 años | O105: 45-64 años | Q105: 65-69 años | S105: 70-79 años | U105: 80 y más años
D106: Ambos Sexos | E106: Hombres | F106: Mujeres | G106: Hombres | H106: Mujeres | I106: Hombres | J106: Mujeres | K106: Hombres | L106: Mujeres | M106: Hombres | N106: Mujeres | O106: Hombres | P106: Mujeres | Q106: Hombres | R106: Mujeres | S106: Hombres | T106: Mujeres | U106: Hombres | V106: Mujeres
A107: 03500346 | B107: Nº DE AUDIT (EMP/EMPAM) | D107: =IFERROR(VLOOKUP($A107,FILTRO_!$A$5:$AW$2499,2,FALSE),0) -> 19409 | E107: =IFERROR(VLOOKUP($A107,FILTRO_!$A$5:$AW$2499,3,FALSE),0) -> 6468 | F107: =IFERROR(VLOOKUP($A107,FILTRO_!$A$5:$AW$2499,4,FALSE),0) -> 12941 | G107: =IFERROR(VLOOKUP($A107,FILTRO_!$A$5:$AW$2499,5,FALSE),0) -> 0 | H107: =IFERROR(VLOOKUP($A107,FILTRO_!$A$5:$AW$2499,6,FALSE),0) -> 0 | I107: =IFERROR(VLOOKUP($A107,FILTRO_!$A$5:$AW$2499,7,FALSE),0) -> 73 | J107: =IFERROR(VLOOKUP($A107,FILTRO_!$A$5:$AW$2499,8,FALSE),0) -> 151 | K107: =IFERROR(VLOOKUP($A107,FILTRO_!$A$5:$AW$2499,9,FALSE),0) -> 392 | L107: =IFERROR(VLOOKUP($A107,FILTRO_!$A$5:$AW$2499,10,FALSE),0) -> 993 | M107: =IFERROR(VLOOKUP($A107,FILTRO_!$A$5:$AW$2499,11,FALSE),0) -> 1725 | N107: =IFERROR(VLOOKUP($A107,FILTRO_!$A$5:$AW$2499,12,FALSE),0) -> 4448 | O107: =IFERROR(VLOOKUP($A107,FILTRO_!$A$5:$AW$2499,13,FALSE),0) -> 1614 | P107: =IFERROR(VLOOKUP($A107,FILTRO_!$A$5:$AW$2499,14,FALSE),0) -> 3153 | Q107: =IFERROR(VLOOKUP($A107,FILTRO_!$A$5:$AW$2499,15,FALSE),0) -> 731 | R107: =IFERROR(VLOOKUP($A107,FILTRO_!$A$5:$AW$2499,16,FALSE),0) -> 1226 | S107: =IFERROR(VLOOKUP($A107,FILTRO_!$A$5:$AW$2499,17,FALSE),0) -> 1250 | T107: =IFERROR(VLOOKUP($A107,FILTRO_!$A$5:$AW$2499,18,FALSE),0) -> 1866 | U107: =IFERROR(VLOOKUP($A107,FILTRO_!$A$5:$AW$2499,19,FALSE),0) -> 683 | V107: =IFERROR(VLOOKUP($A107,FILTRO_!$A$5:$AW$2499,20,FALSE),0) -> 1104
A108: 03500347 | B108: Nº DE AUDIT APLICADO | D108: =IFERROR(VLOOKUP($A108,FILTRO_!$A$5:$AW$2499,2,FALSE),0) -> 13219 | E108: =IFERROR(VLOOKUP($A108,FILTRO_!$A$5:$AW$2499,3,FALSE),0) -> 4553 | F108: =IFERROR(VLOOKUP($A108,FILTRO_!$A$5:$AW$2499,4,FALSE),0) -> 8666 | G108: =IFERROR(VLOOKUP($A108,FILTRO_!$A$5:$AW$2499,5,FALSE),0) -> 0 | H108: =IFERROR(VLOOKUP($A108,FILTRO_!$A$5:$AW$2499,6,FALSE),0) -> 0 | I108: =IFERROR(VLOOKUP($A108,FILTRO_!$A$5:$AW$2499,7,FALSE),0) -> 0 | J108: =IFERROR(VLOOKUP($A108,FILTRO_!$A$5:$AW$2499,8,FALSE),0) -> 0 | K108: =IFERROR(VLOOKUP($A108,FILTRO_!$A$5:$AW$2499,9,FALSE),0) -> 540 | L108: =IFERROR(VLOOKUP($A108,FILTRO_!$A$5:$AW$2499,10,FALSE),0) -> 968 | M108: =IFERROR(VLOOKUP($A108,FILTRO_!$A$5:$AW$2499,11,FALSE),0) -> 1370 | N108: =IFERROR(VLOOKUP($A108,FILTRO_!$A$5:$AW$2499,12,FALSE),0) -> 3196 | O108: =IFERROR(VLOOKUP($A108,FILTRO_!$A$5:$AW$2499,13,FALSE),0) -> 1336 | P108: =IFERROR(VLOOKUP($A108,FILTRO_!$A$5:$AW$2499,14,FALSE),0) -> 2685 | Q108: =IFERROR(VLOOKUP($A108,FILTRO_!$A$5:$AW$2499,15,FALSE),0) -> 503 | R108: =IFERROR(VLOOKUP($A108,FILTRO_!$A$5:$AW$2499,16,FALSE),0) -> 761 | S108: =IFERROR(VLOOKUP($A108,FILTRO_!$A$5:$AW$2499,17,FALSE),0) -> 530 | T108: =IFERROR(VLOOKUP($A108,FILTRO_!$A$5:$AW$2499,18,FALSE),0) -> 748 | U108: =IFERROR(VLOOKUP($A108,FILTRO_!$A$5:$AW$2499,19,FALSE),0) -> 274 | V108: =IFERROR(VLOOKUP($A108,FILTRO_!$A$5:$AW$2499,20,FALSE),0) -> 308
A109: 03500402 | B109: Nº DE ASSIST (EMP/EMPAM) | D109: =IFERROR(VLOOKUP($A109,FILTRO_!$A$5:$AW$2499,2,FALSE),0) -> 1016 | E109: =IFERROR(VLOOKUP($A109,FILTRO_!$A$5:$AW$2499,3,FALSE),0) -> 322 | F109: =IFERROR(VLOOKUP($A109,FILTRO_!$A$5:$AW$2499,4,FALSE),0) -> 694 | G109: =IFERROR(VLOOKUP($A109,FILTRO_!$A$5:$AW$2499,5,FALSE),0) -> 0 | H109: =IFERROR(VLOOKUP($A109,FILTRO_!$A$5:$AW$2499,6,FALSE),0) -> 0 | I109: =IFERROR(VLOOKUP($A109,FILTRO_!$A$5:$AW$2499,7,FALSE),0) -> 0 | J109: =IFERROR(VLOOKUP($A109,FILTRO_!$A$5:$AW$2499,8,FALSE),0) -> 0 | K109: =IFERROR(VLOOKUP($A109,FILTRO_!$A$5:$AW$2499,9,FALSE),0) -> 20 | L109: =IFERROR(VLOOKUP($A109,FILTRO_!$A$5:$AW$2499,10,FALSE),0) -> 50 | M109: =IFERROR(VLOOKUP($A109,FILTRO_!$A$5:$AW$2499,11,FALSE),0) -> 77 | N109: =IFERROR(VLOOKUP($A109,FILTRO_!$A$5:$AW$2499,12,FALSE),0) -> 243 | O109: =IFERROR(VLOOKUP($A109,FILTRO_!$A$5:$AW$2499,13,FALSE),0) -> 60 | P109: =IFERROR(VLOOKUP($A109,FILTRO_!$A$5:$AW$2499,14,FALSE),0) -> 181 | Q109: =IFERROR(VLOOKUP($A109,FILTRO_!$A$5:$AW$2499,15,FALSE),0) -> 62 | R109: =IFERROR(VLOOKUP($A109,FILTRO_!$A$5:$AW$2499,16,FALSE),0) -> 78 | S109: =IFERROR(VLOOKUP($A109,FILTRO_!$A$5:$AW$2499,17,FALSE),0) -> 69 | T109: =IFERROR(VLOOKUP($A109,FILTRO_!$A$5:$AW$2499,18,FALSE),0) -> 97 | U109: =IFERROR(VLOOKUP($A109,FILTRO_!$A$5:$AW$2499,19,FALSE),0) -> 34 | V109: =IFERROR(VLOOKUP($A109,FILTRO_!$A$5:$AW$2499,20,FALSE),0) -> 45
A110: 03500348 | B110: N° DE ASSIST APLICADO | D110: =IFERROR(VLOOKUP($A110,FILTRO_!$A$5:$AW$2499,2,FALSE),0) -> 1229 | E110: =IFERROR(VLOOKUP($A110,FILTRO_!$A$5:$AW$2499,3,FALSE),0) -> 340 | F110: =IFERROR(VLOOKUP($A110,FILTRO_!$A$5:$AW$2499,4,FALSE),0) -> 889 | G110: =IFERROR(VLOOKUP($A110,FILTRO_!$A$5:$AW$2499,5,FALSE),0) -> 0 | H110: =IFERROR(VLOOKUP($A110,FILTRO_!$A$5:$AW$2499,6,FALSE),0) -> 0 | I110: =IFERROR(VLOOKUP($A110,FILTRO_!$A$5:$AW$2499,7,FALSE),0) -> 0 | J110: =IFERROR(VLOOKUP($A110,FILTRO_!$A$5:$AW$2499,8,FALSE),0) -> 0 | K110: =IFERROR(VLOOKUP($A110,FILTRO_!$A$5:$AW$2499,9,FALSE),0) -> 28 | L110: =IFERROR(VLOOKUP($A110,FILTRO_!$A$5:$AW$2499,10,FALSE),0) -> 80 | M110: =IFERROR(VLOOKUP($A110,FILTRO_!$A$5:$AW$2499,11,FALSE),0) -> 136 | N110: =IFERROR(VLOOKUP($A110,FILTRO_!$A$5:$AW$2499,12,FALSE),0) -> 373 | O110: =IFERROR(VLOOKUP($A110,FILTRO_!$A$5:$AW$2499,13,FALSE),0) -> 122 | P110: =IFERROR(VLOOKUP($A110,FILTRO_!$A$5:$AW$2499,14,FALSE),0) -> 350 | Q110: =IFERROR(VLOOKUP($A110,FILTRO_!$A$5:$AW$2499,15,FALSE),0) -> 24 | R110: =IFERROR(VLOOKUP($A110,FILTRO_!$A$5:$AW$2499,16,FALSE),0) -> 44 | S110: =IFERROR(VLOOKUP($A110,FILTRO_!$A$5:$AW$2499,17,FALSE),0) -> 24 | T110: =IFERROR(VLOOKUP($A110,FILTRO_!$A$5:$AW$2499,18,FALSE),0) -> 37 | U110: =IFERROR(VLOOKUP($A110,FILTRO_!$A$5:$AW$2499,19,FALSE),0) -> 6 | V110: =IFERROR(VLOOKUP($A110,FILTRO_!$A$5:$AW$2499,20,FALSE),0) -> 5
A111: 03600100 | B111: N° DE CRAFFT EN CONTROL DE SALUD INTEGRAL DEL ADOLESCENTE | D111: =IFERROR(VLOOKUP($A111,FILTRO_!$A$5:$AW$2499,2,FALSE),0) -> 2247 | E111: =IFERROR(VLOOKUP($A111,FILTRO_!$A$5:$AW$2499,3,FALSE),0) -> 964 | F111: =IFERROR(VLOOKUP($A111,FILTRO_!$A$5:$AW$2499,4,FALSE),0) -> 1283 | G111: =IFERROR(VLOOKUP($A111,FILTRO_!$A$5:$AW$2499,5,FALSE),0) -> 665 | H111: =IFERROR(VLOOKUP($A111,FILTRO_!$A$5:$AW$2499,6,FALSE),0) -> 808 | I111: =IFERROR(VLOOKUP($A111,FILTRO_!$A$5:$AW$2499,7,FALSE),0) -> 299 | J111: =IFERROR(VLOOKUP($A111,FILTRO_!$A$5:$AW$2499,8,FALSE),0) -> 475 | K111: =IFERROR(VLOOKUP($A111,FILTRO_!$A$5:$AW$2499,9,FALSE),0) -> 0 | L111: =IFERROR(VLOOKUP($A111,FILTRO_!$A$5:$AW$2499,10,FALSE),0) -> 0 | M111: =IFERROR(VLOOKUP($A111,FILTRO_!$A$5:$AW$2499,11,FALSE),0) -> 0 | N111: =IFERROR(VLOOKUP($A111,FILTRO_!$A$5:$AW$2499,12,FALSE),0) -> 0 | O111: =IFERROR(VLOOKUP($A111,FILTRO_!$A$5:$AW$2499,13,FALSE),0) -> 0 | P111: =IFERROR(VLOOKUP($A111,FILTRO_!$A$5:$AW$2499,14,FALSE),0) -> 0 | Q111: =IFERROR(VLOOKUP($A111,FILTRO_!$A$5:$AW$2499,15,FALSE),0) -> 0 | R111: =IFERROR(VLOOKUP($A111,FILTRO_!$A$5:$AW$2499,16,FALSE),0) -> 0 | S111: =IFERROR(VLOOKUP($A111,FILTRO_!$A$5:$AW$2499,17,FALSE),0) -> 0 | T111: =IFERROR(VLOOKUP($A111,FILTRO_!$A$5:$AW$2499,18,FALSE),0) -> 0 | U111: =IFERROR(VLOOKUP($A111,FILTRO_!$A$5:$AW$2499,19,FALSE),0) -> 0 | V111: =IFERROR(VLOOKUP($A111,FILTRO_!$A$5:$AW$2499,20,FALSE),0) -> 0
A112: 03500367 | B112: N° DE CRAFFT APLICADO | D112: =IFERROR(VLOOKUP($A112,FILTRO_!$A$5:$AW$2499,2,FALSE),0) -> 2174 | E112: =IFERROR(VLOOKUP($A112,FILTRO_!$A$5:$AW$2499,3,FALSE),0) -> 916 | F112: =IFERROR(VLOOKUP($A112,FILTRO_!$A$5:$AW$2499,4,FALSE),0) -> 1258 | G112: =IFERROR(VLOOKUP($A112,FILTRO_!$A$5:$AW$2499,5,FALSE),0) -> 604 | H112: =IFERROR(VLOOKUP($A112,FILTRO_!$A$5:$AW$2499,6,FALSE),0) -> 762 | I112: =IFERROR(VLOOKUP($A112,FILTRO_!$A$5:$AW$2499,7,FALSE),0) -> 312 | J112: =IFERROR(VLOOKUP($A112,FILTRO_!$A$5:$AW$2499,8,FALSE),0) -> 496 | K112: =IFERROR(VLOOKUP($A112,FILTRO_!$A$5:$AW$2499,9,FALSE),0) -> 0 | L112: =IFERROR(VLOOKUP($A112,FILTRO_!$A$5:$AW$2499,10,FALSE),0) -> 0 | M112: =IFERROR(VLOOKUP($A112,FILTRO_!$A$5:$AW$2499,11,FALSE),0) -> 0 | N112: =IFERROR(VLOOKUP($A112,FILTRO_!$A$5:$AW$2499,12,FALSE),0) -> 0 | O112: =IFERROR(VLOOKUP($A112,FILTRO_!$A$5:$AW$2499,13,FALSE),0) -> 0 | P112: =IFERROR(VLOOKUP($A112,FILTRO_!$A$5:$AW$2499,14,FALSE),0) -> 0 | Q112: =IFERROR(VLOOKUP($A112,FILTRO_!$A$5:$AW$2499,15,FALSE),0) -> 0 | R112: =IFERROR(VLOOKUP($A112,FILTRO_!$A$5:$AW$2499,16,FALSE),0) -> 0 | S112: =IFERROR(VLOOKUP($A112,FILTRO_!$A$5:$AW$2499,17,FALSE),0) -> 0 | T112: =IFERROR(VLOOKUP($A112,FILTRO_!$A$5:$AW$2499,18,FALSE),0) -> 0 | U112: =IFERROR(VLOOKUP($A112,FILTRO_!$A$5:$AW$2499,19,FALSE),0) -> 0 | V112: =IFERROR(VLOOKUP($A112,FILTRO_!$A$5:$AW$2499,20,FALSE),0) -> 0
A113: 03500349 | B113: RESULTADOS DE EVALUACIÓN | C113: BAJO RIESGO | D113: =IFERROR(VLOOKUP($A113,FILTRO_!$A$5:$AW$2499,2,FALSE),0) -> 35652 | E113: =IFERROR(VLOOKUP($A113,FILTRO_!$A$5:$AW$2499,3,FALSE),0) -> 12131 | F113: =IFERROR(VLOOKUP($A113,FILTRO_!$A$5:$AW$2499,4,FALSE),0) -> 23521 | G113: =IFERROR(VLOOKUP($A113,FILTRO_!$A$5:$AW$2499,5,FALSE),0) -> 1130 | H113: =IFERROR(VLOOKUP($A113,FILTRO_!$A$5:$AW$2499,6,FALSE),0) -> 1388 | I113: =IFERROR(VLOOKUP($A113,FILTRO_!$A$5:$AW$2499,7,FALSE),0) -> 552 | J113: =IFERROR(VLOOKUP($A113,FILTRO_!$A$5:$AW$2499,8,FALSE),0) -> 952 | K113: =IFERROR(VLOOKUP($A113,FILTRO_!$A$5:$AW$2499,9,FALSE),0) -> 882 | L113: =IFERROR(VLOOKUP($A113,FILTRO_!$A$5:$AW$2499,10,FALSE),0) -> 1923 | M113: =IFERROR(VLOOKUP($A113,FILTRO_!$A$5:$AW$2499,11,FALSE),0) -> 2908 | N113: =IFERROR(VLOOKUP($A113,FILTRO_!$A$5:$AW$2499,12,FALSE),0) -> 7450 | O113: =IFERROR(VLOOKUP($A113,FILTRO_!$A$5:$AW$2499,13,FALSE),0) -> 2775 | P113: =IFERROR(VLOOKUP($A113,FILTRO_!$A$5:$AW$2499,14,FALSE),0) -> 5764 | Q113: =IFERROR(VLOOKUP($A113,FILTRO_!$A$5:$AW$2499,15,FALSE),0) -> 1223 | R113: =IFERROR(VLOOKUP($A113,FILTRO_!$A$5:$AW$2499,16,FALSE),0) -> 2021 | S113: =IFERROR(VLOOKUP($A113,FILTRO_!$A$5:$AW$2499,17,FALSE),0) -> 1716 | T113: =IFERROR(VLOOKUP($A113,FILTRO_!$A$5:$AW$2499,18,FALSE),0) -> 2636 | U113: =IFERROR(VLOOKUP($A113,FILTRO_!$A$5:$AW$2499,19,FALSE),0) -> 945 | V113: =IFERROR(VLOOKUP($A113,FILTRO_!$A$5:$AW$2499,20,FALSE),0) -> 1387
A114: 03500290 | C114: CONSUMO RIESGOSO / INTERMEDIO | D114: =IFERROR(VLOOKUP($A114,FILTRO_!$A$5:$AW$2499,2,FALSE),0) -> 1621 | E114: =IFERROR(VLOOKUP($A114,FILTRO_!$A$5:$AW$2499,3,FALSE),0) -> 675 | F114: =IFERROR(VLOOKUP($A114,FILTRO_!$A$5:$AW$2499,4,FALSE),0) -> 946 | G114: =IFERROR(VLOOKUP($A114,FILTRO_!$A$5:$AW$2499,5,FALSE),0) -> 14 | H114: =IFERROR(VLOOKUP($A114,FILTRO_!$A$5:$AW$2499,6,FALSE),0) -> 15 | I114: =IFERROR(VLOOKUP($A114,FILTRO_!$A$5:$AW$2499,7,FALSE),0) -> 55 | J114: =IFERROR(VLOOKUP($A114,FILTRO_!$A$5:$AW$2499,8,FALSE),0) -> 54 | K114: =IFERROR(VLOOKUP($A114,FILTRO_!$A$5:$AW$2499,9,FALSE),0) -> 73 | L114: =IFERROR(VLOOKUP($A114,FILTRO_!$A$5:$AW$2499,10,FALSE),0) -> 125 | M114: =IFERROR(VLOOKUP($A114,FILTRO_!$A$5:$AW$2499,11,FALSE),0) -> 246 | N114: =IFERROR(VLOOKUP($A114,FILTRO_!$A$5:$AW$2499,12,FALSE),0) -> 428 | O114: =IFERROR(VLOOKUP($A114,FILTRO_!$A$5:$AW$2499,13,FALSE),0) -> 200 | P114: =IFERROR(VLOOKUP($A114,FILTRO_!$A$5:$AW$2499,14,FALSE),0) -> 254 | Q114: =IFERROR(VLOOKUP($A114,FILTRO_!$A$5:$AW$2499,15,FALSE),0) -> 38 | R114: =IFERROR(VLOOKUP($A114,FILTRO_!$A$5:$AW$2499,16,FALSE),0) -> 27 | S114: =IFERROR(VLOOKUP($A114,FILTRO_!$A$5:$AW$2499,17,FALSE),0) -> 45 | T114: =IFERROR(VLOOKUP($A114,FILTRO_!$A$5:$AW$2499,18,FALSE),0) -> 38 | U114: =IFERROR(VLOOKUP($A114,FILTRO_!$A$5:$AW$2499,19,FALSE),0) -> 4 | V114: =IFERROR(VLOOKUP($A114,FILTRO_!$A$5:$AW$2499,20,FALSE),0) -> 5
A115: 03500300 | C115: POSIBLE CONSUMO PERJUDICIAL O DEPENDENCIA | D115: =IFERROR(VLOOKUP($A115,FILTRO_!$A$5:$AW$2499,2,FALSE),0) -> 284 | E115: =IFERROR(VLOOKUP($A115,FILTRO_!$A$5:$AW$2499,3,FALSE),0) -> 162 | F115: =IFERROR(VLOOKUP($A115,FILTRO_!$A$5:$AW$2499,4,FALSE),0) -> 122 | G115: =IFERROR(VLOOKUP($A115,FILTRO_!$A$5:$AW$2499,5,FALSE),0) -> 14 | H115: =IFERROR(VLOOKUP($A115,FILTRO_!$A$5:$AW$2499,6,FALSE),0) -> 14 | I115: =IFERROR(VLOOKUP($A115,FILTRO_!$A$5:$AW$2499,7,FALSE),0) -> 25 | J115: =IFERROR(VLOOKUP($A115,FILTRO_!$A$5:$AW$2499,8,FALSE),0) -> 26 | K115: =IFERROR(VLOOKUP($A115,FILTRO_!$A$5:$AW$2499,9,FALSE),0) -> 7 | L115: =IFERROR(VLOOKUP($A115,FILTRO_!$A$5:$AW$2499,10,FALSE),0) -> 7 | M115: =IFERROR(VLOOKUP($A115,FILTRO_!$A$5:$AW$2499,11,FALSE),0) -> 50 | N115: =IFERROR(VLOOKUP($A115,FILTRO_!$A$5:$AW$2499,12,FALSE),0) -> 30 | O115: =IFERROR(VLOOKUP($A115,FILTRO_!$A$5:$AW$2499,13,FALSE),0) -> 48 | P115: =IFERROR(VLOOKUP($A115,FILTRO_!$A$5:$AW$2499,14,FALSE),0) -> 32 | Q115: =IFERROR(VLOOKUP($A115,FILTRO_!$A$5:$AW$2499,15,FALSE),0) -> 8 | R115: =IFERROR(VLOOKUP($A115,FILTRO_!$A$5:$AW$2499,16,FALSE),0) -> 10 | S115: =IFERROR(VLOOKUP($A115,FILTRO_!$A$5:$AW$2499,17,FALSE),0) -> 9 | T115: =IFERROR(VLOOKUP($A115,FILTRO_!$A$5:$AW$2499,18,FALSE),0) -> 1 | U115: =IFERROR(VLOOKUP($A115,FILTRO_!$A$5:$AW$2499,19,FALSE),0) -> 1 | V115: =IFERROR(VLOOKUP($A115,FILTRO_!$A$5:$AW$2499,20,FALSE),0) -> 2
B116: SECCIÓN D.2: RESULTADOS DE LA APLICACIÓN DE INSTRUMENTO DE VALORACIÓN DE DESEMPEÑO EN COMUNIDAD (IVADEC-CIF)
B117: ACTIVIDAD | C117: RESULTADO | D117: TOTAL | G117: POR EDAD
G118: 6 -11 meses | I118: 12 - 23 meses | K118: 2 - 4 años | M118: 5 - 9 años | O118: 10 a 14 años | Q118: 15 a 19 años | S118: 20 a 24 años | U118: 25 a 64 años | W118: 65 a 69 años | Y118: 70 a 79 años | AA118: 80 y más años
D119: Ambos Sexos | E119: Hombres | F119: Mujeres | G119: Hombres | H119: Mujeres | I119: Hombres | J119: Mujeres | K119: Hombres | L119: Mujeres | M119: Hombres | N119: Mujeres | O119: Hombres | P119: Mujeres | Q119: Hombres | R119: Mujeres | S119: Hombres | T119: Mujeres | U119: Hombres | V119: Mujeres | W119: Hombres | X119: Mujeres | Y119: Hombres | Z119: Mujeres | AA119: Hombres | AB119: Mujeres
A120: 03051000A | B120: ORIGEN FÍSICO | C120: SIN DISCAPACIDAD | D120: =IFERROR(VLOOKUP($A120,FILTRO_!$A$5:$AW$2499,2,FALSE),0) -> 6 | E120: =IFERROR(VLOOKUP($A120,FILTRO_!$A$5:$AW$2499,3,FALSE),0) -> 5 | F120: =IFERROR(VLOOKUP($A120,FILTRO_!$A$5:$AW$2499,4,FALSE),0) -> 1 | G120: =IFERROR(VLOOKUP($A120,FILTRO_!$A$5:$AW$2499,5,FALSE),0) -> 0 | H120: =IFERROR(VLOOKUP($A120,FILTRO_!$A$5:$AW$2499,6,FALSE),0) -> 0 | I120: =IFERROR(VLOOKUP($A120,FILTRO_!$A$5:$AW$2499,7,FALSE),0) -> 0 | J120: =IFERROR(VLOOKUP($A120,FILTRO_!$A$5:$AW$2499,8,FALSE),0) -> 0 | K120: =IFERROR(VLOOKUP($A120,FILTRO_!$A$5:$AW$2499,9,FALSE),0) -> 1 | L120: =IFERROR(VLOOKUP($A120,FILTRO_!$A$5:$AW$2499,10,FALSE),0) -> 0 | M120: =IFERROR(VLOOKUP($A120,FILTRO_!$A$5:$AW$2499,11,FALSE),0) -> 0 | N120: =IFERROR(VLOOKUP($A120,FILTRO_!$A$5:$AW$2499,12,FALSE),0) -> 0 | O120: =IFERROR(VLOOKUP($A120,FILTRO_!$A$5:$AW$2499,13,FALSE),0) -> 0 | P120: =IFERROR(VLOOKUP($A120,FILTRO_!$A$5:$AW$2499,14,FALSE),0) -> 0 | Q120: =IFERROR(VLOOKUP($A120,FILTRO_!$A$5:$AW$2499,15,FALSE),0) -> 0 | R120: =IFERROR(VLOOKUP($A120,FILTRO_!$A$5:$AW$2499,16,FALSE),0) -> 0 | S120: =IFERROR(VLOOKUP($A120,FILTRO_!$A$5:$AW$2499,17,FALSE),0) -> 0 | T120: =IFERROR(VLOOKUP($A120,FILTRO_!$A$5:$AW$2499,18,FALSE),0) -> 0 | U120: =IFERROR(VLOOKUP($A120,FILTRO_!$A$5:$AW$2499,19,FALSE),0) -> 2 | V120: =IFERROR(VLOOKUP($A120,FILTRO_!$A$5:$AW$2499,20,FALSE),0) -> 0 | W120: =IFERROR(VLOOKUP($A120,FILTRO_!$A$5:$AW$2499,21,FALSE),0) -> 1 | X120: =IFERROR(VLOOKUP($A120,FILTRO_!$A$5:$AW$2499,22,FALSE),0) -> 0 | Y120: =IFERROR(VLOOKUP($A120,FILTRO_!$A$5:$AW$2499,23,FALSE),0) -> 1 | Z120: =IFERROR(VLOOKUP($A120,FILTRO_!$A$5:$AW$2499,24,FALSE),0) -> 1 | AA120: =IFERROR(VLOOKUP($A120,FILTRO_!$A$5:$AW$2499,25,FALSE),0) -> 0 | AB120: =IFERROR(VLOOKUP($A120,FILTRO_!$A$5:$AW$2499,26,FALSE),0) -> 0
A121: 03051100 | C121: DISCAPACIDAD LEVE | D121: =IFERROR(VLOOKUP($A121,FILTRO_!$A$5:$AW$2499,2,FALSE),0) -> 169 | E121: =IFERROR(VLOOKUP($A121,FILTRO_!$A$5:$AW$2499,3,FALSE),0) -> 94 | F121: =IFERROR(VLOOKUP($A121,FILTRO_!$A$5:$AW$2499,4,FALSE),0) -> 75 | G121: =IFERROR(VLOOKUP($A121,FILTRO_!$A$5:$AW$2499,5,FALSE),0) -> 2 | H121: =IFERROR(VLOOKUP($A121,FILTRO_!$A$5:$AW$2499,6,FALSE),0) -> 0 | I121: =IFERROR(VLOOKUP($A121,FILTRO_!$A$5:$AW$2499,7,FALSE),0) -> 0 | J121: =IFERROR(VLOOKUP($A121,FILTRO_!$A$5:$AW$2499,8,FALSE),0) -> 0 | K121: =IFERROR(VLOOKUP($A121,FILTRO_!$A$5:$AW$2499,9,FALSE),0) -> 1 | L121: =IFERROR(VLOOKUP($A121,FILTRO_!$A$5:$AW$2499,10,FALSE),0) -> 0 | M121: =IFERROR(VLOOKUP($A121,FILTRO_!$A$5:$AW$2499,11,FALSE),0) -> 4 | N121: =IFERROR(VLOOKUP($A121,FILTRO_!$A$5:$AW$2499,12,FALSE),0) -> 1 | O121: =IFERROR(VLOOKUP($A121,FILTRO_!$A$5:$AW$2499,13,FALSE),0) -> 5 | P121: =IFERROR(VLOOKUP($A121,FILTRO_!$A$5:$AW$2499,14,FALSE),0) -> 1 | Q121: =IFERROR(VLOOKUP($A121,FILTRO_!$A$5:$AW$2499,15,FALSE),0) -> 1 | R121: =IFERROR(VLOOKUP($A121,FILTRO_!$A$5:$AW$2499,16,FALSE),0) -> 2 | S121: =IFERROR(VLOOKUP($A121,FILTRO_!$A$5:$AW$2499,17,FALSE),0) -> 0 | T121: =IFERROR(VLOOKUP($A121,FILTRO_!$A$5:$AW$2499,18,FALSE),0) -> 5 | U121: =IFERROR(VLOOKUP($A121,FILTRO_!$A$5:$AW$2499,19,FALSE),0) -> 53 | V121: =IFERROR(VLOOKUP($A121,FILTRO_!$A$5:$AW$2499,20,FALSE),0) -> 51 | W121: =IFERROR(VLOOKUP($A121,FILTRO_!$A$5:$AW$2499,21,FALSE),0) -> 10 | X121: =IFERROR(VLOOKUP($A121,FILTRO_!$A$5:$AW$2499,22,FALSE),0) -> 7 | Y121: =IFERROR(VLOOKUP($A121,FILTRO_!$A$5:$AW$2499,23,FALSE),0) -> 13 | Z121: =IFERROR(VLOOKUP($A121,FILTRO_!$A$5:$AW$2499,24,FALSE),0) -> 7 | AA121: =IFERROR(VLOOKUP($A121,FILTRO_!$A$5:$AW$2499,25,FALSE),0) -> 5 | AB121: =IFERROR(VLOOKUP($A121,FILTRO_!$A$5:$AW$2499,26,FALSE),0) -> 1
A122: 03051200 | C122: DISCAPACIDAD MODERADA | D122: =IFERROR(VLOOKUP($A122,FILTRO_!$A$5:$AW$2499,2,FALSE),0) -> 198 | E122: =IFERROR(VLOOKUP($A122,FILTRO_!$A$5:$AW$2499,3,FALSE),0) -> 92 | F122: =IFERROR(VLOOKUP($A122,FILTRO_!$A$5:$AW$2499,4,FALSE),0) -> 106 | G122: =IFERROR(VLOOKUP($A122,FILTRO_!$A$5:$AW$2499,5,FALSE),0) -> 0 | H122: =IFERROR(VLOOKUP($A122,FILTRO_!$A$5:$AW$2499,6,FALSE),0) -> 0 | I122: =IFERROR(VLOOKUP($A122,FILTRO_!$A$5:$AW$2499,7,FALSE),0) -> 0 | J122: =IFERROR(VLOOKUP($A122,FILTRO_!$A$5:$AW$2499,8,FALSE),0) -> 1 | K122: =IFERROR(VLOOKUP($A122,FILTRO_!$A$5:$AW$2499,9,FALSE),0) -> 0 | L122: =IFERROR(VLOOKUP($A122,FILTRO_!$A$5:$AW$2499,10,FALSE),0) -> 1 | M122: =IFERROR(VLOOKUP($A122,FILTRO_!$A$5:$AW$2499,11,FALSE),0) -> 3 | N122: =IFERROR(VLOOKUP($A122,FILTRO_!$A$5:$AW$2499,12,FALSE),0) -> 1 | O122: =IFERROR(VLOOKUP($A122,FILTRO_!$A$5:$AW$2499,13,FALSE),0) -> 1 | P122: =IFERROR(VLOOKUP($A122,FILTRO_!$A$5:$AW$2499,14,FALSE),0) -> 0 | Q122: =IFERROR(VLOOKUP($A122,FILTRO_!$A$5:$AW$2499,15,FALSE),0) -> 1 | R122: =IFERROR(VLOOKUP($A122,FILTRO_!$A$5:$AW$2499,16,FALSE),0) -> 1 | S122: =IFERROR(VLOOKUP($A122,FILTRO_!$A$5:$AW$2499,17,FALSE),0) -> 3 | T122: =IFERROR(VLOOKUP($A122,FILTRO_!$A$5:$AW$2499,18,FALSE),0) -> 2 | U122: =IFERROR(VLOOKUP($A122,FILTRO_!$A$5:$AW$2499,19,FALSE),0) -> 62 | V122: =IFERROR(VLOOKUP($A122,FILTRO_!$A$5:$AW$2499,20,FALSE),0) -> 68 | W122: =IFERROR(VLOOKUP($A122,FILTRO_!$A$5:$AW$2499,21,FALSE),0) -> 7 | X122: =IFERROR(VLOOKUP($A122,FILTRO_!$A$5:$AW$2499,22,FALSE),0) -> 16 | Y122: =IFERROR(VLOOKUP($A122,FILTRO_!$A$5:$AW$2499,23,FALSE),0) -> 10 | Z122: =IFERROR(VLOOKUP($A122,FILTRO_!$A$5:$AW$2499,24,FALSE),0) -> 11 | AA122: =IFERROR(VLOOKUP($A122,FILTRO_!$A$5:$AW$2499,25,FALSE),0) -> 5 | AB122: =IFERROR(VLOOKUP($A122,FILTRO_!$A$5:$AW$2499,26,FALSE),0) -> 5
A123: 03051300 | C123: DISCAPACIDAD SEVERA | D123: =IFERROR(VLOOKUP($A123,FILTRO_!$A$5:$AW$2499,2,FALSE),0) -> 147 | E123: =IFERROR(VLOOKUP($A123,FILTRO_!$A$5:$AW$2499,3,FALSE),0) -> 71 | F123: =IFERROR(VLOOKUP($A123,FILTRO_!$A$5:$AW$2499,4,FALSE),0) -> 76 | G123: =IFERROR(VLOOKUP($A123,FILTRO_!$A$5:$AW$2499,5,FALSE),0) -> 0 | H123: =IFERROR(VLOOKUP($A123,FILTRO_!$A$5:$AW$2499,6,FALSE),0) -> 0 | I123: =IFERROR(VLOOKUP($A123,FILTRO_!$A$5:$AW$2499,7,FALSE),0) -> 1 | J123: =IFERROR(VLOOKUP($A123,FILTRO_!$A$5:$AW$2499,8,FALSE),0) -> 1 | K123: =IFERROR(VLOOKUP($A123,FILTRO_!$A$5:$AW$2499,9,FALSE),0) -> 1 | L123: =IFERROR(VLOOKUP($A123,FILTRO_!$A$5:$AW$2499,10,FALSE),0) -> 1 | M123: =IFERROR(VLOOKUP($A123,FILTRO_!$A$5:$AW$2499,11,FALSE),0) -> 6 | N123: =IFERROR(VLOOKUP($A123,FILTRO_!$A$5:$AW$2499,12,FALSE),0) -> 2 | O123: =IFERROR(VLOOKUP($A123,FILTRO_!$A$5:$AW$2499,13,FALSE),0) -> 3 | P123: =IFERROR(VLOOKUP($A123,FILTRO_!$A$5:$AW$2499,14,FALSE),0) -> 1 | Q123: =IFERROR(VLOOKUP($A123,FILTRO_!$A$5:$AW$2499,15,FALSE),0) -> 0 | R123: =IFERROR(VLOOKUP($A123,FILTRO_!$A$5:$AW$2499,16,FALSE),0) -> 0 | S123: =IFERROR(VLOOKUP($A123,FILTRO_!$A$5:$AW$2499,17,FALSE),0) -> 0 | T123: =IFERROR(VLOOKUP($A123,FILTRO_!$A$5:$AW$2499,18,FALSE),0) -> 2 | U123: =IFERROR(VLOOKUP($A123,FILTRO_!$A$5:$AW$2499,19,FALSE),0) -> 33 | V123: =IFERROR(VLOOKUP($A123,FILTRO_!$A$5:$AW$2499,20,FALSE),0) -> 40 | W123: =IFERROR(VLOOKUP($A123,FILTRO_!$A$5:$AW$2499,21,FALSE),0) -> 6 | X123: =IFERROR(VLOOKUP($A123,FILTRO_!$A$5:$AW$2499,22,FALSE),0) -> 6 | Y123: =IFERROR(VLOOKUP($A123,FILTRO_!$A$5:$AW$2499,23,FALSE),0) -> 16 | Z123: =IFERROR(VLOOKUP($A123,FILTRO_!$A$5:$AW$2499,24,FALSE),0) -> 10 | AA123: =IFERROR(VLOOKUP($A123,FILTRO_!$A$5:$AW$2499,25,FALSE),0) -> 5 | AB123: =IFERROR(VLOOKUP($A123,FILTRO_!$A$5:$AW$2499,26,FALSE),0) -> 13
A124: 03051400 | C124: DISCAPACIDAD PROFUNDA | D124: =IFERROR(VLOOKUP($A124,FILTRO_!$A$5:$AW$2499,2,FALSE),0) -> 15 | E124: =IFERROR(VLOOKUP($A124,FILTRO_!$A$5:$AW$2499,3,FALSE),0) -> 6 | F124: =IFERROR(VLOOKUP($A124,FILTRO_!$A$5:$AW$2499,4,FALSE),0) -> 9 | G124: =IFERROR(VLOOKUP($A124,FILTRO_!$A$5:$AW$2499,5,FALSE),0) -> 0 | H124: =IFERROR(VLOOKUP($A124,FILTRO_!$A$5:$AW$2499,6,FALSE),0) -> 0 | I124: =IFERROR(VLOOKUP($A124,FILTRO_!$A$5:$AW$2499,7,FALSE),0) -> 0 | J124: =IFERROR(VLOOKUP($A124,FILTRO_!$A$5:$AW$2499,8,FALSE),0) -> 0 | K124: =IFERROR(VLOOKUP($A124,FILTRO_!$A$5:$AW$2499,9,FALSE),0) -> 1 | L124: =IFERROR(VLOOKUP($A124,FILTRO_!$A$5:$AW$2499,10,FALSE),0) -> 1 | M124: =IFERROR(VLOOKUP($A124,FILTRO_!$A$5:$AW$2499,11,FALSE),0) -> 0 | N124: =IFERROR(VLOOKUP($A124,FILTRO_!$A$5:$AW$2499,12,FALSE),0) -> 0 | O124: =IFERROR(VLOOKUP($A124,FILTRO_!$A$5:$AW$2499,13,FALSE),0) -> 0 | P124: =IFERROR(VLOOKUP($A124,FILTRO_!$A$5:$AW$2499,14,FALSE),0) -> 0 | Q124: =IFERROR(VLOOKUP($A124,FILTRO_!$A$5:$AW$2499,15,FALSE),0) -> 0 | R124: =IFERROR(VLOOKUP($A124,FILTRO_!$A$5:$AW$2499,16,FALSE),0) -> 0 | S124: =IFERROR(VLOOKUP($A124,FILTRO_!$A$5:$AW$2499,17,FALSE),0) -> 0 | T124: =IFERROR(VLOOKUP($A124,FILTRO_!$A$5:$AW$2499,18,FALSE),0) -> 0 | U124: =IFERROR(VLOOKUP($A124,FILTRO_!$A$5:$AW$2499,19,FALSE),0) -> 1 | V124: =IFERROR(VLOOKUP($A124,FILTRO_!$A$5:$AW$2499,20,FALSE),0) -> 1 | W124: =IFERROR(VLOOKUP($A124,FILTRO_!$A$5:$AW$2499,21,FALSE),0) -> 0 | X124: =IFERROR(VLOOKUP($A124,FILTRO_!$A$5:$AW$2499,22,FALSE),0) -> 1 | Y124: =IFERROR(VLOOKUP($A124,FILTRO_!$A$5:$AW$2499,23,FALSE),0) -> 1 | Z124: =IFERROR(VLOOKUP($A124,FILTRO_!$A$5:$AW$2499,24,FALSE),0) -> 3 | AA124: =IFERROR(VLOOKUP($A124,FILTRO_!$A$5:$AW$2499,25,FALSE),0) -> 3 | AB124: =IFERROR(VLOOKUP($A124,FILTRO_!$A$5:$AW$2499,26,FALSE),0) -> 3
A125: 03051500 | B125: ORIGEN SENSORIAL VISUAL | C125: SIN DISCAPACIDAD | D125: =IFERROR(VLOOKUP($A125,FILTRO_!$A$5:$AW$2499,2,FALSE),0) -> 1 | E125: =IFERROR(VLOOKUP($A125,FILTRO_!$A$5:$AW$2499,3,FALSE),0) -> 0 | F125: =IFERROR(VLOOKUP($A125,FILTRO_!$A$5:$AW$2499,4,FALSE),0) -> 1 | G125: =IFERROR(VLOOKUP($A125,FILTRO_!$A$5:$AW$2499,5,FALSE),0) -> 0 | H125: =IFERROR(VLOOKUP($A125,FILTRO_!$A$5:$AW$2499,6,FALSE),0) -> 0 | I125: =IFERROR(VLOOKUP($A125,FILTRO_!$A$5:$AW$2499,7,FALSE),0) -> 0 | J125: =IFERROR(VLOOKUP($A125,FILTRO_!$A$5:$AW$2499,8,FALSE),0) -> 0 | K125: =IFERROR(VLOOKUP($A125,FILTRO_!$A$5:$AW$2499,9,FALSE),0) -> 0 | L125: =IFERROR(VLOOKUP($A125,FILTRO_!$A$5:$AW$2499,10,FALSE),0) -> 0 | M125: =IFERROR(VLOOKUP($A125,FILTRO_!$A$5:$AW$2499,11,FALSE),0) -> 0 | N125: =IFERROR(VLOOKUP($A125,FILTRO_!$A$5:$AW$2499,12,FALSE),0) -> 0 | O125: =IFERROR(VLOOKUP($A125,FILTRO_!$A$5:$AW$2499,13,FALSE),0) -> 0 | P125: =IFERROR(VLOOKUP($A125,FILTRO_!$A$5:$AW$2499,14,FALSE),0) -> 0 | Q125: =IFERROR(VLOOKUP($A125,FILTRO_!$A$5:$AW$2499,15,FALSE),0) -> 0 | R125: =IFERROR(VLOOKUP($A125,FILTRO_!$A$5:$AW$2499,16,FALSE),0) -> 0 | S125: =IFERROR(VLOOKUP($A125,FILTRO_!$A$5:$AW$2499,17,FALSE),0) -> 0 | T125: =IFERROR(VLOOKUP($A125,FILTRO_!$A$5:$AW$2499,18,FALSE),0) -> 0 | U125: =IFERROR(VLOOKUP($A125,FILTRO_!$A$5:$AW$2499,19,FALSE),0) -> 0 | V125: =IFERROR(VLOOKUP($A125,FILTRO_!$A$5:$AW$2499,20,FALSE),0) -> 1 | W125: =IFERROR(VLOOKUP($A125,FILTRO_!$A$5:$AW$2499,21,FALSE),0) -> 0 | X125: =IFERROR(VLOOKUP($A125,FILTRO_!$A$5:$AW$2499,22,FALSE),0) -> 0 | Y125: =IFERROR(VLOOKUP($A125,FILTRO_!$A$5:$AW$2499,23,FALSE),0) -> 0 | Z125: =IFERROR(VLOOKUP($A125,FILTRO_!$A$5:$AW$2499,24,FALSE),0) -> 0 | AA125: =IFERROR(VLOOKUP($A125,FILTRO_!$A$5:$AW$2499,25,FALSE),0) -> 0 | AB125: =IFERROR(VLOOKUP($A125,FILTRO_!$A$5:$AW$2499,26,FALSE),0) -> 0
A126: 03051600 | C126: DISCAPACIDAD LEVE | D126: =IFERROR(VLOOKUP($A126,FILTRO_!$A$5:$AW$2499,2,FALSE),0) -> 15 | E126: =IFERROR(VLOOKUP($A126,FILTRO_!$A$5:$AW$2499,3,FALSE),0) -> 13 | F126: =IFERROR(VLOOKUP($A126,FILTRO_!$A$5:$AW$2499,4,FALSE),0) -> 2 | G126: =IFERROR(VLOOKUP($A126,FILTRO_!$A$5:$AW$2499,5,FALSE),0) -> 0 | H126: =IFERROR(VLOOKUP($A126,FILTRO_!$A$5:$AW$2499,6,FALSE),0) -> 0 | I126: =IFERROR(VLOOKUP($A126,FILTRO_!$A$5:$AW$2499,7,FALSE),0) -> 0 | J126: =IFERROR(VLOOKUP($A126,FILTRO_!$A$5:$AW$2499,8,FALSE),0) -> 0 | K126: =IFERROR(VLOOKUP($A126,FILTRO_!$A$5:$AW$2499,9,FALSE),0) -> 0 | L126: =IFERROR(VLOOKUP($A126,FILTRO_!$A$5:$AW$2499,10,FALSE),0) -> 0 | M126: =IFERROR(VLOOKUP($A126,FILTRO_!$A$5:$AW$2499,11,FALSE),0) -> 1 | N126: =IFERROR(VLOOKUP($A126,FILTRO_!$A$5:$AW$2499,12,FALSE),0) -> 0 | O126: =IFERROR(VLOOKUP($A126,FILTRO_!$A$5:$AW$2499,13,FALSE),0) -> 0 | P126: =IFERROR(VLOOKUP($A126,FILTRO_!$A$5:$AW$2499,14,FALSE),0) -> 0 | Q126: =IFERROR(VLOOKUP($A126,FILTRO_!$A$5:$AW$2499,15,FALSE),0) -> 1 | R126: =IFERROR(VLOOKUP($A126,FILTRO_!$A$5:$AW$2499,16,FALSE),0) -> 1 | S126: =IFERROR(VLOOKUP($A126,FILTRO_!$A$5:$AW$2499,17,FALSE),0) -> 0 | T126: =IFERROR(VLOOKUP($A126,FILTRO_!$A$5:$AW$2499,18,FALSE),0) -> 0 | U126: =IFERROR(VLOOKUP($A126,FILTRO_!$A$5:$AW$2499,19,FALSE),0) -> 9 | V126: =IFERROR(VLOOKUP($A126,FILTRO_!$A$5:$AW$2499,20,FALSE),0) -> 1 | W126: =IFERROR(VLOOKUP($A126,FILTRO_!$A$5:$AW$2499,21,FALSE),0) -> 2 | X126: =IFERROR(VLOOKUP($A126,FILTRO_!$A$5:$AW$2499,22,FALSE),0) -> 0 | Y126: =IFERROR(VLOOKUP($A126,FILTRO_!$A$5:$AW$2499,23,FALSE),0) -> 0 | Z126: =IFERROR(VLOOKUP($A126,FILTRO_!$A$5:$AW$2499,24,FALSE),0) -> 0 | AA126: =IFERROR(VLOOKUP($A126,FILTRO_!$A$5:$AW$2499,25,FALSE),0) -> 0 | AB126: =IFERROR(VLOOKUP($A126,FILTRO_!$A$5:$AW$2499,26,FALSE),0) -> 0
A127: 03051700 | C127: DISCAPACIDAD MODERADA | D127: =IFERROR(VLOOKUP($A127,FILTRO_!$A$5:$AW$2499,2,FALSE),0) -> 23 | E127: =IFERROR(VLOOKUP($A127,FILTRO_!$A$5:$AW$2499,3,FALSE),0) -> 14 | F127: =IFERROR(VLOOKUP($A127,FILTRO_!$A$5:$AW$2499,4,FALSE),0) -> 9 | G127: =IFERROR(VLOOKUP($A127,FILTRO_!$A$5:$AW$2499,5,FALSE),0) -> 0 | H127: =IFERROR(VLOOKUP($A127,FILTRO_!$A$5:$AW$2499,6,FALSE),0) -> 0 | I127: =IFERROR(VLOOKUP($A127,FILTRO_!$A$5:$AW$2499,7,FALSE),0) -> 1 | J127: =IFERROR(VLOOKUP($A127,FILTRO_!$A$5:$AW$2499,8,FALSE),0) -> 0 | K127: =IFERROR(VLOOKUP($A127,FILTRO_!$A$5:$AW$2499,9,FALSE),0) -> 0 | L127: =IFERROR(VLOOKUP($A127,FILTRO_!$A$5:$AW$2499,10,FALSE),0) -> 0 | M127: =IFERROR(VLOOKUP($A127,FILTRO_!$A$5:$AW$2499,11,FALSE),0) -> 0 | N127: =IFERROR(VLOOKUP($A127,FILTRO_!$A$5:$AW$2499,12,FALSE),0) -> 0 | O127: =IFERROR(VLOOKUP($A127,FILTRO_!$A$5:$AW$2499,13,FALSE),0) -> 1 | P127: =IFERROR(VLOOKUP($A127,FILTRO_!$A$5:$AW$2499,14,FALSE),0) -> 0 | Q127: =IFERROR(VLOOKUP($A127,FILTRO_!$A$5:$AW$2499,15,FALSE),0) -> 1 | R127: =IFERROR(VLOOKUP($A127,FILTRO_!$A$5:$AW$2499,16,FALSE),0) -> 0 | S127: =IFERROR(VLOOKUP($A127,FILTRO_!$A$5:$AW$2499,17,FALSE),0) -> 0 | T127: =IFERROR(VLOOKUP($A127,FILTRO_!$A$5:$AW$2499,18,FALSE),0) -> 1 | U127: =IFERROR(VLOOKUP($A127,FILTRO_!$A$5:$AW$2499,19,FALSE),0) -> 8 | V127: =IFERROR(VLOOKUP($A127,FILTRO_!$A$5:$AW$2499,20,FALSE),0) -> 5 | W127: =IFERROR(VLOOKUP($A127,FILTRO_!$A$5:$AW$2499,21,FALSE),0) -> 2 | X127: =IFERROR(VLOOKUP($A127,FILTRO_!$A$5:$AW$2499,22,FALSE),0) -> 1 | Y127: =IFERROR(VLOOKUP($A127,FILTRO_!$A$5:$AW$2499,23,FALSE),0) -> 1 | Z127: =IFERROR(VLOOKUP($A127,FILTRO_!$A$5:$AW$2499,24,FALSE),0) -> 2 | AA127: =IFERROR(VLOOKUP($A127,FILTRO_!$A$5:$AW$2499,25,FALSE),0) -> 0 | AB127: =IFERROR(VLOOKUP($A127,FILTRO_!$A$5:$AW$2499,26,FALSE),0) -> 0
A128: 03051800 | C128: DISCAPACIDAD SEVERA | D128: =IFERROR(VLOOKUP($A128,FILTRO_!$A$5:$AW$2499,2,FALSE),0) -> 32 | E128: =IFERROR(VLOOKUP($A128,FILTRO_!$A$5:$AW$2499,3,FALSE),0) -> 16 | F128: =IFERROR(VLOOKUP($A128,FILTRO_!$A$5:$AW$2499,4,FALSE),0) -> 16 | G128: =IFERROR(VLOOKUP($A128,FILTRO_!$A$5:$AW$2499,5,FALSE),0) -> 0 | H128: =IFERROR(VLOOKUP($A128,FILTRO_!$A$5:$AW$2499,6,FALSE),0) -> 0 | I128: =IFERROR(VLOOKUP($A128,FILTRO_!$A$5:$AW$2499,7,FALSE),0) -> 0 | J128: =IFERROR(VLOOKUP($A128,FILTRO_!$A$5:$AW$2499,8,FALSE),0) -> 0 | K128: =IFERROR(VLOOKUP($A128,FILTRO_!$A$5:$AW$2499,9,FALSE),0) -> 0 | L128: =IFERROR(VLOOKUP($A128,FILTRO_!$A$5:$AW$2499,10,FALSE),0) -> 0 | M128: =IFERROR(VLOOKUP($A128,FILTRO_!$A$5:$AW$2499,11,FALSE),0) -> 1 | N128: =IFERROR(VLOOKUP($A128,FILTRO_!$A$5:$AW$2499,12,FALSE),0) -> 0 | O128: =IFERROR(VLOOKUP($A128,FILTRO_!$A$5:$AW$2499,13,FALSE),0) -> 1 | P128: =IFERROR(VLOOKUP($A128,FILTRO_!$A$5:$AW$2499,14,FALSE),0) -> 1 | Q128: =IFERROR(VLOOKUP($A128,FILTRO_!$A$5:$AW$2499,15,FALSE),0) -> 1 | R128: =IFERROR(VLOOKUP($A128,FILTRO_!$A$5:$AW$2499,16,FALSE),0) -> 0 | S128: =IFERROR(VLOOKUP($A128,FILTRO_!$A$5:$AW$2499,17,FALSE),0) -> 1 | T128: =IFERROR(VLOOKUP($A128,FILTRO_!$A$5:$AW$2499,18,FALSE),0) -> 0 | U128: =IFERROR(VLOOKUP($A128,FILTRO_!$A$5:$AW$2499,19,FALSE),0) -> 7 | V128: =IFERROR(VLOOKUP($A128,FILTRO_!$A$5:$AW$2499,20,FALSE),0) -> 10 | W128: =IFERROR(VLOOKUP($A128,FILTRO_!$A$5:$AW$2499,21,FALSE),0) -> 3 | X128: =IFERROR(VLOOKUP($A128,FILTRO_!$A$5:$AW$2499,22,FALSE),0) -> 2 | Y128: =IFERROR(VLOOKUP($A128,FILTRO_!$A$5:$AW$2499,23,FALSE),0) -> 1 | Z128: =IFERROR(VLOOKUP($A128,FILTRO_!$A$5:$AW$2499,24,FALSE),0) -> 0 | AA128: =IFERROR(VLOOKUP($A128,FILTRO_!$A$5:$AW$2499,25,FALSE),0) -> 1 | AB128: =IFERROR(VLOOKUP($A128,FILTRO_!$A$5:$AW$2499,26,FALSE),0) -> 3
A129: 03051900 | C129: DISCAPACIDAD PROFUNDA | D129: =IFERROR(VLOOKUP($A129,FILTRO_!$A$5:$AW$2499,2,FALSE),0) -> 4 | E129: =IFERROR(VLOOKUP($A129,FILTRO_!$A$5:$AW$2499,3,FALSE),0) -> 1 | F129: =IFERROR(VLOOKUP($A129,FILTRO_!$A$5:$AW$2499,4,FALSE),0) -> 3 | G129: =IFERROR(VLOOKUP($A129,FILTRO_!$A$5:$AW$2499,5,FALSE),0) -> 0 | H129: =IFERROR(VLOOKUP($A129,FILTRO_!$A$5:$AW$2499,6,FALSE),0) -> 0 | I129: =IFERROR(VLOOKUP($A129,FILTRO_!$A$5:$AW$2499,7,FALSE),0) -> 0 | J129: =IFERROR(VLOOKUP($A129,FILTRO_!$A$5:$AW$2499,8,FALSE),0) -> 0 | K129: =IFERROR(VLOOKUP($A129,FILTRO_!$A$5:$AW$2499,9,FALSE),0) -> 0 | L129: =IFERROR(VLOOKUP($A129,FILTRO_!$A$5:$AW$2499,10,FALSE),0) -> 0 | M129: =IFERROR(VLOOKUP($A129,FILTRO_!$A$5:$AW$2499,11,FALSE),0) -> 0 | N129: =IFERROR(VLOOKUP($A129,FILTRO_!$A$5:$AW$2499,12,FALSE),0) -> 0 | O129: =IFERROR(VLOOKUP($A129,FILTRO_!$A$5:$AW$2499,13,FALSE),0) -> 0 | P129: =IFERROR(VLOOKUP($A129,FILTRO_!$A$5:$AW$2499,14,FALSE),0) -> 0 | Q129: =IFERROR(VLOOKUP($A129,FILTRO_!$A$5:$AW$2499,15,FALSE),0) -> 0 | R129: =IFERROR(VLOOKUP($A129,FILTRO_!$A$5:$AW$2499,16,FALSE),0) -> 0 | S129: =IFERROR(VLOOKUP($A129,FILTRO_!$A$5:$AW$2499,17,FALSE),0) -> 0 | T129: =IFERROR(VLOOKUP($A129,FILTRO_!$A$5:$AW$2499,18,FALSE),0) -> 0 | U129: =IFERROR(VLOOKUP($A129,FILTRO_!$A$5:$AW$2499,19,FALSE),0) -> 0 | V129: =IFERROR(VLOOKUP($A129,FILTRO_!$A$5:$AW$2499,20,FALSE),0) -> 1 | W129: =IFERROR(VLOOKUP($A129,FILTRO_!$A$5:$AW$2499,21,FALSE),0) -> 0 | X129: =IFERROR(VLOOKUP($A129,FILTRO_!$A$5:$AW$2499,22,FALSE),0) -> 0 | Y129: =IFERROR(VLOOKUP($A129,FILTRO_!$A$5:$AW$2499,23,FALSE),0) -> 0 | Z129: =IFERROR(VLOOKUP($A129,FILTRO_!$A$5:$AW$2499,24,FALSE),0) -> 1 | AA129: =IFERROR(VLOOKUP($A129,FILTRO_!$A$5:$AW$2499,25,FALSE),0) -> 1 | AB129: =IFERROR(VLOOKUP($A129,FILTRO_!$A$5:$AW$2499,26,FALSE),0) -> 1
A130: 03052000 | B130: ORIGEN SENSORIAL AUDITIVO | C130: SIN DISCAPACIDAD | D130: =IFERROR(VLOOKUP($A130,FILTRO_!$A$5:$AW$2499,2,FALSE),0) -> 0 | E130: =IFERROR(VLOOKUP($A130,FILTRO_!$A$5:$AW$2499,3,FALSE),0) -> 0 | F130: =IFERROR(VLOOKUP($A130,FILTRO_!$A$5:$AW$2499,4,FALSE),0) -> 0 | G130: =IFERROR(VLOOKUP($A130,FILTRO_!$A$5:$AW$2499,5,FALSE),0) -> 0 | H130: =IFERROR(VLOOKUP($A130,FILTRO_!$A$5:$AW$2499,6,FALSE),0) -> 0 | I130: =IFERROR(VLOOKUP($A130,FILTRO_!$A$5:$AW$2499,7,FALSE),0) -> 0 | J130: =IFERROR(VLOOKUP($A130,FILTRO_!$A$5:$AW$2499,8,FALSE),0) -> 0 | K130: =IFERROR(VLOOKUP($A130,FILTRO_!$A$5:$AW$2499,9,FALSE),0) -> 0 | L130: =IFERROR(VLOOKUP($A130,FILTRO_!$A$5:$AW$2499,10,FALSE),0) -> 0 | M130: =IFERROR(VLOOKUP($A130,FILTRO_!$A$5:$AW$2499,11,FALSE),0) -> 0 | N130: =IFERROR(VLOOKUP($A130,FILTRO_!$A$5:$AW$2499,12,FALSE),0) -> 0 | O130: =IFERROR(VLOOKUP($A130,FILTRO_!$A$5:$AW$2499,13,FALSE),0) -> 0 | P130: =IFERROR(VLOOKUP($A130,FILTRO_!$A$5:$AW$2499,14,FALSE),0) -> 0 | Q130: =IFERROR(VLOOKUP($A130,FILTRO_!$A$5:$AW$2499,15,FALSE),0) -> 0 | R130: =IFERROR(VLOOKUP($A130,FILTRO_!$A$5:$AW$2499,16,FALSE),0) -> 0 | S130: =IFERROR(VLOOKUP($A130,FILTRO_!$A$5:$AW$2499,17,FALSE),0) -> 0 | T130: =IFERROR(VLOOKUP($A130,FILTRO_!$A$5:$AW$2499,18,FALSE),0) -> 0 | U130: =IFERROR(VLOOKUP($A130,FILTRO_!$A$5:$AW$2499,19,FALSE),0) -> 0 | V130: =IFERROR(VLOOKUP($A130,FILTRO_!$A$5:$AW$2499,20,FALSE),0) -> 0 | W130: =IFERROR(VLOOKUP($A130,FILTRO_!$A$5:$AW$2499,21,FALSE),0) -> 0 | X130: =IFERROR(VLOOKUP($A130,FILTRO_!$A$5:$AW$2499,22,FALSE),0) -> 0 | Y130: =IFERROR(VLOOKUP($A130,FILTRO_!$A$5:$AW$2499,23,FALSE),0) -> 0 | Z130: =IFERROR(VLOOKUP($A130,FILTRO_!$A$5:$AW$2499,24,FALSE),0) -> 0 | AA130: =IFERROR(VLOOKUP($A130,FILTRO_!$A$5:$AW$2499,25,FALSE),0) -> 0 | AB130: =IFERROR(VLOOKUP($A130,FILTRO_!$A$5:$AW$2499,26,FALSE),0) -> 0
A131: 03052100 | C131: DISCAPACIDAD LEVE | D131: =IFERROR(VLOOKUP($A131,FILTRO_!$A$5:$AW$2499,2,FALSE),0) -> 20 | E131: =IFERROR(VLOOKUP($A131,FILTRO_!$A$5:$AW$2499,3,FALSE),0) -> 11 | F131: =IFERROR(VLOOKUP($A131,FILTRO_!$A$5:$AW$2499,4,FALSE),0) -> 9 | G131: =IFERROR(VLOOKUP($A131,FILTRO_!$A$5:$AW$2499,5,FALSE),0) -> 0 | H131: =IFERROR(VLOOKUP($A131,FILTRO_!$A$5:$AW$2499,6,FALSE),0) -> 0 | I131: =IFERROR(VLOOKUP($A131,FILTRO_!$A$5:$AW$2499,7,FALSE),0) -> 0 | J131: =IFERROR(VLOOKUP($A131,FILTRO_!$A$5:$AW$2499,8,FALSE),0) -> 0 | K131: =IFERROR(VLOOKUP($A131,FILTRO_!$A$5:$AW$2499,9,FALSE),0) -> 0 | L131: =IFERROR(VLOOKUP($A131,FILTRO_!$A$5:$AW$2499,10,FALSE),0) -> 0 | M131: =IFERROR(VLOOKUP($A131,FILTRO_!$A$5:$AW$2499,11,FALSE),0) -> 0 | N131: =IFERROR(VLOOKUP($A131,FILTRO_!$A$5:$AW$2499,12,FALSE),0) -> 0 | O131: =IFERROR(VLOOKUP($A131,FILTRO_!$A$5:$AW$2499,13,FALSE),0) -> 0 | P131: =IFERROR(VLOOKUP($A131,FILTRO_!$A$5:$AW$2499,14,FALSE),0) -> 0 | Q131: =IFERROR(VLOOKUP($A131,FILTRO_!$A$5:$AW$2499,15,FALSE),0) -> 1 | R131: =IFERROR(VLOOKUP($A131,FILTRO_!$A$5:$AW$2499,16,FALSE),0) -> 0 | S131: =IFERROR(VLOOKUP($A131,FILTRO_!$A$5:$AW$2499,17,FALSE),0) -> 0 | T131: =IFERROR(VLOOKUP($A131,FILTRO_!$A$5:$AW$2499,18,FALSE),0) -> 0 | U131: =IFERROR(VLOOKUP($A131,FILTRO_!$A$5:$AW$2499,19,FALSE),0) -> 9 | V131: =IFERROR(VLOOKUP($A131,FILTRO_!$A$5:$AW$2499,20,FALSE),0) -> 8 | W131: =IFERROR(VLOOKUP($A131,FILTRO_!$A$5:$AW$2499,21,FALSE),0) -> 1 | X131: =IFERROR(VLOOKUP($A131,FILTRO_!$A$5:$AW$2499,22,FALSE),0) -> 1 | Y131: =IFERROR(VLOOKUP($A131,FILTRO_!$A$5:$AW$2499,23,FALSE),0) -> 0 | Z131: =IFERROR(VLOOKUP($A131,FILTRO_!$A$5:$AW$2499,24,FALSE),0) -> 0 | AA131: =IFERROR(VLOOKUP($A131,FILTRO_!$A$5:$AW$2499,25,FALSE),0) -> 0 | AB131: =IFERROR(VLOOKUP($A131,FILTRO_!$A$5:$AW$2499,26,FALSE),0) -> 0
A132: 03052200 | C132: DISCAPACIDAD MODERADA | D132: =IFERROR(VLOOKUP($A132,FILTRO_!$A$5:$AW$2499,2,FALSE),0) -> 11 | E132: =IFERROR(VLOOKUP($A132,FILTRO_!$A$5:$AW$2499,3,FALSE),0) -> 7 | F132: =IFERROR(VLOOKUP($A132,FILTRO_!$A$5:$AW$2499,4,FALSE),0) -> 4 | G132: =IFERROR(VLOOKUP($A132,FILTRO_!$A$5:$AW$2499,5,FALSE),0) -> 0 | H132: =IFERROR(VLOOKUP($A132,FILTRO_!$A$5:$AW$2499,6,FALSE),0) -> 0 | I132: =IFERROR(VLOOKUP($A132,FILTRO_!$A$5:$AW$2499,7,FALSE),0) -> 0 | J132: =IFERROR(VLOOKUP($A132,FILTRO_!$A$5:$AW$2499,8,FALSE),0) -> 0 | K132: =IFERROR(VLOOKUP($A132,FILTRO_!$A$5:$AW$2499,9,FALSE),0) -> 0 | L132: =IFERROR(VLOOKUP($A132,FILTRO_!$A$5:$AW$2499,10,FALSE),0) -> 0 | M132: =IFERROR(VLOOKUP($A132,FILTRO_!$A$5:$AW$2499,11,FALSE),0) -> 0 | N132: =IFERROR(VLOOKUP($A132,FILTRO_!$A$5:$AW$2499,12,FALSE),0) -> 0 | O132: =IFERROR(VLOOKUP($A132,FILTRO_!$A$5:$AW$2499,13,FALSE),0) -> 0 | P132: =IFERROR(VLOOKUP($A132,FILTRO_!$A$5:$AW$2499,14,FALSE),0) -> 0 | Q132: =IFERROR(VLOOKUP($A132,FILTRO_!$A$5:$AW$2499,15,FALSE),0) -> 0 | R132: =IFERROR(VLOOKUP($A132,FILTRO_!$A$5:$AW$2499,16,FALSE),0) -> 0 | S132: =IFERROR(VLOOKUP($A132,FILTRO_!$A$5:$AW$2499,17,FALSE),0) -> 0 | T132: =IFERROR(VLOOKUP($A132,FILTRO_!$A$5:$AW$2499,18,FALSE),0) -> 0 | U132: =IFERROR(VLOOKUP($A132,FILTRO_!$A$5:$AW$2499,19,FALSE),0) -> 2 | V132: =IFERROR(VLOOKUP($A132,FILTRO_!$A$5:$AW$2499,20,FALSE),0) -> 2 | W132: =IFERROR(VLOOKUP($A132,FILTRO_!$A$5:$AW$2499,21,FALSE),0) -> 0 | X132: =IFERROR(VLOOKUP($A132,FILTRO_!$A$5:$AW$2499,22,FALSE),0) -> 1 | Y132: =IFERROR(VLOOKUP($A132,FILTRO_!$A$5:$AW$2499,23,FALSE),0) -> 2 | Z132: =IFERROR(VLOOKUP($A132,FILTRO_!$A$5:$AW$2499,24,FALSE),0) -> 0 | AA132: =IFERROR(VLOOKUP($A132,FILTRO_!$A$5:$AW$2499,25,FALSE),0) -> 3 | AB132: =IFERROR(VLOOKUP($A132,FILTRO_!$A$5:$AW$2499,26,FALSE),0) -> 1
A133: 03052300 | C133: DISCAPACIDAD SEVERA | D133: =IFERROR(VLOOKUP($A133,FILTRO_!$A$5:$AW$2499,2,FALSE),0) -> 12 | E133: =IFERROR(VLOOKUP($A133,FILTRO_!$A$5:$AW$2499,3,FALSE),0) -> 7 | F133: =IFERROR(VLOOKUP($A133,FILTRO_!$A$5:$AW$2499,4,FALSE),0) -> 5 | G133: =IFERROR(VLOOKUP($A133,FILTRO_!$A$5:$AW$2499,5,FALSE),0) -> 0 | H133: =IFERROR(VLOOKUP($A133,FILTRO_!$A$5:$AW$2499,6,FALSE),0) -> 0 | I133: =IFERROR(VLOOKUP($A133,FILTRO_!$A$5:$AW$2499,7,FALSE),0) -> 0 | J133: =IFERROR(VLOOKUP($A133,FILTRO_!$A$5:$AW$2499,8,FALSE),0) -> 0 | K133: =IFERROR(VLOOKUP($A133,FILTRO_!$A$5:$AW$2499,9,FALSE),0) -> 1 | L133: =IFERROR(VLOOKUP($A133,FILTRO_!$A$5:$AW$2499,10,FALSE),0) -> 0 | M133: =IFERROR(VLOOKUP($A133,FILTRO_!$A$5:$AW$2499,11,FALSE),0) -> 1 | N133: =IFERROR(VLOOKUP($A133,FILTRO_!$A$5:$AW$2499,12,FALSE),0) -> 0 | O133: =IFERROR(VLOOKUP($A133,FILTRO_!$A$5:$AW$2499,13,FALSE),0) -> 0 | P133: =IFERROR(VLOOKUP($A133,FILTRO_!$A$5:$AW$2499,14,FALSE),0) -> 0 | Q133: =IFERROR(VLOOKUP($A133,FILTRO_!$A$5:$AW$2499,15,FALSE),0) -> 1 | R133: =IFERROR(VLOOKUP($A133,FILTRO_!$A$5:$AW$2499,16,FALSE),0) -> 0 | S133: =IFERROR(VLOOKUP($A133,FILTRO_!$A$5:$AW$2499,17,FALSE),0) -> 0 | T133: =IFERROR(VLOOKUP($A133,FILTRO_!$A$5:$AW$2499,18,FALSE),0) -> 0 | U133: =IFERROR(VLOOKUP($A133,FILTRO_!$A$5:$AW$2499,19,FALSE),0) -> 1 | V133: =IFERROR(VLOOKUP($A133,FILTRO_!$A$5:$AW$2499,20,FALSE),0) -> 4 | W133: =IFERROR(VLOOKUP($A133,FILTRO_!$A$5:$AW$2499,21,FALSE),0) -> 1 | X133: =IFERROR(VLOOKUP($A133,FILTRO_!$A$5:$AW$2499,22,FALSE),0) -> 0 | Y133: =IFERROR(VLOOKUP($A133,FILTRO_!$A$5:$AW$2499,23,FALSE),0) -> 2 | Z133: =IFERROR(VLOOKUP($A133,FILTRO_!$A$5:$AW$2499,24,FALSE),0) -> 1 | AA133: =IFERROR(VLOOKUP($A133,FILTRO_!$A$5:$AW$2499,25,FALSE),0) -> 0 | AB133: =IFERROR(VLOOKUP($A133,FILTRO_!$A$5:$AW$2499,26,FALSE),0) -> 0
A134: 03052400 | C134: DISCAPACIDAD PROFUNDA | D134: =IFERROR(VLOOKUP($A134,FILTRO_!$A$5:$AW$2499,2,FALSE),0) -> 2 | E134: =IFERROR(VLOOKUP($A134,FILTRO_!$A$5:$AW$2499,3,FALSE),0) -> 1 | F134: =IFERROR(VLOOKUP($A134,FILTRO_!$A$5:$AW$2499,4,FALSE),0) -> 1 | G134: =IFERROR(VLOOKUP($A134,FILTRO_!$A$5:$AW$2499,5,FALSE),0) -> 0 | H134: =IFERROR(VLOOKUP($A134,FILTRO_!$A$5:$AW$2499,6,FALSE),0) -> 0 | I134: =IFERROR(VLOOKUP($A134,FILTRO_!$A$5:$AW$2499,7,FALSE),0) -> 0 | J134: =IFERROR(VLOOKUP($A134,FILTRO_!$A$5:$AW$2499,8,FALSE),0) -> 0 | K134: =IFERROR(VLOOKUP($A134,FILTRO_!$A$5:$AW$2499,9,FALSE),0) -> 0 | L134: =IFERROR(VLOOKUP($A134,FILTRO_!$A$5:$AW$2499,10,FALSE),0) -> 0 | M134: =IFERROR(VLOOKUP($A134,FILTRO_!$A$5:$AW$2499,11,FALSE),0) -> 0 | N134: =IFERROR(VLOOKUP($A134,FILTRO_!$A$5:$AW$2499,12,FALSE),0) -> 0 | O134: =IFERROR(VLOOKUP($A134,FILTRO_!$A$5:$AW$2499,13,FALSE),0) -> 0 | P134: =IFERROR(VLOOKUP($A134,FILTRO_!$A$5:$AW$2499,14,FALSE),0) -> 0 | Q134: =IFERROR(VLOOKUP($A134,FILTRO_!$A$5:$AW$2499,15,FALSE),0) -> 0 | R134: =IFERROR(VLOOKUP($A134,FILTRO_!$A$5:$AW$2499,16,FALSE),0) -> 0 | S134: =IFERROR(VLOOKUP($A134,FILTRO_!$A$5:$AW$2499,17,FALSE),0) -> 0 | T134: =IFERROR(VLOOKUP($A134,FILTRO_!$A$5:$AW$2499,18,FALSE),0) -> 0 | U134: =IFERROR(VLOOKUP($A134,FILTRO_!$A$5:$AW$2499,19,FALSE),0) -> 0 | V134: =IFERROR(VLOOKUP($A134,FILTRO_!$A$5:$AW$2499,20,FALSE),0) -> 0 | W134: =IFERROR(VLOOKUP($A134,FILTRO_!$A$5:$AW$2499,21,FALSE),0) -> 1 | X134: =IFERROR(VLOOKUP($A134,FILTRO_!$A$5:$AW$2499,22,FALSE),0) -> 1 | Y134: =IFERROR(VLOOKUP($A134,FILTRO_!$A$5:$AW$2499,23,FALSE),0) -> 0 | Z134: =IFERROR(VLOOKUP($A134,FILTRO_!$A$5:$AW$2499,24,FALSE),0) -> 0 | AA134: =IFERROR(VLOOKUP($A134,FILTRO_!$A$5:$AW$2499,25,FALSE),0) -> 0 | AB134: =IFERROR(VLOOKUP($A134,FILTRO_!$A$5:$AW$2499,26,FALSE),0) -> 0
A135: 03052500 | B135: ORIGEN MENTAL PSÍQUICO | C135: SIN DISCAPACIDAD | D135: =IFERROR(VLOOKUP($A135,FILTRO_!$A$5:$AW$2499,2,FALSE),0) -> 1 | E135: =IFERROR(VLOOKUP($A135,FILTRO_!$A$5:$AW$2499,3,FALSE),0) -> 0 | F135: =IFERROR(VLOOKUP($A135,FILTRO_!$A$5:$AW$2499,4,FALSE),0) -> 1 | G135: =IFERROR(VLOOKUP($A135,FILTRO_!$A$5:$AW$2499,5,FALSE),0) -> 0 | H135: =IFERROR(VLOOKUP($A135,FILTRO_!$A$5:$AW$2499,6,FALSE),0) -> 0 | I135: =IFERROR(VLOOKUP($A135,FILTRO_!$A$5:$AW$2499,7,FALSE),0) -> 0 | J135: =IFERROR(VLOOKUP($A135,FILTRO_!$A$5:$AW$2499,8,FALSE),0) -> 0 | K135: =IFERROR(VLOOKUP($A135,FILTRO_!$A$5:$AW$2499,9,FALSE),0) -> 0 | L135: =IFERROR(VLOOKUP($A135,FILTRO_!$A$5:$AW$2499,10,FALSE),0) -> 0 | M135: =IFERROR(VLOOKUP($A135,FILTRO_!$A$5:$AW$2499,11,FALSE),0) -> 0 | N135: =IFERROR(VLOOKUP($A135,FILTRO_!$A$5:$AW$2499,12,FALSE),0) -> 0 | O135: =IFERROR(VLOOKUP($A135,FILTRO_!$A$5:$AW$2499,13,FALSE),0) -> 0 | P135: =IFERROR(VLOOKUP($A135,FILTRO_!$A$5:$AW$2499,14,FALSE),0) -> 0 | Q135: =IFERROR(VLOOKUP($A135,FILTRO_!$A$5:$AW$2499,15,FALSE),0) -> 0 | R135: =IFERROR(VLOOKUP($A135,FILTRO_!$A$5:$AW$2499,16,FALSE),0) -> 0 | S135: =IFERROR(VLOOKUP($A135,FILTRO_!$A$5:$AW$2499,17,FALSE),0) -> 0 | T135: =IFERROR(VLOOKUP($A135,FILTRO_!$A$5:$AW$2499,18,FALSE),0) -> 0 | U135: =IFERROR(VLOOKUP($A135,FILTRO_!$A$5:$AW$2499,19,FALSE),0) -> 0 | V135: =IFERROR(VLOOKUP($A135,FILTRO_!$A$5:$AW$2499,20,FALSE),0) -> 1 | W135: =IFERROR(VLOOKUP($A135,FILTRO_!$A$5:$AW$2499,21,FALSE),0) -> 0 | X135: =IFERROR(VLOOKUP($A135,FILTRO_!$A$5:$AW$2499,22,FALSE),0) -> 0 | Y135: =IFERROR(VLOOKUP($A135,FILTRO_!$A$5:$AW$2499,23,FALSE),0) -> 0 | Z135: =IFERROR(VLOOKUP($A135,FILTRO_!$A$5:$AW$2499,24,FALSE),0) -> 0 | AA135: =IFERROR(VLOOKUP($A135,FILTRO_!$A$5:$AW$2499,25,FALSE),0) -> 0 | AB135: =IFERROR(VLOOKUP($A135,FILTRO_!$A$5:$AW$2499,26,FALSE),0) -> 0
A136: 03052600 | C136: DISCAPACIDAD LEVE | D136: =IFERROR(VLOOKUP($A136,FILTRO_!$A$5:$AW$2499,2,FALSE),0) -> 60 | E136: =IFERROR(VLOOKUP($A136,FILTRO_!$A$5:$AW$2499,3,FALSE),0) -> 42 | F136: =IFERROR(VLOOKUP($A136,FILTRO_!$A$5:$AW$2499,4,FALSE),0) -> 18 | G136: =IFERROR(VLOOKUP($A136,FILTRO_!$A$5:$AW$2499,5,FALSE),0) -> 0 | H136: =IFERROR(VLOOKUP($A136,FILTRO_!$A$5:$AW$2499,6,FALSE),0) -> 0 | I136: =IFERROR(VLOOKUP($A136,FILTRO_!$A$5:$AW$2499,7,FALSE),0) -> 0 | J136: =IFERROR(VLOOKUP($A136,FILTRO_!$A$5:$AW$2499,8,FALSE),0) -> 0 | K136: =IFERROR(VLOOKUP($A136,FILTRO_!$A$5:$AW$2499,9,FALSE),0) -> 11 | L136: =IFERROR(VLOOKUP($A136,FILTRO_!$A$5:$AW$2499,10,FALSE),0) -> 1 | M136: =IFERROR(VLOOKUP($A136,FILTRO_!$A$5:$AW$2499,11,FALSE),0) -> 7 | N136: =IFERROR(VLOOKUP($A136,FILTRO_!$A$5:$AW$2499,12,FALSE),0) -> 3 | O136: =IFERROR(VLOOKUP($A136,FILTRO_!$A$5:$AW$2499,13,FALSE),0) -> 6 | P136: =IFERROR(VLOOKUP($A136,FILTRO_!$A$5:$AW$2499,14,FALSE),0) -> 3 | Q136: =IFERROR(VLOOKUP($A136,FILTRO_!$A$5:$AW$2499,15,FALSE),0) -> 3 | R136: =IFERROR(VLOOKUP($A136,FILTRO_!$A$5:$AW$2499,16,FALSE),0) -> 0 | S136: =IFERROR(VLOOKUP($A136,FILTRO_!$A$5:$AW$2499,17,FALSE),0) -> 2 | T136: =IFERROR(VLOOKUP($A136,FILTRO_!$A$5:$AW$2499,18,FALSE),0) -> 1 | U136: =IFERROR(VLOOKUP($A136,FILTRO_!$A$5:$AW$2499,19,FALSE),0) -> 10 | V136: =IFERROR(VLOOKUP($A136,FILTRO_!$A$5:$AW$2499,20,FALSE),0) -> 9 | W136: =IFERROR(VLOOKUP($A136,FILTRO_!$A$5:$AW$2499,21,FALSE),0) -> 2 | X136: =IFERROR(VLOOKUP($A136,FILTRO_!$A$5:$AW$2499,22,FALSE),0) -> 0 | Y136: =IFERROR(VLOOKUP($A136,FILTRO_!$A$5:$AW$2499,23,FALSE),0) -> 1 | Z136: =IFERROR(VLOOKUP($A136,FILTRO_!$A$5:$AW$2499,24,FALSE),0) -> 0 | AA136: =IFERROR(VLOOKUP($A136,FILTRO_!$A$5:$AW$2499,25,FALSE),0) -> 0 | AB136: =IFERROR(VLOOKUP($A136,FILTRO_!$A$5:$AW$2499,26,FALSE),0) -> 1
A137: 03052700 | C137: DISCAPACIDAD MODERADA | D137: =IFERROR(VLOOKUP($A137,FILTRO_!$A$5:$AW$2499,2,FALSE),0) -> 101 | E137: =IFERROR(VLOOKUP($A137,FILTRO_!$A$5:$AW$2499,3,FALSE),0) -> 67 | F137: =IFERROR(VLOOKUP($A137,FILTRO_!$A$5:$AW$2499,4,FALSE),0) -> 34 | G137: =IFERROR(VLOOKUP($A137,FILTRO_!$A$5:$AW$2499,5,FALSE),0) -> 0 | H137: =IFERROR(VLOOKUP($A137,FILTRO_!$A$5:$AW$2499,6,FALSE),0) -> 0 | I137: =IFERROR(VLOOKUP($A137,FILTRO_!$A$5:$AW$2499,7,FALSE),0) -> 0 | J137: =IFERROR(VLOOKUP($A137,FILTRO_!$A$5:$AW$2499,8,FALSE),0) -> 1 | K137: =IFERROR(VLOOKUP($A137,FILTRO_!$A$5:$AW$2499,9,FALSE),0) -> 17 | L137: =IFERROR(VLOOKUP($A137,FILTRO_!$A$5:$AW$2499,10,FALSE),0) -> 3 | M137: =IFERROR(VLOOKUP($A137,FILTRO_!$A$5:$AW$2499,11,FALSE),0) -> 26 | N137: =IFERROR(VLOOKUP($A137,FILTRO_!$A$5:$AW$2499,12,FALSE),0) -> 12 | O137: =IFERROR(VLOOKUP($A137,FILTRO_!$A$5:$AW$2499,13,FALSE),0) -> 12 | P137: =IFERROR(VLOOKUP($A137,FILTRO_!$A$5:$AW$2499,14,FALSE),0) -> 5 | Q137: =IFERROR(VLOOKUP($A137,FILTRO_!$A$5:$AW$2499,15,FALSE),0) -> 5 | R137: =IFERROR(VLOOKUP($A137,FILTRO_!$A$5:$AW$2499,16,FALSE),0) -> 1 | S137: =IFERROR(VLOOKUP($A137,FILTRO_!$A$5:$AW$2499,17,FALSE),0) -> 0 | T137: =IFERROR(VLOOKUP($A137,FILTRO_!$A$5:$AW$2499,18,FALSE),0) -> 2 | U137: =IFERROR(VLOOKUP($A137,FILTRO_!$A$5:$AW$2499,19,FALSE),0) -> 3 | V137: =IFERROR(VLOOKUP($A137,FILTRO_!$A$5:$AW$2499,20,FALSE),0) -> 6 | W137: =IFERROR(VLOOKUP($A137,FILTRO_!$A$5:$AW$2499,21,FALSE),0) -> 1 | X137: =IFERROR(VLOOKUP($A137,FILTRO_!$A$5:$AW$2499,22,FALSE),0) -> 1 | Y137: =IFERROR(VLOOKUP($A137,FILTRO_!$A$5:$AW$2499,23,FALSE),0) -> 2 | Z137: =IFERROR(VLOOKUP($A137,FILTRO_!$A$5:$AW$2499,24,FALSE),0) -> 1 | AA137: =IFERROR(VLOOKUP($A137,FILTRO_!$A$5:$AW$2499,25,FALSE),0) -> 1 | AB137: =IFERROR(VLOOKUP($A137,FILTRO_!$A$5:$AW$2499,26,FALSE),0) -> 2
A138: 03052800 | C138: DISCAPACIDAD SEVERA | D138: =IFERROR(VLOOKUP($A138,FILTRO_!$A$5:$AW$2499,2,FALSE),0) -> 195 | E138: =IFERROR(VLOOKUP($A138,FILTRO_!$A$5:$AW$2499,3,FALSE),0) -> 114 | F138: =IFERROR(VLOOKUP($A138,FILTRO_!$A$5:$AW$2499,4,FALSE),0) -> 81 | G138: =IFERROR(VLOOKUP($A138,FILTRO_!$A$5:$AW$2499,5,FALSE),0) -> 0 | H138: =IFERROR(VLOOKUP($A138,FILTRO_!$A$5:$AW$2499,6,FALSE),0) -> 0 | I138: =IFERROR(VLOOKUP($A138,FILTRO_!$A$5:$AW$2499,7,FALSE),0) -> 0 | J138: =IFERROR(VLOOKUP($A138,FILTRO_!$A$5:$AW$2499,8,FALSE),0) -> 1 | K138: =IFERROR(VLOOKUP($A138,FILTRO_!$A$5:$AW$2499,9,FALSE),0) -> 41 | L138: =IFERROR(VLOOKUP($A138,FILTRO_!$A$5:$AW$2499,10,FALSE),0) -> 11 | M138: =IFERROR(VLOOKUP($A138,FILTRO_!$A$5:$AW$2499,11,FALSE),0) -> 30 | N138: =IFERROR(VLOOKUP($A138,FILTRO_!$A$5:$AW$2499,12,FALSE),0) -> 16 | O138: =IFERROR(VLOOKUP($A138,FILTRO_!$A$5:$AW$2499,13,FALSE),0) -> 14 | P138: =IFERROR(VLOOKUP($A138,FILTRO_!$A$5:$AW$2499,14,FALSE),0) -> 5 | Q138: =IFERROR(VLOOKUP($A138,FILTRO_!$A$5:$AW$2499,15,FALSE),0) -> 10 | R138: =IFERROR(VLOOKUP($A138,FILTRO_!$A$5:$AW$2499,16,FALSE),0) -> 4 | S138: =IFERROR(VLOOKUP($A138,FILTRO_!$A$5:$AW$2499,17,FALSE),0) -> 1 | T138: =IFERROR(VLOOKUP($A138,FILTRO_!$A$5:$AW$2499,18,FALSE),0) -> 0 | U138: =IFERROR(VLOOKUP($A138,FILTRO_!$A$5:$AW$2499,19,FALSE),0) -> 11 | V138: =IFERROR(VLOOKUP($A138,FILTRO_!$A$5:$AW$2499,20,FALSE),0) -> 12 | W138: =IFERROR(VLOOKUP($A138,FILTRO_!$A$5:$AW$2499,21,FALSE),0) -> 2 | X138: =IFERROR(VLOOKUP($A138,FILTRO_!$A$5:$AW$2499,22,FALSE),0) -> 1 | Y138: =IFERROR(VLOOKUP($A138,FILTRO_!$A$5:$AW$2499,23,FALSE),0) -> 1 | Z138: =IFERROR(VLOOKUP($A138,FILTRO_!$A$5:$AW$2499,24,FALSE),0) -> 7 | AA138: =IFERROR(VLOOKUP($A138,FILTRO_!$A$5:$AW$2499,25,FALSE),0) -> 4 | AB138: =IFERROR(VLOOKUP($A138,FILTRO_!$A$5:$AW$2499,26,FALSE),0) -> 24
A139: 03052900 | C139: DISCAPACIDAD PROFUNDA | D139: =IFERROR(VLOOKUP($A139,FILTRO_!$A$5:$AW$2499,2,FALSE),0) -> 13 | E139: =IFERROR(VLOOKUP($A139,FILTRO_!$A$5:$AW$2499,3,FALSE),0) -> 1 | F139: =IFERROR(VLOOKUP($A139,FILTRO_!$A$5:$AW$2499,4,FALSE),0) -> 12 | G139: =IFERROR(VLOOKUP($A139,FILTRO_!$A$5:$AW$2499,5,FALSE),0) -> 0 | H139: =IFERROR(VLOOKUP($A139,FILTRO_!$A$5:$AW$2499,6,FALSE),0) -> 0 | I139: =IFERROR(VLOOKUP($A139,FILTRO_!$A$5:$AW$2499,7,FALSE),0) -> 0 | J139: =IFERROR(VLOOKUP($A139,FILTRO_!$A$5:$AW$2499,8,FALSE),0) -> 0 | K139: =IFERROR(VLOOKUP($A139,FILTRO_!$A$5:$AW$2499,9,FALSE),0) -> 0 | L139: =IFERROR(VLOOKUP($A139,FILTRO_!$A$5:$AW$2499,10,FALSE),0) -> 1 | M139: =IFERROR(VLOOKUP($A139,FILTRO_!$A$5:$AW$2499,11,FALSE),0) -> 0 | N139: =IFERROR(VLOOKUP($A139,FILTRO_!$A$5:$AW$2499,12,FALSE),0) -> 0 | O139: =IFERROR(VLOOKUP($A139,FILTRO_!$A$5:$AW$2499,13,FALSE),0) -> 0 | P139: =IFERROR(VLOOKUP($A139,FILTRO_!$A$5:$AW$2499,14,FALSE),0) -> 0 | Q139: =IFERROR(VLOOKUP($A139,FILTRO_!$A$5:$AW$2499,15,FALSE),0) -> 0 | R139: =IFERROR(VLOOKUP($A139,FILTRO_!$A$5:$AW$2499,16,FALSE),0) -> 0 | S139: =IFERROR(VLOOKUP($A139,FILTRO_!$A$5:$AW$2499,17,FALSE),0) -> 0 | T139: =IFERROR(VLOOKUP($A139,FILTRO_!$A$5:$AW$2499,18,FALSE),0) -> 0 | U139: =IFERROR(VLOOKUP($A139,FILTRO_!$A$5:$AW$2499,19,FALSE),0) -> 0 | V139: =IFERROR(VLOOKUP($A139,FILTRO_!$A$5:$AW$2499,20,FALSE),0) -> 3 | W139: =IFERROR(VLOOKUP($A139,FILTRO_!$A$5:$AW$2499,21,FALSE),0) -> 0 | X139: =IFERROR(VLOOKUP($A139,FILTRO_!$A$5:$AW$2499,22,FALSE),0) -> 0 | Y139: =IFERROR(VLOOKUP($A139,FILTRO_!$A$5:$AW$2499,23,FALSE),0) -> 0 | Z139: =IFERROR(VLOOKUP($A139,FILTRO_!$A$5:$AW$2499,24,FALSE),0) -> 2 | AA139: =IFERROR(VLOOKUP($A139,FILTRO_!$A$5:$AW$2499,25,FALSE),0) -> 1 | AB139: =IFERROR(VLOOKUP($A139,FILTRO_!$A$5:$AW$2499,26,FALSE),0) -> 6
A140: 03053000 | B140: ORIGEN MENTAL INTELECTUAL | C140: SIN DISCAPACIDAD | D140: =IFERROR(VLOOKUP($A140,FILTRO_!$A$5:$AW$2499,2,FALSE),0) -> 0 | E140: =IFERROR(VLOOKUP($A140,FILTRO_!$A$5:$AW$2499,3,FALSE),0) -> 0 | F140: =IFERROR(VLOOKUP($A140,FILTRO_!$A$5:$AW$2499,4,FALSE),0) -> 0 | G140: =IFERROR(VLOOKUP($A140,FILTRO_!$A$5:$AW$2499,5,FALSE),0) -> 0 | H140: =IFERROR(VLOOKUP($A140,FILTRO_!$A$5:$AW$2499,6,FALSE),0) -> 0 | I140: =IFERROR(VLOOKUP($A140,FILTRO_!$A$5:$AW$2499,7,FALSE),0) -> 0 | J140: =IFERROR(VLOOKUP($A140,FILTRO_!$A$5:$AW$2499,8,FALSE),0) -> 0 | K140: =IFERROR(VLOOKUP($A140,FILTRO_!$A$5:$AW$2499,9,FALSE),0) -> 0 | L140: =IFERROR(VLOOKUP($A140,FILTRO_!$A$5:$AW$2499,10,FALSE),0) -> 0 | M140: =IFERROR(VLOOKUP($A140,FILTRO_!$A$5:$AW$2499,11,FALSE),0) -> 0 | N140: =IFERROR(VLOOKUP($A140,FILTRO_!$A$5:$AW$2499,12,FALSE),0) -> 0 | O140: =IFERROR(VLOOKUP($A140,FILTRO_!$A$5:$AW$2499,13,FALSE),0) -> 0 | P140: =IFERROR(VLOOKUP($A140,FILTRO_!$A$5:$AW$2499,14,FALSE),0) -> 0 | Q140: =IFERROR(VLOOKUP($A140,FILTRO_!$A$5:$AW$2499,15,FALSE),0) -> 0 | R140: =IFERROR(VLOOKUP($A140,FILTRO_!$A$5:$AW$2499,16,FALSE),0) -> 0 | S140: =IFERROR(VLOOKUP($A140,FILTRO_!$A$5:$AW$2499,17,FALSE),0) -> 0 | T140: =IFERROR(VLOOKUP($A140,FILTRO_!$A$5:$AW$2499,18,FALSE),0) -> 0 | U140: =IFERROR(VLOOKUP($A140,FILTRO_!$A$5:$AW$2499,19,FALSE),0) -> 0 | V140: =IFERROR(VLOOKUP($A140,FILTRO_!$A$5:$AW$2499,20,FALSE),0) -> 0 | W140: =IFERROR(VLOOKUP($A140,FILTRO_!$A$5:$AW$2499,21,FALSE),0) -> 0 | X140: =IFERROR(VLOOKUP($A140,FILTRO_!$A$5:$AW$2499,22,FALSE),0) -> 0 | Y140: =IFERROR(VLOOKUP($A140,FILTRO_!$A$5:$AW$2499,23,FALSE),0) -> 0 | Z140: =IFERROR(VLOOKUP($A140,FILTRO_!$A$5:$AW$2499,24,FALSE),0) -> 0 | AA140: =IFERROR(VLOOKUP($A140,FILTRO_!$A$5:$AW$2499,25,FALSE),0) -> 0 | AB140: =IFERROR(VLOOKUP($A140,FILTRO_!$A$5:$AW$2499,26,FALSE),0) -> 0
A141: 03053100 | C141: DISCAPACIDAD LEVE | D141: =IFERROR(VLOOKUP($A141,FILTRO_!$A$5:$AW$2499,2,FALSE),0) -> 11 | E141: =IFERROR(VLOOKUP($A141,FILTRO_!$A$5:$AW$2499,3,FALSE),0) -> 6 | F141: =IFERROR(VLOOKUP($A141,FILTRO_!$A$5:$AW$2499,4,FALSE),0) -> 5 | G141: =IFERROR(VLOOKUP($A141,FILTRO_!$A$5:$AW$2499,5,FALSE),0) -> 0 | H141: =IFERROR(VLOOKUP($A141,FILTRO_!$A$5:$AW$2499,6,FALSE),0) -> 0 | I141: =IFERROR(VLOOKUP($A141,FILTRO_!$A$5:$AW$2499,7,FALSE),0) -> 0 | J141: =IFERROR(VLOOKUP($A141,FILTRO_!$A$5:$AW$2499,8,FALSE),0) -> 0 | K141: =IFERROR(VLOOKUP($A141,FILTRO_!$A$5:$AW$2499,9,FALSE),0) -> 0 | L141: =IFERROR(VLOOKUP($A141,FILTRO_!$A$5:$AW$2499,10,FALSE),0) -> 0 | M141: =IFERROR(VLOOKUP($A141,FILTRO_!$A$5:$AW$2499,11,FALSE),0) -> 1 | N141: =IFERROR(VLOOKUP($A141,FILTRO_!$A$5:$AW$2499,12,FALSE),0) -> 3 | O141: =IFERROR(VLOOKUP($A141,FILTRO_!$A$5:$AW$2499,13,FALSE),0) -> 1 | P141: =IFERROR(VLOOKUP($A141,FILTRO_!$A$5:$AW$2499,14,FALSE),0) -> 1 | Q141: =IFERROR(VLOOKUP($A141,FILTRO_!$A$5:$AW$2499,15,FALSE),0) -> 2 | R141: =IFERROR(VLOOKUP($A141,FILTRO_!$A$5:$AW$2499,16,FALSE),0) -> 1 | S141: =IFERROR(VLOOKUP($A141,FILTRO_!$A$5:$AW$2499,17,FALSE),0) -> 1 | T141: =IFERROR(VLOOKUP($A141,FILTRO_!$A$5:$AW$2499,18,FALSE),0) -> 0 | U141: =IFERROR(VLOOKUP($A141,FILTRO_!$A$5:$AW$2499,19,FALSE),0) -> 1 | V141: =IFERROR(VLOOKUP($A141,FILTRO_!$A$5:$AW$2499,20,FALSE),0) -> 0 | W141: =IFERROR(VLOOKUP($A141,FILTRO_!$A$5:$AW$2499,21,FALSE),0) -> 0 | X141: =IFERROR(VLOOKUP($A141,FILTRO_!$A$5:$AW$2499,22,FALSE),0) -> 0 | Y141: =IFERROR(VLOOKUP($A141,FILTRO_!$A$5:$AW$2499,23,FALSE),0) -> 0 | Z141: =IFERROR(VLOOKUP($A141,FILTRO_!$A$5:$AW$2499,24,FALSE),0) -> 0 | AA141: =IFERROR(VLOOKUP($A141,FILTRO_!$A$5:$AW$2499,25,FALSE),0) -> 0 | AB141: =IFERROR(VLOOKUP($A141,FILTRO_!$A$5:$AW$2499,26,FALSE),0) -> 0
A142: 03053200 | C142: DISCAPACIDAD MODERADA | D142: =IFERROR(VLOOKUP($A142,FILTRO_!$A$5:$AW$2499,2,FALSE),0) -> 14 | E142: =IFERROR(VLOOKUP($A142,FILTRO_!$A$5:$AW$2499,3,FALSE),0) -> 9 | F142: =IFERROR(VLOOKUP($A142,FILTRO_!$A$5:$AW$2499,4,FALSE),0) -> 5 | G142: =IFERROR(VLOOKUP($A142,FILTRO_!$A$5:$AW$2499,5,FALSE),0) -> 1 | H142: =IFERROR(VLOOKUP($A142,FILTRO_!$A$5:$AW$2499,6,FALSE),0) -> 0 | I142: =IFERROR(VLOOKUP($A142,FILTRO_!$A$5:$AW$2499,7,FALSE),0) -> 0 | J142: =IFERROR(VLOOKUP($A142,FILTRO_!$A$5:$AW$2499,8,FALSE),0) -> 0 | K142: =IFERROR(VLOOKUP($A142,FILTRO_!$A$5:$AW$2499,9,FALSE),0) -> 0 | L142: =IFERROR(VLOOKUP($A142,FILTRO_!$A$5:$AW$2499,10,FALSE),0) -> 1 | M142: =IFERROR(VLOOKUP($A142,FILTRO_!$A$5:$AW$2499,11,FALSE),0) -> 3 | N142: =IFERROR(VLOOKUP($A142,FILTRO_!$A$5:$AW$2499,12,FALSE),0) -> 0 | O142: =IFERROR(VLOOKUP($A142,FILTRO_!$A$5:$AW$2499,13,FALSE),0) -> 2 | P142: =IFERROR(VLOOKUP($A142,FILTRO_!$A$5:$AW$2499,14,FALSE),0) -> 2 | Q142: =IFERROR(VLOOKUP($A142,FILTRO_!$A$5:$AW$2499,15,FALSE),0) -> 0 | R142: =IFERROR(VLOOKUP($A142,FILTRO_!$A$5:$AW$2499,16,FALSE),0) -> 0 | S142: =IFERROR(VLOOKUP($A142,FILTRO_!$A$5:$AW$2499,17,FALSE),0) -> 1 | T142: =IFERROR(VLOOKUP($A142,FILTRO_!$A$5:$AW$2499,18,FALSE),0) -> 0 | U142: =IFERROR(VLOOKUP($A142,FILTRO_!$A$5:$AW$2499,19,FALSE),0) -> 2 | V142: =IFERROR(VLOOKUP($A142,FILTRO_!$A$5:$AW$2499,20,FALSE),0) -> 2 | W142: =IFERROR(VLOOKUP($A142,FILTRO_!$A$5:$AW$2499,21,FALSE),0) -> 0 | X142: =IFERROR(VLOOKUP($A142,FILTRO_!$A$5:$AW$2499,22,FALSE),0) -> 0 | Y142: =IFERROR(VLOOKUP($A142,FILTRO_!$A$5:$AW$2499,23,FALSE),0) -> 0 | Z142: =IFERROR(VLOOKUP($A142,FILTRO_!$A$5:$AW$2499,24,FALSE),0) -> 0 | AA142: =IFERROR(VLOOKUP($A142,FILTRO_!$A$5:$AW$2499,25,FALSE),0) -> 0 | AB142: =IFERROR(VLOOKUP($A142,FILTRO_!$A$5:$AW$2499,26,FALSE),0) -> 0
A143: 03053300 | C143: DISCAPACIDAD SEVERA | D143: =IFERROR(VLOOKUP($A143,FILTRO_!$A$5:$AW$2499,2,FALSE),0) -> 29 | E143: =IFERROR(VLOOKUP($A143,FILTRO_!$A$5:$AW$2499,3,FALSE),0) -> 23 | F143: =IFERROR(VLOOKUP($A143,FILTRO_!$A$5:$AW$2499,4,FALSE),0) -> 6 | G143: =IFERROR(VLOOKUP($A143,FILTRO_!$A$5:$AW$2499,5,FALSE),0) -> 0 | H143: =IFERROR(VLOOKUP($A143,FILTRO_!$A$5:$AW$2499,6,FALSE),0) -> 0 | I143: =IFERROR(VLOOKUP($A143,FILTRO_!$A$5:$AW$2499,7,FALSE),0) -> 0 | J143: =IFERROR(VLOOKUP($A143,FILTRO_!$A$5:$AW$2499,8,FALSE),0) -> 1 | K143: =IFERROR(VLOOKUP($A143,FILTRO_!$A$5:$AW$2499,9,FALSE),0) -> 4 | L143: =IFERROR(VLOOKUP($A143,FILTRO_!$A$5:$AW$2499,10,FALSE),0) -> 0 | M143: =IFERROR(VLOOKUP($A143,FILTRO_!$A$5:$AW$2499,11,FALSE),0) -> 7 | N143: =IFERROR(VLOOKUP($A143,FILTRO_!$A$5:$AW$2499,12,FALSE),0) -> 0 | O143: =IFERROR(VLOOKUP($A143,FILTRO_!$A$5:$AW$2499,13,FALSE),0) -> 3 | P143: =IFERROR(VLOOKUP($A143,FILTRO_!$A$5:$AW$2499,14,FALSE),0) -> 1 | Q143: =IFERROR(VLOOKUP($A143,FILTRO_!$A$5:$AW$2499,15,FALSE),0) -> 3 | R143: =IFERROR(VLOOKUP($A143,FILTRO_!$A$5:$AW$2499,16,FALSE),0) -> 1 | S143: =IFERROR(VLOOKUP($A143,FILTRO_!$A$5:$AW$2499,17,FALSE),0) -> 0 | T143: =IFERROR(VLOOKUP($A143,FILTRO_!$A$5:$AW$2499,18,FALSE),0) -> 0 | U143: =IFERROR(VLOOKUP($A143,FILTRO_!$A$5:$AW$2499,19,FALSE),0) -> 4 | V143: =IFERROR(VLOOKUP($A143,FILTRO_!$A$5:$AW$2499,20,FALSE),0) -> 1 | W143: =IFERROR(VLOOKUP($A143,FILTRO_!$A$5:$AW$2499,21,FALSE),0) -> 2 | X143: =IFERROR(VLOOKUP($A143,FILTRO_!$A$5:$AW$2499,22,FALSE),0) -> 0 | Y143: =IFERROR(VLOOKUP($A143,FILTRO_!$A$5:$AW$2499,23,FALSE),0) -> 0 | Z143: =IFERROR(VLOOKUP($A143,FILTRO_!$A$5:$AW$2499,24,FALSE),0) -> 1 | AA143: =IFERROR(VLOOKUP($A143,FILTRO_!$A$5:$AW$2499,25,FALSE),0) -> 0 | AB143: =IFERROR(VLOOKUP($A143,FILTRO_!$A$5:$AW$2499,26,FALSE),0) -> 1
A144: 03053400 | C144: DISCAPACIDAD PROFUNDA | D144: =IFERROR(VLOOKUP($A144,FILTRO_!$A$5:$AW$2499,2,FALSE),0) -> 10 | E144: =IFERROR(VLOOKUP($A144,FILTRO_!$A$5:$AW$2499,3,FALSE),0) -> 5 | F144: =IFERROR(VLOOKUP($A144,FILTRO_!$A$5:$AW$2499,4,FALSE),0) -> 5 | G144: =IFERROR(VLOOKUP($A144,FILTRO_!$A$5:$AW$2499,5,FALSE),0) -> 0 | H144: =IFERROR(VLOOKUP($A144,FILTRO_!$A$5:$AW$2499,6,FALSE),0) -> 0 | I144: =IFERROR(VLOOKUP($A144,FILTRO_!$A$5:$AW$2499,7,FALSE),0) -> 0 | J144: =IFERROR(VLOOKUP($A144,FILTRO_!$A$5:$AW$2499,8,FALSE),0) -> 0 | K144: =IFERROR(VLOOKUP($A144,FILTRO_!$A$5:$AW$2499,9,FALSE),0) -> 1 | L144: =IFERROR(VLOOKUP($A144,FILTRO_!$A$5:$AW$2499,10,FALSE),0) -> 1 | M144: =IFERROR(VLOOKUP($A144,FILTRO_!$A$5:$AW$2499,11,FALSE),0) -> 1 | N144: =IFERROR(VLOOKUP($A144,FILTRO_!$A$5:$AW$2499,12,FALSE),0) -> 1 | O144: =IFERROR(VLOOKUP($A144,FILTRO_!$A$5:$AW$2499,13,FALSE),0) -> 0 | P144: =IFERROR(VLOOKUP($A144,FILTRO_!$A$5:$AW$2499,14,FALSE),0) -> 0 | Q144: =IFERROR(VLOOKUP($A144,FILTRO_!$A$5:$AW$2499,15,FALSE),0) -> 0 | R144: =IFERROR(VLOOKUP($A144,FILTRO_!$A$5:$AW$2499,16,FALSE),0) -> 0 | S144: =IFERROR(VLOOKUP($A144,FILTRO_!$A$5:$AW$2499,17,FALSE),0) -> 0 | T144: =IFERROR(VLOOKUP($A144,FILTRO_!$A$5:$AW$2499,18,FALSE),0) -> 0 | U144: =IFERROR(VLOOKUP($A144,FILTRO_!$A$5:$AW$2499,19,FALSE),0) -> 1 | V144: =IFERROR(VLOOKUP($A144,FILTRO_!$A$5:$AW$2499,20,FALSE),0) -> 1 | W144: =IFERROR(VLOOKUP($A144,FILTRO_!$A$5:$AW$2499,21,FALSE),0) -> 1 | X144: =IFERROR(VLOOKUP($A144,FILTRO_!$A$5:$AW$2499,22,FALSE),0) -> 0 | Y144: =IFERROR(VLOOKUP($A144,FILTRO_!$A$5:$AW$2499,23,FALSE),0) -> 0 | Z144: =IFERROR(VLOOKUP($A144,FILTRO_!$A$5:$AW$2499,24,FALSE),0) -> 1 | AA144: =IFERROR(VLOOKUP($A144,FILTRO_!$A$5:$AW$2499,25,FALSE),0) -> 1 | AB144: =IFERROR(VLOOKUP($A144,FILTRO_!$A$5:$AW$2499,26,FALSE),0) -> 1
